Workbook

Sheet INTRO
B2: Formulaire de demande commune de médicaments pour CP v.4.1
B4: Dans le cadre des efforts mondiaux entrepris pour accélérer l'expansion de la chimioprévention (CP) pour l'élimination de la filariose lymphatique et la lutte contre la schistosomiase et les géohelminthiases, l'Organisation mondiale de la Santé (OMS) facilite l'approvisionnement en albendazole, comprimés de 400 mg (GSK), pour les programmes nationaux d'élimination de la filariose lymphatique et programmes nationaux de lutte contre les géohelminthiases; en diethylcarbamazine, comprimés de 100 mg (Eisai), pour les programmes nationaux d'élimination de la filariose lymphatique; en mebendazole, comprimés de 500 mg (J&J) pour les programmes nationaux de lutte contre les géohelminthiases et en praziquantel, comprimés de 600 mg (Merck KGaA), destinés aux enfants d'âge scolaire, pour les programmes nationaux de lutte contre la schistosomiase. L'OMS contribue également à l'approvisionnement en ivermectine, comprimés de 3 mg (Merck), pour les programmes de donation pour l'onchocercose et la filariose lymphatique. Cet outil Excel est concu pour aider les pays à quantifier le nombre de comprimés nécessaires, selon le traitement de chimioprévention requis, pour atteindre les objectifs de couverture de traitement de populations et districts pour l'année de la demande de médicaments. Le résultat de cet outil est une demande commune de médicaments pour la chimioprévention des maladies tropicales négligées, qui peut être imprimée, signée et soumise à l'OMS pour la demande de ces médicaments.
B6: Structure de l'application (feuilles de travail) :
B8: INTRO | C8: Cette feuille contient des instructions pour compléter le formulaire de demande de médicaments pour la chimioprévention et des informations sur le statut de la chimioprévention pour les maladies d'endémie du pays.
B9: COUNTRY_INFO | C9: Cette feuille contient des informations sur la structure administrative du pays, la population par groupe d'âge, le statut d'endémicité pour chaque maladie, la population devant être traitée par chimioprévention et les interventions prévues.
B10: DEC, ALB_MBD, PZQ et IVM | C10: Ces feuilles contiennent des informations sur l'endémicité des districts ciblés pour le traitement aux médicaments spécifiques à la chimioprévention, les plans de traitement, et le nombre de comprimés requis et demandés.
B11: SUMMARY | C11: Cette feuille inclut un résumé du nombre de comprimés demandés, des informations concernant le stock et les dates de soumission de la demande de médicaments. Avant de générer le rapport (run macros), veuillez sélectionner le médicament pour lequel le rapport est nécessaire. Veuillez suivre la même règle pour voir le nombre de personnes à traiter pour les maladies spécifiques. Cette feuille doit être imprimée et soumise en tant que "Formulaire de demande commune de médicaments pour chimioprévention" (voir les instructions pour la soumission du formulaire sous la feuille SUMMARY).
B13: Instructions pour la saisie des données
B15: La plupart des cellules des feuilles de travail mentionnées ci-dessus contiennent des formules calculées automatiquement en fonction du protocole de traitement recommandé par l'OMS pour chaque maladie. Voir : https://www.who.int/publications/i/item/9789241599993.
B17: Veuillez entrer vos données dans les cellules en fonction de leur code de couleur :
C19: Blanc - la cellule n'est pas protégée. Veuillez entrer la valeur de l'indicateur demandé.
C21: Jaune - la cellule est protégée et inclut le nom de l'indicateur. Aucune entrée de données requise.
C23: Orange - la cellule n'est pas protégée et contient un menu déroulant. Veuillez sélectionner la valeur dans le menu déroulant.
C26: Vert - la cellule n'est pas protégée et contient des formules. Veuillez changer la valeur indiquée uniquement si vos données sont différentes de celles calculées automatiquement.
C29: Bleu - la cellule est protégée et contient des formules. Aucune entrée de données requise.
B31: Données pays
B33: PAYS | E33: NIGER
E34: 5
B35: Année de la demande de médicaments | E35: 2024
B37: Le pays est-il endémique à la filariose lymphatique (FL) ? | E37: Endémique
B39: Le pays est-il endémique à l'onchocercose (ONCHO) ? | E39: Endémique mais pas de CP
B41: Le pays est-il endémique aux géohelminthiases (STH) ? | E41: Endémique
B43: Le pays est-il endémique à la schistosomiase (SCH) ? | E43: Endémique
B45: Combien d'unités administratives compte le pays ? | E45: 72
B47: Si les données démographiques par groupe d'âge ne sont pas disponibles au second niveau administratif, veuillez entrer la proportion (%) de population, par groupe d'âge, du pays. Si les données sont disponibles, veuillez laisser les cellules vierges.
B48: 1-4 ans | C48: Enfants d'âge pré-scolaire (EAPréS) | E48: 0.18
B49: 5-14 ans | C49: Enfants d'âge scolaire (EAS) | E49: 0.3
B50: 15 ans et plus | C50: Adultes | E50: 0.5
B51: 15-49 ans | C51: Femmes en âge de procréer (FAP) | E51: 0.2092

Sheet COUNTRY_INFO
A1: INFORMATIONS PAYS
A2: Struture administrative, population par groupe d'âge, statut d'endémicité et interventions planifiées
A4: TOTAL | D4: =SUBTOTAL(9,D$10:D$1010) -> 26312032.49 | E4: =SUBTOTAL(9,E$10:E$1010) -> 4736172 | F4: 7893605 | G4: 13156019 | L4: =SUBTOTAL(9,L$10:L$1010) -> 0 | M4: 0 | N4: 443062 | O4: 738436 | P4: 514936 | Q4: 1696434 | R4: 2927990 | S4: 7584789 | T4: 13265379 | U4: 23342659
A6: Structure administrative du pays | D6: Population | H6: Endémicité | L6: Population nécessitant la CP | V6: Nombre de tournées de traitement prévues pour l'année | Z6: Criteria to apply for IVM+DEC+ALB therapy | AA6: Enquêtes épidémiologiques planifiées pour l’année
A7: Pays | B7: Région/Département | C7: District | D7: Total | E7: EAPréS | F7: EAS | G7: Adultes | H7: FL | I7: Oncho | J7: STH | K7: SCH | L7: FL | M7: ONCHO | N7: STH | R7: SCH | V7: FL | W7: Oncho | X7: STH | Y7: SCH | Z7: FL | AA7: FL | AB7: Oncho | AC7: STH | AD7: SCH
N8: EAPréS | O8: EAS | P8: FAP | Q8: TOTAL | R8: EAPréS | S8: EAS | T8: Adultes | U8: TOTAL
AE9: IU_ID | AF9: IU_Name
A10: =IF(INTRO!$E$33<>0,INTRO!$E$33, " ") -> NIGER | B10: Agadez | C10: Agadez | D10: 173256 | E10: =IF([1]INTRO!$E$48="","",ROUND($D10*[1]INTRO!$E$48,0)) -> 31186 | F10: =IF([1]INTRO!$E$49="","",ROUND($D10*[1]INTRO!$E$49,0)) -> 51977 | G10: =IF([1]INTRO!$E$50="","",ROUND($D10*[1]INTRO!$E$50,0)) -> 86628 | H10: 0 | J10: 99 | K10: 21 | L10: =IF(INTRO!$E$37="Endémique",IF($H10>0,IF($H10=4,"Inconnu",IF($H10=99,"Interrompu",$D10)),0),"Non requis") -> 0 | M10: =IF(INTRO!$E$39="Endémique", IF($I10>0, IF($I10=4,"Inconnu",IF($I10=99,"Interrompu",$D10)), 0),"Non requis") -> Non requis | N10: =IF(INTRO!$E$41="Endémique", IF($J10>1, IF($J10=4, "Inconnu", IF($J10=99, "Surveillance", E10)), 0),"Non requis") -> Surveillance | O10: =IF(INTRO!$E$41="Endémique", IF($J10>1, IF($J10=4, "Inconnu", IF($J10=99, "Surveillance", F10)), 0),"Non requis") -> Surveillance | P10: =IF(INTRO!$E$41="Endémique", IF($J10>1, IF($J10=4, "Inconnu", IF($J10=99, "Surveillance", ROUND(D10*INTRO!$E$51,0))), 0),"Non requis") -> Surveillance | Q10: =IF(INTRO!$E$41="Endémique", IF($J10>1, IF($J10=4, "Inconnu", IF($J10=99, "Surveillance", SUM($N10:$P10))), 0),"Non requis") -> Surveillance | R10: 19326 | S10: 50063 | T10: 87556 | U10: =IF(INTRO!$E$43="Endémique", IF($K10>1, IF($K10=4, "Inconnu", IF($K10=99, "Surveillance", SUM($R10:$T10))), 0),"Non requis") -> 156945 | V10: 0 | X10: 0 | Y10: 0 | AE10: 35294 | AF10: Agadez
A11: =IF(INTRO!$E$33<>0,INTRO!$E$33, " ") -> NIGER | B11: Agadez | C11: Arlit | D11: 153893 | E11: =IF([1]INTRO!$E$48="","",ROUND($D11*[1]INTRO!$E$48,0)) -> 27701 | F11: =IF([1]INTRO!$E$49="","",ROUND($D11*[1]INTRO!$E$49,0)) -> 46168 | G11: =IF([1]INTRO!$E$50="","",ROUND($D11*[1]INTRO!$E$50,0)) -> 76947 | H11: 99 | J11: 99 | K11: 11 | L11: =IF(INTRO!$E$37="Endémique",IF($H11>0,IF($H11=4,"Inconnu",IF($H11=99,"Interrompu",$D11)),0),"Non requis") -> Interrompu | M11: =IF(INTRO!$E$39="Endémique", IF($I11>0, IF($I11=4,"Inconnu",IF($I11=99,"Interrompu",$D11)), 0),"Non requis") -> Non requis | N11: =IF(INTRO!$E$41="Endémique", IF($J11>1, IF($J11=4, "Inconnu", IF($J11=99, "Surveillance", E11)), 0),"Non requis") -> Surveillance | O11: =IF(INTRO!$E$41="Endémique", IF($J11>1, IF($J11=4, "Inconnu", IF($J11=99, "Surveillance", F11)), 0),"Non requis") -> Surveillance | P11: =IF(INTRO!$E$41="Endémique", IF($J11>1, IF($J11=4, "Inconnu", IF($J11=99, "Surveillance", ROUND(D11*INTRO!$E$51,0))), 0),"Non requis") -> Surveillance | Q11: =IF(INTRO!$E$41="Endémique", IF($J11>1, IF($J11=4, "Inconnu", IF($J11=99, "Surveillance", SUM($N11:$P11))), 0),"Non requis") -> Surveillance | R11: 17049 | S11: 44166 | T11: 77244 | U11: =IF(INTRO!$E$43="Endémique", IF($K11>1, IF($K11=4, "Inconnu", IF($K11=99, "Surveillance", SUM($R11:$T11))), 0),"Non requis") -> 138459 | V11: 0 | X11: 0 | Y11: 0 | AE11: 35337 | AF11: Arlit
A12: =IF(INTRO!$E$33<>0,INTRO!$E$33, " ") -> NIGER | B12: Agadez | C12: Iférouane | D12: 47961 | E12: =IF([1]INTRO!$E$48="","",ROUND($D12*[1]INTRO!$E$48,0)) -> 8633 | F12: =IF([1]INTRO!$E$49="","",ROUND($D12*[1]INTRO!$E$49,0)) -> 14388 | G12: =IF([1]INTRO!$E$50="","",ROUND($D12*[1]INTRO!$E$50,0)) -> 23981 | H12: 99 | J12: 99 | K12: 11 | L12: =IF(INTRO!$E$37="Endémique",IF($H12>0,IF($H12=4,"Inconnu",IF($H12=99,"Interrompu",$D12)),0),"Non requis") -> Interrompu | M12: =IF(INTRO!$E$39="Endémique", IF($I12>0, IF($I12=4,"Inconnu",IF($I12=99,"Interrompu",$D12)), 0),"Non requis") -> Non requis | N12: =IF(INTRO!$E$41="Endémique", IF($J12>1, IF($J12=4, "Inconnu", IF($J12=99, "Surveillance", E12)), 0),"Non requis") -> Surveillance | O12: =IF(INTRO!$E$41="Endémique", IF($J12>1, IF($J12=4, "Inconnu", IF($J12=99, "Surveillance", F12)), 0),"Non requis") -> Surveillance | P12: =IF(INTRO!$E$41="Endémique", IF($J12>1, IF($J12=4, "Inconnu", IF($J12=99, "Surveillance", ROUND(D12*INTRO!$E$51,0))), 0),"Non requis") -> Surveillance | Q12: =IF(INTRO!$E$41="Endémique", IF($J12>1, IF($J12=4, "Inconnu", IF($J12=99, "Surveillance", SUM($N12:$P12))), 0),"Non requis") -> Surveillance | R12: 4323 | S12: 11198 | T12: 19582 | U12: =IF(INTRO!$E$43="Endémique", IF($K12>1, IF($K12=4, "Inconnu", IF($K12=99, "Surveillance", SUM($R12:$T12))), 0),"Non requis") -> 35103 | V12: 0 | X12: 0 | Y12: 0 | AE12: 35338 | AF12: Iférouane
A13: =IF(INTRO!$E$33<>0,INTRO!$E$33, " ") -> NIGER | B13: Agadez | C13: Bilma | D13: 26280 | E13: =IF([1]INTRO!$E$48="","",ROUND($D13*[1]INTRO!$E$48,0)) -> 4730 | F13: =IF([1]INTRO!$E$49="","",ROUND($D13*[1]INTRO!$E$49,0)) -> 7884 | G13: =IF([1]INTRO!$E$50="","",ROUND($D13*[1]INTRO!$E$50,0)) -> 13140 | H13: 0 | J13: 11 | K13: 0 | L13: =IF(INTRO!$E$37="Endémique",IF($H13>0,IF($H13=4,"Inconnu",IF($H13=99,"Interrompu",$D13)),0),"Non requis") -> 0 | M13: =IF(INTRO!$E$39="Endémique", IF($I13>0, IF($I13=4,"Inconnu",IF($I13=99,"Interrompu",$D13)), 0),"Non requis") -> Non requis | N13: =IF(INTRO!$E$41="Endémique", IF($J13>1, IF($J13=4, "Inconnu", IF($J13=99, "Surveillance", E13)), 0),"Non requis") -> 4730 | O13: =IF(INTRO!$E$41="Endémique", IF($J13>1, IF($J13=4, "Inconnu", IF($J13=99, "Surveillance", F13)), 0),"Non requis") -> 7884 | P13: =IF(INTRO!$E$41="Endémique", IF($J13>1, IF($J13=4, "Inconnu", IF($J13=99, "Surveillance", ROUND(D13*INTRO!$E$51,0))), 0),"Non requis") -> 5498 | Q13: =IF(INTRO!$E$41="Endémique", IF($J13>1, IF($J13=4, "Inconnu", IF($J13=99, "Surveillance", SUM($N13:$P13))), 0),"Non requis") -> 18112 | R13: 0 | S13: 0 | T13: 0 | U13: =IF(INTRO!$E$43="Endémique", IF($K13>1, IF($K13=4, "Inconnu", IF($K13=99, "Surveillance", SUM($R13:$T13))), 0),"Non requis") -> 0 | V13: 0 | X13: 0 | Y13: 0 | AE13: 35296 | AF13: Bilma
A14: =IF(INTRO!$E$33<>0,INTRO!$E$33, " ") -> NIGER | B14: Agadez | C14: Tchirozérine | D14: 185311 | E14: =IF([1]INTRO!$E$48="","",ROUND($D14*[1]INTRO!$E$48,0)) -> 33356 | F14: =IF([1]INTRO!$E$49="","",ROUND($D14*[1]INTRO!$E$49,0)) -> 55593 | G14: =IF([1]INTRO!$E$50="","",ROUND($D14*[1]INTRO!$E$50,0)) -> 92656 | H14: 0 | J14: 99 | K14: 31 | L14: =IF(INTRO!$E$37="Endémique",IF($H14>0,IF($H14=4,"Inconnu",IF($H14=99,"Interrompu",$D14)),0),"Non requis") -> 0 | M14: =IF(INTRO!$E$39="Endémique", IF($I14>0, IF($I14=4,"Inconnu",IF($I14=99,"Interrompu",$D14)), 0),"Non requis") -> Non requis | N14: =IF(INTRO!$E$41="Endémique", IF($J14>1, IF($J14=4, "Inconnu", IF($J14=99, "Surveillance", E14)), 0),"Non requis") -> Surveillance | O14: =IF(INTRO!$E$41="Endémique", IF($J14>1, IF($J14=4, "Inconnu", IF($J14=99, "Surveillance", F14)), 0),"Non requis") -> Surveillance | P14: =IF(INTRO!$E$41="Endémique", IF($J14>1, IF($J14=4, "Inconnu", IF($J14=99, "Surveillance", ROUND(D14*INTRO!$E$51,0))), 0),"Non requis") -> Surveillance | Q14: =IF(INTRO!$E$41="Endémique", IF($J14>1, IF($J14=4, "Inconnu", IF($J14=99, "Surveillance", SUM($N14:$P14))), 0),"Non requis") -> Surveillance | R14: 17414 | S14: 45112 | T14: 78897 | U14: =IF(INTRO!$E$43="Endémique", IF($K14>1, IF($K14=4, "Inconnu", IF($K14=99, "Surveillance", SUM($R14:$T14))), 0),"Non requis") -> 141423 | V14: 0 | X14: 0 | Y14: 0 | AE14: 35339 | AF14: Tchirozérine
A15: =IF(INTRO!$E$33<>0,INTRO!$E$33, " ") -> NIGER | B15: Agadez | C15: Aderbissinat | D15: 51754 | E15: =IF([1]INTRO!$E$48="","",ROUND($D15*[1]INTRO!$E$48,0)) -> 9316 | F15: =IF([1]INTRO!$E$49="","",ROUND($D15*[1]INTRO!$E$49,0)) -> 15526 | G15: =IF([1]INTRO!$E$50="","",ROUND($D15*[1]INTRO!$E$50,0)) -> 25877 | H15: 0 | J15: 99 | K15: 21 | L15: =IF(INTRO!$E$37="Endémique",IF($H15>0,IF($H15=4,"Inconnu",IF($H15=99,"Interrompu",$D15)),0),"Non requis") -> 0 | M15: =IF(INTRO!$E$39="Endémique", IF($I15>0, IF($I15=4,"Inconnu",IF($I15=99,"Interrompu",$D15)), 0),"Non requis") -> Non requis | N15: =IF(INTRO!$E$41="Endémique", IF($J15>1, IF($J15=4, "Inconnu", IF($J15=99, "Surveillance", E15)), 0),"Non requis") -> Surveillance | O15: =IF(INTRO!$E$41="Endémique", IF($J15>1, IF($J15=4, "Inconnu", IF($J15=99, "Surveillance", F15)), 0),"Non requis") -> Surveillance | P15: =IF(INTRO!$E$41="Endémique", IF($J15>1, IF($J15=4, "Inconnu", IF($J15=99, "Surveillance", ROUND(D15*INTRO!$E$51,0))), 0),"Non requis") -> Surveillance | Q15: =IF(INTRO!$E$41="Endémique", IF($J15>1, IF($J15=4, "Inconnu", IF($J15=99, "Surveillance", SUM($N15:$P15))), 0),"Non requis") -> Surveillance | R15: 5800 | S15: 15027 | T15: 26281 | U15: =IF(INTRO!$E$43="Endémique", IF($K15>1, IF($K15=4, "Inconnu", IF($K15=99, "Surveillance", SUM($R15:$T15))), 0),"Non requis") -> 47108 | V15: 0 | X15: 0 | Y15: 0 | AE15: 35341 | AF15: Aderbissinat
A16: =IF(INTRO!$E$33<>0,INTRO!$E$33, " ") -> NIGER | B16: Agadez | C16: Ingall | D16: 76053 | E16: =IF([1]INTRO!$E$48="","",ROUND($D16*[1]INTRO!$E$48,0)) -> 13690 | F16: =IF([1]INTRO!$E$49="","",ROUND($D16*[1]INTRO!$E$49,0)) -> 22816 | G16: =IF([1]INTRO!$E$50="","",ROUND($D16*[1]INTRO!$E$50,0)) -> 38027 | H16: 0 | J16: 99 | K16: 21 | L16: =IF(INTRO!$E$37="Endémique",IF($H16>0,IF($H16=4,"Inconnu",IF($H16=99,"Interrompu",$D16)),0),"Non requis") -> 0 | M16: =IF(INTRO!$E$39="Endémique", IF($I16>0, IF($I16=4,"Inconnu",IF($I16=99,"Interrompu",$D16)), 0),"Non requis") -> Non requis | N16: =IF(INTRO!$E$41="Endémique", IF($J16>1, IF($J16=4, "Inconnu", IF($J16=99, "Surveillance", E16)), 0),"Non requis") -> Surveillance | O16: =IF(INTRO!$E$41="Endémique", IF($J16>1, IF($J16=4, "Inconnu", IF($J16=99, "Surveillance", F16)), 0),"Non requis") -> Surveillance | P16: =IF(INTRO!$E$41="Endémique", IF($J16>1, IF($J16=4, "Inconnu", IF($J16=99, "Surveillance", ROUND(D16*INTRO!$E$51,0))), 0),"Non requis") -> Surveillance | Q16: =IF(INTRO!$E$41="Endémique", IF($J16>1, IF($J16=4, "Inconnu", IF($J16=99, "Surveillance", SUM($N16:$P16))), 0),"Non requis") -> Surveillance | R16: 8523 | S16: 22081 | T16: 38619 | U16: =IF(INTRO!$E$43="Endémique", IF($K16>1, IF($K16=4, "Inconnu", IF($K16=99, "Surveillance", SUM($R16:$T16))), 0),"Non requis") -> 69223 | V16: 0 | X16: 0 | Y16: 0 | AE16: 35340 | AF16: Ingall
A17: =IF(INTRO!$E$33<>0,INTRO!$E$33, " ") -> NIGER | B17: Diffa | C17: Diffa | D17: 234725.4765 | E17: =IF([1]INTRO!$E$48="","",ROUND($D17*[1]INTRO!$E$48,0)) -> 42251 | F17: =IF([1]INTRO!$E$49="","",ROUND($D17*[1]INTRO!$E$49,0)) -> 70418 | G17: =IF([1]INTRO!$E$50="","",ROUND($D17*[1]INTRO!$E$50,0)) -> 117363 | H17: 99 | J17: 99 | K17: 31 | L17: =IF(INTRO!$E$37="Endémique",IF($H17>0,IF($H17=4,"Inconnu",IF($H17=99,"Interrompu",$D17)),0),"Non requis") -> Interrompu | M17: =IF(INTRO!$E$39="Endémique", IF($I17>0, IF($I17=4,"Inconnu",IF($I17=99,"Interrompu",$D17)), 0),"Non requis") -> Non requis | N17: =IF(INTRO!$E$41="Endémique", IF($J17>1, IF($J17=4, "Inconnu", IF($J17=99, "Surveillance", E17)), 0),"Non requis") -> Surveillance | O17: =IF(INTRO!$E$41="Endémique", IF($J17>1, IF($J17=4, "Inconnu", IF($J17=99, "Surveillance", F17)), 0),"Non requis") -> Surveillance | P17: =IF(INTRO!$E$41="Endémique", IF($J17>1, IF($J17=4, "Inconnu", IF($J17=99, "Surveillance", ROUND(D17*INTRO!$E$51,0))), 0),"Non requis") -> Surveillance | Q17: =IF(INTRO!$E$41="Endémique", IF($J17>1, IF($J17=4, "Inconnu", IF($J17=99, "Surveillance", SUM($N17:$P17))), 0),"Non requis") -> Surveillance | R17: 26054 | S17: 67487 | T17: 118034 | U17: =IF(INTRO!$E$43="Endémique", IF($K17>1, IF($K17=4, "Inconnu", IF($K17=99, "Surveillance", SUM($R17:$T17))), 0),"Non requis") -> 211575 | V17: 0 | X17: 0 | Y17: 1 | AA17: TAS | AE17: 35342 | AF17: Diffa
A18: =IF(INTRO!$E$33<>0,INTRO!$E$33, " ") -> NIGER | B18: Diffa | C18: Bosso | D18: 112768.8073 | E18: =IF([1]INTRO!$E$48="","",ROUND($D18*[1]INTRO!$E$48,0)) -> 20298 | F18: =IF([1]INTRO!$E$49="","",ROUND($D18*[1]INTRO!$E$49,0)) -> 33831 | G18: =IF([1]INTRO!$E$50="","",ROUND($D18*[1]INTRO!$E$50,0)) -> 56384 | H18: 99 | J18: 99 | K18: 21 | L18: =IF(INTRO!$E$37="Endémique",IF($H18>0,IF($H18=4,"Inconnu",IF($H18=99,"Interrompu",$D18)),0),"Non requis") -> Interrompu | M18: =IF(INTRO!$E$39="Endémique", IF($I18>0, IF($I18=4,"Inconnu",IF($I18=99,"Interrompu",$D18)), 0),"Non requis") -> Non requis | N18: =IF(INTRO!$E$41="Endémique", IF($J18>1, IF($J18=4, "Inconnu", IF($J18=99, "Surveillance", E18)), 0),"Non requis") -> Surveillance | O18: =IF(INTRO!$E$41="Endémique", IF($J18>1, IF($J18=4, "Inconnu", IF($J18=99, "Surveillance", F18)), 0),"Non requis") -> Surveillance | P18: =IF(INTRO!$E$41="Endémique", IF($J18>1, IF($J18=4, "Inconnu", IF($J18=99, "Surveillance", ROUND(D18*INTRO!$E$51,0))), 0),"Non requis") -> Surveillance | Q18: =IF(INTRO!$E$41="Endémique", IF($J18>1, IF($J18=4, "Inconnu", IF($J18=99, "Surveillance", SUM($N18:$P18))), 0),"Non requis") -> Surveillance | R18: 12599 | S18: 32637 | T18: 57079 | U18: =IF(INTRO!$E$43="Endémique", IF($K18>1, IF($K18=4, "Inconnu", IF($K18=99, "Surveillance", SUM($R18:$T18))), 0),"Non requis") -> 102315 | V18: 0 | X18: 0 | Y18: 1 | AA18: TAS | AE18: 35343 | AF18: Bosso
A19: =IF(INTRO!$E$33<>0,INTRO!$E$33, " ") -> NIGER | B19: Diffa | C19: Mainé Soroa | D19: 147780.2632 | E19: =IF([1]INTRO!$E$48="","",ROUND($D19*[1]INTRO!$E$48,0)) -> 26600 | F19: =IF([1]INTRO!$E$49="","",ROUND($D19*[1]INTRO!$E$49,0)) -> 44334 | G19: =IF([1]INTRO!$E$50="","",ROUND($D19*[1]INTRO!$E$50,0)) -> 73890 | H19: 99 | J19: 99 | K19: 31 | L19: =IF(INTRO!$E$37="Endémique",IF($H19>0,IF($H19=4,"Inconnu",IF($H19=99,"Interrompu",$D19)),0),"Non requis") -> Interrompu | M19: =IF(INTRO!$E$39="Endémique", IF($I19>0, IF($I19=4,"Inconnu",IF($I19=99,"Interrompu",$D19)), 0),"Non requis") -> Non requis | N19: =IF(INTRO!$E$41="Endémique", IF($J19>1, IF($J19=4, "Inconnu", IF($J19=99, "Surveillance", E19)), 0),"Non requis") -> Surveillance | O19: =IF(INTRO!$E$41="Endémique", IF($J19>1, IF($J19=4, "Inconnu", IF($J19=99, "Surveillance", F19)), 0),"Non requis") -> Surveillance | P19: =IF(INTRO!$E$41="Endémique", IF($J19>1, IF($J19=4, "Inconnu", IF($J19=99, "Surveillance", ROUND(D19*INTRO!$E$51,0))), 0),"Non requis") -> Surveillance | Q19: =IF(INTRO!$E$41="Endémique", IF($J19>1, IF($J19=4, "Inconnu", IF($J19=99, "Surveillance", SUM($N19:$P19))), 0),"Non requis") -> Surveillance | R19: 19734 | S19: 51118 | T19: 89402 | U19: =IF(INTRO!$E$43="Endémique", IF($K19>1, IF($K19=4, "Inconnu", IF($K19=99, "Surveillance", SUM($R19:$T19))), 0),"Non requis") -> 160254 | V19: 0 | X19: 0 | Y19: 1 | AA19: TAS | AE19: 35344 | AF19: Mainé Soroa
A20: =IF(INTRO!$E$33<>0,INTRO!$E$33, " ") -> NIGER | B20: Diffa | C20: Goudoumaria | D20: 193491.7866 | E20: =IF([1]INTRO!$E$48="","",ROUND($D20*[1]INTRO!$E$48,0)) -> 34829 | F20: =IF([1]INTRO!$E$49="","",ROUND($D20*[1]INTRO!$E$49,0)) -> 58048 | G20: =IF([1]INTRO!$E$50="","",ROUND($D20*[1]INTRO!$E$50,0)) -> 96746 | H20: 99 | J20: 99 | K20: 31 | L20: =IF(INTRO!$E$37="Endémique",IF($H20>0,IF($H20=4,"Inconnu",IF($H20=99,"Interrompu",$D20)),0),"Non requis") -> Interrompu | M20: =IF(INTRO!$E$39="Endémique", IF($I20>0, IF($I20=4,"Inconnu",IF($I20=99,"Interrompu",$D20)), 0),"Non requis") -> Non requis | N20: =IF(INTRO!$E$41="Endémique", IF($J20>1, IF($J20=4, "Inconnu", IF($J20=99, "Surveillance", E20)), 0),"Non requis") -> Surveillance | O20: =IF(INTRO!$E$41="Endémique", IF($J20>1, IF($J20=4, "Inconnu", IF($J20=99, "Surveillance", F20)), 0),"Non requis") -> Surveillance | P20: =IF(INTRO!$E$41="Endémique", IF($J20>1, IF($J20=4, "Inconnu", IF($J20=99, "Surveillance", ROUND(D20*INTRO!$E$51,0))), 0),"Non requis") -> Surveillance | Q20: =IF(INTRO!$E$41="Endémique", IF($J20>1, IF($J20=4, "Inconnu", IF($J20=99, "Surveillance", SUM($N20:$P20))), 0),"Non requis") -> Surveillance | R20: 16558 | S20: 42893 | T20: 75019 | U20: =IF(INTRO!$E$43="Endémique", IF($K20>1, IF($K20=4, "Inconnu", IF($K20=99, "Surveillance", SUM($R20:$T20))), 0),"Non requis") -> 134470 | V20: 0 | X20: 0 | Y20: 1 | AA20: TAS | AE20: 35345 | AF20: Goudoumaria
A21: =IF(INTRO!$E$33<>0,INTRO!$E$33, " ") -> NIGER | B21: Diffa | C21: N'Guigmi | D21: 107829.5233 | E21: =IF([1]INTRO!$E$48="","",ROUND($D21*[1]INTRO!$E$48,0)) -> 19409 | F21: =IF([1]INTRO!$E$49="","",ROUND($D21*[1]INTRO!$E$49,0)) -> 32349 | G21: =IF([1]INTRO!$E$50="","",ROUND($D21*[1]INTRO!$E$50,0)) -> 53915 | H21: 99 | J21: 99 | K21: 21 | L21: =IF(INTRO!$E$37="Endémique",IF($H21>0,IF($H21=4,"Inconnu",IF($H21=99,"Interrompu",$D21)),0),"Non requis") -> Interrompu | M21: =IF(INTRO!$E$39="Endémique", IF($I21>0, IF($I21=4,"Inconnu",IF($I21=99,"Interrompu",$D21)), 0),"Non requis") -> Non requis | N21: =IF(INTRO!$E$41="Endémique", IF($J21>1, IF($J21=4, "Inconnu", IF($J21=99, "Surveillance", E21)), 0),"Non requis") -> Surveillance | O21: =IF(INTRO!$E$41="Endémique", IF($J21>1, IF($J21=4, "Inconnu", IF($J21=99, "Surveillance", F21)), 0),"Non requis") -> Surveillance | P21: =IF(INTRO!$E$41="Endémique", IF($J21>1, IF($J21=4, "Inconnu", IF($J21=99, "Surveillance", ROUND(D21*INTRO!$E$51,0))), 0),"Non requis") -> Surveillance | Q21: =IF(INTRO!$E$41="Endémique", IF($J21>1, IF($J21=4, "Inconnu", IF($J21=99, "Surveillance", SUM($N21:$P21))), 0),"Non requis") -> Surveillance | R21: 12440 | S21: 32229 | T21: 56366 | U21: =IF(INTRO!$E$43="Endémique", IF($K21>1, IF($K21=4, "Inconnu", IF($K21=99, "Surveillance", SUM($R21:$T21))), 0),"Non requis") -> 101035 | V21: 0 | X21: 0 | Y21: 1 | AA21: TAS | AE21: 35346 | AF21: N'Guigmi
A22: =IF(INTRO!$E$33<>0,INTRO!$E$33, " ") -> NIGER | B22: Diffa | C22: N'Gourti | D22: 76076.14319 | E22: =IF([1]INTRO!$E$48="","",ROUND($D22*[1]INTRO!$E$48,0)) -> 13694 | F22: =IF([1]INTRO!$E$49="","",ROUND($D22*[1]INTRO!$E$49,0)) -> 22823 | G22: =IF([1]INTRO!$E$50="","",ROUND($D22*[1]INTRO!$E$50,0)) -> 38038 | H22: 99 | J22: 99 | K22: 0 | L22: =IF(INTRO!$E$37="Endémique",IF($H22>0,IF($H22=4,"Inconnu",IF($H22=99,"Interrompu",$D22)),0),"Non requis") -> Interrompu | M22: =IF(INTRO!$E$39="Endémique", IF($I22>0, IF($I22=4,"Inconnu",IF($I22=99,"Interrompu",$D22)), 0),"Non requis") -> Non requis | N22: =IF(INTRO!$E$41="Endémique", IF($J22>1, IF($J22=4, "Inconnu", IF($J22=99, "Surveillance", E22)), 0),"Non requis") -> Surveillance | O22: =IF(INTRO!$E$41="Endémique", IF($J22>1, IF($J22=4, "Inconnu", IF($J22=99, "Surveillance", F22)), 0),"Non requis") -> Surveillance | P22: =IF(INTRO!$E$41="Endémique", IF($J22>1, IF($J22=4, "Inconnu", IF($J22=99, "Surveillance", ROUND(D22*INTRO!$E$51,0))), 0),"Non requis") -> Surveillance | Q22: =IF(INTRO!$E$41="Endémique", IF($J22>1, IF($J22=4, "Inconnu", IF($J22=99, "Surveillance", SUM($N22:$P22))), 0),"Non requis") -> Surveillance | R22: 0 | S22: 0 | T22: 0 | U22: =IF(INTRO!$E$43="Endémique", IF($K22>1, IF($K22=4, "Inconnu", IF($K22=99, "Surveillance", SUM($R22:$T22))), 0),"Non requis") -> 0 | V22: 0 | X22: 0 | Y22: 0 | AA22: TAS | AE22: 35347 | AF22: N'Gourti
A23: =IF(INTRO!$E$33<>0,INTRO!$E$33, " ") -> NIGER | B23: Dosso | C23: Boboye | D23: 393284.2295 | E23: =IF([1]INTRO!$E$48="","",ROUND($D23*[1]INTRO!$E$48,0)) -> 70791 | F23: =IF([1]INTRO!$E$49="","",ROUND($D23*[1]INTRO!$E$49,0)) -> 117985 | G23: =IF([1]INTRO!$E$50="","",ROUND($D23*[1]INTRO!$E$50,0)) -> 196642 | H23: 99 | J23: 11 | K23: 31 | L23: =IF(INTRO!$E$37="Endémique",IF($H23>0,IF($H23=4,"Inconnu",IF($H23=99,"Interrompu",$D23)),0),"Non requis") -> Interrompu | M23: =IF(INTRO!$E$39="Endémique", IF($I23>0, IF($I23=4,"Inconnu",IF($I23=99,"Interrompu",$D23)), 0),"Non requis") -> Non requis | N23: =IF(INTRO!$E$41="Endémique", IF($J23>1, IF($J23=4, "Inconnu", IF($J23=99, "Surveillance", E23)), 0),"Non requis") -> 70791 | O23: =IF(INTRO!$E$41="Endémique", IF($J23>1, IF($J23=4, "Inconnu", IF($J23=99, "Surveillance", F23)), 0),"Non requis") -> 117985 | P23: =IF(INTRO!$E$41="Endémique", IF($J23>1, IF($J23=4, "Inconnu", IF($J23=99, "Surveillance", ROUND(D23*INTRO!$E$51,0))), 0),"Non requis") -> 82275 | Q23: =IF(INTRO!$E$41="Endémique", IF($J23>1, IF($J23=4, "Inconnu", IF($J23=99, "Surveillance", SUM($N23:$P23))), 0),"Non requis") -> 271051 | R23: 42771 | S23: 110793 | T23: 193770 | U23: =IF(INTRO!$E$43="Endémique", IF($K23>1, IF($K23=4, "Inconnu", IF($K23=99, "Surveillance", SUM($R23:$T23))), 0),"Non requis") -> 347334 | V23: 0 | X23: 0 | Y23: 1 | AA23: TAS | AE23: 35348 | AF23: Boboye
A24: =IF(INTRO!$E$33<>0,INTRO!$E$33, " ") -> NIGER | B24: Dosso | C24: Falmey | D24: 160789.145 | E24: =IF([1]INTRO!$E$48="","",ROUND($D24*[1]INTRO!$E$48,0)) -> 28942 | F24: =IF([1]INTRO!$E$49="","",ROUND($D24*[1]INTRO!$E$49,0)) -> 48237 | G24: =IF([1]INTRO!$E$50="","",ROUND($D24*[1]INTRO!$E$50,0)) -> 80395 | H24: 99 | J24: 11 | K24: 31 | L24: =IF(INTRO!$E$37="Endémique",IF($H24>0,IF($H24=4,"Inconnu",IF($H24=99,"Interrompu",$D24)),0),"Non requis") -> Interrompu | M24: =IF(INTRO!$E$39="Endémique", IF($I24>0, IF($I24=4,"Inconnu",IF($I24=99,"Interrompu",$D24)), 0),"Non requis") -> Non requis | N24: =IF(INTRO!$E$41="Endémique", IF($J24>1, IF($J24=4, "Inconnu", IF($J24=99, "Surveillance", E24)), 0),"Non requis") -> 28942 | O24: =IF(INTRO!$E$41="Endémique", IF($J24>1, IF($J24=4, "Inconnu", IF($J24=99, "Surveillance", F24)), 0),"Non requis") -> 48237 | P24: =IF(INTRO!$E$41="Endémique", IF($J24>1, IF($J24=4, "Inconnu", IF($J24=99, "Surveillance", ROUND(D24*INTRO!$E$51,0))), 0),"Non requis") -> 33637 | Q24: =IF(INTRO!$E$41="Endémique", IF($J24>1, IF($J24=4, "Inconnu", IF($J24=99, "Surveillance", SUM($N24:$P24))), 0),"Non requis") -> 110816 | R24: 17488 | S24: 45296 | T24: 79222 | U24: =IF(INTRO!$E$43="Endémique", IF($K24>1, IF($K24=4, "Inconnu", IF($K24=99, "Surveillance", SUM($R24:$T24))), 0),"Non requis") -> 142006 | V24: 0 | X24: 0 | Y24: 1 | AA24: TAS | AE24: 35349 | AF24: Falmey
A25: =IF(INTRO!$E$33<>0,INTRO!$E$33, " ") -> NIGER | B25: Dosso | C25: Dosso | D25: 766897.7861 | E25: =IF([1]INTRO!$E$48="","",ROUND($D25*[1]INTRO!$E$48,0)) -> 138042 | F25: =IF([1]INTRO!$E$49="","",ROUND($D25*[1]INTRO!$E$49,0)) -> 230069 | G25: =IF([1]INTRO!$E$50="","",ROUND($D25*[1]INTRO!$E$50,0)) -> 383449 | H25: 0 | J25: 99 | K25: 21 | L25: =IF(INTRO!$E$37="Endémique",IF($H25>0,IF($H25=4,"Inconnu",IF($H25=99,"Interrompu",$D25)),0),"Non requis") -> 0 | M25: =IF(INTRO!$E$39="Endémique", IF($I25>0, IF($I25=4,"Inconnu",IF($I25=99,"Interrompu",$D25)), 0),"Non requis") -> Non requis | N25: =IF(INTRO!$E$41="Endémique", IF($J25>1, IF($J25=4, "Inconnu", IF($J25=99, "Surveillance", E25)), 0),"Non requis") -> Surveillance | O25: =IF(INTRO!$E$41="Endémique", IF($J25>1, IF($J25=4, "Inconnu", IF($J25=99, "Surveillance", F25)), 0),"Non requis") -> Surveillance | P25: =IF(INTRO!$E$41="Endémique", IF($J25>1, IF($J25=4, "Inconnu", IF($J25=99, "Surveillance", ROUND(D25*INTRO!$E$51,0))), 0),"Non requis") -> Surveillance | Q25: =IF(INTRO!$E$41="Endémique", IF($J25>1, IF($J25=4, "Inconnu", IF($J25=99, "Surveillance", SUM($N25:$P25))), 0),"Non requis") -> Surveillance | R25: 83808 | S25: 217104 | T25: 379697 | U25: =IF(INTRO!$E$43="Endémique", IF($K25>1, IF($K25=4, "Inconnu", IF($K25=99, "Surveillance", SUM($R25:$T25))), 0),"Non requis") -> 680609 | V25: 0 | X25: 0 | Y25: 0 | AE25: 35302 | AF25: Dosso
A26: =IF(INTRO!$E$33<>0,INTRO!$E$33, " ") -> NIGER | B26: Dosso | C26: Doutchi | D26: 579926.7482 | E26: =IF([1]INTRO!$E$48="","",ROUND($D26*[1]INTRO!$E$48,0)) -> 104387 | F26: =IF([1]INTRO!$E$49="","",ROUND($D26*[1]INTRO!$E$49,0)) -> 173978 | G26: =IF([1]INTRO!$E$50="","",ROUND($D26*[1]INTRO!$E$50,0)) -> 289963 | H26: 0 | J26: 99 | K26: 21 | L26: =IF(INTRO!$E$37="Endémique",IF($H26>0,IF($H26=4,"Inconnu",IF($H26=99,"Interrompu",$D26)),0),"Non requis") -> 0 | M26: =IF(INTRO!$E$39="Endémique", IF($I26>0, IF($I26=4,"Inconnu",IF($I26=99,"Interrompu",$D26)), 0),"Non requis") -> Non requis | N26: =IF(INTRO!$E$41="Endémique", IF($J26>1, IF($J26=4, "Inconnu", IF($J26=99, "Surveillance", E26)), 0),"Non requis") -> Surveillance | O26: =IF(INTRO!$E$41="Endémique", IF($J26>1, IF($J26=4, "Inconnu", IF($J26=99, "Surveillance", F26)), 0),"Non requis") -> Surveillance | P26: =IF(INTRO!$E$41="Endémique", IF($J26>1, IF($J26=4, "Inconnu", IF($J26=99, "Surveillance", ROUND(D26*INTRO!$E$51,0))), 0),"Non requis") -> Surveillance | Q26: =IF(INTRO!$E$41="Endémique", IF($J26>1, IF($J26=4, "Inconnu", IF($J26=99, "Surveillance", SUM($N26:$P26))), 0),"Non requis") -> Surveillance | R26: 63007 | S26: 163219 | T26: 285456 | U26: =IF(INTRO!$E$43="Endémique", IF($K26>1, IF($K26=4, "Inconnu", IF($K26=99, "Surveillance", SUM($R26:$T26))), 0),"Non requis") -> 511682 | V26: 0 | X26: 0 | Y26: 1 | AE26: 35350 | AF26: Doutchi
A27: =IF(INTRO!$E$33<>0,INTRO!$E$33, " ") -> NIGER | B27: Dosso | C27: Tibiri(Doutchi) | D27: 420404.9712 | E27: =IF([1]INTRO!$E$48="","",ROUND($D27*[1]INTRO!$E$48,0)) -> 75673 | F27: =IF([1]INTRO!$E$49="","",ROUND($D27*[1]INTRO!$E$49,0)) -> 126121 | G27: =IF([1]INTRO!$E$50="","",ROUND($D27*[1]INTRO!$E$50,0)) -> 210202 | H27: 0 | J27: 99 | K27: 21 | L27: =IF(INTRO!$E$37="Endémique",IF($H27>0,IF($H27=4,"Inconnu",IF($H27=99,"Interrompu",$D27)),0),"Non requis") -> 0 | M27: =IF(INTRO!$E$39="Endémique", IF($I27>0, IF($I27=4,"Inconnu",IF($I27=99,"Interrompu",$D27)), 0),"Non requis") -> Non requis | N27: =IF(INTRO!$E$41="Endémique", IF($J27>1, IF($J27=4, "Inconnu", IF($J27=99, "Surveillance", E27)), 0),"Non requis") -> Surveillance | O27: =IF(INTRO!$E$41="Endémique", IF($J27>1, IF($J27=4, "Inconnu", IF($J27=99, "Surveillance", F27)), 0),"Non requis") -> Surveillance | P27: =IF(INTRO!$E$41="Endémique", IF($J27>1, IF($J27=4, "Inconnu", IF($J27=99, "Surveillance", ROUND(D27*INTRO!$E$51,0))), 0),"Non requis") -> Surveillance | Q27: =IF(INTRO!$E$41="Endémique", IF($J27>1, IF($J27=4, "Inconnu", IF($J27=99, "Surveillance", SUM($N27:$P27))), 0),"Non requis") -> Surveillance | R27: 45677 | S27: 118320 | T27: 206935 | U27: =IF(INTRO!$E$43="Endémique", IF($K27>1, IF($K27=4, "Inconnu", IF($K27=99, "Surveillance", SUM($R27:$T27))), 0),"Non requis") -> 370932 | V27: 0 | X27: 0 | Y27: 1 | AE27: 35351 | AF27: Tibiri(Doutchi)
A28: =IF(INTRO!$E$33<>0,INTRO!$E$33, " ") -> NIGER | B28: Dosso | C28: Gaya | D28: 407360.7336 | E28: =IF([1]INTRO!$E$48="","",ROUND($D28*[1]INTRO!$E$48,0)) -> 73325 | F28: =IF([1]INTRO!$E$49="","",ROUND($D28*[1]INTRO!$E$49,0)) -> 122208 | G28: =IF([1]INTRO!$E$50="","",ROUND($D28*[1]INTRO!$E$50,0)) -> 203680 | H28: 99 | J28: 99 | K28: 21 | L28: =IF(INTRO!$E$37="Endémique",IF($H28>0,IF($H28=4,"Inconnu",IF($H28=99,"Interrompu",$D28)),0),"Non requis") -> Interrompu | M28: =IF(INTRO!$E$39="Endémique", IF($I28>0, IF($I28=4,"Inconnu",IF($I28=99,"Interrompu",$D28)), 0),"Non requis") -> Non requis | N28: =IF(INTRO!$E$41="Endémique", IF($J28>1, IF($J28=4, "Inconnu", IF($J28=99, "Surveillance", E28)), 0),"Non requis") -> Surveillance | O28: =IF(INTRO!$E$41="Endémique", IF($J28>1, IF($J28=4, "Inconnu", IF($J28=99, "Surveillance", F28)), 0),"Non requis") -> Surveillance | P28: =IF(INTRO!$E$41="Endémique", IF($J28>1, IF($J28=4, "Inconnu", IF($J28=99, "Surveillance", ROUND(D28*INTRO!$E$51,0))), 0),"Non requis") -> Surveillance | Q28: =IF(INTRO!$E$41="Endémique", IF($J28>1, IF($J28=4, "Inconnu", IF($J28=99, "Surveillance", SUM($N28:$P28))), 0),"Non requis") -> Surveillance | R28: 44733 | S28: 115881 | T28: 202669 | U28: =IF(INTRO!$E$43="Endémique", IF($K28>1, IF($K28=4, "Inconnu", IF($K28=99, "Surveillance", SUM($R28:$T28))), 0),"Non requis") -> 363283 | V28: 0 | X28: 0 | Y28: 1 | AE28: 35352 | AF28: Gaya
A29: =IF(INTRO!$E$33<>0,INTRO!$E$33, " ") -> NIGER | B29: Dosso | C29: Dioundiou | D29: 170666.5195 | E29: =IF([1]INTRO!$E$48="","",ROUND($D29*[1]INTRO!$E$48,0)) -> 30720 | F29: =IF([1]INTRO!$E$49="","",ROUND($D29*[1]INTRO!$E$49,0)) -> 51200 | G29: =IF([1]INTRO!$E$50="","",ROUND($D29*[1]INTRO!$E$50,0)) -> 85333 | H29: 99 | J29: 99 | K29: 21 | L29: =IF(INTRO!$E$37="Endémique",IF($H29>0,IF($H29=4,"Inconnu",IF($H29=99,"Interrompu",$D29)),0),"Non requis") -> Interrompu | M29: =IF(INTRO!$E$39="Endémique", IF($I29>0, IF($I29=4,"Inconnu",IF($I29=99,"Interrompu",$D29)), 0),"Non requis") -> Non requis | N29: =IF(INTRO!$E$41="Endémique", IF($J29>1, IF($J29=4, "Inconnu", IF($J29=99, "Surveillance", E29)), 0),"Non requis") -> Surveillance | O29: =IF(INTRO!$E$41="Endémique", IF($J29>1, IF($J29=4, "Inconnu", IF($J29=99, "Surveillance", F29)), 0),"Non requis") -> Surveillance | P29: =IF(INTRO!$E$41="Endémique", IF($J29>1, IF($J29=4, "Inconnu", IF($J29=99, "Surveillance", ROUND(D29*INTRO!$E$51,0))), 0),"Non requis") -> Surveillance | Q29: =IF(INTRO!$E$41="Endémique", IF($J29>1, IF($J29=4, "Inconnu", IF($J29=99, "Surveillance", SUM($N29:$P29))), 0),"Non requis") -> Surveillance | R29: 18743 | S29: 48550 | T29: 84911 | U29: =IF(INTRO!$E$43="Endémique", IF($K29>1, IF($K29=4, "Inconnu", IF($K29=99, "Surveillance", SUM($R29:$T29))), 0),"Non requis") -> 152204 | V29: 0 | X29: 0 | Y29: 1 | AE29: 35353 | AF29: Dioundiou
A30: =IF(INTRO!$E$33<>0,INTRO!$E$33, " ") -> NIGER | B30: Dosso | C30: Loga | D30: 273313.9883 | E30: =IF([1]INTRO!$E$48="","",ROUND($D30*[1]INTRO!$E$48,0)) -> 49197 | F30: =IF([1]INTRO!$E$49="","",ROUND($D30*[1]INTRO!$E$49,0)) -> 81994 | G30: =IF([1]INTRO!$E$50="","",ROUND($D30*[1]INTRO!$E$50,0)) -> 136657 | H30: 0 | J30: 1 | K30: 31 | L30: =IF(INTRO!$E$37="Endémique",IF($H30>0,IF($H30=4,"Inconnu",IF($H30=99,"Interrompu",$D30)),0),"Non requis") -> 0 | M30: =IF(INTRO!$E$39="Endémique", IF($I30>0, IF($I30=4,"Inconnu",IF($I30=99,"Interrompu",$D30)), 0),"Non requis") -> Non requis | N30: =IF(INTRO!$E$41="Endémique", IF($J30>1, IF($J30=4, "Inconnu", IF($J30=99, "Surveillance", E30)), 0),"Non requis") -> 0 | O30: =IF(INTRO!$E$41="Endémique", IF($J30>1, IF($J30=4, "Inconnu", IF($J30=99, "Surveillance", F30)), 0),"Non requis") -> 0 | P30: =IF(INTRO!$E$41="Endémique", IF($J30>1, IF($J30=4, "Inconnu", IF($J30=99, "Surveillance", ROUND(D30*INTRO!$E$51,0))), 0),"Non requis") -> 0 | Q30: =IF(INTRO!$E$41="Endémique", IF($J30>1, IF($J30=4, "Inconnu", IF($J30=99, "Surveillance", SUM($N30:$P30))), 0),"Non requis") -> 0 | R30: 28764 | S30: 74512 | T30: 130316 | U30: =IF(INTRO!$E$43="Endémique", IF($K30>1, IF($K30=4, "Inconnu", IF($K30=99, "Surveillance", SUM($R30:$T30))), 0),"Non requis") -> 233592 | V30: 0 | X30: 0 | Y30: 1 | AE30: 35305 | AF30: Loga
A31: =IF(INTRO!$E$33<>0,INTRO!$E$33, " ") -> NIGER | B31: Maradi | C31: Aguié | D31: 379571.0534 | E31: =IF([1]INTRO!$E$48="","",ROUND($D31*[1]INTRO!$E$48,0)) -> 68323 | F31: =IF([1]INTRO!$E$49="","",ROUND($D31*[1]INTRO!$E$49,0)) -> 113871 | G31: =IF([1]INTRO!$E$50="","",ROUND($D31*[1]INTRO!$E$50,0)) -> 189786 | H31: 99 | J31: 0 | K31: 21 | L31: =IF(INTRO!$E$37="Endémique",IF($H31>0,IF($H31=4,"Inconnu",IF($H31=99,"Interrompu",$D31)),0),"Non requis") -> Interrompu | M31: =IF(INTRO!$E$39="Endémique", IF($I31>0, IF($I31=4,"Inconnu",IF($I31=99,"Interrompu",$D31)), 0),"Non requis") -> Non requis | N31: =IF(INTRO!$E$41="Endémique", IF($J31>1, IF($J31=4, "Inconnu", IF($J31=99, "Surveillance", E31)), 0),"Non requis") -> 0 | O31: =IF(INTRO!$E$41="Endémique", IF($J31>1, IF($J31=4, "Inconnu", IF($J31=99, "Surveillance", F31)), 0),"Non requis") -> 0 | P31: =IF(INTRO!$E$41="Endémique", IF($J31>1, IF($J31=4, "Inconnu", IF($J31=99, "Surveillance", ROUND(D31*INTRO!$E$51,0))), 0),"Non requis") -> 0 | Q31: =IF(INTRO!$E$41="Endémique", IF($J31>1, IF($J31=4, "Inconnu", IF($J31=99, "Surveillance", SUM($N31:$P31))), 0),"Non requis") -> 0 | R31: 43025 | S31: 111453 | T31: 194924 | U31: =IF(INTRO!$E$43="Endémique", IF($K31>1, IF($K31=4, "Inconnu", IF($K31=99, "Surveillance", SUM($R31:$T31))), 0),"Non requis") -> 349402 | V31: 0 | X31: 0 | Y31: 0 | AA31: TAS | AE31: 35354 | AF31: Aguié
A32: =IF(INTRO!$E$33<>0,INTRO!$E$33, " ") -> NIGER | B32: Maradi | C32: Gazaoua | D32: 247706.5425 | E32: =IF([1]INTRO!$E$48="","",ROUND($D32*[1]INTRO!$E$48,0)) -> 44587 | F32: =IF([1]INTRO!$E$49="","",ROUND($D32*[1]INTRO!$E$49,0)) -> 74312 | G32: =IF([1]INTRO!$E$50="","",ROUND($D32*[1]INTRO!$E$50,0)) -> 123853 | H32: 99 | J32: 0 | K32: 31 | L32: =IF(INTRO!$E$37="Endémique",IF($H32>0,IF($H32=4,"Inconnu",IF($H32=99,"Interrompu",$D32)),0),"Non requis") -> Interrompu | M32: =IF(INTRO!$E$39="Endémique", IF($I32>0, IF($I32=4,"Inconnu",IF($I32=99,"Interrompu",$D32)), 0),"Non requis") -> Non requis | N32: =IF(INTRO!$E$41="Endémique", IF($J32>1, IF($J32=4, "Inconnu", IF($J32=99, "Surveillance", E32)), 0),"Non requis") -> 0 | O32: =IF(INTRO!$E$41="Endémique", IF($J32>1, IF($J32=4, "Inconnu", IF($J32=99, "Surveillance", F32)), 0),"Non requis") -> 0 | P32: =IF(INTRO!$E$41="Endémique", IF($J32>1, IF($J32=4, "Inconnu", IF($J32=99, "Surveillance", ROUND(D32*INTRO!$E$51,0))), 0),"Non requis") -> 0 | Q32: =IF(INTRO!$E$41="Endémique", IF($J32>1, IF($J32=4, "Inconnu", IF($J32=99, "Surveillance", SUM($N32:$P32))), 0),"Non requis") -> 0 | R32: 28077 | S32: 72734 | T32: 127205 | U32: =IF(INTRO!$E$43="Endémique", IF($K32>1, IF($K32=4, "Inconnu", IF($K32=99, "Surveillance", SUM($R32:$T32))), 0),"Non requis") -> 228016 | V32: 0 | X32: 0 | Y32: 0 | AE32: 35355 | AF32: Gazaoua
A33: =IF(INTRO!$E$33<>0,INTRO!$E$33, " ") -> NIGER | B33: Maradi | C33: Dakoro | D33: 972737.6178 | E33: =IF([1]INTRO!$E$48="","",ROUND($D33*[1]INTRO!$E$48,0)) -> 175093 | F33: =IF([1]INTRO!$E$49="","",ROUND($D33*[1]INTRO!$E$49,0)) -> 291821 | G33: =IF([1]INTRO!$E$50="","",ROUND($D33*[1]INTRO!$E$50,0)) -> 486369 | H33: 99 | J33: 11 | K33: 31 | L33: =IF(INTRO!$E$37="Endémique",IF($H33>0,IF($H33=4,"Inconnu",IF($H33=99,"Interrompu",$D33)),0),"Non requis") -> Interrompu | M33: =IF(INTRO!$E$39="Endémique", IF($I33>0, IF($I33=4,"Inconnu",IF($I33=99,"Interrompu",$D33)), 0),"Non requis") -> Non requis | N33: =IF(INTRO!$E$41="Endémique", IF($J33>1, IF($J33=4, "Inconnu", IF($J33=99, "Surveillance", E33)), 0),"Non requis") -> 175093 | O33: =IF(INTRO!$E$41="Endémique", IF($J33>1, IF($J33=4, "Inconnu", IF($J33=99, "Surveillance", F33)), 0),"Non requis") -> 291821 | P33: =IF(INTRO!$E$41="Endémique", IF($J33>1, IF($J33=4, "Inconnu", IF($J33=99, "Surveillance", ROUND(D33*INTRO!$E$51,0))), 0),"Non requis") -> 203497 | Q33: =IF(INTRO!$E$41="Endémique", IF($J33>1, IF($J33=4, "Inconnu", IF($J33=99, "Surveillance", SUM($N33:$P33))), 0),"Non requis") -> 670411 | R33: 110900 | S33: 287273 | T33: 502427 | U33: =IF(INTRO!$E$43="Endémique", IF($K33>1, IF($K33=4, "Inconnu", IF($K33=99, "Surveillance", SUM($R33:$T33))), 0),"Non requis") -> 900600 | V33: 0 | X33: 0 | Y33: 0 | AE33: 35356 | AF33: Dakoro
A34: =IF(INTRO!$E$33<>0,INTRO!$E$33, " ") -> NIGER | B34: Maradi | C34: Bermo | D34: 80658.61739 | E34: =IF([1]INTRO!$E$48="","",ROUND($D34*[1]INTRO!$E$48,0)) -> 14519 | F34: =IF([1]INTRO!$E$49="","",ROUND($D34*[1]INTRO!$E$49,0)) -> 24198 | G34: =IF([1]INTRO!$E$50="","",ROUND($D34*[1]INTRO!$E$50,0)) -> 40329 | H34: 99 | J34: 11 | K34: 31 | L34: =IF(INTRO!$E$37="Endémique",IF($H34>0,IF($H34=4,"Inconnu",IF($H34=99,"Interrompu",$D34)),0),"Non requis") -> Interrompu | M34: =IF(INTRO!$E$39="Endémique", IF($I34>0, IF($I34=4,"Inconnu",IF($I34=99,"Interrompu",$D34)), 0),"Non requis") -> Non requis | N34: =IF(INTRO!$E$41="Endémique", IF($J34>1, IF($J34=4, "Inconnu", IF($J34=99, "Surveillance", E34)), 0),"Non requis") -> 14519 | O34: =IF(INTRO!$E$41="Endémique", IF($J34>1, IF($J34=4, "Inconnu", IF($J34=99, "Surveillance", F34)), 0),"Non requis") -> 24198 | P34: =IF(INTRO!$E$41="Endémique", IF($J34>1, IF($J34=4, "Inconnu", IF($J34=99, "Surveillance", ROUND(D34*INTRO!$E$51,0))), 0),"Non requis") -> 16874 | Q34: =IF(INTRO!$E$41="Endémique", IF($J34>1, IF($J34=4, "Inconnu", IF($J34=99, "Surveillance", SUM($N34:$P34))), 0),"Non requis") -> 55591 | R34: 7635 | S34: 19777 | T34: 34592 | U34: =IF(INTRO!$E$43="Endémique", IF($K34>1, IF($K34=4, "Inconnu", IF($K34=99, "Surveillance", SUM($R34:$T34))), 0),"Non requis") -> 62004 | V34: 0 | X34: 0 | Y34: 0 | AE34: 35357 | AF34: Bermo
A35: =IF(INTRO!$E$33<>0,INTRO!$E$33, " ") -> NIGER | B35: Maradi | C35: Guidan Roumdji | D35: 808093.6818 | E35: =IF([1]INTRO!$E$48="","",ROUND($D35*[1]INTRO!$E$48,0)) -> 145457 | F35: =IF([1]INTRO!$E$49="","",ROUND($D35*[1]INTRO!$E$49,0)) -> 242428 | G35: =IF([1]INTRO!$E$50="","",ROUND($D35*[1]INTRO!$E$50,0)) -> 404047 | H35: 99 | J35: 1 | K35: 21 | L35: =IF(INTRO!$E$37="Endémique",IF($H35>0,IF($H35=4,"Inconnu",IF($H35=99,"Interrompu",$D35)),0),"Non requis") -> Interrompu | M35: =IF(INTRO!$E$39="Endémique", IF($I35>0, IF($I35=4,"Inconnu",IF($I35=99,"Interrompu",$D35)), 0),"Non requis") -> Non requis | N35: =IF(INTRO!$E$41="Endémique", IF($J35>1, IF($J35=4, "Inconnu", IF($J35=99, "Surveillance", E35)), 0),"Non requis") -> 0 | O35: =IF(INTRO!$E$41="Endémique", IF($J35>1, IF($J35=4, "Inconnu", IF($J35=99, "Surveillance", F35)), 0),"Non requis") -> 0 | P35: =IF(INTRO!$E$41="Endémique", IF($J35>1, IF($J35=4, "Inconnu", IF($J35=99, "Surveillance", ROUND(D35*INTRO!$E$51,0))), 0),"Non requis") -> 0 | Q35: =IF(INTRO!$E$41="Endémique", IF($J35>1, IF($J35=4, "Inconnu", IF($J35=99, "Surveillance", SUM($N35:$P35))), 0),"Non requis") -> 0 | R35: 91773 | S35: 237735 | T35: 415782 | U35: =IF(INTRO!$E$43="Endémique", IF($K35>1, IF($K35=4, "Inconnu", IF($K35=99, "Surveillance", SUM($R35:$T35))), 0),"Non requis") -> 745290 | V35: 0 | X35: 0 | Y35: 0 | AE35: 35308 | AF35: Guidan Roumdji
A36: =IF(INTRO!$E$33<>0,INTRO!$E$33, " ") -> NIGER | B36: Maradi | C36: Madarounfa | D36: 692594.1955 | E36: =IF([1]INTRO!$E$48="","",ROUND($D36*[1]INTRO!$E$48,0)) -> 124667 | F36: =IF([1]INTRO!$E$49="","",ROUND($D36*[1]INTRO!$E$49,0)) -> 207778 | G36: =IF([1]INTRO!$E$50="","",ROUND($D36*[1]INTRO!$E$50,0)) -> 346297 | H36: 99 | J36: 99 | K36: 31 | L36: =IF(INTRO!$E$37="Endémique",IF($H36>0,IF($H36=4,"Inconnu",IF($H36=99,"Interrompu",$D36)),0),"Non requis") -> Interrompu | M36: =IF(INTRO!$E$39="Endémique", IF($I36>0, IF($I36=4,"Inconnu",IF($I36=99,"Interrompu",$D36)), 0),"Non requis") -> Non requis | N36: =IF(INTRO!$E$41="Endémique", IF($J36>1, IF($J36=4, "Inconnu", IF($J36=99, "Surveillance", E36)), 0),"Non requis") -> Surveillance | O36: =IF(INTRO!$E$41="Endémique", IF($J36>1, IF($J36=4, "Inconnu", IF($J36=99, "Surveillance", F36)), 0),"Non requis") -> Surveillance | P36: =IF(INTRO!$E$41="Endémique", IF($J36>1, IF($J36=4, "Inconnu", IF($J36=99, "Surveillance", ROUND(D36*INTRO!$E$51,0))), 0),"Non requis") -> Surveillance | Q36: =IF(INTRO!$E$41="Endémique", IF($J36>1, IF($J36=4, "Inconnu", IF($J36=99, "Surveillance", SUM($N36:$P36))), 0),"Non requis") -> Surveillance | R36: 79099 | S36: 204900 | T36: 358361 | U36: =IF(INTRO!$E$43="Endémique", IF($K36>1, IF($K36=4, "Inconnu", IF($K36=99, "Surveillance", SUM($R36:$T36))), 0),"Non requis") -> 642360 | V36: 0 | X36: 0 | Y36: 0 | AE36: 35309 | AF36: Madarounfa
A37: =IF(INTRO!$E$33<>0,INTRO!$E$33, " ") -> NIGER | B37: Maradi | C37: Maradi | D37: 412364.3654 | E37: =IF([1]INTRO!$E$48="","",ROUND($D37*[1]INTRO!$E$48,0)) -> 74226 | F37: =IF([1]INTRO!$E$49="","",ROUND($D37*[1]INTRO!$E$49,0)) -> 123709 | G37: =IF([1]INTRO!$E$50="","",ROUND($D37*[1]INTRO!$E$50,0)) -> 206182 | H37: 0 | J37: 4 | K37: 11 | L37: =IF(INTRO!$E$37="Endémique",IF($H37>0,IF($H37=4,"Inconnu",IF($H37=99,"Interrompu",$D37)),0),"Non requis") -> 0 | M37: =IF(INTRO!$E$39="Endémique", IF($I37>0, IF($I37=4,"Inconnu",IF($I37=99,"Interrompu",$D37)), 0),"Non requis") -> Non requis | N37: =IF(INTRO!$E$41="Endémique", IF($J37>1, IF($J37=4, "Inconnu", IF($J37=99, "Surveillance", E37)), 0),"Non requis") -> Inconnu | O37: =IF(INTRO!$E$41="Endémique", IF($J37>1, IF($J37=4, "Inconnu", IF($J37=99, "Surveillance", F37)), 0),"Non requis") -> Inconnu | P37: =IF(INTRO!$E$41="Endémique", IF($J37>1, IF($J37=4, "Inconnu", IF($J37=99, "Surveillance", ROUND(D37*INTRO!$E$51,0))), 0),"Non requis") -> Inconnu | Q37: =IF(INTRO!$E$41="Endémique", IF($J37>1, IF($J37=4, "Inconnu", IF($J37=99, "Surveillance", SUM($N37:$P37))), 0),"Non requis") -> Inconnu | R37: 46088 | S37: 119387 | T37: 208805 | U37: =IF(INTRO!$E$43="Endémique", IF($K37>1, IF($K37=4, "Inconnu", IF($K37=99, "Surveillance", SUM($R37:$T37))), 0),"Non requis") -> 374280 | V37: 0 | X37: 0 | Y37: 0 | AE37: 35310 | AF37: Maradi
A38: =IF(INTRO!$E$33<>0,INTRO!$E$33, " ") -> NIGER | B38: Maradi | C38: Mayahi | D38: 859736.2434 | E38: =IF([1]INTRO!$E$48="","",ROUND($D38*[1]INTRO!$E$48,0)) -> 154753 | F38: =IF([1]INTRO!$E$49="","",ROUND($D38*[1]INTRO!$E$49,0)) -> 257921 | G38: =IF([1]INTRO!$E$50="","",ROUND($D38*[1]INTRO!$E$50,0)) -> 429868 | H38: 99 | J38: 1 | K38: 21 | L38: =IF(INTRO!$E$37="Endémique",IF($H38>0,IF($H38=4,"Inconnu",IF($H38=99,"Interrompu",$D38)),0),"Non requis") -> Interrompu | M38: =IF(INTRO!$E$39="Endémique", IF($I38>0, IF($I38=4,"Inconnu",IF($I38=99,"Interrompu",$D38)), 0),"Non requis") -> Non requis | N38: =IF(INTRO!$E$41="Endémique", IF($J38>1, IF($J38=4, "Inconnu", IF($J38=99, "Surveillance", E38)), 0),"Non requis") -> 0 | O38: =IF(INTRO!$E$41="Endémique", IF($J38>1, IF($J38=4, "Inconnu", IF($J38=99, "Surveillance", F38)), 0),"Non requis") -> 0 | P38: =IF(INTRO!$E$41="Endémique", IF($J38>1, IF($J38=4, "Inconnu", IF($J38=99, "Surveillance", ROUND(D38*INTRO!$E$51,0))), 0),"Non requis") -> 0 | Q38: =IF(INTRO!$E$41="Endémique", IF($J38>1, IF($J38=4, "Inconnu", IF($J38=99, "Surveillance", SUM($N38:$P38))), 0),"Non requis") -> 0 | R38: 97166 | S38: 251703 | T38: 440219 | U38: =IF(INTRO!$E$43="Endémique", IF($K38>1, IF($K38=4, "Inconnu", IF($K38=99, "Surveillance", SUM($R38:$T38))), 0),"Non requis") -> 789088 | V38: 0 | X38: 0 | Y38: 0 | AE38: 35311 | AF38: Mayahi
A39: =IF(INTRO!$E$33<>0,INTRO!$E$33, " ") -> NIGER | B39: Maradi | C39: Tessaoua | D39: 795958.0116 | E39: =IF([1]INTRO!$E$48="","",ROUND($D39*[1]INTRO!$E$48,0)) -> 143272 | F39: =IF([1]INTRO!$E$49="","",ROUND($D39*[1]INTRO!$E$49,0)) -> 238787 | G39: =IF([1]INTRO!$E$50="","",ROUND($D39*[1]INTRO!$E$50,0)) -> 397979 | H39: 99 | J39: 99 | K39: 31 | L39: =IF(INTRO!$E$37="Endémique",IF($H39>0,IF($H39=4,"Inconnu",IF($H39=99,"Interrompu",$D39)),0),"Non requis") -> Interrompu | M39: =IF(INTRO!$E$39="Endémique", IF($I39>0, IF($I39=4,"Inconnu",IF($I39=99,"Interrompu",$D39)), 0),"Non requis") -> Non requis | N39: =IF(INTRO!$E$41="Endémique", IF($J39>1, IF($J39=4, "Inconnu", IF($J39=99, "Surveillance", E39)), 0),"Non requis") -> Surveillance | O39: =IF(INTRO!$E$41="Endémique", IF($J39>1, IF($J39=4, "Inconnu", IF($J39=99, "Surveillance", F39)), 0),"Non requis") -> Surveillance | P39: =IF(INTRO!$E$41="Endémique", IF($J39>1, IF($J39=4, "Inconnu", IF($J39=99, "Surveillance", ROUND(D39*INTRO!$E$51,0))), 0),"Non requis") -> Surveillance | Q39: =IF(INTRO!$E$41="Endémique", IF($J39>1, IF($J39=4, "Inconnu", IF($J39=99, "Surveillance", SUM($N39:$P39))), 0),"Non requis") -> Surveillance | R39: 90399 | S39: 234163 | T39: 409538 | U39: =IF(INTRO!$E$43="Endémique", IF($K39>1, IF($K39=4, "Inconnu", IF($K39=99, "Surveillance", SUM($R39:$T39))), 0),"Non requis") -> 734100 | V39: 0 | X39: 0 | Y39: 1 | AE39: 35312 | AF39: Tessaoua
A40: =IF(INTRO!$E$33<>0,INTRO!$E$33, " ") -> NIGER | B40: Niamey | C40: Niamey 1 | D40: 305241.6602 | E40: =IF([1]INTRO!$E$48="","",ROUND($D40*[1]INTRO!$E$48,0)) -> 54943 | F40: =IF([1]INTRO!$E$49="","",ROUND($D40*[1]INTRO!$E$49,0)) -> 91572 | G40: =IF([1]INTRO!$E$50="","",ROUND($D40*[1]INTRO!$E$50,0)) -> 152621 | H40: 0 | J40: 99 | K40: 31 | L40: =IF(INTRO!$E$37="Endémique",IF($H40>0,IF($H40=4,"Inconnu",IF($H40=99,"Interrompu",$D40)),0),"Non requis") -> 0 | M40: =IF(INTRO!$E$39="Endémique", IF($I40>0, IF($I40=4,"Inconnu",IF($I40=99,"Interrompu",$D40)), 0),"Non requis") -> Non requis | N40: =IF(INTRO!$E$41="Endémique", IF($J40>1, IF($J40=4, "Inconnu", IF($J40=99, "Surveillance", E40)), 0),"Non requis") -> Surveillance | O40: =IF(INTRO!$E$41="Endémique", IF($J40>1, IF($J40=4, "Inconnu", IF($J40=99, "Surveillance", F40)), 0),"Non requis") -> Surveillance | P40: =IF(INTRO!$E$41="Endémique", IF($J40>1, IF($J40=4, "Inconnu", IF($J40=99, "Surveillance", ROUND(D40*INTRO!$E$51,0))), 0),"Non requis") -> Surveillance | Q40: =IF(INTRO!$E$41="Endémique", IF($J40>1, IF($J40=4, "Inconnu", IF($J40=99, "Surveillance", SUM($N40:$P40))), 0),"Non requis") -> Surveillance | R40: 34324 | S40: 88915 | T40: 155509 | U40: =IF(INTRO!$E$43="Endémique", IF($K40>1, IF($K40=4, "Inconnu", IF($K40=99, "Surveillance", SUM($R40:$T40))), 0),"Non requis") -> 278748 | V40: 0 | X40: 0 | Y40: 1 | AE40: 35358 | AF40: Niamey 1
A41: =IF(INTRO!$E$33<>0,INTRO!$E$33, " ") -> NIGER | B41: Niamey | C41: Niamey 2 | D41: 358839.8982 | E41: =IF([1]INTRO!$E$48="","",ROUND($D41*[1]INTRO!$E$48,0)) -> 64591 | F41: =IF([1]INTRO!$E$49="","",ROUND($D41*[1]INTRO!$E$49,0)) -> 107652 | G41: =IF([1]INTRO!$E$50="","",ROUND($D41*[1]INTRO!$E$50,0)) -> 179420 | H41: 99 | J41: 99 | K41: 21 | L41: =IF(INTRO!$E$37="Endémique",IF($H41>0,IF($H41=4,"Inconnu",IF($H41=99,"Interrompu",$D41)),0),"Non requis") -> Interrompu | M41: =IF(INTRO!$E$39="Endémique", IF($I41>0, IF($I41=4,"Inconnu",IF($I41=99,"Interrompu",$D41)), 0),"Non requis") -> Non requis | N41: =IF(INTRO!$E$41="Endémique", IF($J41>1, IF($J41=4, "Inconnu", IF($J41=99, "Surveillance", E41)), 0),"Non requis") -> Surveillance | O41: =IF(INTRO!$E$41="Endémique", IF($J41>1, IF($J41=4, "Inconnu", IF($J41=99, "Surveillance", F41)), 0),"Non requis") -> Surveillance | P41: =IF(INTRO!$E$41="Endémique", IF($J41>1, IF($J41=4, "Inconnu", IF($J41=99, "Surveillance", ROUND(D41*INTRO!$E$51,0))), 0),"Non requis") -> Surveillance | Q41: =IF(INTRO!$E$41="Endémique", IF($J41>1, IF($J41=4, "Inconnu", IF($J41=99, "Surveillance", SUM($N41:$P41))), 0),"Non requis") -> Surveillance | R41: 40350 | S41: 104526 | T41: 182809 | U41: =IF(INTRO!$E$43="Endémique", IF($K41>1, IF($K41=4, "Inconnu", IF($K41=99, "Surveillance", SUM($R41:$T41))), 0),"Non requis") -> 327685 | V41: 0 | X41: 0 | Y41: 1 | AA41: TAS | AE41: 35359 | AF41: Niamey 2
A42: =IF(INTRO!$E$33<>0,INTRO!$E$33, " ") -> NIGER | B42: Niamey | C42: Niamey 3 | D42: 237157.4512 | E42: =IF([1]INTRO!$E$48="","",ROUND($D42*[1]INTRO!$E$48,0)) -> 42688 | F42: =IF([1]INTRO!$E$49="","",ROUND($D42*[1]INTRO!$E$49,0)) -> 71147 | G42: =IF([1]INTRO!$E$50="","",ROUND($D42*[1]INTRO!$E$50,0)) -> 118579 | H42: 99 | J42: 99 | K42: 21 | L42: =IF(INTRO!$E$37="Endémique",IF($H42>0,IF($H42=4,"Inconnu",IF($H42=99,"Interrompu",$D42)),0),"Non requis") -> Interrompu | M42: =IF(INTRO!$E$39="Endémique", IF($I42>0, IF($I42=4,"Inconnu",IF($I42=99,"Interrompu",$D42)), 0),"Non requis") -> Non requis | N42: =IF(INTRO!$E$41="Endémique", IF($J42>1, IF($J42=4, "Inconnu", IF($J42=99, "Surveillance", E42)), 0),"Non requis") -> Surveillance | O42: =IF(INTRO!$E$41="Endémique", IF($J42>1, IF($J42=4, "Inconnu", IF($J42=99, "Surveillance", F42)), 0),"Non requis") -> Surveillance | P42: =IF(INTRO!$E$41="Endémique", IF($J42>1, IF($J42=4, "Inconnu", IF($J42=99, "Surveillance", ROUND(D42*INTRO!$E$51,0))), 0),"Non requis") -> Surveillance | Q42: =IF(INTRO!$E$41="Endémique", IF($J42>1, IF($J42=4, "Inconnu", IF($J42=99, "Surveillance", SUM($N42:$P42))), 0),"Non requis") -> Surveillance | R42: 26667 | S42: 69081 | T42: 120819 | U42: =IF(INTRO!$E$43="Endémique", IF($K42>1, IF($K42=4, "Inconnu", IF($K42=99, "Surveillance", SUM($R42:$T42))), 0),"Non requis") -> 216567 | V42: 0 | X42: 0 | Y42: 1 | AA42: TAS | AE42: 35360 | AF42: Niamey 3
A43: =IF(INTRO!$E$33<>0,INTRO!$E$33, " ") -> NIGER | B43: Niamey | C43: Niamey 4 | D43: 398933.2057 | E43: =IF([1]INTRO!$E$48="","",ROUND($D43*[1]INTRO!$E$48,0)) -> 71808 | F43: =IF([1]INTRO!$E$49="","",ROUND($D43*[1]INTRO!$E$49,0)) -> 119680 | G43: =IF([1]INTRO!$E$50="","",ROUND($D43*[1]INTRO!$E$50,0)) -> 199467 | H43: 99 | J43: 99 | K43: 21 | L43: =IF(INTRO!$E$37="Endémique",IF($H43>0,IF($H43=4,"Inconnu",IF($H43=99,"Interrompu",$D43)),0),"Non requis") -> Interrompu | M43: =IF(INTRO!$E$39="Endémique", IF($I43>0, IF($I43=4,"Inconnu",IF($I43=99,"Interrompu",$D43)), 0),"Non requis") -> Non requis | N43: =IF(INTRO!$E$41="Endémique", IF($J43>1, IF($J43=4, "Inconnu", IF($J43=99, "Surveillance", E43)), 0),"Non requis") -> Surveillance | O43: =IF(INTRO!$E$41="Endémique", IF($J43>1, IF($J43=4, "Inconnu", IF($J43=99, "Surveillance", F43)), 0),"Non requis") -> Surveillance | P43: =IF(INTRO!$E$41="Endémique", IF($J43>1, IF($J43=4, "Inconnu", IF($J43=99, "Surveillance", ROUND(D43*INTRO!$E$51,0))), 0),"Non requis") -> Surveillance | Q43: =IF(INTRO!$E$41="Endémique", IF($J43>1, IF($J43=4, "Inconnu", IF($J43=99, "Surveillance", SUM($N43:$P43))), 0),"Non requis") -> Surveillance | R43: 45172 | S43: 117017 | T43: 204657 | U43: =IF(INTRO!$E$43="Endémique", IF($K43>1, IF($K43=4, "Inconnu", IF($K43=99, "Surveillance", SUM($R43:$T43))), 0),"Non requis") -> 366846 | V43: 0 | X43: 0 | Y43: 1 | AA43: TAS | AE43: 35361 | AF43: Niamey 4
A44: =IF(INTRO!$E$33<>0,INTRO!$E$33, " ") -> NIGER | B44: Niamey | C44: Niamey 5 | D44: 192241.7848 | E44: =IF([1]INTRO!$E$48="","",ROUND($D44*[1]INTRO!$E$48,0)) -> 34604 | F44: =IF([1]INTRO!$E$49="","",ROUND($D44*[1]INTRO!$E$49,0)) -> 57673 | G44: =IF([1]INTRO!$E$50="","",ROUND($D44*[1]INTRO!$E$50,0)) -> 96121 | H44: 99 | J44: 99 | K44: 31 | L44: =IF(INTRO!$E$37="Endémique",IF($H44>0,IF($H44=4,"Inconnu",IF($H44=99,"Interrompu",$D44)),0),"Non requis") -> Interrompu | M44: =IF(INTRO!$E$39="Endémique", IF($I44>0, IF($I44=4,"Inconnu",IF($I44=99,"Interrompu",$D44)), 0),"Non requis") -> Non requis | N44: =IF(INTRO!$E$41="Endémique", IF($J44>1, IF($J44=4, "Inconnu", IF($J44=99, "Surveillance", E44)), 0),"Non requis") -> Surveillance | O44: =IF(INTRO!$E$41="Endémique", IF($J44>1, IF($J44=4, "Inconnu", IF($J44=99, "Surveillance", F44)), 0),"Non requis") -> Surveillance | P44: =IF(INTRO!$E$41="Endémique", IF($J44>1, IF($J44=4, "Inconnu", IF($J44=99, "Surveillance", ROUND(D44*INTRO!$E$51,0))), 0),"Non requis") -> Surveillance | Q44: =IF(INTRO!$E$41="Endémique", IF($J44>1, IF($J44=4, "Inconnu", IF($J44=99, "Surveillance", SUM($N44:$P44))), 0),"Non requis") -> Surveillance | R44: 21642 | S44: 56065 | T44: 98057 | U44: =IF(INTRO!$E$43="Endémique", IF($K44>1, IF($K44=4, "Inconnu", IF($K44=99, "Surveillance", SUM($R44:$T44))), 0),"Non requis") -> 175764 | V44: 0 | X44: 0 | Y44: 1 | AA44: TAS | AE44: 35315 | AF44: Niamey 5 (ex Niamey 3)
A45: =IF(INTRO!$E$33<>0,INTRO!$E$33, " ") -> NIGER | B45: Tahoua | C45: Abalak | D45: 395694.5876 | E45: =IF([1]INTRO!$E$48="","",ROUND($D45*[1]INTRO!$E$48,0)) -> 71225 | F45: =IF([1]INTRO!$E$49="","",ROUND($D45*[1]INTRO!$E$49,0)) -> 118708 | G45: =IF([1]INTRO!$E$50="","",ROUND($D45*[1]INTRO!$E$50,0)) -> 197847 | H45: 0 | J45: 99 | K45: 31 | L45: =IF(INTRO!$E$37="Endémique",IF($H45>0,IF($H45=4,"Inconnu",IF($H45=99,"Interrompu",$D45)),0),"Non requis") -> 0 | M45: =IF(INTRO!$E$39="Endémique", IF($I45>0, IF($I45=4,"Inconnu",IF($I45=99,"Interrompu",$D45)), 0),"Non requis") -> Non requis | N45: =IF(INTRO!$E$41="Endémique", IF($J45>1, IF($J45=4, "Inconnu", IF($J45=99, "Surveillance", E45)), 0),"Non requis") -> Surveillance | O45: =IF(INTRO!$E$41="Endémique", IF($J45>1, IF($J45=4, "Inconnu", IF($J45=99, "Surveillance", F45)), 0),"Non requis") -> Surveillance | P45: =IF(INTRO!$E$41="Endémique", IF($J45>1, IF($J45=4, "Inconnu", IF($J45=99, "Surveillance", ROUND(D45*INTRO!$E$51,0))), 0),"Non requis") -> Surveillance | Q45: =IF(INTRO!$E$41="Endémique", IF($J45>1, IF($J45=4, "Inconnu", IF($J45=99, "Surveillance", SUM($N45:$P45))), 0),"Non requis") -> Surveillance | R45: 48607 | S45: 125914 | T45: 220216 | U45: =IF(INTRO!$E$43="Endémique", IF($K45>1, IF($K45=4, "Inconnu", IF($K45=99, "Surveillance", SUM($R45:$T45))), 0),"Non requis") -> 394737 | V45: 0 | X45: 0 | Y45: 1 | AE45: 35316 | AF45: Abalak
A46: =IF(INTRO!$E$33<>0,INTRO!$E$33, " ") -> NIGER | B46: Tahoua | C46: Birnin' Konni | D46: 483054.2867 | E46: =IF([1]INTRO!$E$48="","",ROUND($D46*[1]INTRO!$E$48,0)) -> 86950 | F46: =IF([1]INTRO!$E$49="","",ROUND($D46*[1]INTRO!$E$49,0)) -> 144916 | G46: =IF([1]INTRO!$E$50="","",ROUND($D46*[1]INTRO!$E$50,0)) -> 241527 | H46: 99 | J46: 99 | K46: 21 | L46: =IF(INTRO!$E$37="Endémique",IF($H46>0,IF($H46=4,"Inconnu",IF($H46=99,"Interrompu",$D46)),0),"Non requis") -> Interrompu | M46: =IF(INTRO!$E$39="Endémique", IF($I46>0, IF($I46=4,"Inconnu",IF($I46=99,"Interrompu",$D46)), 0),"Non requis") -> Non requis | N46: =IF(INTRO!$E$41="Endémique", IF($J46>1, IF($J46=4, "Inconnu", IF($J46=99, "Surveillance", E46)), 0),"Non requis") -> Surveillance | O46: =IF(INTRO!$E$41="Endémique", IF($J46>1, IF($J46=4, "Inconnu", IF($J46=99, "Surveillance", F46)), 0),"Non requis") -> Surveillance | P46: =IF(INTRO!$E$41="Endémique", IF($J46>1, IF($J46=4, "Inconnu", IF($J46=99, "Surveillance", ROUND(D46*INTRO!$E$51,0))), 0),"Non requis") -> Surveillance | Q46: =IF(INTRO!$E$41="Endémique", IF($J46>1, IF($J46=4, "Inconnu", IF($J46=99, "Surveillance", SUM($N46:$P46))), 0),"Non requis") -> Surveillance | R46: 53537 | S46: 138677 | T46: 242542 | U46: =IF(INTRO!$E$43="Endémique", IF($K46>1, IF($K46=4, "Inconnu", IF($K46=99, "Surveillance", SUM($R46:$T46))), 0),"Non requis") -> 434756 | V46: 0 | X46: 0 | Y46: 0 | AE46: 35362 | AF46: Birnin' Konni
A47: =IF(INTRO!$E$33<>0,INTRO!$E$33, " ") -> NIGER | B47: Tahoua | C47: Malbaza | D47: 358805.4359 | E47: =IF([1]INTRO!$E$48="","",ROUND($D47*[1]INTRO!$E$48,0)) -> 64585 | F47: =IF([1]INTRO!$E$49="","",ROUND($D47*[1]INTRO!$E$49,0)) -> 107642 | G47: =IF([1]INTRO!$E$50="","",ROUND($D47*[1]INTRO!$E$50,0)) -> 179403 | H47: 99 | J47: 99 | K47: 21 | L47: =IF(INTRO!$E$37="Endémique",IF($H47>0,IF($H47=4,"Inconnu",IF($H47=99,"Interrompu",$D47)),0),"Non requis") -> Interrompu | M47: =IF(INTRO!$E$39="Endémique", IF($I47>0, IF($I47=4,"Inconnu",IF($I47=99,"Interrompu",$D47)), 0),"Non requis") -> Non requis | N47: =IF(INTRO!$E$41="Endémique", IF($J47>1, IF($J47=4, "Inconnu", IF($J47=99, "Surveillance", E47)), 0),"Non requis") -> Surveillance | O47: =IF(INTRO!$E$41="Endémique", IF($J47>1, IF($J47=4, "Inconnu", IF($J47=99, "Surveillance", F47)), 0),"Non requis") -> Surveillance | P47: =IF(INTRO!$E$41="Endémique", IF($J47>1, IF($J47=4, "Inconnu", IF($J47=99, "Surveillance", ROUND(D47*INTRO!$E$51,0))), 0),"Non requis") -> Surveillance | Q47: =IF(INTRO!$E$41="Endémique", IF($J47>1, IF($J47=4, "Inconnu", IF($J47=99, "Surveillance", SUM($N47:$P47))), 0),"Non requis") -> Surveillance | R47: 39368 | S47: 101982 | T47: 178361 | U47: =IF(INTRO!$E$43="Endémique", IF($K47>1, IF($K47=4, "Inconnu", IF($K47=99, "Surveillance", SUM($R47:$T47))), 0),"Non requis") -> 319711 | V47: 0 | X47: 0 | Y47: 0 | AE47: 35363 | AF47: Malbaza
A48: =IF(INTRO!$E$33<>0,INTRO!$E$33, " ") -> NIGER | B48: Tahoua | C48: Bouza | D48: 687581.12 | E48: =IF([1]INTRO!$E$48="","",ROUND($D48*[1]INTRO!$E$48,0)) -> 123765 | F48: =IF([1]INTRO!$E$49="","",ROUND($D48*[1]INTRO!$E$49,0)) -> 206274 | G48: =IF([1]INTRO!$E$50="","",ROUND($D48*[1]INTRO!$E$50,0)) -> 343791 | H48: 99 | J48: 99 | K48: 21 | L48: =IF(INTRO!$E$37="Endémique",IF($H48>0,IF($H48=4,"Inconnu",IF($H48=99,"Interrompu",$D48)),0),"Non requis") -> Interrompu | M48: =IF(INTRO!$E$39="Endémique", IF($I48>0, IF($I48=4,"Inconnu",IF($I48=99,"Interrompu",$D48)), 0),"Non requis") -> Non requis | N48: =IF(INTRO!$E$41="Endémique", IF($J48>1, IF($J48=4, "Inconnu", IF($J48=99, "Surveillance", E48)), 0),"Non requis") -> Surveillance | O48: =IF(INTRO!$E$41="Endémique", IF($J48>1, IF($J48=4, "Inconnu", IF($J48=99, "Surveillance", F48)), 0),"Non requis") -> Surveillance | P48: =IF(INTRO!$E$41="Endémique", IF($J48>1, IF($J48=4, "Inconnu", IF($J48=99, "Surveillance", ROUND(D48*INTRO!$E$51,0))), 0),"Non requis") -> Surveillance | Q48: =IF(INTRO!$E$41="Endémique", IF($J48>1, IF($J48=4, "Inconnu", IF($J48=99, "Surveillance", SUM($N48:$P48))), 0),"Non requis") -> Surveillance | R48: 77003 | S48: 199469 | T48: 348860 | U48: =IF(INTRO!$E$43="Endémique", IF($K48>1, IF($K48=4, "Inconnu", IF($K48=99, "Surveillance", SUM($R48:$T48))), 0),"Non requis") -> 625332 | V48: 0 | X48: 0 | Y48: 0 | AA48: TAS | AE48: 35318 | AF48: Bouza
A49: =IF(INTRO!$E$33<>0,INTRO!$E$33, " ") -> NIGER | B49: Tahoua | C49: Illela | D49: 519697.9637 | E49: =IF([1]INTRO!$E$48="","",ROUND($D49*[1]INTRO!$E$48,0)) -> 93546 | F49: =IF([1]INTRO!$E$49="","",ROUND($D49*[1]INTRO!$E$49,0)) -> 155909 | G49: =IF([1]INTRO!$E$50="","",ROUND($D49*[1]INTRO!$E$50,0)) -> 259849 | H49: 99 | J49: 99 | K49: 11 | L49: =IF(INTRO!$E$37="Endémique",IF($H49>0,IF($H49=4,"Inconnu",IF($H49=99,"Interrompu",$D49)),0),"Non requis") -> Interrompu | M49: =IF(INTRO!$E$39="Endémique", IF($I49>0, IF($I49=4,"Inconnu",IF($I49=99,"Interrompu",$D49)), 0),"Non requis") -> Non requis | N49: =IF(INTRO!$E$41="Endémique", IF($J49>1, IF($J49=4, "Inconnu", IF($J49=99, "Surveillance", E49)), 0),"Non requis") -> Surveillance | O49: =IF(INTRO!$E$41="Endémique", IF($J49>1, IF($J49=4, "Inconnu", IF($J49=99, "Surveillance", F49)), 0),"Non requis") -> Surveillance | P49: =IF(INTRO!$E$41="Endémique", IF($J49>1, IF($J49=4, "Inconnu", IF($J49=99, "Surveillance", ROUND(D49*INTRO!$E$51,0))), 0),"Non requis") -> Surveillance | Q49: =IF(INTRO!$E$41="Endémique", IF($J49>1, IF($J49=4, "Inconnu", IF($J49=99, "Surveillance", SUM($N49:$P49))), 0),"Non requis") -> Surveillance | R49: 57175 | S49: 148115 | T49: 259041 | U49: =IF(INTRO!$E$43="Endémique", IF($K49>1, IF($K49=4, "Inconnu", IF($K49=99, "Surveillance", SUM($R49:$T49))), 0),"Non requis") -> 464331 | V49: 0 | X49: 0 | Y49: 0 | AE49: 35364 | AF49: Illela
A50: =IF(INTRO!$E$33<>0,INTRO!$E$33, " ") -> NIGER | B50: Tahoua | C50: Bagaroua | D50: 111610.7578 | E50: =IF([1]INTRO!$E$48="","",ROUND($D50*[1]INTRO!$E$48,0)) -> 20090 | F50: =IF([1]INTRO!$E$49="","",ROUND($D50*[1]INTRO!$E$49,0)) -> 33483 | G50: =IF([1]INTRO!$E$50="","",ROUND($D50*[1]INTRO!$E$50,0)) -> 55805 | H50: 99 | J50: 99 | K50: 2 | L50: =IF(INTRO!$E$37="Endémique",IF($H50>0,IF($H50=4,"Inconnu",IF($H50=99,"Interrompu",$D50)),0),"Non requis") -> Interrompu | M50: =IF(INTRO!$E$39="Endémique", IF($I50>0, IF($I50=4,"Inconnu",IF($I50=99,"Interrompu",$D50)), 0),"Non requis") -> Non requis | N50: =IF(INTRO!$E$41="Endémique", IF($J50>1, IF($J50=4, "Inconnu", IF($J50=99, "Surveillance", E50)), 0),"Non requis") -> Surveillance | O50: =IF(INTRO!$E$41="Endémique", IF($J50>1, IF($J50=4, "Inconnu", IF($J50=99, "Surveillance", F50)), 0),"Non requis") -> Surveillance | P50: =IF(INTRO!$E$41="Endémique", IF($J50>1, IF($J50=4, "Inconnu", IF($J50=99, "Surveillance", ROUND(D50*INTRO!$E$51,0))), 0),"Non requis") -> Surveillance | Q50: =IF(INTRO!$E$41="Endémique", IF($J50>1, IF($J50=4, "Inconnu", IF($J50=99, "Surveillance", SUM($N50:$P50))), 0),"Non requis") -> Surveillance | R50: 11820 | S50: 30622 | T50: 53556 | U50: =IF(INTRO!$E$43="Endémique", IF($K50>1, IF($K50=4, "Inconnu", IF($K50=99, "Surveillance", SUM($R50:$T50))), 0),"Non requis") -> 95998 | V50: 0 | X50: 0 | Y50: 0 | AE50: 35365 | AF50: Bagaroua
A51: =IF(INTRO!$E$33<>0,INTRO!$E$33, " ") -> NIGER | B51: Tahoua | C51: Keita | D51: 520434.3881 | E51: =IF([1]INTRO!$E$48="","",ROUND($D51*[1]INTRO!$E$48,0)) -> 93678 | F51: =IF([1]INTRO!$E$49="","",ROUND($D51*[1]INTRO!$E$49,0)) -> 156130 | G51: =IF([1]INTRO!$E$50="","",ROUND($D51*[1]INTRO!$E$50,0)) -> 260217 | H51: 99 | J51: 99 | K51: 21 | L51: =IF(INTRO!$E$37="Endémique",IF($H51>0,IF($H51=4,"Inconnu",IF($H51=99,"Interrompu",$D51)),0),"Non requis") -> Interrompu | M51: =IF(INTRO!$E$39="Endémique", IF($I51>0, IF($I51=4,"Inconnu",IF($I51=99,"Interrompu",$D51)), 0),"Non requis") -> Non requis | N51: =IF(INTRO!$E$41="Endémique", IF($J51>1, IF($J51=4, "Inconnu", IF($J51=99, "Surveillance", E51)), 0),"Non requis") -> Surveillance | O51: =IF(INTRO!$E$41="Endémique", IF($J51>1, IF($J51=4, "Inconnu", IF($J51=99, "Surveillance", F51)), 0),"Non requis") -> Surveillance | P51: =IF(INTRO!$E$41="Endémique", IF($J51>1, IF($J51=4, "Inconnu", IF($J51=99, "Surveillance", ROUND(D51*INTRO!$E$51,0))), 0),"Non requis") -> Surveillance | Q51: =IF(INTRO!$E$41="Endémique", IF($J51>1, IF($J51=4, "Inconnu", IF($J51=99, "Surveillance", SUM($N51:$P51))), 0),"Non requis") -> Surveillance | R51: 56638 | S51: 146717 | T51: 256600 | U51: =IF(INTRO!$E$43="Endémique", IF($K51>1, IF($K51=4, "Inconnu", IF($K51=99, "Surveillance", SUM($R51:$T51))), 0),"Non requis") -> 459955 | V51: 0 | X51: 0 | Y51: 0 | AA51: TAS | AE51: 35320 | AF51: Keita
A52: =IF(INTRO!$E$33<>0,INTRO!$E$33, " ") -> NIGER | B52: Tahoua | C52: Madaoua | D52: 842237.97 | E52: =IF([1]INTRO!$E$48="","",ROUND($D52*[1]INTRO!$E$48,0)) -> 151603 | F52: =IF([1]INTRO!$E$49="","",ROUND($D52*[1]INTRO!$E$49,0)) -> 252671 | G52: =IF([1]INTRO!$E$50="","",ROUND($D52*[1]INTRO!$E$50,0)) -> 421119 | H52: 99 | J52: 99 | K52: 31 | L52: =IF(INTRO!$E$37="Endémique",IF($H52>0,IF($H52=4,"Inconnu",IF($H52=99,"Interrompu",$D52)),0),"Non requis") -> Interrompu | M52: =IF(INTRO!$E$39="Endémique", IF($I52>0, IF($I52=4,"Inconnu",IF($I52=99,"Interrompu",$D52)), 0),"Non requis") -> Non requis | N52: =IF(INTRO!$E$41="Endémique", IF($J52>1, IF($J52=4, "Inconnu", IF($J52=99, "Surveillance", E52)), 0),"Non requis") -> Surveillance | O52: =IF(INTRO!$E$41="Endémique", IF($J52>1, IF($J52=4, "Inconnu", IF($J52=99, "Surveillance", F52)), 0),"Non requis") -> Surveillance | P52: =IF(INTRO!$E$41="Endémique", IF($J52>1, IF($J52=4, "Inconnu", IF($J52=99, "Surveillance", ROUND(D52*INTRO!$E$51,0))), 0),"Non requis") -> Surveillance | Q52: =IF(INTRO!$E$41="Endémique", IF($J52>1, IF($J52=4, "Inconnu", IF($J52=99, "Surveillance", SUM($N52:$P52))), 0),"Non requis") -> Surveillance | R52: 101331 | S52: 262492 | T52: 459088 | U52: =IF(INTRO!$E$43="Endémique", IF($K52>1, IF($K52=4, "Inconnu", IF($K52=99, "Surveillance", SUM($R52:$T52))), 0),"Non requis") -> 822911 | V52: 0 | X52: 0 | Y52: 0 | AA52: TAS | AE52: 35321 | AF52: Madaoua
A53: =IF(INTRO!$E$33<>0,INTRO!$E$33, " ") -> NIGER | B53: Tahoua | C53: Tahoua département | D53: 666677.1644 | E53: =IF([1]INTRO!$E$48="","",ROUND($D53*[1]INTRO!$E$48,0)) -> 120002 | F53: =IF([1]INTRO!$E$49="","",ROUND($D53*[1]INTRO!$E$49,0)) -> 200003 | G53: =IF([1]INTRO!$E$50="","",ROUND($D53*[1]INTRO!$E$50,0)) -> 333339 | H53: 99 | J53: 99 | K53: 21 | L53: =IF(INTRO!$E$37="Endémique",IF($H53>0,IF($H53=4,"Inconnu",IF($H53=99,"Interrompu",$D53)),0),"Non requis") -> Interrompu | M53: =IF(INTRO!$E$39="Endémique", IF($I53>0, IF($I53=4,"Inconnu",IF($I53=99,"Interrompu",$D53)), 0),"Non requis") -> Non requis | N53: =IF(INTRO!$E$41="Endémique", IF($J53>1, IF($J53=4, "Inconnu", IF($J53=99, "Surveillance", E53)), 0),"Non requis") -> Surveillance | O53: =IF(INTRO!$E$41="Endémique", IF($J53>1, IF($J53=4, "Inconnu", IF($J53=99, "Surveillance", F53)), 0),"Non requis") -> Surveillance | P53: =IF(INTRO!$E$41="Endémique", IF($J53>1, IF($J53=4, "Inconnu", IF($J53=99, "Surveillance", ROUND(D53*INTRO!$E$51,0))), 0),"Non requis") -> Surveillance | Q53: =IF(INTRO!$E$41="Endémique", IF($J53>1, IF($J53=4, "Inconnu", IF($J53=99, "Surveillance", SUM($N53:$P53))), 0),"Non requis") -> Surveillance | R53: 75995 | S53: 196859 | T53: 344297 | U53: =IF(INTRO!$E$43="Endémique", IF($K53>1, IF($K53=4, "Inconnu", IF($K53=99, "Surveillance", SUM($R53:$T53))), 0),"Non requis") -> 617151 | V53: 0 | X53: 0 | Y53: 0 | AE53: 35366 | AF53: Tahoua
A54: =IF(INTRO!$E$33<>0,INTRO!$E$33, " ") -> NIGER | B54: Tahoua | C54: Tahoua commune | D54: 223993.4489 | E54: =IF([1]INTRO!$E$48="","",ROUND($D54*[1]INTRO!$E$48,0)) -> 40319 | F54: =IF([1]INTRO!$E$49="","",ROUND($D54*[1]INTRO!$E$49,0)) -> 67198 | G54: =IF([1]INTRO!$E$50="","",ROUND($D54*[1]INTRO!$E$50,0)) -> 111997 | H54: 99 | J54: 99 | K54: 21 | L54: =IF(INTRO!$E$37="Endémique",IF($H54>0,IF($H54=4,"Inconnu",IF($H54=99,"Interrompu",$D54)),0),"Non requis") -> Interrompu | M54: =IF(INTRO!$E$39="Endémique", IF($I54>0, IF($I54=4,"Inconnu",IF($I54=99,"Interrompu",$D54)), 0),"Non requis") -> Non requis | N54: =IF(INTRO!$E$41="Endémique", IF($J54>1, IF($J54=4, "Inconnu", IF($J54=99, "Surveillance", E54)), 0),"Non requis") -> Surveillance | O54: =IF(INTRO!$E$41="Endémique", IF($J54>1, IF($J54=4, "Inconnu", IF($J54=99, "Surveillance", F54)), 0),"Non requis") -> Surveillance | P54: =IF(INTRO!$E$41="Endémique", IF($J54>1, IF($J54=4, "Inconnu", IF($J54=99, "Surveillance", ROUND(D54*INTRO!$E$51,0))), 0),"Non requis") -> Surveillance | Q54: =IF(INTRO!$E$41="Endémique", IF($J54>1, IF($J54=4, "Inconnu", IF($J54=99, "Surveillance", SUM($N54:$P54))), 0),"Non requis") -> Surveillance | R54: 25472 | S54: 65984 | T54: 115399 | U54: =IF(INTRO!$E$43="Endémique", IF($K54>1, IF($K54=4, "Inconnu", IF($K54=99, "Surveillance", SUM($R54:$T54))), 0),"Non requis") -> 206855 | V54: 0 | X54: 0 | Y54: 0 | AE54: 35367 | AF54: Tahoua commune
A55: =IF(INTRO!$E$33<>0,INTRO!$E$33, " ") -> NIGER | B55: Tahoua | C55: TCHINTABARADEN | D55: 230804.9889 | E55: =IF([1]INTRO!$E$48="","",ROUND($D55*[1]INTRO!$E$48,0)) -> 41545 | F55: =IF([1]INTRO!$E$49="","",ROUND($D55*[1]INTRO!$E$49,0)) -> 69241 | G55: =IF([1]INTRO!$E$50="","",ROUND($D55*[1]INTRO!$E$50,0)) -> 115402 | H55: 99 | J55: 11 | K55: 31 | L55: =IF(INTRO!$E$37="Endémique",IF($H55>0,IF($H55=4,"Inconnu",IF($H55=99,"Interrompu",$D55)),0),"Non requis") -> Interrompu | M55: =IF(INTRO!$E$39="Endémique", IF($I55>0, IF($I55=4,"Inconnu",IF($I55=99,"Interrompu",$D55)), 0),"Non requis") -> Non requis | N55: =IF(INTRO!$E$41="Endémique", IF($J55>1, IF($J55=4, "Inconnu", IF($J55=99, "Surveillance", E55)), 0),"Non requis") -> 41545 | O55: =IF(INTRO!$E$41="Endémique", IF($J55>1, IF($J55=4, "Inconnu", IF($J55=99, "Surveillance", F55)), 0),"Non requis") -> 69241 | P55: =IF(INTRO!$E$41="Endémique", IF($J55>1, IF($J55=4, "Inconnu", IF($J55=99, "Surveillance", ROUND(D55*INTRO!$E$51,0))), 0),"Non requis") -> 48284 | Q55: =IF(INTRO!$E$41="Endémique", IF($J55>1, IF($J55=4, "Inconnu", IF($J55=99, "Surveillance", SUM($N55:$P55))), 0),"Non requis") -> 159070 | R55: 25645 | S55: 66432 | T55: 116185 | U55: =IF(INTRO!$E$43="Endémique", IF($K55>1, IF($K55=4, "Inconnu", IF($K55=99, "Surveillance", SUM($R55:$T55))), 0),"Non requis") -> 208262 | V55: 0 | X55: 0 | Y55: 1 | AE55: 35368 | AF55: Tchintabaraden
A56: =IF(INTRO!$E$33<>0,INTRO!$E$33, " ") -> NIGER | B56: Tahoua | C56: Tassara | D56: 37758.3487 | E56: =IF([1]INTRO!$E$48="","",ROUND($D56*[1]INTRO!$E$48,0)) -> 6797 | F56: =IF([1]INTRO!$E$49="","",ROUND($D56*[1]INTRO!$E$49,0)) -> 11328 | G56: =IF([1]INTRO!$E$50="","",ROUND($D56*[1]INTRO!$E$50,0)) -> 18879 | H56: 99 | J56: 11 | K56: 31 | L56: =IF(INTRO!$E$37="Endémique",IF($H56>0,IF($H56=4,"Inconnu",IF($H56=99,"Interrompu",$D56)),0),"Non requis") -> Interrompu | M56: =IF(INTRO!$E$39="Endémique", IF($I56>0, IF($I56=4,"Inconnu",IF($I56=99,"Interrompu",$D56)), 0),"Non requis") -> Non requis | N56: =IF(INTRO!$E$41="Endémique", IF($J56>1, IF($J56=4, "Inconnu", IF($J56=99, "Surveillance", E56)), 0),"Non requis") -> 6797 | O56: =IF(INTRO!$E$41="Endémique", IF($J56>1, IF($J56=4, "Inconnu", IF($J56=99, "Surveillance", F56)), 0),"Non requis") -> 11328 | P56: =IF(INTRO!$E$41="Endémique", IF($J56>1, IF($J56=4, "Inconnu", IF($J56=99, "Surveillance", ROUND(D56*INTRO!$E$51,0))), 0),"Non requis") -> 7899 | Q56: =IF(INTRO!$E$41="Endémique", IF($J56>1, IF($J56=4, "Inconnu", IF($J56=99, "Surveillance", SUM($N56:$P56))), 0),"Non requis") -> 26024 | R56: 4299 | S56: 11137 | T56: 19477 | U56: =IF(INTRO!$E$43="Endémique", IF($K56>1, IF($K56=4, "Inconnu", IF($K56=99, "Surveillance", SUM($R56:$T56))), 0),"Non requis") -> 34913 | V56: 0 | X56: 0 | Y56: 1 | AE56: 35369 | AF56: Tassara
A57: =IF(INTRO!$E$33<>0,INTRO!$E$33, " ") -> NIGER | B57: Tahoua | C57: Tillia | D57: 60201.5394 | E57: =IF([1]INTRO!$E$48="","",ROUND($D57*[1]INTRO!$E$48,0)) -> 10836 | F57: =IF([1]INTRO!$E$49="","",ROUND($D57*[1]INTRO!$E$49,0)) -> 18060 | G57: =IF([1]INTRO!$E$50="","",ROUND($D57*[1]INTRO!$E$50,0)) -> 30101 | H57: 99 | J57: 11 | K57: 31 | L57: =IF(INTRO!$E$37="Endémique",IF($H57>0,IF($H57=4,"Inconnu",IF($H57=99,"Interrompu",$D57)),0),"Non requis") -> Interrompu | M57: =IF(INTRO!$E$39="Endémique", IF($I57>0, IF($I57=4,"Inconnu",IF($I57=99,"Interrompu",$D57)), 0),"Non requis") -> Non requis | N57: =IF(INTRO!$E$41="Endémique", IF($J57>1, IF($J57=4, "Inconnu", IF($J57=99, "Surveillance", E57)), 0),"Non requis") -> 10836 | O57: =IF(INTRO!$E$41="Endémique", IF($J57>1, IF($J57=4, "Inconnu", IF($J57=99, "Surveillance", F57)), 0),"Non requis") -> 18060 | P57: =IF(INTRO!$E$41="Endémique", IF($J57>1, IF($J57=4, "Inconnu", IF($J57=99, "Surveillance", ROUND(D57*INTRO!$E$51,0))), 0),"Non requis") -> 12594 | Q57: =IF(INTRO!$E$41="Endémique", IF($J57>1, IF($J57=4, "Inconnu", IF($J57=99, "Surveillance", SUM($N57:$P57))), 0),"Non requis") -> 41490 | R57: 8979 | S57: 23261 | T57: 40680 | U57: =IF(INTRO!$E$43="Endémique", IF($K57>1, IF($K57=4, "Inconnu", IF($K57=99, "Surveillance", SUM($R57:$T57))), 0),"Non requis") -> 72920 | V57: 0 | X57: 0 | Y57: 1 | AE57: 35370 | AF57: Tillia
A58: =IF(INTRO!$E$33<>0,INTRO!$E$33, " ") -> NIGER | B58: Tillabery | C58: Fillingue | D58: 473508.45 | E58: =IF([1]INTRO!$E$48="","",ROUND($D58*[1]INTRO!$E$48,0)) -> 85232 | F58: =IF([1]INTRO!$E$49="","",ROUND($D58*[1]INTRO!$E$49,0)) -> 142053 | G58: =IF([1]INTRO!$E$50="","",ROUND($D58*[1]INTRO!$E$50,0)) -> 236754 | H58: 0 | J58: 99 | K58: 21 | L58: =IF(INTRO!$E$37="Endémique",IF($H58>0,IF($H58=4,"Inconnu",IF($H58=99,"Interrompu",$D58)),0),"Non requis") -> 0 | M58: =IF(INTRO!$E$39="Endémique", IF($I58>0, IF($I58=4,"Inconnu",IF($I58=99,"Interrompu",$D58)), 0),"Non requis") -> Non requis | N58: =IF(INTRO!$E$41="Endémique", IF($J58>1, IF($J58=4, "Inconnu", IF($J58=99, "Surveillance", E58)), 0),"Non requis") -> Surveillance | O58: =IF(INTRO!$E$41="Endémique", IF($J58>1, IF($J58=4, "Inconnu", IF($J58=99, "Surveillance", F58)), 0),"Non requis") -> Surveillance | P58: =IF(INTRO!$E$41="Endémique", IF($J58>1, IF($J58=4, "Inconnu", IF($J58=99, "Surveillance", ROUND(D58*INTRO!$E$51,0))), 0),"Non requis") -> Surveillance | Q58: =IF(INTRO!$E$41="Endémique", IF($J58>1, IF($J58=4, "Inconnu", IF($J58=99, "Surveillance", SUM($N58:$P58))), 0),"Non requis") -> Surveillance | R58: 50823 | S58: 131656 | T58: 230257 | U58: =IF(INTRO!$E$43="Endémique", IF($K58>1, IF($K58=4, "Inconnu", IF($K58=99, "Surveillance", SUM($R58:$T58))), 0),"Non requis") -> 412736 | V58: 0 | X58: 0 | Y58: 1 | AE58: 35371 | AF58: Fillingue
A59: =IF(INTRO!$E$33<>0,INTRO!$E$33, " ") -> NIGER | B59: Tillabery | C59: Balleyara | D59: 165388.178 | E59: =IF([1]INTRO!$E$48="","",ROUND($D59*[1]INTRO!$E$48,0)) -> 29770 | F59: =IF([1]INTRO!$E$49="","",ROUND($D59*[1]INTRO!$E$49,0)) -> 49616 | G59: =IF([1]INTRO!$E$50="","",ROUND($D59*[1]INTRO!$E$50,0)) -> 82694 | H59: 0 | J59: 99 | K59: 21 | L59: =IF(INTRO!$E$37="Endémique",IF($H59>0,IF($H59=4,"Inconnu",IF($H59=99,"Interrompu",$D59)),0),"Non requis") -> 0 | M59: =IF(INTRO!$E$39="Endémique", IF($I59>0, IF($I59=4,"Inconnu",IF($I59=99,"Interrompu",$D59)), 0),"Non requis") -> Non requis | N59: =IF(INTRO!$E$41="Endémique", IF($J59>1, IF($J59=4, "Inconnu", IF($J59=99, "Surveillance", E59)), 0),"Non requis") -> Surveillance | O59: =IF(INTRO!$E$41="Endémique", IF($J59>1, IF($J59=4, "Inconnu", IF($J59=99, "Surveillance", F59)), 0),"Non requis") -> Surveillance | P59: =IF(INTRO!$E$41="Endémique", IF($J59>1, IF($J59=4, "Inconnu", IF($J59=99, "Surveillance", ROUND(D59*INTRO!$E$51,0))), 0),"Non requis") -> Surveillance | Q59: =IF(INTRO!$E$41="Endémique", IF($J59>1, IF($J59=4, "Inconnu", IF($J59=99, "Surveillance", SUM($N59:$P59))), 0),"Non requis") -> Surveillance | R59: 18194 | S59: 47126 | T59: 82426 | U59: =IF(INTRO!$E$43="Endémique", IF($K59>1, IF($K59=4, "Inconnu", IF($K59=99, "Surveillance", SUM($R59:$T59))), 0),"Non requis") -> 147746 | V59: 0 | X59: 0 | Y59: 1 | AE59: 35373 | AF59: Baleyara
A60: =IF(INTRO!$E$33<>0,INTRO!$E$33, " ") -> NIGER | B60: Tillabery | C60: Abala | D60: 222743.1444 | E60: =IF([1]INTRO!$E$48="","",ROUND($D60*[1]INTRO!$E$48,0)) -> 40094 | F60: =IF([1]INTRO!$E$49="","",ROUND($D60*[1]INTRO!$E$49,0)) -> 66823 | G60: =IF([1]INTRO!$E$50="","",ROUND($D60*[1]INTRO!$E$50,0)) -> 111372 | H60: 0 | J60: 99 | K60: 31 | L60: =IF(INTRO!$E$37="Endémique",IF($H60>0,IF($H60=4,"Inconnu",IF($H60=99,"Interrompu",$D60)),0),"Non requis") -> 0 | M60: =IF(INTRO!$E$39="Endémique", IF($I60>0, IF($I60=4,"Inconnu",IF($I60=99,"Interrompu",$D60)), 0),"Non requis") -> Non requis | N60: =IF(INTRO!$E$41="Endémique", IF($J60>1, IF($J60=4, "Inconnu", IF($J60=99, "Surveillance", E60)), 0),"Non requis") -> Surveillance | O60: =IF(INTRO!$E$41="Endémique", IF($J60>1, IF($J60=4, "Inconnu", IF($J60=99, "Surveillance", F60)), 0),"Non requis") -> Surveillance | P60: =IF(INTRO!$E$41="Endémique", IF($J60>1, IF($J60=4, "Inconnu", IF($J60=99, "Surveillance", ROUND(D60*INTRO!$E$51,0))), 0),"Non requis") -> Surveillance | Q60: =IF(INTRO!$E$41="Endémique", IF($J60>1, IF($J60=4, "Inconnu", IF($J60=99, "Surveillance", SUM($N60:$P60))), 0),"Non requis") -> Surveillance | R60: 24502 | S60: 63473 | T60: 111009 | U60: =IF(INTRO!$E$43="Endémique", IF($K60>1, IF($K60=4, "Inconnu", IF($K60=99, "Surveillance", SUM($R60:$T60))), 0),"Non requis") -> 198984 | V60: 0 | X60: 0 | Y60: 1 | AE60: 35372 | AF60: Abala
A61: =IF(INTRO!$E$33<>0,INTRO!$E$33, " ") -> NIGER | B61: Tillabery | C61: Kollo | D61: 718459.9907 | E61: =IF([1]INTRO!$E$48="","",ROUND($D61*[1]INTRO!$E$48,0)) -> 129323 | F61: =IF([1]INTRO!$E$49="","",ROUND($D61*[1]INTRO!$E$49,0)) -> 215538 | G61: =IF([1]INTRO!$E$50="","",ROUND($D61*[1]INTRO!$E$50,0)) -> 359230 | H61: 99 | J61: 99 | K61: 31 | L61: =IF(INTRO!$E$37="Endémique",IF($H61>0,IF($H61=4,"Inconnu",IF($H61=99,"Interrompu",$D61)),0),"Non requis") -> Interrompu | M61: =IF(INTRO!$E$39="Endémique", IF($I61>0, IF($I61=4,"Inconnu",IF($I61=99,"Interrompu",$D61)), 0),"Non requis") -> Non requis | N61: =IF(INTRO!$E$41="Endémique", IF($J61>1, IF($J61=4, "Inconnu", IF($J61=99, "Surveillance", E61)), 0),"Non requis") -> Surveillance | O61: =IF(INTRO!$E$41="Endémique", IF($J61>1, IF($J61=4, "Inconnu", IF($J61=99, "Surveillance", F61)), 0),"Non requis") -> Surveillance | P61: =IF(INTRO!$E$41="Endémique", IF($J61>1, IF($J61=4, "Inconnu", IF($J61=99, "Surveillance", ROUND(D61*INTRO!$E$51,0))), 0),"Non requis") -> Surveillance | Q61: =IF(INTRO!$E$41="Endémique", IF($J61>1, IF($J61=4, "Inconnu", IF($J61=99, "Surveillance", SUM($N61:$P61))), 0),"Non requis") -> Surveillance | R61: 79341 | S61: 205528 | T61: 359462 | U61: =IF(INTRO!$E$43="Endémique", IF($K61>1, IF($K61=4, "Inconnu", IF($K61=99, "Surveillance", SUM($R61:$T61))), 0),"Non requis") -> 644331 | V61: 0 | X61: 0 | Y61: 1 | AA61: TAS | AE61: 35326 | AF61: Kollo
A62: =IF(INTRO!$E$33<>0,INTRO!$E$33, " ") -> NIGER | B62: Tillabery | C62: Ouallam | D62: 505152.25 | E62: =IF([1]INTRO!$E$48="","",ROUND($D62*[1]INTRO!$E$48,0)) -> 90927 | F62: =IF([1]INTRO!$E$49="","",ROUND($D62*[1]INTRO!$E$49,0)) -> 151546 | G62: =IF([1]INTRO!$E$50="","",ROUND($D62*[1]INTRO!$E$50,0)) -> 252576 | H62: 0 | J62: 99 | K62: 31 | L62: =IF(INTRO!$E$37="Endémique",IF($H62>0,IF($H62=4,"Inconnu",IF($H62=99,"Interrompu",$D62)),0),"Non requis") -> 0 | M62: =IF(INTRO!$E$39="Endémique", IF($I62>0, IF($I62=4,"Inconnu",IF($I62=99,"Interrompu",$D62)), 0),"Non requis") -> Non requis | N62: =IF(INTRO!$E$41="Endémique", IF($J62>1, IF($J62=4, "Inconnu", IF($J62=99, "Surveillance", E62)), 0),"Non requis") -> Surveillance | O62: =IF(INTRO!$E$41="Endémique", IF($J62>1, IF($J62=4, "Inconnu", IF($J62=99, "Surveillance", F62)), 0),"Non requis") -> Surveillance | P62: =IF(INTRO!$E$41="Endémique", IF($J62>1, IF($J62=4, "Inconnu", IF($J62=99, "Surveillance", ROUND(D62*INTRO!$E$51,0))), 0),"Non requis") -> Surveillance | Q62: =IF(INTRO!$E$41="Endémique", IF($J62>1, IF($J62=4, "Inconnu", IF($J62=99, "Surveillance", SUM($N62:$P62))), 0),"Non requis") -> Surveillance | R62: 55620 | S62: 144089 | T62: 252005 | U62: =IF(INTRO!$E$43="Endémique", IF($K62>1, IF($K62=4, "Inconnu", IF($K62=99, "Surveillance", SUM($R62:$T62))), 0),"Non requis") -> 451714 | V62: 0 | X62: 0 | Y62: 1 | AE62: 35374 | AF62: Ouallam
A63: =IF(INTRO!$E$33<>0,INTRO!$E$33, " ") -> NIGER | B63: Tillabery | C63: Banibangou | D63: 103352.5597 | E63: =IF([1]INTRO!$E$48="","",ROUND($D63*[1]INTRO!$E$48,0)) -> 18603 | F63: =IF([1]INTRO!$E$49="","",ROUND($D63*[1]INTRO!$E$49,0)) -> 31006 | G63: =IF([1]INTRO!$E$50="","",ROUND($D63*[1]INTRO!$E$50,0)) -> 51676 | H63: 0 | J63: 99 | K63: 21 | L63: =IF(INTRO!$E$37="Endémique",IF($H63>0,IF($H63=4,"Inconnu",IF($H63=99,"Interrompu",$D63)),0),"Non requis") -> 0 | M63: =IF(INTRO!$E$39="Endémique", IF($I63>0, IF($I63=4,"Inconnu",IF($I63=99,"Interrompu",$D63)), 0),"Non requis") -> Non requis | N63: =IF(INTRO!$E$41="Endémique", IF($J63>1, IF($J63=4, "Inconnu", IF($J63=99, "Surveillance", E63)), 0),"Non requis") -> Surveillance | O63: =IF(INTRO!$E$41="Endémique", IF($J63>1, IF($J63=4, "Inconnu", IF($J63=99, "Surveillance", F63)), 0),"Non requis") -> Surveillance | P63: =IF(INTRO!$E$41="Endémique", IF($J63>1, IF($J63=4, "Inconnu", IF($J63=99, "Surveillance", ROUND(D63*INTRO!$E$51,0))), 0),"Non requis") -> Surveillance | Q63: =IF(INTRO!$E$41="Endémique", IF($J63>1, IF($J63=4, "Inconnu", IF($J63=99, "Surveillance", SUM($N63:$P63))), 0),"Non requis") -> Surveillance | R63: 11380 | S63: 29481 | T63: 51560 | U63: =IF(INTRO!$E$43="Endémique", IF($K63>1, IF($K63=4, "Inconnu", IF($K63=99, "Surveillance", SUM($R63:$T63))), 0),"Non requis") -> 92421 | V63: 0 | X63: 0 | Y63: 1 | AE63: 35375 | AF63: Banibangou
A64: =IF(INTRO!$E$33<>0,INTRO!$E$33, " ") -> NIGER | B64: Tillabery | C64: Say | D64: 271121.2011 | E64: =IF([1]INTRO!$E$48="","",ROUND($D64*[1]INTRO!$E$48,0)) -> 48802 | F64: =IF([1]INTRO!$E$49="","",ROUND($D64*[1]INTRO!$E$49,0)) -> 81336 | G64: =IF([1]INTRO!$E$50="","",ROUND($D64*[1]INTRO!$E$50,0)) -> 135561 | H64: 99 | J64: 99 | K64: 21 | L64: =IF(INTRO!$E$37="Endémique",IF($H64>0,IF($H64=4,"Inconnu",IF($H64=99,"Interrompu",$D64)),0),"Non requis") -> Interrompu | M64: =IF(INTRO!$E$39="Endémique", IF($I64>0, IF($I64=4,"Inconnu",IF($I64=99,"Interrompu",$D64)), 0),"Non requis") -> Non requis | N64: =IF(INTRO!$E$41="Endémique", IF($J64>1, IF($J64=4, "Inconnu", IF($J64=99, "Surveillance", E64)), 0),"Non requis") -> Surveillance | O64: =IF(INTRO!$E$41="Endémique", IF($J64>1, IF($J64=4, "Inconnu", IF($J64=99, "Surveillance", F64)), 0),"Non requis") -> Surveillance | P64: =IF(INTRO!$E$41="Endémique", IF($J64>1, IF($J64=4, "Inconnu", IF($J64=99, "Surveillance", ROUND(D64*INTRO!$E$51,0))), 0),"Non requis") -> Surveillance | Q64: =IF(INTRO!$E$41="Endémique", IF($J64>1, IF($J64=4, "Inconnu", IF($J64=99, "Surveillance", SUM($N64:$P64))), 0),"Non requis") -> Surveillance | R64: 30173 | S64: 78162 | T64: 136701 | U64: =IF(INTRO!$E$43="Endémique", IF($K64>1, IF($K64=4, "Inconnu", IF($K64=99, "Surveillance", SUM($R64:$T64))), 0),"Non requis") -> 245036 | V64: 0 | X64: 0 | Y64: 1 | AA64: TAS | AE64: 35376 | AF64: Say
A65: =IF(INTRO!$E$33<>0,INTRO!$E$33, " ") -> NIGER | B65: Tillabery | C65: Torodi | D65: 281908.9304 | E65: =IF([1]INTRO!$E$48="","",ROUND($D65*[1]INTRO!$E$48,0)) -> 50744 | F65: =IF([1]INTRO!$E$49="","",ROUND($D65*[1]INTRO!$E$49,0)) -> 84573 | G65: =IF([1]INTRO!$E$50="","",ROUND($D65*[1]INTRO!$E$50,0)) -> 140954 | H65: 99 | J65: 99 | K65: 21 | L65: =IF(INTRO!$E$37="Endémique",IF($H65>0,IF($H65=4,"Inconnu",IF($H65=99,"Interrompu",$D65)),0),"Non requis") -> Interrompu | M65: =IF(INTRO!$E$39="Endémique", IF($I65>0, IF($I65=4,"Inconnu",IF($I65=99,"Interrompu",$D65)), 0),"Non requis") -> Non requis | N65: =IF(INTRO!$E$41="Endémique", IF($J65>1, IF($J65=4, "Inconnu", IF($J65=99, "Surveillance", E65)), 0),"Non requis") -> Surveillance | O65: =IF(INTRO!$E$41="Endémique", IF($J65>1, IF($J65=4, "Inconnu", IF($J65=99, "Surveillance", F65)), 0),"Non requis") -> Surveillance | P65: =IF(INTRO!$E$41="Endémique", IF($J65>1, IF($J65=4, "Inconnu", IF($J65=99, "Surveillance", ROUND(D65*INTRO!$E$51,0))), 0),"Non requis") -> Surveillance | Q65: =IF(INTRO!$E$41="Endémique", IF($J65>1, IF($J65=4, "Inconnu", IF($J65=99, "Surveillance", SUM($N65:$P65))), 0),"Non requis") -> Surveillance | R65: 31373 | S65: 81270 | T65: 142139 | U65: =IF(INTRO!$E$43="Endémique", IF($K65>1, IF($K65=4, "Inconnu", IF($K65=99, "Surveillance", SUM($R65:$T65))), 0),"Non requis") -> 254782 | V65: 0 | X65: 0 | Y65: 1 | AA65: TAS | AE65: 35377 | AF65: Torodi
A66: =IF(INTRO!$E$33<>0,INTRO!$E$33, " ") -> NIGER | B66: Tillabery | C66: Tera | D66: 519019.7618 | E66: =IF([1]INTRO!$E$48="","",ROUND($D66*[1]INTRO!$E$48,0)) -> 93424 | F66: =IF([1]INTRO!$E$49="","",ROUND($D66*[1]INTRO!$E$49,0)) -> 155706 | G66: =IF([1]INTRO!$E$50="","",ROUND($D66*[1]INTRO!$E$50,0)) -> 259510 | H66: 99 | J66: 99 | K66: 31 | L66: =IF(INTRO!$E$37="Endémique",IF($H66>0,IF($H66=4,"Inconnu",IF($H66=99,"Interrompu",$D66)),0),"Non requis") -> Interrompu | M66: =IF(INTRO!$E$39="Endémique", IF($I66>0, IF($I66=4,"Inconnu",IF($I66=99,"Interrompu",$D66)), 0),"Non requis") -> Non requis | N66: =IF(INTRO!$E$41="Endémique", IF($J66>1, IF($J66=4, "Inconnu", IF($J66=99, "Surveillance", E66)), 0),"Non requis") -> Surveillance | O66: =IF(INTRO!$E$41="Endémique", IF($J66>1, IF($J66=4, "Inconnu", IF($J66=99, "Surveillance", F66)), 0),"Non requis") -> Surveillance | P66: =IF(INTRO!$E$41="Endémique", IF($J66>1, IF($J66=4, "Inconnu", IF($J66=99, "Surveillance", ROUND(D66*INTRO!$E$51,0))), 0),"Non requis") -> Surveillance | Q66: =IF(INTRO!$E$41="Endémique", IF($J66>1, IF($J66=4, "Inconnu", IF($J66=99, "Surveillance", SUM($N66:$P66))), 0),"Non requis") -> Surveillance | R66: 57762 | S66: 149630 | T66: 261692 | U66: =IF(INTRO!$E$43="Endémique", IF($K66>1, IF($K66=4, "Inconnu", IF($K66=99, "Surveillance", SUM($R66:$T66))), 0),"Non requis") -> 469084 | V66: 0 | X66: 0 | Y66: 1 | AA66: TAS | AE66: 35378 | AF66: Tera
A67: =IF(INTRO!$E$33<>0,INTRO!$E$33, " ") -> NIGER | B67: Tillabery | C67: Bankilare | D67: 131053.6206 | E67: =IF([1]INTRO!$E$48="","",ROUND($D67*[1]INTRO!$E$48,0)) -> 23590 | F67: =IF([1]INTRO!$E$49="","",ROUND($D67*[1]INTRO!$E$49,0)) -> 39316 | G67: =IF([1]INTRO!$E$50="","",ROUND($D67*[1]INTRO!$E$50,0)) -> 65527 | H67: 99 | J67: 99 | K67: 31 | L67: =IF(INTRO!$E$37="Endémique",IF($H67>0,IF($H67=4,"Inconnu",IF($H67=99,"Interrompu",$D67)),0),"Non requis") -> Interrompu | M67: =IF(INTRO!$E$39="Endémique", IF($I67>0, IF($I67=4,"Inconnu",IF($I67=99,"Interrompu",$D67)), 0),"Non requis") -> Non requis | N67: =IF(INTRO!$E$41="Endémique", IF($J67>1, IF($J67=4, "Inconnu", IF($J67=99, "Surveillance", E67)), 0),"Non requis") -> Surveillance | O67: =IF(INTRO!$E$41="Endémique", IF($J67>1, IF($J67=4, "Inconnu", IF($J67=99, "Surveillance", F67)), 0),"Non requis") -> Surveillance | P67: =IF(INTRO!$E$41="Endémique", IF($J67>1, IF($J67=4, "Inconnu", IF($J67=99, "Surveillance", ROUND(D67*INTRO!$E$51,0))), 0),"Non requis") -> Surveillance | Q67: =IF(INTRO!$E$41="Endémique", IF($J67>1, IF($J67=4, "Inconnu", IF($J67=99, "Surveillance", SUM($N67:$P67))), 0),"Non requis") -> Surveillance | R67: 14584 | S67: 37781 | T67: 66077 | U67: =IF(INTRO!$E$43="Endémique", IF($K67>1, IF($K67=4, "Inconnu", IF($K67=99, "Surveillance", SUM($R67:$T67))), 0),"Non requis") -> 118442 | V67: 0 | X67: 0 | Y67: 1 | AA67: TAS | AE67: 35379 | AF67: Bankilare
A68: =IF(INTRO!$E$33<>0,INTRO!$E$33, " ") -> NIGER | B68: Tillabery | C68: Gothèye | D68: 372110.2786 | E68: =IF([1]INTRO!$E$48="","",ROUND($D68*[1]INTRO!$E$48,0)) -> 66980 | F68: =IF([1]INTRO!$E$49="","",ROUND($D68*[1]INTRO!$E$49,0)) -> 111633 | G68: =IF([1]INTRO!$E$50="","",ROUND($D68*[1]INTRO!$E$50,0)) -> 186055 | H68: 99 | J68: 99 | K68: 31 | L68: =IF(INTRO!$E$37="Endémique",IF($H68>0,IF($H68=4,"Inconnu",IF($H68=99,"Interrompu",$D68)),0),"Non requis") -> Interrompu | M68: =IF(INTRO!$E$39="Endémique", IF($I68>0, IF($I68=4,"Inconnu",IF($I68=99,"Interrompu",$D68)), 0),"Non requis") -> Non requis | N68: =IF(INTRO!$E$41="Endémique", IF($J68>1, IF($J68=4, "Inconnu", IF($J68=99, "Surveillance", E68)), 0),"Non requis") -> Surveillance | O68: =IF(INTRO!$E$41="Endémique", IF($J68>1, IF($J68=4, "Inconnu", IF($J68=99, "Surveillance", F68)), 0),"Non requis") -> Surveillance | P68: =IF(INTRO!$E$41="Endémique", IF($J68>1, IF($J68=4, "Inconnu", IF($J68=99, "Surveillance", ROUND(D68*INTRO!$E$51,0))), 0),"Non requis") -> Surveillance | Q68: =IF(INTRO!$E$41="Endémique", IF($J68>1, IF($J68=4, "Inconnu", IF($J68=99, "Surveillance", SUM($N68:$P68))), 0),"Non requis") -> Surveillance | R68: 41412 | S68: 107273 | T68: 187618 | U68: =IF(INTRO!$E$43="Endémique", IF($K68>1, IF($K68=4, "Inconnu", IF($K68=99, "Surveillance", SUM($R68:$T68))), 0),"Non requis") -> 336303 | V68: 0 | X68: 0 | Y68: 1 | AA68: TAS | AE68: 35380 | AF68: Gothèye
A69: =IF(INTRO!$E$33<>0,INTRO!$E$33, " ") -> NIGER | B69: Tillabery | C69: Tillaberi | D69: 350974.789 | E69: =IF([1]INTRO!$E$48="","",ROUND($D69*[1]INTRO!$E$48,0)) -> 63175 | F69: =IF([1]INTRO!$E$49="","",ROUND($D69*[1]INTRO!$E$49,0)) -> 105292 | G69: =IF([1]INTRO!$E$50="","",ROUND($D69*[1]INTRO!$E$50,0)) -> 175487 | H69: 99 | J69: 1 | K69: 31 | L69: =IF(INTRO!$E$37="Endémique",IF($H69>0,IF($H69=4,"Inconnu",IF($H69=99,"Interrompu",$D69)),0),"Non requis") -> Interrompu | M69: =IF(INTRO!$E$39="Endémique", IF($I69>0, IF($I69=4,"Inconnu",IF($I69=99,"Interrompu",$D69)), 0),"Non requis") -> Non requis | N69: =IF(INTRO!$E$41="Endémique", IF($J69>1, IF($J69=4, "Inconnu", IF($J69=99, "Surveillance", E69)), 0),"Non requis") -> 0 | O69: =IF(INTRO!$E$41="Endémique", IF($J69>1, IF($J69=4, "Inconnu", IF($J69=99, "Surveillance", F69)), 0),"Non requis") -> 0 | P69: =IF(INTRO!$E$41="Endémique", IF($J69>1, IF($J69=4, "Inconnu", IF($J69=99, "Surveillance", ROUND(D69*INTRO!$E$51,0))), 0),"Non requis") -> 0 | Q69: =IF(INTRO!$E$41="Endémique", IF($J69>1, IF($J69=4, "Inconnu", IF($J69=99, "Surveillance", SUM($N69:$P69))), 0),"Non requis") -> 0 | R69: 37511 | S69: 97171 | T69: 169946 | U69: =IF(INTRO!$E$43="Endémique", IF($K69>1, IF($K69=4, "Inconnu", IF($K69=99, "Surveillance", SUM($R69:$T69))), 0),"Non requis") -> 304628 | V69: 0 | X69: 0 | Y69: 1 | AA69: TAS | AE69: 35381 | AF69: Tillaberi
A70: =IF(INTRO!$E$33<>0,INTRO!$E$33, " ") -> NIGER | B70: Tillabery | C70: Ayorou | D70: 88040.09736 | E70: =IF([1]INTRO!$E$48="","",ROUND($D70*[1]INTRO!$E$48,0)) -> 15847 | F70: =IF([1]INTRO!$E$49="","",ROUND($D70*[1]INTRO!$E$49,0)) -> 26412 | G70: =IF([1]INTRO!$E$50="","",ROUND($D70*[1]INTRO!$E$50,0)) -> 44020 | H70: 99 | J70: 1 | K70: 3 | L70: =IF(INTRO!$E$37="Endémique",IF($H70>0,IF($H70=4,"Inconnu",IF($H70=99,"Interrompu",$D70)),0),"Non requis") -> Interrompu | M70: =IF(INTRO!$E$39="Endémique", IF($I70>0, IF($I70=4,"Inconnu",IF($I70=99,"Interrompu",$D70)), 0),"Non requis") -> Non requis | N70: =IF(INTRO!$E$41="Endémique", IF($J70>1, IF($J70=4, "Inconnu", IF($J70=99, "Surveillance", E70)), 0),"Non requis") -> 0 | O70: =IF(INTRO!$E$41="Endémique", IF($J70>1, IF($J70=4, "Inconnu", IF($J70=99, "Surveillance", F70)), 0),"Non requis") -> 0 | P70: =IF(INTRO!$E$41="Endémique", IF($J70>1, IF($J70=4, "Inconnu", IF($J70=99, "Surveillance", ROUND(D70*INTRO!$E$51,0))), 0),"Non requis") -> 0 | Q70: =IF(INTRO!$E$41="Endémique", IF($J70>1, IF($J70=4, "Inconnu", IF($J70=99, "Surveillance", SUM($N70:$P70))), 0),"Non requis") -> 0 | R70: 9638 | S70: 24966 | T70: 43664 | U70: =IF(INTRO!$E$43="Endémique", IF($K70>1, IF($K70=4, "Inconnu", IF($K70=99, "Surveillance", SUM($R70:$T70))), 0),"Non requis") -> 78268 | V70: 0 | X70: 0 | Y70: 1 | AA70: TAS | AE70: 35382 | AF70: Ayerou
A71: =IF(INTRO!$E$33<>0,INTRO!$E$33, " ") -> NIGER | B71: Zinder | C71: Goure | D71: 506483.7564 | E71: =IF([1]INTRO!$E$48="","",ROUND($D71*[1]INTRO!$E$48,0)) -> 91167 | F71: =IF([1]INTRO!$E$49="","",ROUND($D71*[1]INTRO!$E$49,0)) -> 151945 | G71: =IF([1]INTRO!$E$50="","",ROUND($D71*[1]INTRO!$E$50,0)) -> 253242 | H71: 99 | J71: 1 | K71: 21 | L71: =IF(INTRO!$E$37="Endémique",IF($H71>0,IF($H71=4,"Inconnu",IF($H71=99,"Interrompu",$D71)),0),"Non requis") -> Interrompu | M71: =IF(INTRO!$E$39="Endémique", IF($I71>0, IF($I71=4,"Inconnu",IF($I71=99,"Interrompu",$D71)), 0),"Non requis") -> Non requis | N71: =IF(INTRO!$E$41="Endémique", IF($J71>1, IF($J71=4, "Inconnu", IF($J71=99, "Surveillance", E71)), 0),"Non requis") -> 0 | O71: =IF(INTRO!$E$41="Endémique", IF($J71>1, IF($J71=4, "Inconnu", IF($J71=99, "Surveillance", F71)), 0),"Non requis") -> 0 | P71: =IF(INTRO!$E$41="Endémique", IF($J71>1, IF($J71=4, "Inconnu", IF($J71=99, "Surveillance", ROUND(D71*INTRO!$E$51,0))), 0),"Non requis") -> 0 | Q71: =IF(INTRO!$E$41="Endémique", IF($J71>1, IF($J71=4, "Inconnu", IF($J71=99, "Surveillance", SUM($N71:$P71))), 0),"Non requis") -> 0 | R71: 57375 | S71: 148628 | T71: 259947 | U71: =IF(INTRO!$E$43="Endémique", IF($K71>1, IF($K71=4, "Inconnu", IF($K71=99, "Surveillance", SUM($R71:$T71))), 0),"Non requis") -> 465950 | V71: 0 | X71: 0 | Y71: 0 | AA71: TAS | AE71: 35383 | AF71: Goure
A72: =IF(INTRO!$E$33<>0,INTRO!$E$33, " ") -> NIGER | B72: Zinder | C72: Tesker | D72: 57369.50028 | E72: =IF([1]INTRO!$E$48="","",ROUND($D72*[1]INTRO!$E$48,0)) -> 10327 | F72: =IF([1]INTRO!$E$49="","",ROUND($D72*[1]INTRO!$E$49,0)) -> 17211 | G72: =IF([1]INTRO!$E$50="","",ROUND($D72*[1]INTRO!$E$50,0)) -> 28685 | H72: 99 | J72: 1 | K72: 0 | L72: =IF(INTRO!$E$37="Endémique",IF($H72>0,IF($H72=4,"Inconnu",IF($H72=99,"Interrompu",$D72)),0),"Non requis") -> Interrompu | M72: =IF(INTRO!$E$39="Endémique", IF($I72>0, IF($I72=4,"Inconnu",IF($I72=99,"Interrompu",$D72)), 0),"Non requis") -> Non requis | N72: =IF(INTRO!$E$41="Endémique", IF($J72>1, IF($J72=4, "Inconnu", IF($J72=99, "Surveillance", E72)), 0),"Non requis") -> 0 | O72: =IF(INTRO!$E$41="Endémique", IF($J72>1, IF($J72=4, "Inconnu", IF($J72=99, "Surveillance", F72)), 0),"Non requis") -> 0 | P72: =IF(INTRO!$E$41="Endémique", IF($J72>1, IF($J72=4, "Inconnu", IF($J72=99, "Surveillance", ROUND(D72*INTRO!$E$51,0))), 0),"Non requis") -> 0 | Q72: =IF(INTRO!$E$41="Endémique", IF($J72>1, IF($J72=4, "Inconnu", IF($J72=99, "Surveillance", SUM($N72:$P72))), 0),"Non requis") -> 0 | R72: 0 | S72: 0 | T72: 0 | U72: =IF(INTRO!$E$43="Endémique", IF($K72>1, IF($K72=4, "Inconnu", IF($K72=99, "Surveillance", SUM($R72:$T72))), 0),"Non requis") -> 0 | V72: 0 | X72: 0 | Y72: 0 | AA72: TAS | AE72: 35384 | AF72: Tesker
A73: =IF(INTRO!$E$33<>0,INTRO!$E$33, " ") -> NIGER | B73: Zinder | C73: Magaria | D73: 892621.6525 | E73: =IF([1]INTRO!$E$48="","",ROUND($D73*[1]INTRO!$E$48,0)) -> 160672 | F73: =IF([1]INTRO!$E$49="","",ROUND($D73*[1]INTRO!$E$49,0)) -> 267786 | G73: =IF([1]INTRO!$E$50="","",ROUND($D73*[1]INTRO!$E$50,0)) -> 446311 | H73: 99 | J73: 1 | K73: 2 | L73: =IF(INTRO!$E$37="Endémique",IF($H73>0,IF($H73=4,"Inconnu",IF($H73=99,"Interrompu",$D73)),0),"Non requis") -> Interrompu | M73: =IF(INTRO!$E$39="Endémique", IF($I73>0, IF($I73=4,"Inconnu",IF($I73=99,"Interrompu",$D73)), 0),"Non requis") -> Non requis | N73: =IF(INTRO!$E$41="Endémique", IF($J73>1, IF($J73=4, "Inconnu", IF($J73=99, "Surveillance", E73)), 0),"Non requis") -> 0 | O73: =IF(INTRO!$E$41="Endémique", IF($J73>1, IF($J73=4, "Inconnu", IF($J73=99, "Surveillance", F73)), 0),"Non requis") -> 0 | P73: =IF(INTRO!$E$41="Endémique", IF($J73>1, IF($J73=4, "Inconnu", IF($J73=99, "Surveillance", ROUND(D73*INTRO!$E$51,0))), 0),"Non requis") -> 0 | Q73: =IF(INTRO!$E$41="Endémique", IF($J73>1, IF($J73=4, "Inconnu", IF($J73=99, "Surveillance", SUM($N73:$P73))), 0),"Non requis") -> 0 | R73: 102381 | S73: 265211 | T73: 463844 | U73: =IF(INTRO!$E$43="Endémique", IF($K73>1, IF($K73=4, "Inconnu", IF($K73=99, "Surveillance", SUM($R73:$T73))), 0),"Non requis") -> 831436 | V73: 0 | X73: 0 | Y73: 0 | AA73: TAS | AE73: 35385 | AF73: Magaria
A74: =IF(INTRO!$E$33<>0,INTRO!$E$33, " ") -> NIGER | B74: Zinder | C74: Dungass | D74: 546729.8545 | E74: =IF([1]INTRO!$E$48="","",ROUND($D74*[1]INTRO!$E$48,0)) -> 98411 | F74: =IF([1]INTRO!$E$49="","",ROUND($D74*[1]INTRO!$E$49,0)) -> 164019 | G74: =IF([1]INTRO!$E$50="","",ROUND($D74*[1]INTRO!$E$50,0)) -> 273365 | H74: 99 | J74: 1 | K74: 21 | L74: =IF(INTRO!$E$37="Endémique",IF($H74>0,IF($H74=4,"Inconnu",IF($H74=99,"Interrompu",$D74)),0),"Non requis") -> Interrompu | M74: =IF(INTRO!$E$39="Endémique", IF($I74>0, IF($I74=4,"Inconnu",IF($I74=99,"Interrompu",$D74)), 0),"Non requis") -> Non requis | N74: =IF(INTRO!$E$41="Endémique", IF($J74>1, IF($J74=4, "Inconnu", IF($J74=99, "Surveillance", E74)), 0),"Non requis") -> 0 | O74: =IF(INTRO!$E$41="Endémique", IF($J74>1, IF($J74=4, "Inconnu", IF($J74=99, "Surveillance", F74)), 0),"Non requis") -> 0 | P74: =IF(INTRO!$E$41="Endémique", IF($J74>1, IF($J74=4, "Inconnu", IF($J74=99, "Surveillance", ROUND(D74*INTRO!$E$51,0))), 0),"Non requis") -> 0 | Q74: =IF(INTRO!$E$41="Endémique", IF($J74>1, IF($J74=4, "Inconnu", IF($J74=99, "Surveillance", SUM($N74:$P74))), 0),"Non requis") -> 0 | R74: 62708 | S74: 162440 | T74: 284099 | U74: =IF(INTRO!$E$43="Endémique", IF($K74>1, IF($K74=4, "Inconnu", IF($K74=99, "Surveillance", SUM($R74:$T74))), 0),"Non requis") -> 509247 | V74: 0 | X74: 0 | Y74: 0 | AA74: TAS | AE74: 35386 | AF74: Dungass
A75: =IF(INTRO!$E$33<>0,INTRO!$E$33, " ") -> NIGER | B75: Zinder | C75: Matamaye | D75: 616740.6682 | E75: =IF([1]INTRO!$E$48="","",ROUND($D75*[1]INTRO!$E$48,0)) -> 111013 | F75: =IF([1]INTRO!$E$49="","",ROUND($D75*[1]INTRO!$E$49,0)) -> 185022 | G75: =IF([1]INTRO!$E$50="","",ROUND($D75*[1]INTRO!$E$50,0)) -> 308370 | H75: 99 | J75: 1 | K75: 21 | L75: =IF(INTRO!$E$37="Endémique",IF($H75>0,IF($H75=4,"Inconnu",IF($H75=99,"Interrompu",$D75)),0),"Non requis") -> Interrompu | M75: =IF(INTRO!$E$39="Endémique", IF($I75>0, IF($I75=4,"Inconnu",IF($I75=99,"Interrompu",$D75)), 0),"Non requis") -> Non requis | N75: =IF(INTRO!$E$41="Endémique", IF($J75>1, IF($J75=4, "Inconnu", IF($J75=99, "Surveillance", E75)), 0),"Non requis") -> 0 | O75: =IF(INTRO!$E$41="Endémique", IF($J75>1, IF($J75=4, "Inconnu", IF($J75=99, "Surveillance", F75)), 0),"Non requis") -> 0 | P75: =IF(INTRO!$E$41="Endémique", IF($J75>1, IF($J75=4, "Inconnu", IF($J75=99, "Surveillance", ROUND(D75*INTRO!$E$51,0))), 0),"Non requis") -> 0 | Q75: =IF(INTRO!$E$41="Endémique", IF($J75>1, IF($J75=4, "Inconnu", IF($J75=99, "Surveillance", SUM($N75:$P75))), 0),"Non requis") -> 0 | R75: 69869 | S75: 180986 | T75: 316530 | U75: =IF(INTRO!$E$43="Endémique", IF($K75>1, IF($K75=4, "Inconnu", IF($K75=99, "Surveillance", SUM($R75:$T75))), 0),"Non requis") -> 567385 | V75: 0 | X75: 0 | Y75: 0 | AA75: TAS | AE75: 35333 | AF75: Matamaye
A76: =IF(INTRO!$E$33<>0,INTRO!$E$33, " ") -> NIGER | B76: Zinder | C76: Miriah | D76: 784093.6126 | E76: =IF([1]INTRO!$E$48="","",ROUND($D76*[1]INTRO!$E$48,0)) -> 141137 | F76: =IF([1]INTRO!$E$49="","",ROUND($D76*[1]INTRO!$E$49,0)) -> 235228 | G76: =IF([1]INTRO!$E$50="","",ROUND($D76*[1]INTRO!$E$50,0)) -> 392047 | H76: 99 | J76: 99 | K76: 21 | L76: =IF(INTRO!$E$37="Endémique",IF($H76>0,IF($H76=4,"Inconnu",IF($H76=99,"Interrompu",$D76)),0),"Non requis") -> Interrompu | M76: =IF(INTRO!$E$39="Endémique", IF($I76>0, IF($I76=4,"Inconnu",IF($I76=99,"Interrompu",$D76)), 0),"Non requis") -> Non requis | N76: =IF(INTRO!$E$41="Endémique", IF($J76>1, IF($J76=4, "Inconnu", IF($J76=99, "Surveillance", E76)), 0),"Non requis") -> Surveillance | O76: =IF(INTRO!$E$41="Endémique", IF($J76>1, IF($J76=4, "Inconnu", IF($J76=99, "Surveillance", F76)), 0),"Non requis") -> Surveillance | P76: =IF(INTRO!$E$41="Endémique", IF($J76>1, IF($J76=4, "Inconnu", IF($J76=99, "Surveillance", ROUND(D76*INTRO!$E$51,0))), 0),"Non requis") -> Surveillance | Q76: =IF(INTRO!$E$41="Endémique", IF($J76>1, IF($J76=4, "Inconnu", IF($J76=99, "Surveillance", SUM($N76:$P76))), 0),"Non requis") -> Surveillance | R76: 89164 | S76: 230980 | T76: 403973 | U76: =IF(INTRO!$E$43="Endémique", IF($K76>1, IF($K76=4, "Inconnu", IF($K76=99, "Surveillance", SUM($R76:$T76))), 0),"Non requis") -> 724117 | V76: 0 | X76: 0 | Y76: 1 | AA76: TAS | AE76: 35387 | AF76: Mirriah
A77: =IF(INTRO!$E$33<>0,INTRO!$E$33, " ") -> NIGER | B77: Zinder | C77: Damagaram Takaya | D77: 372609.744 | E77: =IF([1]INTRO!$E$48="","",ROUND($D77*[1]INTRO!$E$48,0)) -> 67070 | F77: =IF([1]INTRO!$E$49="","",ROUND($D77*[1]INTRO!$E$49,0)) -> 111783 | G77: =IF([1]INTRO!$E$50="","",ROUND($D77*[1]INTRO!$E$50,0)) -> 186305 | H77: 99 | J77: 99 | K77: 31 | L77: =IF(INTRO!$E$37="Endémique",IF($H77>0,IF($H77=4,"Inconnu",IF($H77=99,"Interrompu",$D77)),0),"Non requis") -> Interrompu | M77: =IF(INTRO!$E$39="Endémique", IF($I77>0, IF($I77=4,"Inconnu",IF($I77=99,"Interrompu",$D77)), 0),"Non requis") -> Non requis | N77: =IF(INTRO!$E$41="Endémique", IF($J77>1, IF($J77=4, "Inconnu", IF($J77=99, "Surveillance", E77)), 0),"Non requis") -> Surveillance | O77: =IF(INTRO!$E$41="Endémique", IF($J77>1, IF($J77=4, "Inconnu", IF($J77=99, "Surveillance", F77)), 0),"Non requis") -> Surveillance | P77: =IF(INTRO!$E$41="Endémique", IF($J77>1, IF($J77=4, "Inconnu", IF($J77=99, "Surveillance", ROUND(D77*INTRO!$E$51,0))), 0),"Non requis") -> Surveillance | Q77: =IF(INTRO!$E$41="Endémique", IF($J77>1, IF($J77=4, "Inconnu", IF($J77=99, "Surveillance", SUM($N77:$P77))), 0),"Non requis") -> Surveillance | R77: 42373 | S77: 109766 | T77: 191970 | U77: =IF(INTRO!$E$43="Endémique", IF($K77>1, IF($K77=4, "Inconnu", IF($K77=99, "Surveillance", SUM($R77:$T77))), 0),"Non requis") -> 344109 | V77: 0 | X77: 0 | Y77: 1 | AA77: TAS | AE77: 35388 | AF77: Damagaram Takaya
A78: =IF(INTRO!$E$33<>0,INTRO!$E$33, " ") -> NIGER | B78: Zinder | C78: Takeita | D78: 381337.5342 | E78: =IF([1]INTRO!$E$48="","",ROUND($D78*[1]INTRO!$E$48,0)) -> 68641 | F78: =IF([1]INTRO!$E$49="","",ROUND($D78*[1]INTRO!$E$49,0)) -> 114401 | G78: =IF([1]INTRO!$E$50="","",ROUND($D78*[1]INTRO!$E$50,0)) -> 190669 | H78: 99 | J78: 99 | K78: 31 | L78: =IF(INTRO!$E$37="Endémique",IF($H78>0,IF($H78=4,"Inconnu",IF($H78=99,"Interrompu",$D78)),0),"Non requis") -> Interrompu | M78: =IF(INTRO!$E$39="Endémique", IF($I78>0, IF($I78=4,"Inconnu",IF($I78=99,"Interrompu",$D78)), 0),"Non requis") -> Non requis | N78: =IF(INTRO!$E$41="Endémique", IF($J78>1, IF($J78=4, "Inconnu", IF($J78=99, "Surveillance", E78)), 0),"Non requis") -> Surveillance | O78: =IF(INTRO!$E$41="Endémique", IF($J78>1, IF($J78=4, "Inconnu", IF($J78=99, "Surveillance", F78)), 0),"Non requis") -> Surveillance | P78: =IF(INTRO!$E$41="Endémique", IF($J78>1, IF($J78=4, "Inconnu", IF($J78=99, "Surveillance", ROUND(D78*INTRO!$E$51,0))), 0),"Non requis") -> Surveillance | Q78: =IF(INTRO!$E$41="Endémique", IF($J78>1, IF($J78=4, "Inconnu", IF($J78=99, "Surveillance", SUM($N78:$P78))), 0),"Non requis") -> Surveillance | R78: 43365 | S78: 112333 | T78: 196464 | U78: =IF(INTRO!$E$43="Endémique", IF($K78>1, IF($K78=4, "Inconnu", IF($K78=99, "Surveillance", SUM($R78:$T78))), 0),"Non requis") -> 352162 | V78: 0 | X78: 0 | Y78: 1 | AA78: TAS | AE78: 35389 | AF78: Takeita
A79: =IF(INTRO!$E$33<>0,INTRO!$E$33, " ") -> NIGER | B79: Zinder | C79: Tanout | D79: 663043.2254 | E79: =IF([1]INTRO!$E$48="","",ROUND($D79*[1]INTRO!$E$48,0)) -> 119348 | F79: =IF([1]INTRO!$E$49="","",ROUND($D79*[1]INTRO!$E$49,0)) -> 198913 | G79: =IF([1]INTRO!$E$50="","",ROUND($D79*[1]INTRO!$E$50,0)) -> 331522 | H79: 99 | J79: 1 | K79: 2 | L79: =IF(INTRO!$E$37="Endémique",IF($H79>0,IF($H79=4,"Inconnu",IF($H79=99,"Interrompu",$D79)),0),"Non requis") -> Interrompu | M79: =IF(INTRO!$E$39="Endémique", IF($I79>0, IF($I79=4,"Inconnu",IF($I79=99,"Interrompu",$D79)), 0),"Non requis") -> Non requis | N79: =IF(INTRO!$E$41="Endémique", IF($J79>1, IF($J79=4, "Inconnu", IF($J79=99, "Surveillance", E79)), 0),"Non requis") -> 0 | O79: =IF(INTRO!$E$41="Endémique", IF($J79>1, IF($J79=4, "Inconnu", IF($J79=99, "Surveillance", F79)), 0),"Non requis") -> 0 | P79: =IF(INTRO!$E$41="Endémique", IF($J79>1, IF($J79=4, "Inconnu", IF($J79=99, "Surveillance", ROUND(D79*INTRO!$E$51,0))), 0),"Non requis") -> 0 | Q79: =IF(INTRO!$E$41="Endémique", IF($J79>1, IF($J79=4, "Inconnu", IF($J79=99, "Surveillance", SUM($N79:$P79))), 0),"Non requis") -> 0 | R79: 74968 | S79: 194201 | T79: 339644 | U79: =IF(INTRO!$E$43="Endémique", IF($K79>1, IF($K79=4, "Inconnu", IF($K79=99, "Surveillance", SUM($R79:$T79))), 0),"Non requis") -> 608813 | V79: 0 | X79: 0 | Y79: 0 | AA79: TAS | AE79: 35390 | AF79: Tanout
A80: =IF(INTRO!$E$33<>0,INTRO!$E$33, " ") -> NIGER | B80: Zinder | C80: Belbéji | D80: 149019.7954 | E80: =IF([1]INTRO!$E$48="","",ROUND($D80*[1]INTRO!$E$48,0)) -> 26824 | F80: =IF([1]INTRO!$E$49="","",ROUND($D80*[1]INTRO!$E$49,0)) -> 44706 | G80: =IF([1]INTRO!$E$50="","",ROUND($D80*[1]INTRO!$E$50,0)) -> 74510 | H80: 99 | J80: 1 | K80: 2 | L80: =IF(INTRO!$E$37="Endémique",IF($H80>0,IF($H80=4,"Inconnu",IF($H80=99,"Interrompu",$D80)),0),"Non requis") -> Interrompu | M80: =IF(INTRO!$E$39="Endémique", IF($I80>0, IF($I80=4,"Inconnu",IF($I80=99,"Interrompu",$D80)), 0),"Non requis") -> Non requis | N80: =IF(INTRO!$E$41="Endémique", IF($J80>1, IF($J80=4, "Inconnu", IF($J80=99, "Surveillance", E80)), 0),"Non requis") -> 0 | O80: =IF(INTRO!$E$41="Endémique", IF($J80>1, IF($J80=4, "Inconnu", IF($J80=99, "Surveillance", F80)), 0),"Non requis") -> 0 | P80: =IF(INTRO!$E$41="Endémique", IF($J80>1, IF($J80=4, "Inconnu", IF($J80=99, "Surveillance", ROUND(D80*INTRO!$E$51,0))), 0),"Non requis") -> 0 | Q80: =IF(INTRO!$E$41="Endémique", IF($J80>1, IF($J80=4, "Inconnu", IF($J80=99, "Surveillance", SUM($N80:$P80))), 0),"Non requis") -> 0 | R80: 16849 | S80: 43646 | T80: 76336 | U80: =IF(INTRO!$E$43="Endémique", IF($K80>1, IF($K80=4, "Inconnu", IF($K80=99, "Surveillance", SUM($R80:$T80))), 0),"Non requis") -> 136831 | V80: 0 | X80: 0 | Y80: 0 | AA80: TAS | AE80: 35391 | AF80: Belbéji
A81: =IF(INTRO!$E$33<>0,INTRO!$E$33, " ") -> NIGER | B81: Zinder | C81: Zinder | D81: 498939.4478 | E81: =IF([1]INTRO!$E$48="","",ROUND($D81*[1]INTRO!$E$48,0)) -> 89809 | F81: =IF([1]INTRO!$E$49="","",ROUND($D81*[1]INTRO!$E$49,0)) -> 149682 | G81: =IF([1]INTRO!$E$50="","",ROUND($D81*[1]INTRO!$E$50,0)) -> 249470 | H81: 99 | J81: 22 | K81: 0 | L81: =IF(INTRO!$E$37="Endémique",IF($H81>0,IF($H81=4,"Inconnu",IF($H81=99,"Interrompu",$D81)),0),"Non requis") -> Interrompu | M81: =IF(INTRO!$E$39="Endémique", IF($I81>0, IF($I81=4,"Inconnu",IF($I81=99,"Interrompu",$D81)), 0),"Non requis") -> Non requis | N81: =IF(INTRO!$E$41="Endémique", IF($J81>1, IF($J81=4, "Inconnu", IF($J81=99, "Surveillance", E81)), 0),"Non requis") -> 89809 | O81: =IF(INTRO!$E$41="Endémique", IF($J81>1, IF($J81=4, "Inconnu", IF($J81=99, "Surveillance", F81)), 0),"Non requis") -> 149682 | P81: =IF(INTRO!$E$41="Endémique", IF($J81>1, IF($J81=4, "Inconnu", IF($J81=99, "Surveillance", ROUND(D81*INTRO!$E$51,0))), 0),"Non requis") -> 104378 | Q81: =IF(INTRO!$E$41="Endémique", IF($J81>1, IF($J81=4, "Inconnu", IF($J81=99, "Surveillance", SUM($N81:$P81))), 0),"Non requis") -> 343869 | R81: 53628 | S81: 138916 | T81: 242955 | U81: =IF(INTRO!$E$43="Endémique", IF($K81>1, IF($K81=4, "Inconnu", IF($K81=99, "Surveillance", SUM($R81:$T81))), 0),"Non requis") -> 0 | V81: 0 | X81: 0 | Y81: 0 | AA81: TAS | AE81: 35336 | AF81: Zinder

Sheet DEC (hidden)
A1: Diethylcarbamazine (DEC)
A2: Structure administrative, population ciblée par groupe d'âge, plan de traitement et information sur les comprimés
A4: TOTAL | D4: =SUBTOTAL(9,D$10:D$1010) -> 0 | E4: 0 | F4: 0 | G4: 0 | I4: =SUBTOTAL(9,I$10:I$1010) -> 0 | J4: 0 | K4: 0 | L4: 0
A6: Structure administrative du pays | D6: Population nécessitant un traitement avec DEC | H6: Plan de traitement | I6: Population cible | J6: Diethylcarbamazine (DEC)
A7: Pays | B7: Région/Département | C7: District | D7: EAPréS | E7: EAS | F7: Adultes | G7: Total | H7: FL | I7: FL | J7: Total requis | K7: Reste en stock | L7: Comprimés devant être fournis
A10: =IF(INTRO!$E$39<>"Non endémique", " ", IF(INTRO!$E$37="Non endémique"," ", IF(COUNTRY_INFO!A10=0," ",COUNTRY_INFO!A10))) ->  | B10: =IF(INTRO!$E$39<>"Non endémique", " ", IF(INTRO!$E$37="Non endémique"," ", IF(COUNTRY_INFO!B10=0," ",COUNTRY_INFO!B10))) ->  | C10: =IF(INTRO!$E$39<>"Non endémique", " ", IF(INTRO!$E$37="Non endémique"," ", IF(COUNTRY_INFO!C10=0," ",COUNTRY_INFO!C10))) ->  | D10: =IF(INTRO!$E$39<>"Non endémique", 0, IF(INTRO!$E$37="Non endémique",0,IF(COUNTRY_INFO!$H10=1,COUNTRY_INFO!E10,0))) -> 0 | E10: =IF(INTRO!$E$39<>"Non endémique", 0, IF(INTRO!$E$37="Non endémique",0,IF(COUNTRY_INFO!$H10=1,COUNTRY_INFO!F10,0))) -> 0 | F10: =IF(INTRO!$E$39<>"Non endémique", 0, IF(INTRO!$E$37="Non endémique",0,IF(COUNTRY_INFO!$H10=1,COUNTRY_INFO!G10,0))) -> 0 | G10: =SUM(D10:F10) -> 0 | H10: =IF(INTRO!$E$39="Non endémique",IF(INTRO!$E$37="Non endémique","Non requis",COUNTRY_INFO!V10),"Traiter avec IVM") -> Traiter avec IVM | I10: =IF(H10=1,G10,0) -> 0 | J10: =IF(I10>0,I10*2.5,0) -> 0 | L10: =IF($J10>$K10,$J10-$K10,0) -> 0
A11: =IF(INTRO!$E$39<>"Non endémique", " ", IF(INTRO!$E$37="Non endémique"," ", IF(COUNTRY_INFO!A11=0," ",COUNTRY_INFO!A11))) ->  | B11: =IF(INTRO!$E$39<>"Non endémique", " ", IF(INTRO!$E$37="Non endémique"," ", IF(COUNTRY_INFO!B11=0," ",COUNTRY_INFO!B11))) ->  | C11: =IF(INTRO!$E$39<>"Non endémique", " ", IF(INTRO!$E$37="Non endémique"," ", IF(COUNTRY_INFO!C11=0," ",COUNTRY_INFO!C11))) ->  | D11: =IF(INTRO!$E$39<>"Non endémique", 0, IF(INTRO!$E$37="Non endémique",0,IF(COUNTRY_INFO!$H11=1,COUNTRY_INFO!E11,0))) -> 0 | E11: =IF(INTRO!$E$39<>"Non endémique", 0, IF(INTRO!$E$37="Non endémique",0,IF(COUNTRY_INFO!$H11=1,COUNTRY_INFO!F11,0))) -> 0 | F11: =IF(INTRO!$E$39<>"Non endémique", 0, IF(INTRO!$E$37="Non endémique",0,IF(COUNTRY_INFO!$H11=1,COUNTRY_INFO!G11,0))) -> 0 | G11: =SUM(D11:F11) -> 0 | H11: =IF(INTRO!$E$39="Non endémique",IF(INTRO!$E$37="Non endémique","Non requis",COUNTRY_INFO!V11),"Traiter avec IVM") -> Traiter avec IVM | I11: =IF(H11=1,G11,0) -> 0 | J11: =IF(I11>0,I11*2.5,0) -> 0 | L11: 0
A12: =IF(INTRO!$E$39<>"Non endémique", " ", IF(INTRO!$E$37="Non endémique"," ", IF(COUNTRY_INFO!A12=0," ",COUNTRY_INFO!A12))) ->  | B12: =IF(INTRO!$E$39<>"Non endémique", " ", IF(INTRO!$E$37="Non endémique"," ", IF(COUNTRY_INFO!B12=0," ",COUNTRY_INFO!B12))) ->  | C12: =IF(INTRO!$E$39<>"Non endémique", " ", IF(INTRO!$E$37="Non endémique"," ", IF(COUNTRY_INFO!C12=0," ",COUNTRY_INFO!C12))) ->  | D12: =IF(INTRO!$E$39<>"Non endémique", 0, IF(INTRO!$E$37="Non endémique",0,IF(COUNTRY_INFO!$H12=1,COUNTRY_INFO!E12,0))) -> 0 | E12: =IF(INTRO!$E$39<>"Non endémique", 0, IF(INTRO!$E$37="Non endémique",0,IF(COUNTRY_INFO!$H12=1,COUNTRY_INFO!F12,0))) -> 0 | F12: =IF(INTRO!$E$39<>"Non endémique", 0, IF(INTRO!$E$37="Non endémique",0,IF(COUNTRY_INFO!$H12=1,COUNTRY_INFO!G12,0))) -> 0 | G12: 0 | H12: =IF(INTRO!$E$39="Non endémique",IF(INTRO!$E$37="Non endémique","Non requis",COUNTRY_INFO!V12),"Traiter avec IVM") -> Traiter avec IVM | I12: 0 | J12: 0 | L12: 0
A13: =IF(INTRO!$E$39<>"Non endémique", " ", IF(INTRO!$E$37="Non endémique"," ", IF(COUNTRY_INFO!A13=0," ",COUNTRY_INFO!A13))) ->  | B13: =IF(INTRO!$E$39<>"Non endémique", " ", IF(INTRO!$E$37="Non endémique"," ", IF(COUNTRY_INFO!B13=0," ",COUNTRY_INFO!B13))) ->  | C13: =IF(INTRO!$E$39<>"Non endémique", " ", IF(INTRO!$E$37="Non endémique"," ", IF(COUNTRY_INFO!C13=0," ",COUNTRY_INFO!C13))) ->  | D13: =IF(INTRO!$E$39<>"Non endémique", 0, IF(INTRO!$E$37="Non endémique",0,IF(COUNTRY_INFO!$H13=1,COUNTRY_INFO!E13,0))) -> 0 | E13: =IF(INTRO!$E$39<>"Non endémique", 0, IF(INTRO!$E$37="Non endémique",0,IF(COUNTRY_INFO!$H13=1,COUNTRY_INFO!F13,0))) -> 0 | F13: =IF(INTRO!$E$39<>"Non endémique", 0, IF(INTRO!$E$37="Non endémique",0,IF(COUNTRY_INFO!$H13=1,COUNTRY_INFO!G13,0))) -> 0 | G13: 0 | H13: =IF(INTRO!$E$39="Non endémique",IF(INTRO!$E$37="Non endémique","Non requis",COUNTRY_INFO!V13),"Traiter avec IVM") -> Traiter avec IVM | I13: 0 | J13: 0 | L13: 0
A14: =IF(INTRO!$E$39<>"Non endémique", " ", IF(INTRO!$E$37="Non endémique"," ", IF(COUNTRY_INFO!A14=0," ",COUNTRY_INFO!A14))) ->  | B14: =IF(INTRO!$E$39<>"Non endémique", " ", IF(INTRO!$E$37="Non endémique"," ", IF(COUNTRY_INFO!B14=0," ",COUNTRY_INFO!B14))) ->  | C14: =IF(INTRO!$E$39<>"Non endémique", " ", IF(INTRO!$E$37="Non endémique"," ", IF(COUNTRY_INFO!C14=0," ",COUNTRY_INFO!C14))) ->  | D14: =IF(INTRO!$E$39<>"Non endémique", 0, IF(INTRO!$E$37="Non endémique",0,IF(COUNTRY_INFO!$H14=1,COUNTRY_INFO!E14,0))) -> 0 | E14: =IF(INTRO!$E$39<>"Non endémique", 0, IF(INTRO!$E$37="Non endémique",0,IF(COUNTRY_INFO!$H14=1,COUNTRY_INFO!F14,0))) -> 0 | F14: =IF(INTRO!$E$39<>"Non endémique", 0, IF(INTRO!$E$37="Non endémique",0,IF(COUNTRY_INFO!$H14=1,COUNTRY_INFO!G14,0))) -> 0 | G14: 0 | H14: =IF(INTRO!$E$39="Non endémique",IF(INTRO!$E$37="Non endémique","Non requis",COUNTRY_INFO!V14),"Traiter avec IVM") -> Traiter avec IVM | I14: 0 | J14: 0 | L14: 0
A15: =IF(INTRO!$E$39<>"Non endémique", " ", IF(INTRO!$E$37="Non endémique"," ", IF(COUNTRY_INFO!A15=0," ",COUNTRY_INFO!A15))) ->  | B15: =IF(INTRO!$E$39<>"Non endémique", " ", IF(INTRO!$E$37="Non endémique"," ", IF(COUNTRY_INFO!B15=0," ",COUNTRY_INFO!B15))) ->  | C15: =IF(INTRO!$E$39<>"Non endémique", " ", IF(INTRO!$E$37="Non endémique"," ", IF(COUNTRY_INFO!C15=0," ",COUNTRY_INFO!C15))) ->  | D15: =IF(INTRO!$E$39<>"Non endémique", 0, IF(INTRO!$E$37="Non endémique",0,IF(COUNTRY_INFO!$H15=1,COUNTRY_INFO!E15,0))) -> 0 | E15: =IF(INTRO!$E$39<>"Non endémique", 0, IF(INTRO!$E$37="Non endémique",0,IF(COUNTRY_INFO!$H15=1,COUNTRY_INFO!F15,0))) -> 0 | F15: =IF(INTRO!$E$39<>"Non endémique", 0, IF(INTRO!$E$37="Non endémique",0,IF(COUNTRY_INFO!$H15=1,COUNTRY_INFO!G15,0))) -> 0 | G15: 0 | H15: =IF(INTRO!$E$39="Non endémique",IF(INTRO!$E$37="Non endémique","Non requis",COUNTRY_INFO!V15),"Traiter avec IVM") -> Traiter avec IVM | I15: 0 | J15: 0 | L15: 0
A16: =IF(INTRO!$E$39<>"Non endémique", " ", IF(INTRO!$E$37="Non endémique"," ", IF(COUNTRY_INFO!A16=0," ",COUNTRY_INFO!A16))) ->  | B16: =IF(INTRO!$E$39<>"Non endémique", " ", IF(INTRO!$E$37="Non endémique"," ", IF(COUNTRY_INFO!B16=0," ",COUNTRY_INFO!B16))) ->  | C16: =IF(INTRO!$E$39<>"Non endémique", " ", IF(INTRO!$E$37="Non endémique"," ", IF(COUNTRY_INFO!C16=0," ",COUNTRY_INFO!C16))) ->  | D16: =IF(INTRO!$E$39<>"Non endémique", 0, IF(INTRO!$E$37="Non endémique",0,IF(COUNTRY_INFO!$H16=1,COUNTRY_INFO!E16,0))) -> 0 | E16: =IF(INTRO!$E$39<>"Non endémique", 0, IF(INTRO!$E$37="Non endémique",0,IF(COUNTRY_INFO!$H16=1,COUNTRY_INFO!F16,0))) -> 0 | F16: =IF(INTRO!$E$39<>"Non endémique", 0, IF(INTRO!$E$37="Non endémique",0,IF(COUNTRY_INFO!$H16=1,COUNTRY_INFO!G16,0))) -> 0 | G16: 0 | H16: =IF(INTRO!$E$39="Non endémique",IF(INTRO!$E$37="Non endémique","Non requis",COUNTRY_INFO!V16),"Traiter avec IVM") -> Traiter avec IVM | I16: 0 | J16: 0 | L16: 0
A17: =IF(INTRO!$E$39<>"Non endémique", " ", IF(INTRO!$E$37="Non endémique"," ", IF(COUNTRY_INFO!A17=0," ",COUNTRY_INFO!A17))) ->  | B17: =IF(INTRO!$E$39<>"Non endémique", " ", IF(INTRO!$E$37="Non endémique"," ", IF(COUNTRY_INFO!B17=0," ",COUNTRY_INFO!B17))) ->  | C17: =IF(INTRO!$E$39<>"Non endémique", " ", IF(INTRO!$E$37="Non endémique"," ", IF(COUNTRY_INFO!C17=0," ",COUNTRY_INFO!C17))) ->  | D17: =IF(INTRO!$E$39<>"Non endémique", 0, IF(INTRO!$E$37="Non endémique",0,IF(COUNTRY_INFO!$H17=1,COUNTRY_INFO!E17,0))) -> 0 | E17: =IF(INTRO!$E$39<>"Non endémique", 0, IF(INTRO!$E$37="Non endémique",0,IF(COUNTRY_INFO!$H17=1,COUNTRY_INFO!F17,0))) -> 0 | F17: =IF(INTRO!$E$39<>"Non endémique", 0, IF(INTRO!$E$37="Non endémique",0,IF(COUNTRY_INFO!$H17=1,COUNTRY_INFO!G17,0))) -> 0 | G17: 0 | H17: =IF(INTRO!$E$39="Non endémique",IF(INTRO!$E$37="Non endémique","Non requis",COUNTRY_INFO!V17),"Traiter avec IVM") -> Traiter avec IVM | I17: 0 | J17: 0 | L17: 0
A18: =IF(INTRO!$E$39<>"Non endémique", " ", IF(INTRO!$E$37="Non endémique"," ", IF(COUNTRY_INFO!A18=0," ",COUNTRY_INFO!A18))) ->  | B18: =IF(INTRO!$E$39<>"Non endémique", " ", IF(INTRO!$E$37="Non endémique"," ", IF(COUNTRY_INFO!B18=0," ",COUNTRY_INFO!B18))) ->  | C18: =IF(INTRO!$E$39<>"Non endémique", " ", IF(INTRO!$E$37="Non endémique"," ", IF(COUNTRY_INFO!C18=0," ",COUNTRY_INFO!C18))) ->  | D18: =IF(INTRO!$E$39<>"Non endémique", 0, IF(INTRO!$E$37="Non endémique",0,IF(COUNTRY_INFO!$H18=1,COUNTRY_INFO!E18,0))) -> 0 | E18: =IF(INTRO!$E$39<>"Non endémique", 0, IF(INTRO!$E$37="Non endémique",0,IF(COUNTRY_INFO!$H18=1,COUNTRY_INFO!F18,0))) -> 0 | F18: =IF(INTRO!$E$39<>"Non endémique", 0, IF(INTRO!$E$37="Non endémique",0,IF(COUNTRY_INFO!$H18=1,COUNTRY_INFO!G18,0))) -> 0 | G18: 0 | H18: =IF(INTRO!$E$39="Non endémique",IF(INTRO!$E$37="Non endémique","Non requis",COUNTRY_INFO!V18),"Traiter avec IVM") -> Traiter avec IVM | I18: 0 | J18: 0 | L18: 0
A19: =IF(INTRO!$E$39<>"Non endémique", " ", IF(INTRO!$E$37="Non endémique"," ", IF(COUNTRY_INFO!A19=0," ",COUNTRY_INFO!A19))) ->  | B19: =IF(INTRO!$E$39<>"Non endémique", " ", IF(INTRO!$E$37="Non endémique"," ", IF(COUNTRY_INFO!B19=0," ",COUNTRY_INFO!B19))) ->  | C19: =IF(INTRO!$E$39<>"Non endémique", " ", IF(INTRO!$E$37="Non endémique"," ", IF(COUNTRY_INFO!C19=0," ",COUNTRY_INFO!C19))) ->  | D19: =IF(INTRO!$E$39<>"Non endémique", 0, IF(INTRO!$E$37="Non endémique",0,IF(COUNTRY_INFO!$H19=1,COUNTRY_INFO!E19,0))) -> 0 | E19: =IF(INTRO!$E$39<>"Non endémique", 0, IF(INTRO!$E$37="Non endémique",0,IF(COUNTRY_INFO!$H19=1,COUNTRY_INFO!F19,0))) -> 0 | F19: =IF(INTRO!$E$39<>"Non endémique", 0, IF(INTRO!$E$37="Non endémique",0,IF(COUNTRY_INFO!$H19=1,COUNTRY_INFO!G19,0))) -> 0 | G19: 0 | H19: =IF(INTRO!$E$39="Non endémique",IF(INTRO!$E$37="Non endémique","Non requis",COUNTRY_INFO!V19),"Traiter avec IVM") -> Traiter avec IVM | I19: 0 | J19: 0 | L19: 0
A20: =IF(INTRO!$E$39<>"Non endémique", " ", IF(INTRO!$E$37="Non endémique"," ", IF(COUNTRY_INFO!A20=0," ",COUNTRY_INFO!A20))) ->  | B20: =IF(INTRO!$E$39<>"Non endémique", " ", IF(INTRO!$E$37="Non endémique"," ", IF(COUNTRY_INFO!B20=0," ",COUNTRY_INFO!B20))) ->  | C20: =IF(INTRO!$E$39<>"Non endémique", " ", IF(INTRO!$E$37="Non endémique"," ", IF(COUNTRY_INFO!C20=0," ",COUNTRY_INFO!C20))) ->  | D20: =IF(INTRO!$E$39<>"Non endémique", 0, IF(INTRO!$E$37="Non endémique",0,IF(COUNTRY_INFO!$H20=1,COUNTRY_INFO!E20,0))) -> 0 | E20: =IF(INTRO!$E$39<>"Non endémique", 0, IF(INTRO!$E$37="Non endémique",0,IF(COUNTRY_INFO!$H20=1,COUNTRY_INFO!F20,0))) -> 0 | F20: =IF(INTRO!$E$39<>"Non endémique", 0, IF(INTRO!$E$37="Non endémique",0,IF(COUNTRY_INFO!$H20=1,COUNTRY_INFO!G20,0))) -> 0 | G20: 0 | H20: =IF(INTRO!$E$39="Non endémique",IF(INTRO!$E$37="Non endémique","Non requis",COUNTRY_INFO!V20),"Traiter avec IVM") -> Traiter avec IVM | I20: 0 | J20: 0 | L20: 0
A21: =IF(INTRO!$E$39<>"Non endémique", " ", IF(INTRO!$E$37="Non endémique"," ", IF(COUNTRY_INFO!A21=0," ",COUNTRY_INFO!A21))) ->  | B21: =IF(INTRO!$E$39<>"Non endémique", " ", IF(INTRO!$E$37="Non endémique"," ", IF(COUNTRY_INFO!B21=0," ",COUNTRY_INFO!B21))) ->  | C21: =IF(INTRO!$E$39<>"Non endémique", " ", IF(INTRO!$E$37="Non endémique"," ", IF(COUNTRY_INFO!C21=0," ",COUNTRY_INFO!C21))) ->  | D21: =IF(INTRO!$E$39<>"Non endémique", 0, IF(INTRO!$E$37="Non endémique",0,IF(COUNTRY_INFO!$H21=1,COUNTRY_INFO!E21,0))) -> 0 | E21: =IF(INTRO!$E$39<>"Non endémique", 0, IF(INTRO!$E$37="Non endémique",0,IF(COUNTRY_INFO!$H21=1,COUNTRY_INFO!F21,0))) -> 0 | F21: =IF(INTRO!$E$39<>"Non endémique", 0, IF(INTRO!$E$37="Non endémique",0,IF(COUNTRY_INFO!$H21=1,COUNTRY_INFO!G21,0))) -> 0 | G21: 0 | H21: =IF(INTRO!$E$39="Non endémique",IF(INTRO!$E$37="Non endémique","Non requis",COUNTRY_INFO!V21),"Traiter avec IVM") -> Traiter avec IVM | I21: 0 | J21: 0 | L21: 0
A22: =IF(INTRO!$E$39<>"Non endémique", " ", IF(INTRO!$E$37="Non endémique"," ", IF(COUNTRY_INFO!A22=0," ",COUNTRY_INFO!A22))) ->  | B22: =IF(INTRO!$E$39<>"Non endémique", " ", IF(INTRO!$E$37="Non endémique"," ", IF(COUNTRY_INFO!B22=0," ",COUNTRY_INFO!B22))) ->  | C22: =IF(INTRO!$E$39<>"Non endémique", " ", IF(INTRO!$E$37="Non endémique"," ", IF(COUNTRY_INFO!C22=0," ",COUNTRY_INFO!C22))) ->  | D22: =IF(INTRO!$E$39<>"Non endémique", 0, IF(INTRO!$E$37="Non endémique",0,IF(COUNTRY_INFO!$H22=1,COUNTRY_INFO!E22,0))) -> 0 | E22: =IF(INTRO!$E$39<>"Non endémique", 0, IF(INTRO!$E$37="Non endémique",0,IF(COUNTRY_INFO!$H22=1,COUNTRY_INFO!F22,0))) -> 0 | F22: =IF(INTRO!$E$39<>"Non endémique", 0, IF(INTRO!$E$37="Non endémique",0,IF(COUNTRY_INFO!$H22=1,COUNTRY_INFO!G22,0))) -> 0 | G22: 0 | H22: =IF(INTRO!$E$39="Non endémique",IF(INTRO!$E$37="Non endémique","Non requis",COUNTRY_INFO!V22),"Traiter avec IVM") -> Traiter avec IVM | I22: 0 | J22: 0 | L22: 0
A23: =IF(INTRO!$E$39<>"Non endémique", " ", IF(INTRO!$E$37="Non endémique"," ", IF(COUNTRY_INFO!A23=0," ",COUNTRY_INFO!A23))) ->  | B23: =IF(INTRO!$E$39<>"Non endémique", " ", IF(INTRO!$E$37="Non endémique"," ", IF(COUNTRY_INFO!B23=0," ",COUNTRY_INFO!B23))) ->  | C23: =IF(INTRO!$E$39<>"Non endémique", " ", IF(INTRO!$E$37="Non endémique"," ", IF(COUNTRY_INFO!C23=0," ",COUNTRY_INFO!C23))) ->  | D23: =IF(INTRO!$E$39<>"Non endémique", 0, IF(INTRO!$E$37="Non endémique",0,IF(COUNTRY_INFO!$H23=1,COUNTRY_INFO!E23,0))) -> 0 | E23: =IF(INTRO!$E$39<>"Non endémique", 0, IF(INTRO!$E$37="Non endémique",0,IF(COUNTRY_INFO!$H23=1,COUNTRY_INFO!F23,0))) -> 0 | F23: =IF(INTRO!$E$39<>"Non endémique", 0, IF(INTRO!$E$37="Non endémique",0,IF(COUNTRY_INFO!$H23=1,COUNTRY_INFO!G23,0))) -> 0 | G23: 0 | H23: =IF(INTRO!$E$39="Non endémique",IF(INTRO!$E$37="Non endémique","Non requis",COUNTRY_INFO!V23),"Traiter avec IVM") -> Traiter avec IVM | I23: 0 | J23: 0 | L23: 0
A24: =IF(INTRO!$E$39<>"Non endémique", " ", IF(INTRO!$E$37="Non endémique"," ", IF(COUNTRY_INFO!A24=0," ",COUNTRY_INFO!A24))) ->  | B24: =IF(INTRO!$E$39<>"Non endémique", " ", IF(INTRO!$E$37="Non endémique"," ", IF(COUNTRY_INFO!B24=0," ",COUNTRY_INFO!B24))) ->  | C24: =IF(INTRO!$E$39<>"Non endémique", " ", IF(INTRO!$E$37="Non endémique"," ", IF(COUNTRY_INFO!C24=0," ",COUNTRY_INFO!C24))) ->  | D24: =IF(INTRO!$E$39<>"Non endémique", 0, IF(INTRO!$E$37="Non endémique",0,IF(COUNTRY_INFO!$H24=1,COUNTRY_INFO!E24,0))) -> 0 | E24: =IF(INTRO!$E$39<>"Non endémique", 0, IF(INTRO!$E$37="Non endémique",0,IF(COUNTRY_INFO!$H24=1,COUNTRY_INFO!F24,0))) -> 0 | F24: =IF(INTRO!$E$39<>"Non endémique", 0, IF(INTRO!$E$37="Non endémique",0,IF(COUNTRY_INFO!$H24=1,COUNTRY_INFO!G24,0))) -> 0 | G24: 0 | H24: =IF(INTRO!$E$39="Non endémique",IF(INTRO!$E$37="Non endémique","Non requis",COUNTRY_INFO!V24),"Traiter avec IVM") -> Traiter avec IVM | I24: 0 | J24: 0 | L24: 0
A25: =IF(INTRO!$E$39<>"Non endémique", " ", IF(INTRO!$E$37="Non endémique"," ", IF(COUNTRY_INFO!A25=0," ",COUNTRY_INFO!A25))) ->  | B25: =IF(INTRO!$E$39<>"Non endémique", " ", IF(INTRO!$E$37="Non endémique"," ", IF(COUNTRY_INFO!B25=0," ",COUNTRY_INFO!B25))) ->  | C25: =IF(INTRO!$E$39<>"Non endémique", " ", IF(INTRO!$E$37="Non endémique"," ", IF(COUNTRY_INFO!C25=0," ",COUNTRY_INFO!C25))) ->  | D25: =IF(INTRO!$E$39<>"Non endémique", 0, IF(INTRO!$E$37="Non endémique",0,IF(COUNTRY_INFO!$H25=1,COUNTRY_INFO!E25,0))) -> 0 | E25: =IF(INTRO!$E$39<>"Non endémique", 0, IF(INTRO!$E$37="Non endémique",0,IF(COUNTRY_INFO!$H25=1,COUNTRY_INFO!F25,0))) -> 0 | F25: =IF(INTRO!$E$39<>"Non endémique", 0, IF(INTRO!$E$37="Non endémique",0,IF(COUNTRY_INFO!$H25=1,COUNTRY_INFO!G25,0))) -> 0 | G25: 0 | H25: =IF(INTRO!$E$39="Non endémique",IF(INTRO!$E$37="Non endémique","Non requis",COUNTRY_INFO!V25),"Traiter avec IVM") -> Traiter avec IVM | I25: 0 | J25: 0 | L25: 0
A26: =IF(INTRO!$E$39<>"Non endémique", " ", IF(INTRO!$E$37="Non endémique"," ", IF(COUNTRY_INFO!A26=0," ",COUNTRY_INFO!A26))) ->  | B26: =IF(INTRO!$E$39<>"Non endémique", " ", IF(INTRO!$E$37="Non endémique"," ", IF(COUNTRY_INFO!B26=0," ",COUNTRY_INFO!B26))) ->  | C26: =IF(INTRO!$E$39<>"Non endémique", " ", IF(INTRO!$E$37="Non endémique"," ", IF(COUNTRY_INFO!C26=0," ",COUNTRY_INFO!C26))) ->  | D26: =IF(INTRO!$E$39<>"Non endémique", 0, IF(INTRO!$E$37="Non endémique",0,IF(COUNTRY_INFO!$H26=1,COUNTRY_INFO!E26,0))) -> 0 | E26: =IF(INTRO!$E$39<>"Non endémique", 0, IF(INTRO!$E$37="Non endémique",0,IF(COUNTRY_INFO!$H26=1,COUNTRY_INFO!F26,0))) -> 0 | F26: =IF(INTRO!$E$39<>"Non endémique", 0, IF(INTRO!$E$37="Non endémique",0,IF(COUNTRY_INFO!$H26=1,COUNTRY_INFO!G26,0))) -> 0 | G26: 0 | H26: =IF(INTRO!$E$39="Non endémique",IF(INTRO!$E$37="Non endémique","Non requis",COUNTRY_INFO!V26),"Traiter avec IVM") -> Traiter avec IVM | I26: 0 | J26: 0 | L26: 0
A27: =IF(INTRO!$E$39<>"Non endémique", " ", IF(INTRO!$E$37="Non endémique"," ", IF(COUNTRY_INFO!A27=0," ",COUNTRY_INFO!A27))) ->  | B27: =IF(INTRO!$E$39<>"Non endémique", " ", IF(INTRO!$E$37="Non endémique"," ", IF(COUNTRY_INFO!B27=0," ",COUNTRY_INFO!B27))) ->  | C27: =IF(INTRO!$E$39<>"Non endémique", " ", IF(INTRO!$E$37="Non endémique"," ", IF(COUNTRY_INFO!C27=0," ",COUNTRY_INFO!C27))) ->  | D27: =IF(INTRO!$E$39<>"Non endémique", 0, IF(INTRO!$E$37="Non endémique",0,IF(COUNTRY_INFO!$H27=1,COUNTRY_INFO!E27,0))) -> 0 | E27: =IF(INTRO!$E$39<>"Non endémique", 0, IF(INTRO!$E$37="Non endémique",0,IF(COUNTRY_INFO!$H27=1,COUNTRY_INFO!F27,0))) -> 0 | F27: =IF(INTRO!$E$39<>"Non endémique", 0, IF(INTRO!$E$37="Non endémique",0,IF(COUNTRY_INFO!$H27=1,COUNTRY_INFO!G27,0))) -> 0 | G27: 0 | H27: =IF(INTRO!$E$39="Non endémique",IF(INTRO!$E$37="Non endémique","Non requis",COUNTRY_INFO!V27),"Traiter avec IVM") -> Traiter avec IVM | I27: 0 | J27: 0 | L27: 0
A28: =IF(INTRO!$E$39<>"Non endémique", " ", IF(INTRO!$E$37="Non endémique"," ", IF(COUNTRY_INFO!A28=0," ",COUNTRY_INFO!A28))) ->  | B28: =IF(INTRO!$E$39<>"Non endémique", " ", IF(INTRO!$E$37="Non endémique"," ", IF(COUNTRY_INFO!B28=0," ",COUNTRY_INFO!B28))) ->  | C28: =IF(INTRO!$E$39<>"Non endémique", " ", IF(INTRO!$E$37="Non endémique"," ", IF(COUNTRY_INFO!C28=0," ",COUNTRY_INFO!C28))) ->  | D28: =IF(INTRO!$E$39<>"Non endémique", 0, IF(INTRO!$E$37="Non endémique",0,IF(COUNTRY_INFO!$H28=1,COUNTRY_INFO!E28,0))) -> 0 | E28: =IF(INTRO!$E$39<>"Non endémique", 0, IF(INTRO!$E$37="Non endémique",0,IF(COUNTRY_INFO!$H28=1,COUNTRY_INFO!F28,0))) -> 0 | F28: =IF(INTRO!$E$39<>"Non endémique", 0, IF(INTRO!$E$37="Non endémique",0,IF(COUNTRY_INFO!$H28=1,COUNTRY_INFO!G28,0))) -> 0 | G28: 0 | H28: =IF(INTRO!$E$39="Non endémique",IF(INTRO!$E$37="Non endémique","Non requis",COUNTRY_INFO!V28),"Traiter avec IVM") -> Traiter avec IVM | I28: 0 | J28: 0 | L28: 0
A29: =IF(INTRO!$E$39<>"Non endémique", " ", IF(INTRO!$E$37="Non endémique"," ", IF(COUNTRY_INFO!A29=0," ",COUNTRY_INFO!A29))) ->  | B29: =IF(INTRO!$E$39<>"Non endémique", " ", IF(INTRO!$E$37="Non endémique"," ", IF(COUNTRY_INFO!B29=0," ",COUNTRY_INFO!B29))) ->  | C29: =IF(INTRO!$E$39<>"Non endémique", " ", IF(INTRO!$E$37="Non endémique"," ", IF(COUNTRY_INFO!C29=0," ",COUNTRY_INFO!C29))) ->  | D29: =IF(INTRO!$E$39<>"Non endémique", 0, IF(INTRO!$E$37="Non endémique",0,IF(COUNTRY_INFO!$H29=1,COUNTRY_INFO!E29,0))) -> 0 | E29: =IF(INTRO!$E$39<>"Non endémique", 0, IF(INTRO!$E$37="Non endémique",0,IF(COUNTRY_INFO!$H29=1,COUNTRY_INFO!F29,0))) -> 0 | F29: =IF(INTRO!$E$39<>"Non endémique", 0, IF(INTRO!$E$37="Non endémique",0,IF(COUNTRY_INFO!$H29=1,COUNTRY_INFO!G29,0))) -> 0 | G29: 0 | H29: =IF(INTRO!$E$39="Non endémique",IF(INTRO!$E$37="Non endémique","Non requis",COUNTRY_INFO!V29),"Traiter avec IVM") -> Traiter avec IVM | I29: 0 | J29: 0 | L29: 0
A30: =IF(INTRO!$E$39<>"Non endémique", " ", IF(INTRO!$E$37="Non endémique"," ", IF(COUNTRY_INFO!A30=0," ",COUNTRY_INFO!A30))) ->  | B30: =IF(INTRO!$E$39<>"Non endémique", " ", IF(INTRO!$E$37="Non endémique"," ", IF(COUNTRY_INFO!B30=0," ",COUNTRY_INFO!B30))) ->  | C30: =IF(INTRO!$E$39<>"Non endémique", " ", IF(INTRO!$E$37="Non endémique"," ", IF(COUNTRY_INFO!C30=0," ",COUNTRY_INFO!C30))) ->  | D30: =IF(INTRO!$E$39<>"Non endémique", 0, IF(INTRO!$E$37="Non endémique",0,IF(COUNTRY_INFO!$H30=1,COUNTRY_INFO!E30,0))) -> 0 | E30: =IF(INTRO!$E$39<>"Non endémique", 0, IF(INTRO!$E$37="Non endémique",0,IF(COUNTRY_INFO!$H30=1,COUNTRY_INFO!F30,0))) -> 0 | F30: =IF(INTRO!$E$39<>"Non endémique", 0, IF(INTRO!$E$37="Non endémique",0,IF(COUNTRY_INFO!$H30=1,COUNTRY_INFO!G30,0))) -> 0 | G30: 0 | H30: =IF(INTRO!$E$39="Non endémique",IF(INTRO!$E$37="Non endémique","Non requis",COUNTRY_INFO!V30),"Traiter avec IVM") -> Traiter avec IVM | I30: 0 | J30: 0 | L30: 0
A31: =IF(INTRO!$E$39<>"Non endémique", " ", IF(INTRO!$E$37="Non endémique"," ", IF(COUNTRY_INFO!A31=0," ",COUNTRY_INFO!A31))) ->  | B31: =IF(INTRO!$E$39<>"Non endémique", " ", IF(INTRO!$E$37="Non endémique"," ", IF(COUNTRY_INFO!B31=0," ",COUNTRY_INFO!B31))) ->  | C31: =IF(INTRO!$E$39<>"Non endémique", " ", IF(INTRO!$E$37="Non endémique"," ", IF(COUNTRY_INFO!C31=0," ",COUNTRY_INFO!C31))) ->  | D31: =IF(INTRO!$E$39<>"Non endémique", 0, IF(INTRO!$E$37="Non endémique",0,IF(COUNTRY_INFO!$H31=1,COUNTRY_INFO!E31,0))) -> 0 | E31: =IF(INTRO!$E$39<>"Non endémique", 0, IF(INTRO!$E$37="Non endémique",0,IF(COUNTRY_INFO!$H31=1,COUNTRY_INFO!F31,0))) -> 0 | F31: =IF(INTRO!$E$39<>"Non endémique", 0, IF(INTRO!$E$37="Non endémique",0,IF(COUNTRY_INFO!$H31=1,COUNTRY_INFO!G31,0))) -> 0 | G31: 0 | H31: =IF(INTRO!$E$39="Non endémique",IF(INTRO!$E$37="Non endémique","Non requis",COUNTRY_INFO!V31),"Traiter avec IVM") -> Traiter avec IVM | I31: 0 | J31: 0 | L31: 0
A32: =IF(INTRO!$E$39<>"Non endémique", " ", IF(INTRO!$E$37="Non endémique"," ", IF(COUNTRY_INFO!A32=0," ",COUNTRY_INFO!A32))) ->  | B32: =IF(INTRO!$E$39<>"Non endémique", " ", IF(INTRO!$E$37="Non endémique"," ", IF(COUNTRY_INFO!B32=0," ",COUNTRY_INFO!B32))) ->  | C32: =IF(INTRO!$E$39<>"Non endémique", " ", IF(INTRO!$E$37="Non endémique"," ", IF(COUNTRY_INFO!C32=0," ",COUNTRY_INFO!C32))) ->  | D32: =IF(INTRO!$E$39<>"Non endémique", 0, IF(INTRO!$E$37="Non endémique",0,IF(COUNTRY_INFO!$H32=1,COUNTRY_INFO!E32,0))) -> 0 | E32: =IF(INTRO!$E$39<>"Non endémique", 0, IF(INTRO!$E$37="Non endémique",0,IF(COUNTRY_INFO!$H32=1,COUNTRY_INFO!F32,0))) -> 0 | F32: =IF(INTRO!$E$39<>"Non endémique", 0, IF(INTRO!$E$37="Non endémique",0,IF(COUNTRY_INFO!$H32=1,COUNTRY_INFO!G32,0))) -> 0 | G32: 0 | H32: =IF(INTRO!$E$39="Non endémique",IF(INTRO!$E$37="Non endémique","Non requis",COUNTRY_INFO!V32),"Traiter avec IVM") -> Traiter avec IVM | I32: 0 | J32: 0 | L32: 0
A33: =IF(INTRO!$E$39<>"Non endémique", " ", IF(INTRO!$E$37="Non endémique"," ", IF(COUNTRY_INFO!A33=0," ",COUNTRY_INFO!A33))) ->  | B33: =IF(INTRO!$E$39<>"Non endémique", " ", IF(INTRO!$E$37="Non endémique"," ", IF(COUNTRY_INFO!B33=0," ",COUNTRY_INFO!B33))) ->  | C33: =IF(INTRO!$E$39<>"Non endémique", " ", IF(INTRO!$E$37="Non endémique"," ", IF(COUNTRY_INFO!C33=0," ",COUNTRY_INFO!C33))) ->  | D33: =IF(INTRO!$E$39<>"Non endémique", 0, IF(INTRO!$E$37="Non endémique",0,IF(COUNTRY_INFO!$H33=1,COUNTRY_INFO!E33,0))) -> 0 | E33: =IF(INTRO!$E$39<>"Non endémique", 0, IF(INTRO!$E$37="Non endémique",0,IF(COUNTRY_INFO!$H33=1,COUNTRY_INFO!F33,0))) -> 0 | F33: =IF(INTRO!$E$39<>"Non endémique", 0, IF(INTRO!$E$37="Non endémique",0,IF(COUNTRY_INFO!$H33=1,COUNTRY_INFO!G33,0))) -> 0 | G33: 0 | H33: =IF(INTRO!$E$39="Non endémique",IF(INTRO!$E$37="Non endémique","Non requis",COUNTRY_INFO!V33),"Traiter avec IVM") -> Traiter avec IVM | I33: 0 | J33: 0 | L33: 0
A34: =IF(INTRO!$E$39<>"Non endémique", " ", IF(INTRO!$E$37="Non endémique"," ", IF(COUNTRY_INFO!A34=0," ",COUNTRY_INFO!A34))) ->  | B34: =IF(INTRO!$E$39<>"Non endémique", " ", IF(INTRO!$E$37="Non endémique"," ", IF(COUNTRY_INFO!B34=0," ",COUNTRY_INFO!B34))) ->  | C34: =IF(INTRO!$E$39<>"Non endémique", " ", IF(INTRO!$E$37="Non endémique"," ", IF(COUNTRY_INFO!C34=0," ",COUNTRY_INFO!C34))) ->  | D34: =IF(INTRO!$E$39<>"Non endémique", 0, IF(INTRO!$E$37="Non endémique",0,IF(COUNTRY_INFO!$H34=1,COUNTRY_INFO!E34,0))) -> 0 | E34: =IF(INTRO!$E$39<>"Non endémique", 0, IF(INTRO!$E$37="Non endémique",0,IF(COUNTRY_INFO!$H34=1,COUNTRY_INFO!F34,0))) -> 0 | F34: =IF(INTRO!$E$39<>"Non endémique", 0, IF(INTRO!$E$37="Non endémique",0,IF(COUNTRY_INFO!$H34=1,COUNTRY_INFO!G34,0))) -> 0 | G34: 0 | H34: =IF(INTRO!$E$39="Non endémique",IF(INTRO!$E$37="Non endémique","Non requis",COUNTRY_INFO!V34),"Traiter avec IVM") -> Traiter avec IVM | I34: 0 | J34: 0 | L34: 0
A35: =IF(INTRO!$E$39<>"Non endémique", " ", IF(INTRO!$E$37="Non endémique"," ", IF(COUNTRY_INFO!A35=0," ",COUNTRY_INFO!A35))) ->  | B35: =IF(INTRO!$E$39<>"Non endémique", " ", IF(INTRO!$E$37="Non endémique"," ", IF(COUNTRY_INFO!B35=0," ",COUNTRY_INFO!B35))) ->  | C35: =IF(INTRO!$E$39<>"Non endémique", " ", IF(INTRO!$E$37="Non endémique"," ", IF(COUNTRY_INFO!C35=0," ",COUNTRY_INFO!C35))) ->  | D35: =IF(INTRO!$E$39<>"Non endémique", 0, IF(INTRO!$E$37="Non endémique",0,IF(COUNTRY_INFO!$H35=1,COUNTRY_INFO!E35,0))) -> 0 | E35: =IF(INTRO!$E$39<>"Non endémique", 0, IF(INTRO!$E$37="Non endémique",0,IF(COUNTRY_INFO!$H35=1,COUNTRY_INFO!F35,0))) -> 0 | F35: =IF(INTRO!$E$39<>"Non endémique", 0, IF(INTRO!$E$37="Non endémique",0,IF(COUNTRY_INFO!$H35=1,COUNTRY_INFO!G35,0))) -> 0 | G35: 0 | H35: =IF(INTRO!$E$39="Non endémique",IF(INTRO!$E$37="Non endémique","Non requis",COUNTRY_INFO!V35),"Traiter avec IVM") -> Traiter avec IVM | I35: 0 | J35: 0 | L35: 0
A36: =IF(INTRO!$E$39<>"Non endémique", " ", IF(INTRO!$E$37="Non endémique"," ", IF(COUNTRY_INFO!A36=0," ",COUNTRY_INFO!A36))) ->  | B36: =IF(INTRO!$E$39<>"Non endémique", " ", IF(INTRO!$E$37="Non endémique"," ", IF(COUNTRY_INFO!B36=0," ",COUNTRY_INFO!B36))) ->  | C36: =IF(INTRO!$E$39<>"Non endémique", " ", IF(INTRO!$E$37="Non endémique"," ", IF(COUNTRY_INFO!C36=0," ",COUNTRY_INFO!C36))) ->  | D36: =IF(INTRO!$E$39<>"Non endémique", 0, IF(INTRO!$E$37="Non endémique",0,IF(COUNTRY_INFO!$H36=1,COUNTRY_INFO!E36,0))) -> 0 | E36: =IF(INTRO!$E$39<>"Non endémique", 0, IF(INTRO!$E$37="Non endémique",0,IF(COUNTRY_INFO!$H36=1,COUNTRY_INFO!F36,0))) -> 0 | F36: =IF(INTRO!$E$39<>"Non endémique", 0, IF(INTRO!$E$37="Non endémique",0,IF(COUNTRY_INFO!$H36=1,COUNTRY_INFO!G36,0))) -> 0 | G36: 0 | H36: =IF(INTRO!$E$39="Non endémique",IF(INTRO!$E$37="Non endémique","Non requis",COUNTRY_INFO!V36),"Traiter avec IVM") -> Traiter avec IVM | I36: 0 | J36: 0 | L36: 0
A37: =IF(INTRO!$E$39<>"Non endémique", " ", IF(INTRO!$E$37="Non endémique"," ", IF(COUNTRY_INFO!A37=0," ",COUNTRY_INFO!A37))) ->  | B37: =IF(INTRO!$E$39<>"Non endémique", " ", IF(INTRO!$E$37="Non endémique"," ", IF(COUNTRY_INFO!B37=0," ",COUNTRY_INFO!B37))) ->  | C37: =IF(INTRO!$E$39<>"Non endémique", " ", IF(INTRO!$E$37="Non endémique"," ", IF(COUNTRY_INFO!C37=0," ",COUNTRY_INFO!C37))) ->  | D37: =IF(INTRO!$E$39<>"Non endémique", 0, IF(INTRO!$E$37="Non endémique",0,IF(COUNTRY_INFO!$H37=1,COUNTRY_INFO!E37,0))) -> 0 | E37: =IF(INTRO!$E$39<>"Non endémique", 0, IF(INTRO!$E$37="Non endémique",0,IF(COUNTRY_INFO!$H37=1,COUNTRY_INFO!F37,0))) -> 0 | F37: =IF(INTRO!$E$39<>"Non endémique", 0, IF(INTRO!$E$37="Non endémique",0,IF(COUNTRY_INFO!$H37=1,COUNTRY_INFO!G37,0))) -> 0 | G37: 0 | H37: =IF(INTRO!$E$39="Non endémique",IF(INTRO!$E$37="Non endémique","Non requis",COUNTRY_INFO!V37),"Traiter avec IVM") -> Traiter avec IVM | I37: 0 | J37: 0 | L37: 0
A38: =IF(INTRO!$E$39<>"Non endémique", " ", IF(INTRO!$E$37="Non endémique"," ", IF(COUNTRY_INFO!A38=0," ",COUNTRY_INFO!A38))) ->  | B38: =IF(INTRO!$E$39<>"Non endémique", " ", IF(INTRO!$E$37="Non endémique"," ", IF(COUNTRY_INFO!B38=0," ",COUNTRY_INFO!B38))) ->  | C38: =IF(INTRO!$E$39<>"Non endémique", " ", IF(INTRO!$E$37="Non endémique"," ", IF(COUNTRY_INFO!C38=0," ",COUNTRY_INFO!C38))) ->  | D38: =IF(INTRO!$E$39<>"Non endémique", 0, IF(INTRO!$E$37="Non endémique",0,IF(COUNTRY_INFO!$H38=1,COUNTRY_INFO!E38,0))) -> 0 | E38: =IF(INTRO!$E$39<>"Non endémique", 0, IF(INTRO!$E$37="Non endémique",0,IF(COUNTRY_INFO!$H38=1,COUNTRY_INFO!F38,0))) -> 0 | F38: =IF(INTRO!$E$39<>"Non endémique", 0, IF(INTRO!$E$37="Non endémique",0,IF(COUNTRY_INFO!$H38=1,COUNTRY_INFO!G38,0))) -> 0 | G38: 0 | H38: =IF(INTRO!$E$39="Non endémique",IF(INTRO!$E$37="Non endémique","Non requis",COUNTRY_INFO!V38),"Traiter avec IVM") -> Traiter avec IVM | I38: 0 | J38: 0 | L38: 0
A39: =IF(INTRO!$E$39<>"Non endémique", " ", IF(INTRO!$E$37="Non endémique"," ", IF(COUNTRY_INFO!A39=0," ",COUNTRY_INFO!A39))) ->  | B39: =IF(INTRO!$E$39<>"Non endémique", " ", IF(INTRO!$E$37="Non endémique"," ", IF(COUNTRY_INFO!B39=0," ",COUNTRY_INFO!B39))) ->  | C39: =IF(INTRO!$E$39<>"Non endémique", " ", IF(INTRO!$E$37="Non endémique"," ", IF(COUNTRY_INFO!C39=0," ",COUNTRY_INFO!C39))) ->  | D39: =IF(INTRO!$E$39<>"Non endémique", 0, IF(INTRO!$E$37="Non endémique",0,IF(COUNTRY_INFO!$H39=1,COUNTRY_INFO!E39,0))) -> 0 | E39: =IF(INTRO!$E$39<>"Non endémique", 0, IF(INTRO!$E$37="Non endémique",0,IF(COUNTRY_INFO!$H39=1,COUNTRY_INFO!F39,0))) -> 0 | F39: =IF(INTRO!$E$39<>"Non endémique", 0, IF(INTRO!$E$37="Non endémique",0,IF(COUNTRY_INFO!$H39=1,COUNTRY_INFO!G39,0))) -> 0 | G39: 0 | H39: =IF(INTRO!$E$39="Non endémique",IF(INTRO!$E$37="Non endémique","Non requis",COUNTRY_INFO!V39),"Traiter avec IVM") -> Traiter avec IVM | I39: 0 | J39: 0 | L39: 0
A40: =IF(INTRO!$E$39<>"Non endémique", " ", IF(INTRO!$E$37="Non endémique"," ", IF(COUNTRY_INFO!A40=0," ",COUNTRY_INFO!A40))) ->  | B40: =IF(INTRO!$E$39<>"Non endémique", " ", IF(INTRO!$E$37="Non endémique"," ", IF(COUNTRY_INFO!B40=0," ",COUNTRY_INFO!B40))) ->  | C40: =IF(INTRO!$E$39<>"Non endémique", " ", IF(INTRO!$E$37="Non endémique"," ", IF(COUNTRY_INFO!C40=0," ",COUNTRY_INFO!C40))) ->  | D40: =IF(INTRO!$E$39<>"Non endémique", 0, IF(INTRO!$E$37="Non endémique",0,IF(COUNTRY_INFO!$H40=1,COUNTRY_INFO!E40,0))) -> 0 | E40: =IF(INTRO!$E$39<>"Non endémique", 0, IF(INTRO!$E$37="Non endémique",0,IF(COUNTRY_INFO!$H40=1,COUNTRY_INFO!F40,0))) -> 0 | F40: =IF(INTRO!$E$39<>"Non endémique", 0, IF(INTRO!$E$37="Non endémique",0,IF(COUNTRY_INFO!$H40=1,COUNTRY_INFO!G40,0))) -> 0 | G40: 0 | H40: =IF(INTRO!$E$39="Non endémique",IF(INTRO!$E$37="Non endémique","Non requis",COUNTRY_INFO!V40),"Traiter avec IVM") -> Traiter avec IVM | I40: 0 | J40: 0 | L40: 0
A41: =IF(INTRO!$E$39<>"Non endémique", " ", IF(INTRO!$E$37="Non endémique"," ", IF(COUNTRY_INFO!A41=0," ",COUNTRY_INFO!A41))) ->  | B41: =IF(INTRO!$E$39<>"Non endémique", " ", IF(INTRO!$E$37="Non endémique"," ", IF(COUNTRY_INFO!B41=0," ",COUNTRY_INFO!B41))) ->  | C41: =IF(INTRO!$E$39<>"Non endémique", " ", IF(INTRO!$E$37="Non endémique"," ", IF(COUNTRY_INFO!C41=0," ",COUNTRY_INFO!C41))) ->  | D41: =IF(INTRO!$E$39<>"Non endémique", 0, IF(INTRO!$E$37="Non endémique",0,IF(COUNTRY_INFO!$H41=1,COUNTRY_INFO!E41,0))) -> 0 | E41: =IF(INTRO!$E$39<>"Non endémique", 0, IF(INTRO!$E$37="Non endémique",0,IF(COUNTRY_INFO!$H41=1,COUNTRY_INFO!F41,0))) -> 0 | F41: =IF(INTRO!$E$39<>"Non endémique", 0, IF(INTRO!$E$37="Non endémique",0,IF(COUNTRY_INFO!$H41=1,COUNTRY_INFO!G41,0))) -> 0 | G41: 0 | H41: =IF(INTRO!$E$39="Non endémique",IF(INTRO!$E$37="Non endémique","Non requis",COUNTRY_INFO!V41),"Traiter avec IVM") -> Traiter avec IVM | I41: 0 | J41: 0 | L41: 0
A42: =IF(INTRO!$E$39<>"Non endémique", " ", IF(INTRO!$E$37="Non endémique"," ", IF(COUNTRY_INFO!A42=0," ",COUNTRY_INFO!A42))) ->  | B42: =IF(INTRO!$E$39<>"Non endémique", " ", IF(INTRO!$E$37="Non endémique"," ", IF(COUNTRY_INFO!B42=0," ",COUNTRY_INFO!B42))) ->  | C42: =IF(INTRO!$E$39<>"Non endémique", " ", IF(INTRO!$E$37="Non endémique"," ", IF(COUNTRY_INFO!C42=0," ",COUNTRY_INFO!C42))) ->  | D42: =IF(INTRO!$E$39<>"Non endémique", 0, IF(INTRO!$E$37="Non endémique",0,IF(COUNTRY_INFO!$H42=1,COUNTRY_INFO!E42,0))) -> 0 | E42: =IF(INTRO!$E$39<>"Non endémique", 0, IF(INTRO!$E$37="Non endémique",0,IF(COUNTRY_INFO!$H42=1,COUNTRY_INFO!F42,0))) -> 0 | F42: =IF(INTRO!$E$39<>"Non endémique", 0, IF(INTRO!$E$37="Non endémique",0,IF(COUNTRY_INFO!$H42=1,COUNTRY_INFO!G42,0))) -> 0 | G42: 0 | H42: =IF(INTRO!$E$39="Non endémique",IF(INTRO!$E$37="Non endémique","Non requis",COUNTRY_INFO!V42),"Traiter avec IVM") -> Traiter avec IVM | I42: 0 | J42: 0 | L42: 0
A43: =IF(INTRO!$E$39<>"Non endémique", " ", IF(INTRO!$E$37="Non endémique"," ", IF(COUNTRY_INFO!A43=0," ",COUNTRY_INFO!A43))) ->  | B43: =IF(INTRO!$E$39<>"Non endémique", " ", IF(INTRO!$E$37="Non endémique"," ", IF(COUNTRY_INFO!B43=0," ",COUNTRY_INFO!B43))) ->  | C43: =IF(INTRO!$E$39<>"Non endémique", " ", IF(INTRO!$E$37="Non endémique"," ", IF(COUNTRY_INFO!C43=0," ",COUNTRY_INFO!C43))) ->  | D43: =IF(INTRO!$E$39<>"Non endémique", 0, IF(INTRO!$E$37="Non endémique",0,IF(COUNTRY_INFO!$H43=1,COUNTRY_INFO!E43,0))) -> 0 | E43: =IF(INTRO!$E$39<>"Non endémique", 0, IF(INTRO!$E$37="Non endémique",0,IF(COUNTRY_INFO!$H43=1,COUNTRY_INFO!F43,0))) -> 0 | F43: =IF(INTRO!$E$39<>"Non endémique", 0, IF(INTRO!$E$37="Non endémique",0,IF(COUNTRY_INFO!$H43=1,COUNTRY_INFO!G43,0))) -> 0 | G43: 0 | H43: =IF(INTRO!$E$39="Non endémique",IF(INTRO!$E$37="Non endémique","Non requis",COUNTRY_INFO!V43),"Traiter avec IVM") -> Traiter avec IVM | I43: 0 | J43: 0 | L43: 0
A44: =IF(INTRO!$E$39<>"Non endémique", " ", IF(INTRO!$E$37="Non endémique"," ", IF(COUNTRY_INFO!A44=0," ",COUNTRY_INFO!A44))) ->  | B44: =IF(INTRO!$E$39<>"Non endémique", " ", IF(INTRO!$E$37="Non endémique"," ", IF(COUNTRY_INFO!B44=0," ",COUNTRY_INFO!B44))) ->  | C44: =IF(INTRO!$E$39<>"Non endémique", " ", IF(INTRO!$E$37="Non endémique"," ", IF(COUNTRY_INFO!C44=0," ",COUNTRY_INFO!C44))) ->  | D44: =IF(INTRO!$E$39<>"Non endémique", 0, IF(INTRO!$E$37="Non endémique",0,IF(COUNTRY_INFO!$H44=1,COUNTRY_INFO!E44,0))) -> 0 | E44: =IF(INTRO!$E$39<>"Non endémique", 0, IF(INTRO!$E$37="Non endémique",0,IF(COUNTRY_INFO!$H44=1,COUNTRY_INFO!F44,0))) -> 0 | F44: =IF(INTRO!$E$39<>"Non endémique", 0, IF(INTRO!$E$37="Non endémique",0,IF(COUNTRY_INFO!$H44=1,COUNTRY_INFO!G44,0))) -> 0 | G44: 0 | H44: =IF(INTRO!$E$39="Non endémique",IF(INTRO!$E$37="Non endémique","Non requis",COUNTRY_INFO!V44),"Traiter avec IVM") -> Traiter avec IVM | I44: 0 | J44: 0 | L44: 0
A45: =IF(INTRO!$E$39<>"Non endémique", " ", IF(INTRO!$E$37="Non endémique"," ", IF(COUNTRY_INFO!A45=0," ",COUNTRY_INFO!A45))) ->  | B45: =IF(INTRO!$E$39<>"Non endémique", " ", IF(INTRO!$E$37="Non endémique"," ", IF(COUNTRY_INFO!B45=0," ",COUNTRY_INFO!B45))) ->  | C45: =IF(INTRO!$E$39<>"Non endémique", " ", IF(INTRO!$E$37="Non endémique"," ", IF(COUNTRY_INFO!C45=0," ",COUNTRY_INFO!C45))) ->  | D45: =IF(INTRO!$E$39<>"Non endémique", 0, IF(INTRO!$E$37="Non endémique",0,IF(COUNTRY_INFO!$H45=1,COUNTRY_INFO!E45,0))) -> 0 | E45: =IF(INTRO!$E$39<>"Non endémique", 0, IF(INTRO!$E$37="Non endémique",0,IF(COUNTRY_INFO!$H45=1,COUNTRY_INFO!F45,0))) -> 0 | F45: =IF(INTRO!$E$39<>"Non endémique", 0, IF(INTRO!$E$37="Non endémique",0,IF(COUNTRY_INFO!$H45=1,COUNTRY_INFO!G45,0))) -> 0 | G45: 0 | H45: =IF(INTRO!$E$39="Non endémique",IF(INTRO!$E$37="Non endémique","Non requis",COUNTRY_INFO!V45),"Traiter avec IVM") -> Traiter avec IVM | I45: 0 | J45: 0 | L45: 0
A46: =IF(INTRO!$E$39<>"Non endémique", " ", IF(INTRO!$E$37="Non endémique"," ", IF(COUNTRY_INFO!A46=0," ",COUNTRY_INFO!A46))) ->  | B46: =IF(INTRO!$E$39<>"Non endémique", " ", IF(INTRO!$E$37="Non endémique"," ", IF(COUNTRY_INFO!B46=0," ",COUNTRY_INFO!B46))) ->  | C46: =IF(INTRO!$E$39<>"Non endémique", " ", IF(INTRO!$E$37="Non endémique"," ", IF(COUNTRY_INFO!C46=0," ",COUNTRY_INFO!C46))) ->  | D46: =IF(INTRO!$E$39<>"Non endémique", 0, IF(INTRO!$E$37="Non endémique",0,IF(COUNTRY_INFO!$H46=1,COUNTRY_INFO!E46,0))) -> 0 | E46: =IF(INTRO!$E$39<>"Non endémique", 0, IF(INTRO!$E$37="Non endémique",0,IF(COUNTRY_INFO!$H46=1,COUNTRY_INFO!F46,0))) -> 0 | F46: =IF(INTRO!$E$39<>"Non endémique", 0, IF(INTRO!$E$37="Non endémique",0,IF(COUNTRY_INFO!$H46=1,COUNTRY_INFO!G46,0))) -> 0 | G46: 0 | H46: =IF(INTRO!$E$39="Non endémique",IF(INTRO!$E$37="Non endémique","Non requis",COUNTRY_INFO!V46),"Traiter avec IVM") -> Traiter avec IVM | I46: 0 | J46: 0 | L46: 0
A47: =IF(INTRO!$E$39<>"Non endémique", " ", IF(INTRO!$E$37="Non endémique"," ", IF(COUNTRY_INFO!A47=0," ",COUNTRY_INFO!A47))) ->  | B47: =IF(INTRO!$E$39<>"Non endémique", " ", IF(INTRO!$E$37="Non endémique"," ", IF(COUNTRY_INFO!B47=0," ",COUNTRY_INFO!B47))) ->  | C47: =IF(INTRO!$E$39<>"Non endémique", " ", IF(INTRO!$E$37="Non endémique"," ", IF(COUNTRY_INFO!C47=0," ",COUNTRY_INFO!C47))) ->  | D47: =IF(INTRO!$E$39<>"Non endémique", 0, IF(INTRO!$E$37="Non endémique",0,IF(COUNTRY_INFO!$H47=1,COUNTRY_INFO!E47,0))) -> 0 | E47: =IF(INTRO!$E$39<>"Non endémique", 0, IF(INTRO!$E$37="Non endémique",0,IF(COUNTRY_INFO!$H47=1,COUNTRY_INFO!F47,0))) -> 0 | F47: =IF(INTRO!$E$39<>"Non endémique", 0, IF(INTRO!$E$37="Non endémique",0,IF(COUNTRY_INFO!$H47=1,COUNTRY_INFO!G47,0))) -> 0 | G47: 0 | H47: =IF(INTRO!$E$39="Non endémique",IF(INTRO!$E$37="Non endémique","Non requis",COUNTRY_INFO!V47),"Traiter avec IVM") -> Traiter avec IVM | I47: 0 | J47: 0 | L47: 0
A48: =IF(INTRO!$E$39<>"Non endémique", " ", IF(INTRO!$E$37="Non endémique"," ", IF(COUNTRY_INFO!A48=0," ",COUNTRY_INFO!A48))) ->  | B48: =IF(INTRO!$E$39<>"Non endémique", " ", IF(INTRO!$E$37="Non endémique"," ", IF(COUNTRY_INFO!B48=0," ",COUNTRY_INFO!B48))) ->  | C48: =IF(INTRO!$E$39<>"Non endémique", " ", IF(INTRO!$E$37="Non endémique"," ", IF(COUNTRY_INFO!C48=0," ",COUNTRY_INFO!C48))) ->  | D48: =IF(INTRO!$E$39<>"Non endémique", 0, IF(INTRO!$E$37="Non endémique",0,IF(COUNTRY_INFO!$H48=1,COUNTRY_INFO!E48,0))) -> 0 | E48: =IF(INTRO!$E$39<>"Non endémique", 0, IF(INTRO!$E$37="Non endémique",0,IF(COUNTRY_INFO!$H48=1,COUNTRY_INFO!F48,0))) -> 0 | F48: =IF(INTRO!$E$39<>"Non endémique", 0, IF(INTRO!$E$37="Non endémique",0,IF(COUNTRY_INFO!$H48=1,COUNTRY_INFO!G48,0))) -> 0 | G48: 0 | H48: =IF(INTRO!$E$39="Non endémique",IF(INTRO!$E$37="Non endémique","Non requis",COUNTRY_INFO!V48),"Traiter avec IVM") -> Traiter avec IVM | I48: 0 | J48: 0 | L48: 0
A49: =IF(INTRO!$E$39<>"Non endémique", " ", IF(INTRO!$E$37="Non endémique"," ", IF(COUNTRY_INFO!A49=0," ",COUNTRY_INFO!A49))) ->  | B49: =IF(INTRO!$E$39<>"Non endémique", " ", IF(INTRO!$E$37="Non endémique"," ", IF(COUNTRY_INFO!B49=0," ",COUNTRY_INFO!B49))) ->  | C49: =IF(INTRO!$E$39<>"Non endémique", " ", IF(INTRO!$E$37="Non endémique"," ", IF(COUNTRY_INFO!C49=0," ",COUNTRY_INFO!C49))) ->  | D49: =IF(INTRO!$E$39<>"Non endémique", 0, IF(INTRO!$E$37="Non endémique",0,IF(COUNTRY_INFO!$H49=1,COUNTRY_INFO!E49,0))) -> 0 | E49: =IF(INTRO!$E$39<>"Non endémique", 0, IF(INTRO!$E$37="Non endémique",0,IF(COUNTRY_INFO!$H49=1,COUNTRY_INFO!F49,0))) -> 0 | F49: =IF(INTRO!$E$39<>"Non endémique", 0, IF(INTRO!$E$37="Non endémique",0,IF(COUNTRY_INFO!$H49=1,COUNTRY_INFO!G49,0))) -> 0 | G49: 0 | H49: =IF(INTRO!$E$39="Non endémique",IF(INTRO!$E$37="Non endémique","Non requis",COUNTRY_INFO!V49),"Traiter avec IVM") -> Traiter avec IVM | I49: 0 | J49: 0 | L49: 0
A50: =IF(INTRO!$E$39<>"Non endémique", " ", IF(INTRO!$E$37="Non endémique"," ", IF(COUNTRY_INFO!A50=0," ",COUNTRY_INFO!A50))) ->  | B50: =IF(INTRO!$E$39<>"Non endémique", " ", IF(INTRO!$E$37="Non endémique"," ", IF(COUNTRY_INFO!B50=0," ",COUNTRY_INFO!B50))) ->  | C50: =IF(INTRO!$E$39<>"Non endémique", " ", IF(INTRO!$E$37="Non endémique"," ", IF(COUNTRY_INFO!C50=0," ",COUNTRY_INFO!C50))) ->  | D50: =IF(INTRO!$E$39<>"Non endémique", 0, IF(INTRO!$E$37="Non endémique",0,IF(COUNTRY_INFO!$H50=1,COUNTRY_INFO!E50,0))) -> 0 | E50: =IF(INTRO!$E$39<>"Non endémique", 0, IF(INTRO!$E$37="Non endémique",0,IF(COUNTRY_INFO!$H50=1,COUNTRY_INFO!F50,0))) -> 0 | F50: =IF(INTRO!$E$39<>"Non endémique", 0, IF(INTRO!$E$37="Non endémique",0,IF(COUNTRY_INFO!$H50=1,COUNTRY_INFO!G50,0))) -> 0 | G50: 0 | H50: =IF(INTRO!$E$39="Non endémique",IF(INTRO!$E$37="Non endémique","Non requis",COUNTRY_INFO!V50),"Traiter avec IVM") -> Traiter avec IVM | I50: 0 | J50: 0 | L50: 0
A51: =IF(INTRO!$E$39<>"Non endémique", " ", IF(INTRO!$E$37="Non endémique"," ", IF(COUNTRY_INFO!A51=0," ",COUNTRY_INFO!A51))) ->  | B51: =IF(INTRO!$E$39<>"Non endémique", " ", IF(INTRO!$E$37="Non endémique"," ", IF(COUNTRY_INFO!B51=0," ",COUNTRY_INFO!B51))) ->  | C51: =IF(INTRO!$E$39<>"Non endémique", " ", IF(INTRO!$E$37="Non endémique"," ", IF(COUNTRY_INFO!C51=0," ",COUNTRY_INFO!C51))) ->  | D51: =IF(INTRO!$E$39<>"Non endémique", 0, IF(INTRO!$E$37="Non endémique",0,IF(COUNTRY_INFO!$H51=1,COUNTRY_INFO!E51,0))) -> 0 | E51: =IF(INTRO!$E$39<>"Non endémique", 0, IF(INTRO!$E$37="Non endémique",0,IF(COUNTRY_INFO!$H51=1,COUNTRY_INFO!F51,0))) -> 0 | F51: =IF(INTRO!$E$39<>"Non endémique", 0, IF(INTRO!$E$37="Non endémique",0,IF(COUNTRY_INFO!$H51=1,COUNTRY_INFO!G51,0))) -> 0 | G51: 0 | H51: =IF(INTRO!$E$39="Non endémique",IF(INTRO!$E$37="Non endémique","Non requis",COUNTRY_INFO!V51),"Traiter avec IVM") -> Traiter avec IVM | I51: 0 | J51: 0 | L51: 0
A52: =IF(INTRO!$E$39<>"Non endémique", " ", IF(INTRO!$E$37="Non endémique"," ", IF(COUNTRY_INFO!A52=0," ",COUNTRY_INFO!A52))) ->  | B52: =IF(INTRO!$E$39<>"Non endémique", " ", IF(INTRO!$E$37="Non endémique"," ", IF(COUNTRY_INFO!B52=0," ",COUNTRY_INFO!B52))) ->  | C52: =IF(INTRO!$E$39<>"Non endémique", " ", IF(INTRO!$E$37="Non endémique"," ", IF(COUNTRY_INFO!C52=0," ",COUNTRY_INFO!C52))) ->  | D52: =IF(INTRO!$E$39<>"Non endémique", 0, IF(INTRO!$E$37="Non endémique",0,IF(COUNTRY_INFO!$H52=1,COUNTRY_INFO!E52,0))) -> 0 | E52: =IF(INTRO!$E$39<>"Non endémique", 0, IF(INTRO!$E$37="Non endémique",0,IF(COUNTRY_INFO!$H52=1,COUNTRY_INFO!F52,0))) -> 0 | F52: =IF(INTRO!$E$39<>"Non endémique", 0, IF(INTRO!$E$37="Non endémique",0,IF(COUNTRY_INFO!$H52=1,COUNTRY_INFO!G52,0))) -> 0 | G52: 0 | H52: =IF(INTRO!$E$39="Non endémique",IF(INTRO!$E$37="Non endémique","Non requis",COUNTRY_INFO!V52),"Traiter avec IVM") -> Traiter avec IVM | I52: 0 | J52: 0 | L52: 0
A53: =IF(INTRO!$E$39<>"Non endémique", " ", IF(INTRO!$E$37="Non endémique"," ", IF(COUNTRY_INFO!A53=0," ",COUNTRY_INFO!A53))) ->  | B53: =IF(INTRO!$E$39<>"Non endémique", " ", IF(INTRO!$E$37="Non endémique"," ", IF(COUNTRY_INFO!B53=0," ",COUNTRY_INFO!B53))) ->  | C53: =IF(INTRO!$E$39<>"Non endémique", " ", IF(INTRO!$E$37="Non endémique"," ", IF(COUNTRY_INFO!C53=0," ",COUNTRY_INFO!C53))) ->  | D53: =IF(INTRO!$E$39<>"Non endémique", 0, IF(INTRO!$E$37="Non endémique",0,IF(COUNTRY_INFO!$H53=1,COUNTRY_INFO!E53,0))) -> 0 | E53: =IF(INTRO!$E$39<>"Non endémique", 0, IF(INTRO!$E$37="Non endémique",0,IF(COUNTRY_INFO!$H53=1,COUNTRY_INFO!F53,0))) -> 0 | F53: =IF(INTRO!$E$39<>"Non endémique", 0, IF(INTRO!$E$37="Non endémique",0,IF(COUNTRY_INFO!$H53=1,COUNTRY_INFO!G53,0))) -> 0 | G53: 0 | H53: =IF(INTRO!$E$39="Non endémique",IF(INTRO!$E$37="Non endémique","Non requis",COUNTRY_INFO!V53),"Traiter avec IVM") -> Traiter avec IVM | I53: 0 | J53: 0 | L53: 0
A54: =IF(INTRO!$E$39<>"Non endémique", " ", IF(INTRO!$E$37="Non endémique"," ", IF(COUNTRY_INFO!A54=0," ",COUNTRY_INFO!A54))) ->  | B54: =IF(INTRO!$E$39<>"Non endémique", " ", IF(INTRO!$E$37="Non endémique"," ", IF(COUNTRY_INFO!B54=0," ",COUNTRY_INFO!B54))) ->  | C54: =IF(INTRO!$E$39<>"Non endémique", " ", IF(INTRO!$E$37="Non endémique"," ", IF(COUNTRY_INFO!C54=0," ",COUNTRY_INFO!C54))) ->  | D54: =IF(INTRO!$E$39<>"Non endémique", 0, IF(INTRO!$E$37="Non endémique",0,IF(COUNTRY_INFO!$H54=1,COUNTRY_INFO!E54,0))) -> 0 | E54: =IF(INTRO!$E$39<>"Non endémique", 0, IF(INTRO!$E$37="Non endémique",0,IF(COUNTRY_INFO!$H54=1,COUNTRY_INFO!F54,0))) -> 0 | F54: =IF(INTRO!$E$39<>"Non endémique", 0, IF(INTRO!$E$37="Non endémique",0,IF(COUNTRY_INFO!$H54=1,COUNTRY_INFO!G54,0))) -> 0 | G54: 0 | H54: =IF(INTRO!$E$39="Non endémique",IF(INTRO!$E$37="Non endémique","Non requis",COUNTRY_INFO!V54),"Traiter avec IVM") -> Traiter avec IVM | I54: 0 | J54: 0 | L54: 0
A55: =IF(INTRO!$E$39<>"Non endémique", " ", IF(INTRO!$E$37="Non endémique"," ", IF(COUNTRY_INFO!A55=0," ",COUNTRY_INFO!A55))) ->  | B55: =IF(INTRO!$E$39<>"Non endémique", " ", IF(INTRO!$E$37="Non endémique"," ", IF(COUNTRY_INFO!B55=0," ",COUNTRY_INFO!B55))) ->  | C55: =IF(INTRO!$E$39<>"Non endémique", " ", IF(INTRO!$E$37="Non endémique"," ", IF(COUNTRY_INFO!C55=0," ",COUNTRY_INFO!C55))) ->  | D55: =IF(INTRO!$E$39<>"Non endémique", 0, IF(INTRO!$E$37="Non endémique",0,IF(COUNTRY_INFO!$H55=1,COUNTRY_INFO!E55,0))) -> 0 | E55: =IF(INTRO!$E$39<>"Non endémique", 0, IF(INTRO!$E$37="Non endémique",0,IF(COUNTRY_INFO!$H55=1,COUNTRY_INFO!F55,0))) -> 0 | F55: =IF(INTRO!$E$39<>"Non endémique", 0, IF(INTRO!$E$37="Non endémique",0,IF(COUNTRY_INFO!$H55=1,COUNTRY_INFO!G55,0))) -> 0 | G55: 0 | H55: =IF(INTRO!$E$39="Non endémique",IF(INTRO!$E$37="Non endémique","Non requis",COUNTRY_INFO!V55),"Traiter avec IVM") -> Traiter avec IVM | I55: 0 | J55: 0 | L55: 0
A56: =IF(INTRO!$E$39<>"Non endémique", " ", IF(INTRO!$E$37="Non endémique"," ", IF(COUNTRY_INFO!A56=0," ",COUNTRY_INFO!A56))) ->  | B56: =IF(INTRO!$E$39<>"Non endémique", " ", IF(INTRO!$E$37="Non endémique"," ", IF(COUNTRY_INFO!B56=0," ",COUNTRY_INFO!B56))) ->  | C56: =IF(INTRO!$E$39<>"Non endémique", " ", IF(INTRO!$E$37="Non endémique"," ", IF(COUNTRY_INFO!C56=0," ",COUNTRY_INFO!C56))) ->  | D56: =IF(INTRO!$E$39<>"Non endémique", 0, IF(INTRO!$E$37="Non endémique",0,IF(COUNTRY_INFO!$H56=1,COUNTRY_INFO!E56,0))) -> 0 | E56: =IF(INTRO!$E$39<>"Non endémique", 0, IF(INTRO!$E$37="Non endémique",0,IF(COUNTRY_INFO!$H56=1,COUNTRY_INFO!F56,0))) -> 0 | F56: =IF(INTRO!$E$39<>"Non endémique", 0, IF(INTRO!$E$37="Non endémique",0,IF(COUNTRY_INFO!$H56=1,COUNTRY_INFO!G56,0))) -> 0 | G56: 0 | H56: =IF(INTRO!$E$39="Non endémique",IF(INTRO!$E$37="Non endémique","Non requis",COUNTRY_INFO!V56),"Traiter avec IVM") -> Traiter avec IVM | I56: 0 | J56: 0 | L56: 0
A57: =IF(INTRO!$E$39<>"Non endémique", " ", IF(INTRO!$E$37="Non endémique"," ", IF(COUNTRY_INFO!A57=0," ",COUNTRY_INFO!A57))) ->  | B57: =IF(INTRO!$E$39<>"Non endémique", " ", IF(INTRO!$E$37="Non endémique"," ", IF(COUNTRY_INFO!B57=0," ",COUNTRY_INFO!B57))) ->  | C57: =IF(INTRO!$E$39<>"Non endémique", " ", IF(INTRO!$E$37="Non endémique"," ", IF(COUNTRY_INFO!C57=0," ",COUNTRY_INFO!C57))) ->  | D57: =IF(INTRO!$E$39<>"Non endémique", 0, IF(INTRO!$E$37="Non endémique",0,IF(COUNTRY_INFO!$H57=1,COUNTRY_INFO!E57,0))) -> 0 | E57: =IF(INTRO!$E$39<>"Non endémique", 0, IF(INTRO!$E$37="Non endémique",0,IF(COUNTRY_INFO!$H57=1,COUNTRY_INFO!F57,0))) -> 0 | F57: =IF(INTRO!$E$39<>"Non endémique", 0, IF(INTRO!$E$37="Non endémique",0,IF(COUNTRY_INFO!$H57=1,COUNTRY_INFO!G57,0))) -> 0 | G57: 0 | H57: =IF(INTRO!$E$39="Non endémique",IF(INTRO!$E$37="Non endémique","Non requis",COUNTRY_INFO!V57),"Traiter avec IVM") -> Traiter avec IVM | I57: 0 | J57: 0 | L57: 0
A58: =IF(INTRO!$E$39<>"Non endémique", " ", IF(INTRO!$E$37="Non endémique"," ", IF(COUNTRY_INFO!A58=0," ",COUNTRY_INFO!A58))) ->  | B58: =IF(INTRO!$E$39<>"Non endémique", " ", IF(INTRO!$E$37="Non endémique"," ", IF(COUNTRY_INFO!B58=0," ",COUNTRY_INFO!B58))) ->  | C58: =IF(INTRO!$E$39<>"Non endémique", " ", IF(INTRO!$E$37="Non endémique"," ", IF(COUNTRY_INFO!C58=0," ",COUNTRY_INFO!C58))) ->  | D58: =IF(INTRO!$E$39<>"Non endémique", 0, IF(INTRO!$E$37="Non endémique",0,IF(COUNTRY_INFO!$H58=1,COUNTRY_INFO!E58,0))) -> 0 | E58: =IF(INTRO!$E$39<>"Non endémique", 0, IF(INTRO!$E$37="Non endémique",0,IF(COUNTRY_INFO!$H58=1,COUNTRY_INFO!F58,0))) -> 0 | F58: =IF(INTRO!$E$39<>"Non endémique", 0, IF(INTRO!$E$37="Non endémique",0,IF(COUNTRY_INFO!$H58=1,COUNTRY_INFO!G58,0))) -> 0 | G58: 0 | H58: =IF(INTRO!$E$39="Non endémique",IF(INTRO!$E$37="Non endémique","Non requis",COUNTRY_INFO!V58),"Traiter avec IVM") -> Traiter avec IVM | I58: 0 | J58: 0 | L58: 0
A59: =IF(INTRO!$E$39<>"Non endémique", " ", IF(INTRO!$E$37="Non endémique"," ", IF(COUNTRY_INFO!A59=0," ",COUNTRY_INFO!A59))) ->  | B59: =IF(INTRO!$E$39<>"Non endémique", " ", IF(INTRO!$E$37="Non endémique"," ", IF(COUNTRY_INFO!B59=0," ",COUNTRY_INFO!B59))) ->  | C59: =IF(INTRO!$E$39<>"Non endémique", " ", IF(INTRO!$E$37="Non endémique"," ", IF(COUNTRY_INFO!C59=0," ",COUNTRY_INFO!C59))) ->  | D59: =IF(INTRO!$E$39<>"Non endémique", 0, IF(INTRO!$E$37="Non endémique",0,IF(COUNTRY_INFO!$H59=1,COUNTRY_INFO!E59,0))) -> 0 | E59: =IF(INTRO!$E$39<>"Non endémique", 0, IF(INTRO!$E$37="Non endémique",0,IF(COUNTRY_INFO!$H59=1,COUNTRY_INFO!F59,0))) -> 0 | F59: =IF(INTRO!$E$39<>"Non endémique", 0, IF(INTRO!$E$37="Non endémique",0,IF(COUNTRY_INFO!$H59=1,COUNTRY_INFO!G59,0))) -> 0 | G59: 0 | H59: =IF(INTRO!$E$39="Non endémique",IF(INTRO!$E$37="Non endémique","Non requis",COUNTRY_INFO!V59),"Traiter avec IVM") -> Traiter avec IVM | I59: 0 | J59: 0 | L59: 0
A60: =IF(INTRO!$E$39<>"Non endémique", " ", IF(INTRO!$E$37="Non endémique"," ", IF(COUNTRY_INFO!A60=0," ",COUNTRY_INFO!A60))) ->  | B60: =IF(INTRO!$E$39<>"Non endémique", " ", IF(INTRO!$E$37="Non endémique"," ", IF(COUNTRY_INFO!B60=0," ",COUNTRY_INFO!B60))) ->  | C60: =IF(INTRO!$E$39<>"Non endémique", " ", IF(INTRO!$E$37="Non endémique"," ", IF(COUNTRY_INFO!C60=0," ",COUNTRY_INFO!C60))) ->  | D60: =IF(INTRO!$E$39<>"Non endémique", 0, IF(INTRO!$E$37="Non endémique",0,IF(COUNTRY_INFO!$H60=1,COUNTRY_INFO!E60,0))) -> 0 | E60: =IF(INTRO!$E$39<>"Non endémique", 0, IF(INTRO!$E$37="Non endémique",0,IF(COUNTRY_INFO!$H60=1,COUNTRY_INFO!F60,0))) -> 0 | F60: =IF(INTRO!$E$39<>"Non endémique", 0, IF(INTRO!$E$37="Non endémique",0,IF(COUNTRY_INFO!$H60=1,COUNTRY_INFO!G60,0))) -> 0 | G60: 0 | H60: =IF(INTRO!$E$39="Non endémique",IF(INTRO!$E$37="Non endémique","Non requis",COUNTRY_INFO!V60),"Traiter avec IVM") -> Traiter avec IVM | I60: 0 | J60: 0 | L60: 0
A61: =IF(INTRO!$E$39<>"Non endémique", " ", IF(INTRO!$E$37="Non endémique"," ", IF(COUNTRY_INFO!A61=0," ",COUNTRY_INFO!A61))) ->  | B61: =IF(INTRO!$E$39<>"Non endémique", " ", IF(INTRO!$E$37="Non endémique"," ", IF(COUNTRY_INFO!B61=0," ",COUNTRY_INFO!B61))) ->  | C61: =IF(INTRO!$E$39<>"Non endémique", " ", IF(INTRO!$E$37="Non endémique"," ", IF(COUNTRY_INFO!C61=0," ",COUNTRY_INFO!C61))) ->  | D61: =IF(INTRO!$E$39<>"Non endémique", 0, IF(INTRO!$E$37="Non endémique",0,IF(COUNTRY_INFO!$H61=1,COUNTRY_INFO!E61,0))) -> 0 | E61: =IF(INTRO!$E$39<>"Non endémique", 0, IF(INTRO!$E$37="Non endémique",0,IF(COUNTRY_INFO!$H61=1,COUNTRY_INFO!F61,0))) -> 0 | F61: =IF(INTRO!$E$39<>"Non endémique", 0, IF(INTRO!$E$37="Non endémique",0,IF(COUNTRY_INFO!$H61=1,COUNTRY_INFO!G61,0))) -> 0 | G61: 0 | H61: =IF(INTRO!$E$39="Non endémique",IF(INTRO!$E$37="Non endémique","Non requis",COUNTRY_INFO!V61),"Traiter avec IVM") -> Traiter avec IVM | I61: 0 | J61: 0 | L61: 0
A62: =IF(INTRO!$E$39<>"Non endémique", " ", IF(INTRO!$E$37="Non endémique"," ", IF(COUNTRY_INFO!A62=0," ",COUNTRY_INFO!A62))) ->  | B62: =IF(INTRO!$E$39<>"Non endémique", " ", IF(INTRO!$E$37="Non endémique"," ", IF(COUNTRY_INFO!B62=0," ",COUNTRY_INFO!B62))) ->  | C62: =IF(INTRO!$E$39<>"Non endémique", " ", IF(INTRO!$E$37="Non endémique"," ", IF(COUNTRY_INFO!C62=0," ",COUNTRY_INFO!C62))) ->  | D62: =IF(INTRO!$E$39<>"Non endémique", 0, IF(INTRO!$E$37="Non endémique",0,IF(COUNTRY_INFO!$H62=1,COUNTRY_INFO!E62,0))) -> 0 | E62: =IF(INTRO!$E$39<>"Non endémique", 0, IF(INTRO!$E$37="Non endémique",0,IF(COUNTRY_INFO!$H62=1,COUNTRY_INFO!F62,0))) -> 0 | F62: =IF(INTRO!$E$39<>"Non endémique", 0, IF(INTRO!$E$37="Non endémique",0,IF(COUNTRY_INFO!$H62=1,COUNTRY_INFO!G62,0))) -> 0 | G62: 0 | H62: =IF(INTRO!$E$39="Non endémique",IF(INTRO!$E$37="Non endémique","Non requis",COUNTRY_INFO!V62),"Traiter avec IVM") -> Traiter avec IVM | I62: 0 | J62: 0 | L62: 0
A63: =IF(INTRO!$E$39<>"Non endémique", " ", IF(INTRO!$E$37="Non endémique"," ", IF(COUNTRY_INFO!A63=0," ",COUNTRY_INFO!A63))) ->  | B63: =IF(INTRO!$E$39<>"Non endémique", " ", IF(INTRO!$E$37="Non endémique"," ", IF(COUNTRY_INFO!B63=0," ",COUNTRY_INFO!B63))) ->  | C63: =IF(INTRO!$E$39<>"Non endémique", " ", IF(INTRO!$E$37="Non endémique"," ", IF(COUNTRY_INFO!C63=0," ",COUNTRY_INFO!C63))) ->  | D63: =IF(INTRO!$E$39<>"Non endémique", 0, IF(INTRO!$E$37="Non endémique",0,IF(COUNTRY_INFO!$H63=1,COUNTRY_INFO!E63,0))) -> 0 | E63: =IF(INTRO!$E$39<>"Non endémique", 0, IF(INTRO!$E$37="Non endémique",0,IF(COUNTRY_INFO!$H63=1,COUNTRY_INFO!F63,0))) -> 0 | F63: =IF(INTRO!$E$39<>"Non endémique", 0, IF(INTRO!$E$37="Non endémique",0,IF(COUNTRY_INFO!$H63=1,COUNTRY_INFO!G63,0))) -> 0 | G63: 0 | H63: =IF(INTRO!$E$39="Non endémique",IF(INTRO!$E$37="Non endémique","Non requis",COUNTRY_INFO!V63),"Traiter avec IVM") -> Traiter avec IVM | I63: 0 | J63: 0 | L63: 0
A64: =IF(INTRO!$E$39<>"Non endémique", " ", IF(INTRO!$E$37="Non endémique"," ", IF(COUNTRY_INFO!A64=0," ",COUNTRY_INFO!A64))) ->  | B64: =IF(INTRO!$E$39<>"Non endémique", " ", IF(INTRO!$E$37="Non endémique"," ", IF(COUNTRY_INFO!B64=0," ",COUNTRY_INFO!B64))) ->  | C64: =IF(INTRO!$E$39<>"Non endémique", " ", IF(INTRO!$E$37="Non endémique"," ", IF(COUNTRY_INFO!C64=0," ",COUNTRY_INFO!C64))) ->  | D64: =IF(INTRO!$E$39<>"Non endémique", 0, IF(INTRO!$E$37="Non endémique",0,IF(COUNTRY_INFO!$H64=1,COUNTRY_INFO!E64,0))) -> 0 | E64: =IF(INTRO!$E$39<>"Non endémique", 0, IF(INTRO!$E$37="Non endémique",0,IF(COUNTRY_INFO!$H64=1,COUNTRY_INFO!F64,0))) -> 0 | F64: =IF(INTRO!$E$39<>"Non endémique", 0, IF(INTRO!$E$37="Non endémique",0,IF(COUNTRY_INFO!$H64=1,COUNTRY_INFO!G64,0))) -> 0 | G64: 0 | H64: =IF(INTRO!$E$39="Non endémique",IF(INTRO!$E$37="Non endémique","Non requis",COUNTRY_INFO!V64),"Traiter avec IVM") -> Traiter avec IVM | I64: 0 | J64: 0 | L64: 0
A65: =IF(INTRO!$E$39<>"Non endémique", " ", IF(INTRO!$E$37="Non endémique"," ", IF(COUNTRY_INFO!A65=0," ",COUNTRY_INFO!A65))) ->  | B65: =IF(INTRO!$E$39<>"Non endémique", " ", IF(INTRO!$E$37="Non endémique"," ", IF(COUNTRY_INFO!B65=0," ",COUNTRY_INFO!B65))) ->  | C65: =IF(INTRO!$E$39<>"Non endémique", " ", IF(INTRO!$E$37="Non endémique"," ", IF(COUNTRY_INFO!C65=0," ",COUNTRY_INFO!C65))) ->  | D65: =IF(INTRO!$E$39<>"Non endémique", 0, IF(INTRO!$E$37="Non endémique",0,IF(COUNTRY_INFO!$H65=1,COUNTRY_INFO!E65,0))) -> 0 | E65: =IF(INTRO!$E$39<>"Non endémique", 0, IF(INTRO!$E$37="Non endémique",0,IF(COUNTRY_INFO!$H65=1,COUNTRY_INFO!F65,0))) -> 0 | F65: =IF(INTRO!$E$39<>"Non endémique", 0, IF(INTRO!$E$37="Non endémique",0,IF(COUNTRY_INFO!$H65=1,COUNTRY_INFO!G65,0))) -> 0 | G65: 0 | H65: =IF(INTRO!$E$39="Non endémique",IF(INTRO!$E$37="Non endémique","Non requis",COUNTRY_INFO!V65),"Traiter avec IVM") -> Traiter avec IVM | I65: 0 | J65: 0 | L65: 0
A66: =IF(INTRO!$E$39<>"Non endémique", " ", IF(INTRO!$E$37="Non endémique"," ", IF(COUNTRY_INFO!A66=0," ",COUNTRY_INFO!A66))) ->  | B66: =IF(INTRO!$E$39<>"Non endémique", " ", IF(INTRO!$E$37="Non endémique"," ", IF(COUNTRY_INFO!B66=0," ",COUNTRY_INFO!B66))) ->  | C66: =IF(INTRO!$E$39<>"Non endémique", " ", IF(INTRO!$E$37="Non endémique"," ", IF(COUNTRY_INFO!C66=0," ",COUNTRY_INFO!C66))) ->  | D66: =IF(INTRO!$E$39<>"Non endémique", 0, IF(INTRO!$E$37="Non endémique",0,IF(COUNTRY_INFO!$H66=1,COUNTRY_INFO!E66,0))) -> 0 | E66: =IF(INTRO!$E$39<>"Non endémique", 0, IF(INTRO!$E$37="Non endémique",0,IF(COUNTRY_INFO!$H66=1,COUNTRY_INFO!F66,0))) -> 0 | F66: =IF(INTRO!$E$39<>"Non endémique", 0, IF(INTRO!$E$37="Non endémique",0,IF(COUNTRY_INFO!$H66=1,COUNTRY_INFO!G66,0))) -> 0 | G66: 0 | H66: =IF(INTRO!$E$39="Non endémique",IF(INTRO!$E$37="Non endémique","Non requis",COUNTRY_INFO!V66),"Traiter avec IVM") -> Traiter avec IVM | I66: 0 | J66: 0 | L66: 0
A67: =IF(INTRO!$E$39<>"Non endémique", " ", IF(INTRO!$E$37="Non endémique"," ", IF(COUNTRY_INFO!A67=0," ",COUNTRY_INFO!A67))) ->  | B67: =IF(INTRO!$E$39<>"Non endémique", " ", IF(INTRO!$E$37="Non endémique"," ", IF(COUNTRY_INFO!B67=0," ",COUNTRY_INFO!B67))) ->  | C67: =IF(INTRO!$E$39<>"Non endémique", " ", IF(INTRO!$E$37="Non endémique"," ", IF(COUNTRY_INFO!C67=0," ",COUNTRY_INFO!C67))) ->  | D67: =IF(INTRO!$E$39<>"Non endémique", 0, IF(INTRO!$E$37="Non endémique",0,IF(COUNTRY_INFO!$H67=1,COUNTRY_INFO!E67,0))) -> 0 | E67: =IF(INTRO!$E$39<>"Non endémique", 0, IF(INTRO!$E$37="Non endémique",0,IF(COUNTRY_INFO!$H67=1,COUNTRY_INFO!F67,0))) -> 0 | F67: =IF(INTRO!$E$39<>"Non endémique", 0, IF(INTRO!$E$37="Non endémique",0,IF(COUNTRY_INFO!$H67=1,COUNTRY_INFO!G67,0))) -> 0 | G67: 0 | H67: =IF(INTRO!$E$39="Non endémique",IF(INTRO!$E$37="Non endémique","Non requis",COUNTRY_INFO!V67),"Traiter avec IVM") -> Traiter avec IVM | I67: 0 | J67: 0 | L67: 0
A68: =IF(INTRO!$E$39<>"Non endémique", " ", IF(INTRO!$E$37="Non endémique"," ", IF(COUNTRY_INFO!A68=0," ",COUNTRY_INFO!A68))) ->  | B68: =IF(INTRO!$E$39<>"Non endémique", " ", IF(INTRO!$E$37="Non endémique"," ", IF(COUNTRY_INFO!B68=0," ",COUNTRY_INFO!B68))) ->  | C68: =IF(INTRO!$E$39<>"Non endémique", " ", IF(INTRO!$E$37="Non endémique"," ", IF(COUNTRY_INFO!C68=0," ",COUNTRY_INFO!C68))) ->  | D68: =IF(INTRO!$E$39<>"Non endémique", 0, IF(INTRO!$E$37="Non endémique",0,IF(COUNTRY_INFO!$H68=1,COUNTRY_INFO!E68,0))) -> 0 | E68: =IF(INTRO!$E$39<>"Non endémique", 0, IF(INTRO!$E$37="Non endémique",0,IF(COUNTRY_INFO!$H68=1,COUNTRY_INFO!F68,0))) -> 0 | F68: =IF(INTRO!$E$39<>"Non endémique", 0, IF(INTRO!$E$37="Non endémique",0,IF(COUNTRY_INFO!$H68=1,COUNTRY_INFO!G68,0))) -> 0 | G68: 0 | H68: =IF(INTRO!$E$39="Non endémique",IF(INTRO!$E$37="Non endémique","Non requis",COUNTRY_INFO!V68),"Traiter avec IVM") -> Traiter avec IVM | I68: 0 | J68: 0 | L68: 0
A69: =IF(INTRO!$E$39<>"Non endémique", " ", IF(INTRO!$E$37="Non endémique"," ", IF(COUNTRY_INFO!A69=0," ",COUNTRY_INFO!A69))) ->  | B69: =IF(INTRO!$E$39<>"Non endémique", " ", IF(INTRO!$E$37="Non endémique"," ", IF(COUNTRY_INFO!B69=0," ",COUNTRY_INFO!B69))) ->  | C69: =IF(INTRO!$E$39<>"Non endémique", " ", IF(INTRO!$E$37="Non endémique"," ", IF(COUNTRY_INFO!C69=0," ",COUNTRY_INFO!C69))) ->  | D69: =IF(INTRO!$E$39<>"Non endémique", 0, IF(INTRO!$E$37="Non endémique",0,IF(COUNTRY_INFO!$H69=1,COUNTRY_INFO!E69,0))) -> 0 | E69: =IF(INTRO!$E$39<>"Non endémique", 0, IF(INTRO!$E$37="Non endémique",0,IF(COUNTRY_INFO!$H69=1,COUNTRY_INFO!F69,0))) -> 0 | F69: =IF(INTRO!$E$39<>"Non endémique", 0, IF(INTRO!$E$37="Non endémique",0,IF(COUNTRY_INFO!$H69=1,COUNTRY_INFO!G69,0))) -> 0 | G69: 0 | H69: =IF(INTRO!$E$39="Non endémique",IF(INTRO!$E$37="Non endémique","Non requis",COUNTRY_INFO!V69),"Traiter avec IVM") -> Traiter avec IVM | I69: 0 | J69: 0 | L69: 0
A70: =IF(INTRO!$E$39<>"Non endémique", " ", IF(INTRO!$E$37="Non endémique"," ", IF(COUNTRY_INFO!A70=0," ",COUNTRY_INFO!A70))) ->  | B70: =IF(INTRO!$E$39<>"Non endémique", " ", IF(INTRO!$E$37="Non endémique"," ", IF(COUNTRY_INFO!B70=0," ",COUNTRY_INFO!B70))) ->  | C70: =IF(INTRO!$E$39<>"Non endémique", " ", IF(INTRO!$E$37="Non endémique"," ", IF(COUNTRY_INFO!C70=0," ",COUNTRY_INFO!C70))) ->  | D70: =IF(INTRO!$E$39<>"Non endémique", 0, IF(INTRO!$E$37="Non endémique",0,IF(COUNTRY_INFO!$H70=1,COUNTRY_INFO!E70,0))) -> 0 | E70: =IF(INTRO!$E$39<>"Non endémique", 0, IF(INTRO!$E$37="Non endémique",0,IF(COUNTRY_INFO!$H70=1,COUNTRY_INFO!F70,0))) -> 0 | F70: =IF(INTRO!$E$39<>"Non endémique", 0, IF(INTRO!$E$37="Non endémique",0,IF(COUNTRY_INFO!$H70=1,COUNTRY_INFO!G70,0))) -> 0 | G70: 0 | H70: =IF(INTRO!$E$39="Non endémique",IF(INTRO!$E$37="Non endémique","Non requis",COUNTRY_INFO!V70),"Traiter avec IVM") -> Traiter avec IVM | I70: 0 | J70: 0 | L70: 0
A71: =IF(INTRO!$E$39<>"Non endémique", " ", IF(INTRO!$E$37="Non endémique"," ", IF(COUNTRY_INFO!A71=0," ",COUNTRY_INFO!A71))) ->  | B71: =IF(INTRO!$E$39<>"Non endémique", " ", IF(INTRO!$E$37="Non endémique"," ", IF(COUNTRY_INFO!B71=0," ",COUNTRY_INFO!B71))) ->  | C71: =IF(INTRO!$E$39<>"Non endémique", " ", IF(INTRO!$E$37="Non endémique"," ", IF(COUNTRY_INFO!C71=0," ",COUNTRY_INFO!C71))) ->  | D71: =IF(INTRO!$E$39<>"Non endémique", 0, IF(INTRO!$E$37="Non endémique",0,IF(COUNTRY_INFO!$H71=1,COUNTRY_INFO!E71,0))) -> 0 | E71: =IF(INTRO!$E$39<>"Non endémique", 0, IF(INTRO!$E$37="Non endémique",0,IF(COUNTRY_INFO!$H71=1,COUNTRY_INFO!F71,0))) -> 0 | F71: =IF(INTRO!$E$39<>"Non endémique", 0, IF(INTRO!$E$37="Non endémique",0,IF(COUNTRY_INFO!$H71=1,COUNTRY_INFO!G71,0))) -> 0 | G71: 0 | H71: =IF(INTRO!$E$39="Non endémique",IF(INTRO!$E$37="Non endémique","Non requis",COUNTRY_INFO!V71),"Traiter avec IVM") -> Traiter avec IVM | I71: 0 | J71: 0 | L71: 0
A72: =IF(INTRO!$E$39<>"Non endémique", " ", IF(INTRO!$E$37="Non endémique"," ", IF(COUNTRY_INFO!A72=0," ",COUNTRY_INFO!A72))) ->  | B72: =IF(INTRO!$E$39<>"Non endémique", " ", IF(INTRO!$E$37="Non endémique"," ", IF(COUNTRY_INFO!B72=0," ",COUNTRY_INFO!B72))) ->  | C72: =IF(INTRO!$E$39<>"Non endémique", " ", IF(INTRO!$E$37="Non endémique"," ", IF(COUNTRY_INFO!C72=0," ",COUNTRY_INFO!C72))) ->  | D72: =IF(INTRO!$E$39<>"Non endémique", 0, IF(INTRO!$E$37="Non endémique",0,IF(COUNTRY_INFO!$H72=1,COUNTRY_INFO!E72,0))) -> 0 | E72: =IF(INTRO!$E$39<>"Non endémique", 0, IF(INTRO!$E$37="Non endémique",0,IF(COUNTRY_INFO!$H72=1,COUNTRY_INFO!F72,0))) -> 0 | F72: =IF(INTRO!$E$39<>"Non endémique", 0, IF(INTRO!$E$37="Non endémique",0,IF(COUNTRY_INFO!$H72=1,COUNTRY_INFO!G72,0))) -> 0 | G72: 0 | H72: =IF(INTRO!$E$39="Non endémique",IF(INTRO!$E$37="Non endémique","Non requis",COUNTRY_INFO!V72),"Traiter avec IVM") -> Traiter avec IVM | I72: 0 | J72: 0 | L72: 0
A73: =IF(INTRO!$E$39<>"Non endémique", " ", IF(INTRO!$E$37="Non endémique"," ", IF(COUNTRY_INFO!A73=0," ",COUNTRY_INFO!A73))) ->  | B73: =IF(INTRO!$E$39<>"Non endémique", " ", IF(INTRO!$E$37="Non endémique"," ", IF(COUNTRY_INFO!B73=0," ",COUNTRY_INFO!B73))) ->  | C73: =IF(INTRO!$E$39<>"Non endémique", " ", IF(INTRO!$E$37="Non endémique"," ", IF(COUNTRY_INFO!C73=0," ",COUNTRY_INFO!C73))) ->  | D73: =IF(INTRO!$E$39<>"Non endémique", 0, IF(INTRO!$E$37="Non endémique",0,IF(COUNTRY_INFO!$H73=1,COUNTRY_INFO!E73,0))) -> 0 | E73: =IF(INTRO!$E$39<>"Non endémique", 0, IF(INTRO!$E$37="Non endémique",0,IF(COUNTRY_INFO!$H73=1,COUNTRY_INFO!F73,0))) -> 0 | F73: =IF(INTRO!$E$39<>"Non endémique", 0, IF(INTRO!$E$37="Non endémique",0,IF(COUNTRY_INFO!$H73=1,COUNTRY_INFO!G73,0))) -> 0 | G73: 0 | H73: =IF(INTRO!$E$39="Non endémique",IF(INTRO!$E$37="Non endémique","Non requis",COUNTRY_INFO!V73),"Traiter avec IVM") -> Traiter avec IVM | I73: 0 | J73: 0 | L73: 0
A74: =IF(INTRO!$E$39<>"Non endémique", " ", IF(INTRO!$E$37="Non endémique"," ", IF(COUNTRY_INFO!A74=0," ",COUNTRY_INFO!A74))) ->  | B74: =IF(INTRO!$E$39<>"Non endémique", " ", IF(INTRO!$E$37="Non endémique"," ", IF(COUNTRY_INFO!B74=0," ",COUNTRY_INFO!B74))) ->  | C74: =IF(INTRO!$E$39<>"Non endémique", " ", IF(INTRO!$E$37="Non endémique"," ", IF(COUNTRY_INFO!C74=0," ",COUNTRY_INFO!C74))) ->  | D74: =IF(INTRO!$E$39<>"Non endémique", 0, IF(INTRO!$E$37="Non endémique",0,IF(COUNTRY_INFO!$H74=1,COUNTRY_INFO!E74,0))) -> 0 | E74: =IF(INTRO!$E$39<>"Non endémique", 0, IF(INTRO!$E$37="Non endémique",0,IF(COUNTRY_INFO!$H74=1,COUNTRY_INFO!F74,0))) -> 0 | F74: =IF(INTRO!$E$39<>"Non endémique", 0, IF(INTRO!$E$37="Non endémique",0,IF(COUNTRY_INFO!$H74=1,COUNTRY_INFO!G74,0))) -> 0 | G74: 0 | H74: =IF(INTRO!$E$39="Non endémique",IF(INTRO!$E$37="Non endémique","Non requis",COUNTRY_INFO!V74),"Traiter avec IVM") -> Traiter avec IVM | I74: 0 | J74: 0 | L74: 0
A75: =IF(INTRO!$E$39<>"Non endémique", " ", IF(INTRO!$E$37="Non endémique"," ", IF(COUNTRY_INFO!A75=0," ",COUNTRY_INFO!A75))) ->  | B75: =IF(INTRO!$E$39<>"Non endémique", " ", IF(INTRO!$E$37="Non endémique"," ", IF(COUNTRY_INFO!B75=0," ",COUNTRY_INFO!B75))) ->  | C75: =IF(INTRO!$E$39<>"Non endémique", " ", IF(INTRO!$E$37="Non endémique"," ", IF(COUNTRY_INFO!C75=0," ",COUNTRY_INFO!C75))) ->  | D75: =IF(INTRO!$E$39<>"Non endémique", 0, IF(INTRO!$E$37="Non endémique",0,IF(COUNTRY_INFO!$H75=1,COUNTRY_INFO!E75,0))) -> 0 | E75: =IF(INTRO!$E$39<>"Non endémique", 0, IF(INTRO!$E$37="Non endémique",0,IF(COUNTRY_INFO!$H75=1,COUNTRY_INFO!F75,0))) -> 0 | F75: =IF(INTRO!$E$39<>"Non endémique", 0, IF(INTRO!$E$37="Non endémique",0,IF(COUNTRY_INFO!$H75=1,COUNTRY_INFO!G75,0))) -> 0 | G75: =SUM(D75:F75) -> 0 | H75: =IF(INTRO!$E$39="Non endémique",IF(INTRO!$E$37="Non endémique","Non requis",COUNTRY_INFO!V75),"Traiter avec IVM") -> Traiter avec IVM | I75: =IF(H75=1,G75,0) -> 0 | J75: =IF(I75>0,I75*2.5,0) -> 0 | L75: 0
A76: =IF(INTRO!$E$39<>"Non endémique", " ", IF(INTRO!$E$37="Non endémique"," ", IF(COUNTRY_INFO!A76=0," ",COUNTRY_INFO!A76))) ->  | B76: =IF(INTRO!$E$39<>"Non endémique", " ", IF(INTRO!$E$37="Non endémique"," ", IF(COUNTRY_INFO!B76=0," ",COUNTRY_INFO!B76))) ->  | C76: =IF(INTRO!$E$39<>"Non endémique", " ", IF(INTRO!$E$37="Non endémique"," ", IF(COUNTRY_INFO!C76=0," ",COUNTRY_INFO!C76))) ->  | D76: =IF(INTRO!$E$39<>"Non endémique", 0, IF(INTRO!$E$37="Non endémique",0,IF(COUNTRY_INFO!$H76=1,COUNTRY_INFO!E76,0))) -> 0 | E76: =IF(INTRO!$E$39<>"Non endémique", 0, IF(INTRO!$E$37="Non endémique",0,IF(COUNTRY_INFO!$H76=1,COUNTRY_INFO!F76,0))) -> 0 | F76: =IF(INTRO!$E$39<>"Non endémique", 0, IF(INTRO!$E$37="Non endémique",0,IF(COUNTRY_INFO!$H76=1,COUNTRY_INFO!G76,0))) -> 0 | G76: 0 | H76: =IF(INTRO!$E$39="Non endémique",IF(INTRO!$E$37="Non endémique","Non requis",COUNTRY_INFO!V76),"Traiter avec IVM") -> Traiter avec IVM | I76: 0 | J76: 0 | L76: 0
A77: =IF(INTRO!$E$39<>"Non endémique", " ", IF(INTRO!$E$37="Non endémique"," ", IF(COUNTRY_INFO!A77=0," ",COUNTRY_INFO!A77))) ->  | B77: =IF(INTRO!$E$39<>"Non endémique", " ", IF(INTRO!$E$37="Non endémique"," ", IF(COUNTRY_INFO!B77=0," ",COUNTRY_INFO!B77))) ->  | C77: =IF(INTRO!$E$39<>"Non endémique", " ", IF(INTRO!$E$37="Non endémique"," ", IF(COUNTRY_INFO!C77=0," ",COUNTRY_INFO!C77))) ->  | D77: =IF(INTRO!$E$39<>"Non endémique", 0, IF(INTRO!$E$37="Non endémique",0,IF(COUNTRY_INFO!$H77=1,COUNTRY_INFO!E77,0))) -> 0 | E77: =IF(INTRO!$E$39<>"Non endémique", 0, IF(INTRO!$E$37="Non endémique",0,IF(COUNTRY_INFO!$H77=1,COUNTRY_INFO!F77,0))) -> 0 | F77: =IF(INTRO!$E$39<>"Non endémique", 0, IF(INTRO!$E$37="Non endémique",0,IF(COUNTRY_INFO!$H77=1,COUNTRY_INFO!G77,0))) -> 0 | G77: 0 | H77: =IF(INTRO!$E$39="Non endémique",IF(INTRO!$E$37="Non endémique","Non requis",COUNTRY_INFO!V77),"Traiter avec IVM") -> Traiter avec IVM | I77: 0 | J77: 0 | L77: 0
A78: =IF(INTRO!$E$39<>"Non endémique", " ", IF(INTRO!$E$37="Non endémique"," ", IF(COUNTRY_INFO!A78=0," ",COUNTRY_INFO!A78))) ->  | B78: =IF(INTRO!$E$39<>"Non endémique", " ", IF(INTRO!$E$37="Non endémique"," ", IF(COUNTRY_INFO!B78=0," ",COUNTRY_INFO!B78))) ->  | C78: =IF(INTRO!$E$39<>"Non endémique", " ", IF(INTRO!$E$37="Non endémique"," ", IF(COUNTRY_INFO!C78=0," ",COUNTRY_INFO!C78))) ->  | D78: =IF(INTRO!$E$39<>"Non endémique", 0, IF(INTRO!$E$37="Non endémique",0,IF(COUNTRY_INFO!$H78=1,COUNTRY_INFO!E78,0))) -> 0 | E78: =IF(INTRO!$E$39<>"Non endémique", 0, IF(INTRO!$E$37="Non endémique",0,IF(COUNTRY_INFO!$H78=1,COUNTRY_INFO!F78,0))) -> 0 | F78: =IF(INTRO!$E$39<>"Non endémique", 0, IF(INTRO!$E$37="Non endémique",0,IF(COUNTRY_INFO!$H78=1,COUNTRY_INFO!G78,0))) -> 0 | G78: 0 | H78: =IF(INTRO!$E$39="Non endémique",IF(INTRO!$E$37="Non endémique","Non requis",COUNTRY_INFO!V78),"Traiter avec IVM") -> Traiter avec IVM | I78: 0 | J78: 0 | L78: 0
A79: =IF(INTRO!$E$39<>"Non endémique", " ", IF(INTRO!$E$37="Non endémique"," ", IF(COUNTRY_INFO!A79=0," ",COUNTRY_INFO!A79))) ->  | B79: =IF(INTRO!$E$39<>"Non endémique", " ", IF(INTRO!$E$37="Non endémique"," ", IF(COUNTRY_INFO!B79=0," ",COUNTRY_INFO!B79))) ->  | C79: =IF(INTRO!$E$39<>"Non endémique", " ", IF(INTRO!$E$37="Non endémique"," ", IF(COUNTRY_INFO!C79=0," ",COUNTRY_INFO!C79))) ->  | D79: =IF(INTRO!$E$39<>"Non endémique", 0, IF(INTRO!$E$37="Non endémique",0,IF(COUNTRY_INFO!$H79=1,COUNTRY_INFO!E79,0))) -> 0 | E79: =IF(INTRO!$E$39<>"Non endémique", 0, IF(INTRO!$E$37="Non endémique",0,IF(COUNTRY_INFO!$H79=1,COUNTRY_INFO!F79,0))) -> 0 | F79: =IF(INTRO!$E$39<>"Non endémique", 0, IF(INTRO!$E$37="Non endémique",0,IF(COUNTRY_INFO!$H79=1,COUNTRY_INFO!G79,0))) -> 0 | G79: 0 | H79: =IF(INTRO!$E$39="Non endémique",IF(INTRO!$E$37="Non endémique","Non requis",COUNTRY_INFO!V79),"Traiter avec IVM") -> Traiter avec IVM | I79: 0 | J79: 0 | L79: 0
A80: =IF(INTRO!$E$39<>"Non endémique", " ", IF(INTRO!$E$37="Non endémique"," ", IF(COUNTRY_INFO!A80=0," ",COUNTRY_INFO!A80))) ->  | B80: =IF(INTRO!$E$39<>"Non endémique", " ", IF(INTRO!$E$37="Non endémique"," ", IF(COUNTRY_INFO!B80=0," ",COUNTRY_INFO!B80))) ->  | C80: =IF(INTRO!$E$39<>"Non endémique", " ", IF(INTRO!$E$37="Non endémique"," ", IF(COUNTRY_INFO!C80=0," ",COUNTRY_INFO!C80))) ->  | D80: =IF(INTRO!$E$39<>"Non endémique", 0, IF(INTRO!$E$37="Non endémique",0,IF(COUNTRY_INFO!$H80=1,COUNTRY_INFO!E80,0))) -> 0 | E80: =IF(INTRO!$E$39<>"Non endémique", 0, IF(INTRO!$E$37="Non endémique",0,IF(COUNTRY_INFO!$H80=1,COUNTRY_INFO!F80,0))) -> 0 | F80: =IF(INTRO!$E$39<>"Non endémique", 0, IF(INTRO!$E$37="Non endémique",0,IF(COUNTRY_INFO!$H80=1,COUNTRY_INFO!G80,0))) -> 0 | G80: 0 | H80: =IF(INTRO!$E$39="Non endémique",IF(INTRO!$E$37="Non endémique","Non requis",COUNTRY_INFO!V80),"Traiter avec IVM") -> Traiter avec IVM | I80: 0 | J80: 0 | L80: 0
A81: =IF(INTRO!$E$39<>"Non endémique", " ", IF(INTRO!$E$37="Non endémique"," ", IF(COUNTRY_INFO!A81=0," ",COUNTRY_INFO!A81))) ->  | B81: =IF(INTRO!$E$39<>"Non endémique", " ", IF(INTRO!$E$37="Non endémique"," ", IF(COUNTRY_INFO!B81=0," ",COUNTRY_INFO!B81))) ->  | C81: =IF(INTRO!$E$39<>"Non endémique", " ", IF(INTRO!$E$37="Non endémique"," ", IF(COUNTRY_INFO!C81=0," ",COUNTRY_INFO!C81))) ->  | D81: =IF(INTRO!$E$39<>"Non endémique", 0, IF(INTRO!$E$37="Non endémique",0,IF(COUNTRY_INFO!$H81=1,COUNTRY_INFO!E81,0))) -> 0 | E81: =IF(INTRO!$E$39<>"Non endémique", 0, IF(INTRO!$E$37="Non endémique",0,IF(COUNTRY_INFO!$H81=1,COUNTRY_INFO!F81,0))) -> 0 | F81: =IF(INTRO!$E$39<>"Non endémique", 0, IF(INTRO!$E$37="Non endémique",0,IF(COUNTRY_INFO!$H81=1,COUNTRY_INFO!G81,0))) -> 0 | G81: 0 | H81: =IF(INTRO!$E$39="Non endémique",IF(INTRO!$E$37="Non endémique","Non requis",COUNTRY_INFO!V81),"Traiter avec IVM") -> Traiter avec IVM | I81: 0 | J81: 0 | L81: 0

Sheet ALB_MBD
A1: Albendazole (ALB) et Mebendazole (MBD) | G1: Choisir le médicament pour le traitement de STH pour chaque groupe d'âge
A2: Structure administrative, population ciblée par groupe d'âge, plan de traitement et information sur les comprimés | I2: ALB
A4: TOTAL | F4: =SUBTOTAL(9,F$10:F$1010) -> 0 | H4: =SUBTOTAL(9,H$10:H$1010) -> 0 | I4: 0 | K4: 0 | L4: 0 | M4: 0 | N4: 0 | O4: 0 | P4: 0 | Q4: 0 | R4: 0 | S4: 0 | T4: 0 | U4: 0
A6: Structure administrative du pays | D6: Plan de traitement | F6: Population couverte par le PEFL avec ALB | G6: Population cible pour STH | M6: Albendazole (ALB) | S6: Mebendazole (MBD)
A7: Pays | B7: Région/Département | C7: District | D7: FL | E7: STH | G7: EAPréS | I7: EAS | J7: FAP | L7: Total | M7: Total requis (FL) | N7: Reste en stock (FL) | O7: Comprimés devant être fournis (FL) | P7: Total requis (STH) | Q7: Reste en stock (STH) | R7: Comprimés devant être fournis (STH) | S7: Total requis | T7: Reste en stock | U7: Comprimés devant être fournis
G8: Tournées | H8: Personnes | I8: Personnes | J8: Tournées | K8: Personnes
A10: =IF(AND(INTRO!$E$37="Non endémique",INTRO!$E$41="Non endémique")," ",IF(COUNTRY_INFO!A10=0," ",COUNTRY_INFO!A10)) -> NIGER | B10: =IF(AND(INTRO!$E$37="Non endémique",INTRO!$E$41="Non endémique")," ",IF(COUNTRY_INFO!B10=0," ",COUNTRY_INFO!B10)) -> Agadez | C10: =IF(AND(INTRO!$E$37="Non endémique",INTRO!$E$41="Non endémique")," ",IF(COUNTRY_INFO!C10=0," ",COUNTRY_INFO!C10)) -> Agadez | D10: =IF(AND(INTRO!$E$37="Non endémique",INTRO!$E$41="Non endémique"),0,COUNTRY_INFO!V10) -> 0 | E10: =IF(AND(INTRO!$E$37="Non endémique",INTRO!$E$41="Non endémique"),0,COUNTRY_INFO!X10) -> 0 | F10: =IF(INTRO!$E$39="Non endémique",IF($D10=1,DEC!I10,0),IF($D10=1,IVM!G10,0)) -> 0 | H10: =IF(OR(COUNTRY_INFO!N10="Inconnu",COUNTRY_INFO!N10="Surveillance",COUNTRY_INFO!N10="Non requis",COUNTRY_INFO!N10=0),0,IF(INTRO!$E$39="Non endémique",IF(AND($E10<>0,$G10=""),IF($F10=0,COUNTRY_INFO!N10*$E10,COUNTRY_INFO!N10*($E10-$D10)),IF(AND($E10<>0,$G10<>0),IF($F10=0,COUNTRY_INFO!N10*$G10,COUNTRY_INFO!N10*($G10-$D10)),0)),IF($G10="",COUNTRY_INFO!N10*$E10,COUNTRY_INFO!N10*$G10))) -> 0 | I10: =IF(OR(COUNTRY_INFO!O10="Inconnu",COUNTRY_INFO!O10="Surveillance",COUNTRY_INFO!O10="Non requis",COUNTRY_INFO!O10=0),0,IF($E10<>0, IF($F10=0,COUNTRY_INFO!O10*$E10,COUNTRY_INFO!O10*($E10-$D10)),COUNTRY_INFO!O10*$E10)) -> 0 | K10: =IF(OR(COUNTRY_INFO!P10="Inconnu",COUNTRY_INFO!P10="Surveillance",COUNTRY_INFO!P10="Non requis",COUNTRY_INFO!P10=0),0,IF(AND($E10<>0,$J10=""),IF($F10=0,COUNTRY_INFO!P10*$E10,COUNTRY_INFO!P10*($E10-$D10)), IF(AND($E10<>0,$J10<>0),IF($F10=0,COUNTRY_INFO!P10*$J10,COUNTRY_INFO!P10*($J10-$D10)), COUNTRY_INFO!P10*$J10))) -> 0 | L10: =ROUND($H10,0)+ROUND($I10,0)+ROUND($K10,0) -> 0 | M10: =$F10 -> 0 | O10: =IF($M10>$N10, $M10-$N10,0) -> 0 | P10: =ROUND((IF($G$2="ALB",$H10,0)+IF($I$2="ALB",$I10,0)+IF($J$2="ALB",$K10,0)),0) -> 0 | R10: =IF($P10>$Q10,$P10-$Q10,0) -> 0 | S10: =ROUND((IF($G$2="MBD",$H10,0)+IF($I$2="MBD",$I10,0)+IF($J$2="MBD",$K10,0)),0) -> 0 | U10: =IF($S10>$T10,$S10-$T10,0) -> 0
A11: =IF(AND(INTRO!$E$37="Non endémique",INTRO!$E$41="Non endémique")," ",IF(COUNTRY_INFO!A11=0," ",COUNTRY_INFO!A11)) -> NIGER | B11: =IF(AND(INTRO!$E$37="Non endémique",INTRO!$E$41="Non endémique")," ",IF(COUNTRY_INFO!B11=0," ",COUNTRY_INFO!B11)) -> Agadez | C11: =IF(AND(INTRO!$E$37="Non endémique",INTRO!$E$41="Non endémique")," ",IF(COUNTRY_INFO!C11=0," ",COUNTRY_INFO!C11)) -> Arlit | D11: =IF(AND(INTRO!$E$37="Non endémique",INTRO!$E$41="Non endémique"),0,COUNTRY_INFO!V11) -> 0 | E11: =IF(AND(INTRO!$E$37="Non endémique",INTRO!$E$41="Non endémique"),0,COUNTRY_INFO!X11) -> 0 | F11: =IF(INTRO!$E$39="Non endémique",IF($D11=1,DEC!I11,0),IF($D11=1,IVM!G11,0)) -> 0 | H11: =IF(OR(COUNTRY_INFO!N11="Inconnu",COUNTRY_INFO!N11="Surveillance",COUNTRY_INFO!N11="Non requis",COUNTRY_INFO!N11=0),0,IF(INTRO!$E$39="Non endémique",IF(AND($E11<>0,$G11=""),IF($F11=0,COUNTRY_INFO!N11*$E11,COUNTRY_INFO!N11*($E11-$D11)),IF(AND($E11<>0,$G11<>0),IF($F11=0,COUNTRY_INFO!N11*$G11,COUNTRY_INFO!N11*($G11-$D11)),0)),IF($G11="",COUNTRY_INFO!N11*$E11,COUNTRY_INFO!N11*$G11))) -> 0 | I11: =IF(OR(COUNTRY_INFO!O11="Inconnu",COUNTRY_INFO!O11="Surveillance",COUNTRY_INFO!O11="Non requis",COUNTRY_INFO!O11=0),0,IF($E11<>0, IF($F11=0,COUNTRY_INFO!O11*$E11,COUNTRY_INFO!O11*($E11-$D11)),COUNTRY_INFO!O11*$E11)) -> 0 | K11: =IF(OR(COUNTRY_INFO!P11="Inconnu",COUNTRY_INFO!P11="Surveillance",COUNTRY_INFO!P11="Non requis",COUNTRY_INFO!P11=0),0,IF(AND($E11<>0,$J11=""),IF($F11=0,COUNTRY_INFO!P11*$E11,COUNTRY_INFO!P11*($E11-$D11)), IF(AND($E11<>0,$J11<>0),IF($F11=0,COUNTRY_INFO!P11*$J11,COUNTRY_INFO!P11*($J11-$D11)), COUNTRY_INFO!P11*$J11))) -> 0 | L11: 0 | M11: 0 | O11: 0 | P11: 0 | R11: 0 | S11: 0 | U11: 0
A12: =IF(AND(INTRO!$E$37="Non endémique",INTRO!$E$41="Non endémique")," ",IF(COUNTRY_INFO!A12=0," ",COUNTRY_INFO!A12)) -> NIGER | B12: =IF(AND(INTRO!$E$37="Non endémique",INTRO!$E$41="Non endémique")," ",IF(COUNTRY_INFO!B12=0," ",COUNTRY_INFO!B12)) -> Agadez | C12: =IF(AND(INTRO!$E$37="Non endémique",INTRO!$E$41="Non endémique")," ",IF(COUNTRY_INFO!C12=0," ",COUNTRY_INFO!C12)) -> Iférouane | D12: =IF(AND(INTRO!$E$37="Non endémique",INTRO!$E$41="Non endémique"),0,COUNTRY_INFO!V12) -> 0 | E12: =IF(AND(INTRO!$E$37="Non endémique",INTRO!$E$41="Non endémique"),0,COUNTRY_INFO!X12) -> 0 | F12: =IF(INTRO!$E$39="Non endémique",IF($D12=1,DEC!I12,0),IF($D12=1,IVM!G12,0)) -> 0 | H12: =IF(OR(COUNTRY_INFO!N12="Inconnu",COUNTRY_INFO!N12="Surveillance",COUNTRY_INFO!N12="Non requis",COUNTRY_INFO!N12=0),0,IF(INTRO!$E$39="Non endémique",IF(AND($E12<>0,$G12=""),IF($F12=0,COUNTRY_INFO!N12*$E12,COUNTRY_INFO!N12*($E12-$D12)),IF(AND($E12<>0,$G12<>0),IF($F12=0,COUNTRY_INFO!N12*$G12,COUNTRY_INFO!N12*($G12-$D12)),0)),IF($G12="",COUNTRY_INFO!N12*$E12,COUNTRY_INFO!N12*$G12))) -> 0 | I12: =IF(OR(COUNTRY_INFO!O12="Inconnu",COUNTRY_INFO!O12="Surveillance",COUNTRY_INFO!O12="Non requis",COUNTRY_INFO!O12=0),0,IF($E12<>0, IF($F12=0,COUNTRY_INFO!O12*$E12,COUNTRY_INFO!O12*($E12-$D12)),COUNTRY_INFO!O12*$E12)) -> 0 | K12: =IF(OR(COUNTRY_INFO!P12="Inconnu",COUNTRY_INFO!P12="Surveillance",COUNTRY_INFO!P12="Non requis",COUNTRY_INFO!P12=0),0,IF(AND($E12<>0,$J12=""),IF($F12=0,COUNTRY_INFO!P12*$E12,COUNTRY_INFO!P12*($E12-$D12)), IF(AND($E12<>0,$J12<>0),IF($F12=0,COUNTRY_INFO!P12*$J12,COUNTRY_INFO!P12*($J12-$D12)), COUNTRY_INFO!P12*$J12))) -> 0 | L12: 0 | M12: 0 | O12: 0 | P12: 0 | R12: 0 | S12: 0 | U12: 0
A13: =IF(AND(INTRO!$E$37="Non endémique",INTRO!$E$41="Non endémique")," ",IF(COUNTRY_INFO!A13=0," ",COUNTRY_INFO!A13)) -> NIGER | B13: =IF(AND(INTRO!$E$37="Non endémique",INTRO!$E$41="Non endémique")," ",IF(COUNTRY_INFO!B13=0," ",COUNTRY_INFO!B13)) -> Agadez | C13: =IF(AND(INTRO!$E$37="Non endémique",INTRO!$E$41="Non endémique")," ",IF(COUNTRY_INFO!C13=0," ",COUNTRY_INFO!C13)) -> Bilma | D13: =IF(AND(INTRO!$E$37="Non endémique",INTRO!$E$41="Non endémique"),0,COUNTRY_INFO!V13) -> 0 | E13: =IF(AND(INTRO!$E$37="Non endémique",INTRO!$E$41="Non endémique"),0,COUNTRY_INFO!X13) -> 0 | F13: =IF(INTRO!$E$39="Non endémique",IF($D13=1,DEC!I13,0),IF($D13=1,IVM!G13,0)) -> 0 | H13: =IF(OR(COUNTRY_INFO!N13="Inconnu",COUNTRY_INFO!N13="Surveillance",COUNTRY_INFO!N13="Non requis",COUNTRY_INFO!N13=0),0,IF(INTRO!$E$39="Non endémique",IF(AND($E13<>0,$G13=""),IF($F13=0,COUNTRY_INFO!N13*$E13,COUNTRY_INFO!N13*($E13-$D13)),IF(AND($E13<>0,$G13<>0),IF($F13=0,COUNTRY_INFO!N13*$G13,COUNTRY_INFO!N13*($G13-$D13)),0)),IF($G13="",COUNTRY_INFO!N13*$E13,COUNTRY_INFO!N13*$G13))) -> 0 | I13: =IF(OR(COUNTRY_INFO!O13="Inconnu",COUNTRY_INFO!O13="Surveillance",COUNTRY_INFO!O13="Non requis",COUNTRY_INFO!O13=0),0,IF($E13<>0, IF($F13=0,COUNTRY_INFO!O13*$E13,COUNTRY_INFO!O13*($E13-$D13)),COUNTRY_INFO!O13*$E13)) -> 0 | K13: =IF(OR(COUNTRY_INFO!P13="Inconnu",COUNTRY_INFO!P13="Surveillance",COUNTRY_INFO!P13="Non requis",COUNTRY_INFO!P13=0),0,IF(AND($E13<>0,$J13=""),IF($F13=0,COUNTRY_INFO!P13*$E13,COUNTRY_INFO!P13*($E13-$D13)), IF(AND($E13<>0,$J13<>0),IF($F13=0,COUNTRY_INFO!P13*$J13,COUNTRY_INFO!P13*($J13-$D13)), COUNTRY_INFO!P13*$J13))) -> 0 | L13: 0 | M13: 0 | O13: 0 | P13: 0 | R13: 0 | S13: 0 | U13: 0
A14: =IF(AND(INTRO!$E$37="Non endémique",INTRO!$E$41="Non endémique")," ",IF(COUNTRY_INFO!A14=0," ",COUNTRY_INFO!A14)) -> NIGER | B14: =IF(AND(INTRO!$E$37="Non endémique",INTRO!$E$41="Non endémique")," ",IF(COUNTRY_INFO!B14=0," ",COUNTRY_INFO!B14)) -> Agadez | C14: =IF(AND(INTRO!$E$37="Non endémique",INTRO!$E$41="Non endémique")," ",IF(COUNTRY_INFO!C14=0," ",COUNTRY_INFO!C14)) -> Tchirozérine | D14: =IF(AND(INTRO!$E$37="Non endémique",INTRO!$E$41="Non endémique"),0,COUNTRY_INFO!V14) -> 0 | E14: =IF(AND(INTRO!$E$37="Non endémique",INTRO!$E$41="Non endémique"),0,COUNTRY_INFO!X14) -> 0 | F14: =IF(INTRO!$E$39="Non endémique",IF($D14=1,DEC!I14,0),IF($D14=1,IVM!G14,0)) -> 0 | H14: =IF(OR(COUNTRY_INFO!N14="Inconnu",COUNTRY_INFO!N14="Surveillance",COUNTRY_INFO!N14="Non requis",COUNTRY_INFO!N14=0),0,IF(INTRO!$E$39="Non endémique",IF(AND($E14<>0,$G14=""),IF($F14=0,COUNTRY_INFO!N14*$E14,COUNTRY_INFO!N14*($E14-$D14)),IF(AND($E14<>0,$G14<>0),IF($F14=0,COUNTRY_INFO!N14*$G14,COUNTRY_INFO!N14*($G14-$D14)),0)),IF($G14="",COUNTRY_INFO!N14*$E14,COUNTRY_INFO!N14*$G14))) -> 0 | I14: =IF(OR(COUNTRY_INFO!O14="Inconnu",COUNTRY_INFO!O14="Surveillance",COUNTRY_INFO!O14="Non requis",COUNTRY_INFO!O14=0),0,IF($E14<>0, IF($F14=0,COUNTRY_INFO!O14*$E14,COUNTRY_INFO!O14*($E14-$D14)),COUNTRY_INFO!O14*$E14)) -> 0 | K14: =IF(OR(COUNTRY_INFO!P14="Inconnu",COUNTRY_INFO!P14="Surveillance",COUNTRY_INFO!P14="Non requis",COUNTRY_INFO!P14=0),0,IF(AND($E14<>0,$J14=""),IF($F14=0,COUNTRY_INFO!P14*$E14,COUNTRY_INFO!P14*($E14-$D14)), IF(AND($E14<>0,$J14<>0),IF($F14=0,COUNTRY_INFO!P14*$J14,COUNTRY_INFO!P14*($J14-$D14)), COUNTRY_INFO!P14*$J14))) -> 0 | L14: 0 | M14: 0 | O14: 0 | P14: 0 | R14: 0 | S14: 0 | U14: 0
A15: =IF(AND(INTRO!$E$37="Non endémique",INTRO!$E$41="Non endémique")," ",IF(COUNTRY_INFO!A15=0," ",COUNTRY_INFO!A15)) -> NIGER | B15: =IF(AND(INTRO!$E$37="Non endémique",INTRO!$E$41="Non endémique")," ",IF(COUNTRY_INFO!B15=0," ",COUNTRY_INFO!B15)) -> Agadez | C15: =IF(AND(INTRO!$E$37="Non endémique",INTRO!$E$41="Non endémique")," ",IF(COUNTRY_INFO!C15=0," ",COUNTRY_INFO!C15)) -> Aderbissinat | D15: =IF(AND(INTRO!$E$37="Non endémique",INTRO!$E$41="Non endémique"),0,COUNTRY_INFO!V15) -> 0 | E15: =IF(AND(INTRO!$E$37="Non endémique",INTRO!$E$41="Non endémique"),0,COUNTRY_INFO!X15) -> 0 | F15: =IF(INTRO!$E$39="Non endémique",IF($D15=1,DEC!I15,0),IF($D15=1,IVM!G15,0)) -> 0 | H15: =IF(OR(COUNTRY_INFO!N15="Inconnu",COUNTRY_INFO!N15="Surveillance",COUNTRY_INFO!N15="Non requis",COUNTRY_INFO!N15=0),0,IF(INTRO!$E$39="Non endémique",IF(AND($E15<>0,$G15=""),IF($F15=0,COUNTRY_INFO!N15*$E15,COUNTRY_INFO!N15*($E15-$D15)),IF(AND($E15<>0,$G15<>0),IF($F15=0,COUNTRY_INFO!N15*$G15,COUNTRY_INFO!N15*($G15-$D15)),0)),IF($G15="",COUNTRY_INFO!N15*$E15,COUNTRY_INFO!N15*$G15))) -> 0 | I15: =IF(OR(COUNTRY_INFO!O15="Inconnu",COUNTRY_INFO!O15="Surveillance",COUNTRY_INFO!O15="Non requis",COUNTRY_INFO!O15=0),0,IF($E15<>0, IF($F15=0,COUNTRY_INFO!O15*$E15,COUNTRY_INFO!O15*($E15-$D15)),COUNTRY_INFO!O15*$E15)) -> 0 | K15: =IF(OR(COUNTRY_INFO!P15="Inconnu",COUNTRY_INFO!P15="Surveillance",COUNTRY_INFO!P15="Non requis",COUNTRY_INFO!P15=0),0,IF(AND($E15<>0,$J15=""),IF($F15=0,COUNTRY_INFO!P15*$E15,COUNTRY_INFO!P15*($E15-$D15)), IF(AND($E15<>0,$J15<>0),IF($F15=0,COUNTRY_INFO!P15*$J15,COUNTRY_INFO!P15*($J15-$D15)), COUNTRY_INFO!P15*$J15))) -> 0 | L15: 0 | M15: 0 | O15: 0 | P15: 0 | R15: 0 | S15: 0 | U15: 0
A16: =IF(AND(INTRO!$E$37="Non endémique",INTRO!$E$41="Non endémique")," ",IF(COUNTRY_INFO!A16=0," ",COUNTRY_INFO!A16)) -> NIGER | B16: =IF(AND(INTRO!$E$37="Non endémique",INTRO!$E$41="Non endémique")," ",IF(COUNTRY_INFO!B16=0," ",COUNTRY_INFO!B16)) -> Agadez | C16: =IF(AND(INTRO!$E$37="Non endémique",INTRO!$E$41="Non endémique")," ",IF(COUNTRY_INFO!C16=0," ",COUNTRY_INFO!C16)) -> Ingall | D16: =IF(AND(INTRO!$E$37="Non endémique",INTRO!$E$41="Non endémique"),0,COUNTRY_INFO!V16) -> 0 | E16: =IF(AND(INTRO!$E$37="Non endémique",INTRO!$E$41="Non endémique"),0,COUNTRY_INFO!X16) -> 0 | F16: =IF(INTRO!$E$39="Non endémique",IF($D16=1,DEC!I16,0),IF($D16=1,IVM!G16,0)) -> 0 | H16: =IF(OR(COUNTRY_INFO!N16="Inconnu",COUNTRY_INFO!N16="Surveillance",COUNTRY_INFO!N16="Non requis",COUNTRY_INFO!N16=0),0,IF(INTRO!$E$39="Non endémique",IF(AND($E16<>0,$G16=""),IF($F16=0,COUNTRY_INFO!N16*$E16,COUNTRY_INFO!N16*($E16-$D16)),IF(AND($E16<>0,$G16<>0),IF($F16=0,COUNTRY_INFO!N16*$G16,COUNTRY_INFO!N16*($G16-$D16)),0)),IF($G16="",COUNTRY_INFO!N16*$E16,COUNTRY_INFO!N16*$G16))) -> 0 | I16: =IF(OR(COUNTRY_INFO!O16="Inconnu",COUNTRY_INFO!O16="Surveillance",COUNTRY_INFO!O16="Non requis",COUNTRY_INFO!O16=0),0,IF($E16<>0, IF($F16=0,COUNTRY_INFO!O16*$E16,COUNTRY_INFO!O16*($E16-$D16)),COUNTRY_INFO!O16*$E16)) -> 0 | K16: =IF(OR(COUNTRY_INFO!P16="Inconnu",COUNTRY_INFO!P16="Surveillance",COUNTRY_INFO!P16="Non requis",COUNTRY_INFO!P16=0),0,IF(AND($E16<>0,$J16=""),IF($F16=0,COUNTRY_INFO!P16*$E16,COUNTRY_INFO!P16*($E16-$D16)), IF(AND($E16<>0,$J16<>0),IF($F16=0,COUNTRY_INFO!P16*$J16,COUNTRY_INFO!P16*($J16-$D16)), COUNTRY_INFO!P16*$J16))) -> 0 | L16: 0 | M16: 0 | O16: 0 | P16: 0 | R16: 0 | S16: 0 | U16: 0
A17: =IF(AND(INTRO!$E$37="Non endémique",INTRO!$E$41="Non endémique")," ",IF(COUNTRY_INFO!A17=0," ",COUNTRY_INFO!A17)) -> NIGER | B17: =IF(AND(INTRO!$E$37="Non endémique",INTRO!$E$41="Non endémique")," ",IF(COUNTRY_INFO!B17=0," ",COUNTRY_INFO!B17)) -> Diffa | C17: =IF(AND(INTRO!$E$37="Non endémique",INTRO!$E$41="Non endémique")," ",IF(COUNTRY_INFO!C17=0," ",COUNTRY_INFO!C17)) -> Diffa | D17: =IF(AND(INTRO!$E$37="Non endémique",INTRO!$E$41="Non endémique"),0,COUNTRY_INFO!V17) -> 0 | E17: =IF(AND(INTRO!$E$37="Non endémique",INTRO!$E$41="Non endémique"),0,COUNTRY_INFO!X17) -> 0 | F17: =IF(INTRO!$E$39="Non endémique",IF($D17=1,DEC!I17,0),IF($D17=1,IVM!G17,0)) -> 0 | H17: =IF(OR(COUNTRY_INFO!N17="Inconnu",COUNTRY_INFO!N17="Surveillance",COUNTRY_INFO!N17="Non requis",COUNTRY_INFO!N17=0),0,IF(INTRO!$E$39="Non endémique",IF(AND($E17<>0,$G17=""),IF($F17=0,COUNTRY_INFO!N17*$E17,COUNTRY_INFO!N17*($E17-$D17)),IF(AND($E17<>0,$G17<>0),IF($F17=0,COUNTRY_INFO!N17*$G17,COUNTRY_INFO!N17*($G17-$D17)),0)),IF($G17="",COUNTRY_INFO!N17*$E17,COUNTRY_INFO!N17*$G17))) -> 0 | I17: =IF(OR(COUNTRY_INFO!O17="Inconnu",COUNTRY_INFO!O17="Surveillance",COUNTRY_INFO!O17="Non requis",COUNTRY_INFO!O17=0),0,IF($E17<>0, IF($F17=0,COUNTRY_INFO!O17*$E17,COUNTRY_INFO!O17*($E17-$D17)),COUNTRY_INFO!O17*$E17)) -> 0 | K17: =IF(OR(COUNTRY_INFO!P17="Inconnu",COUNTRY_INFO!P17="Surveillance",COUNTRY_INFO!P17="Non requis",COUNTRY_INFO!P17=0),0,IF(AND($E17<>0,$J17=""),IF($F17=0,COUNTRY_INFO!P17*$E17,COUNTRY_INFO!P17*($E17-$D17)), IF(AND($E17<>0,$J17<>0),IF($F17=0,COUNTRY_INFO!P17*$J17,COUNTRY_INFO!P17*($J17-$D17)), COUNTRY_INFO!P17*$J17))) -> 0 | L17: 0 | M17: 0 | O17: 0 | P17: 0 | R17: 0 | S17: 0 | U17: 0
A18: =IF(AND(INTRO!$E$37="Non endémique",INTRO!$E$41="Non endémique")," ",IF(COUNTRY_INFO!A18=0," ",COUNTRY_INFO!A18)) -> NIGER | B18: =IF(AND(INTRO!$E$37="Non endémique",INTRO!$E$41="Non endémique")," ",IF(COUNTRY_INFO!B18=0," ",COUNTRY_INFO!B18)) -> Diffa | C18: =IF(AND(INTRO!$E$37="Non endémique",INTRO!$E$41="Non endémique")," ",IF(COUNTRY_INFO!C18=0," ",COUNTRY_INFO!C18)) -> Bosso | D18: =IF(AND(INTRO!$E$37="Non endémique",INTRO!$E$41="Non endémique"),0,COUNTRY_INFO!V18) -> 0 | E18: =IF(AND(INTRO!$E$37="Non endémique",INTRO!$E$41="Non endémique"),0,COUNTRY_INFO!X18) -> 0 | F18: =IF(INTRO!$E$39="Non endémique",IF($D18=1,DEC!I18,0),IF($D18=1,IVM!G18,0)) -> 0 | H18: =IF(OR(COUNTRY_INFO!N18="Inconnu",COUNTRY_INFO!N18="Surveillance",COUNTRY_INFO!N18="Non requis",COUNTRY_INFO!N18=0),0,IF(INTRO!$E$39="Non endémique",IF(AND($E18<>0,$G18=""),IF($F18=0,COUNTRY_INFO!N18*$E18,COUNTRY_INFO!N18*($E18-$D18)),IF(AND($E18<>0,$G18<>0),IF($F18=0,COUNTRY_INFO!N18*$G18,COUNTRY_INFO!N18*($G18-$D18)),0)),IF($G18="",COUNTRY_INFO!N18*$E18,COUNTRY_INFO!N18*$G18))) -> 0 | I18: =IF(OR(COUNTRY_INFO!O18="Inconnu",COUNTRY_INFO!O18="Surveillance",COUNTRY_INFO!O18="Non requis",COUNTRY_INFO!O18=0),0,IF($E18<>0, IF($F18=0,COUNTRY_INFO!O18*$E18,COUNTRY_INFO!O18*($E18-$D18)),COUNTRY_INFO!O18*$E18)) -> 0 | K18: =IF(OR(COUNTRY_INFO!P18="Inconnu",COUNTRY_INFO!P18="Surveillance",COUNTRY_INFO!P18="Non requis",COUNTRY_INFO!P18=0),0,IF(AND($E18<>0,$J18=""),IF($F18=0,COUNTRY_INFO!P18*$E18,COUNTRY_INFO!P18*($E18-$D18)), IF(AND($E18<>0,$J18<>0),IF($F18=0,COUNTRY_INFO!P18*$J18,COUNTRY_INFO!P18*($J18-$D18)), COUNTRY_INFO!P18*$J18))) -> 0 | L18: 0 | M18: 0 | O18: 0 | P18: 0 | R18: 0 | S18: 0 | U18: 0
A19: =IF(AND(INTRO!$E$37="Non endémique",INTRO!$E$41="Non endémique")," ",IF(COUNTRY_INFO!A19=0," ",COUNTRY_INFO!A19)) -> NIGER | B19: =IF(AND(INTRO!$E$37="Non endémique",INTRO!$E$41="Non endémique")," ",IF(COUNTRY_INFO!B19=0," ",COUNTRY_INFO!B19)) -> Diffa | C19: =IF(AND(INTRO!$E$37="Non endémique",INTRO!$E$41="Non endémique")," ",IF(COUNTRY_INFO!C19=0," ",COUNTRY_INFO!C19)) -> Mainé Soroa | D19: =IF(AND(INTRO!$E$37="Non endémique",INTRO!$E$41="Non endémique"),0,COUNTRY_INFO!V19) -> 0 | E19: =IF(AND(INTRO!$E$37="Non endémique",INTRO!$E$41="Non endémique"),0,COUNTRY_INFO!X19) -> 0 | F19: =IF(INTRO!$E$39="Non endémique",IF($D19=1,DEC!I19,0),IF($D19=1,IVM!G19,0)) -> 0 | H19: =IF(OR(COUNTRY_INFO!N19="Inconnu",COUNTRY_INFO!N19="Surveillance",COUNTRY_INFO!N19="Non requis",COUNTRY_INFO!N19=0),0,IF(INTRO!$E$39="Non endémique",IF(AND($E19<>0,$G19=""),IF($F19=0,COUNTRY_INFO!N19*$E19,COUNTRY_INFO!N19*($E19-$D19)),IF(AND($E19<>0,$G19<>0),IF($F19=0,COUNTRY_INFO!N19*$G19,COUNTRY_INFO!N19*($G19-$D19)),0)),IF($G19="",COUNTRY_INFO!N19*$E19,COUNTRY_INFO!N19*$G19))) -> 0 | I19: =IF(OR(COUNTRY_INFO!O19="Inconnu",COUNTRY_INFO!O19="Surveillance",COUNTRY_INFO!O19="Non requis",COUNTRY_INFO!O19=0),0,IF($E19<>0, IF($F19=0,COUNTRY_INFO!O19*$E19,COUNTRY_INFO!O19*($E19-$D19)),COUNTRY_INFO!O19*$E19)) -> 0 | K19: =IF(OR(COUNTRY_INFO!P19="Inconnu",COUNTRY_INFO!P19="Surveillance",COUNTRY_INFO!P19="Non requis",COUNTRY_INFO!P19=0),0,IF(AND($E19<>0,$J19=""),IF($F19=0,COUNTRY_INFO!P19*$E19,COUNTRY_INFO!P19*($E19-$D19)), IF(AND($E19<>0,$J19<>0),IF($F19=0,COUNTRY_INFO!P19*$J19,COUNTRY_INFO!P19*($J19-$D19)), COUNTRY_INFO!P19*$J19))) -> 0 | L19: 0 | M19: 0 | O19: 0 | P19: 0 | R19: 0 | S19: 0 | U19: 0
A20: =IF(AND(INTRO!$E$37="Non endémique",INTRO!$E$41="Non endémique")," ",IF(COUNTRY_INFO!A20=0," ",COUNTRY_INFO!A20)) -> NIGER | B20: =IF(AND(INTRO!$E$37="Non endémique",INTRO!$E$41="Non endémique")," ",IF(COUNTRY_INFO!B20=0," ",COUNTRY_INFO!B20)) -> Diffa | C20: =IF(AND(INTRO!$E$37="Non endémique",INTRO!$E$41="Non endémique")," ",IF(COUNTRY_INFO!C20=0," ",COUNTRY_INFO!C20)) -> Goudoumaria | D20: =IF(AND(INTRO!$E$37="Non endémique",INTRO!$E$41="Non endémique"),0,COUNTRY_INFO!V20) -> 0 | E20: =IF(AND(INTRO!$E$37="Non endémique",INTRO!$E$41="Non endémique"),0,COUNTRY_INFO!X20) -> 0 | F20: =IF(INTRO!$E$39="Non endémique",IF($D20=1,DEC!I20,0),IF($D20=1,IVM!G20,0)) -> 0 | H20: =IF(OR(COUNTRY_INFO!N20="Inconnu",COUNTRY_INFO!N20="Surveillance",COUNTRY_INFO!N20="Non requis",COUNTRY_INFO!N20=0),0,IF(INTRO!$E$39="Non endémique",IF(AND($E20<>0,$G20=""),IF($F20=0,COUNTRY_INFO!N20*$E20,COUNTRY_INFO!N20*($E20-$D20)),IF(AND($E20<>0,$G20<>0),IF($F20=0,COUNTRY_INFO!N20*$G20,COUNTRY_INFO!N20*($G20-$D20)),0)),IF($G20="",COUNTRY_INFO!N20*$E20,COUNTRY_INFO!N20*$G20))) -> 0 | I20: =IF(OR(COUNTRY_INFO!O20="Inconnu",COUNTRY_INFO!O20="Surveillance",COUNTRY_INFO!O20="Non requis",COUNTRY_INFO!O20=0),0,IF($E20<>0, IF($F20=0,COUNTRY_INFO!O20*$E20,COUNTRY_INFO!O20*($E20-$D20)),COUNTRY_INFO!O20*$E20)) -> 0 | K20: =IF(OR(COUNTRY_INFO!P20="Inconnu",COUNTRY_INFO!P20="Surveillance",COUNTRY_INFO!P20="Non requis",COUNTRY_INFO!P20=0),0,IF(AND($E20<>0,$J20=""),IF($F20=0,COUNTRY_INFO!P20*$E20,COUNTRY_INFO!P20*($E20-$D20)), IF(AND($E20<>0,$J20<>0),IF($F20=0,COUNTRY_INFO!P20*$J20,COUNTRY_INFO!P20*($J20-$D20)), COUNTRY_INFO!P20*$J20))) -> 0 | L20: 0 | M20: 0 | O20: 0 | P20: 0 | R20: 0 | S20: 0 | U20: 0
A21: =IF(AND(INTRO!$E$37="Non endémique",INTRO!$E$41="Non endémique")," ",IF(COUNTRY_INFO!A21=0," ",COUNTRY_INFO!A21)) -> NIGER | B21: =IF(AND(INTRO!$E$37="Non endémique",INTRO!$E$41="Non endémique")," ",IF(COUNTRY_INFO!B21=0," ",COUNTRY_INFO!B21)) -> Diffa | C21: =IF(AND(INTRO!$E$37="Non endémique",INTRO!$E$41="Non endémique")," ",IF(COUNTRY_INFO!C21=0," ",COUNTRY_INFO!C21)) -> N'Guigmi | D21: =IF(AND(INTRO!$E$37="Non endémique",INTRO!$E$41="Non endémique"),0,COUNTRY_INFO!V21) -> 0 | E21: =IF(AND(INTRO!$E$37="Non endémique",INTRO!$E$41="Non endémique"),0,COUNTRY_INFO!X21) -> 0 | F21: =IF(INTRO!$E$39="Non endémique",IF($D21=1,DEC!I21,0),IF($D21=1,IVM!G21,0)) -> 0 | H21: =IF(OR(COUNTRY_INFO!N21="Inconnu",COUNTRY_INFO!N21="Surveillance",COUNTRY_INFO!N21="Non requis",COUNTRY_INFO!N21=0),0,IF(INTRO!$E$39="Non endémique",IF(AND($E21<>0,$G21=""),IF($F21=0,COUNTRY_INFO!N21*$E21,COUNTRY_INFO!N21*($E21-$D21)),IF(AND($E21<>0,$G21<>0),IF($F21=0,COUNTRY_INFO!N21*$G21,COUNTRY_INFO!N21*($G21-$D21)),0)),IF($G21="",COUNTRY_INFO!N21*$E21,COUNTRY_INFO!N21*$G21))) -> 0 | I21: =IF(OR(COUNTRY_INFO!O21="Inconnu",COUNTRY_INFO!O21="Surveillance",COUNTRY_INFO!O21="Non requis",COUNTRY_INFO!O21=0),0,IF($E21<>0, IF($F21=0,COUNTRY_INFO!O21*$E21,COUNTRY_INFO!O21*($E21-$D21)),COUNTRY_INFO!O21*$E21)) -> 0 | K21: =IF(OR(COUNTRY_INFO!P21="Inconnu",COUNTRY_INFO!P21="Surveillance",COUNTRY_INFO!P21="Non requis",COUNTRY_INFO!P21=0),0,IF(AND($E21<>0,$J21=""),IF($F21=0,COUNTRY_INFO!P21*$E21,COUNTRY_INFO!P21*($E21-$D21)), IF(AND($E21<>0,$J21<>0),IF($F21=0,COUNTRY_INFO!P21*$J21,COUNTRY_INFO!P21*($J21-$D21)), COUNTRY_INFO!P21*$J21))) -> 0 | L21: 0 | M21: 0 | O21: 0 | P21: 0 | R21: 0 | S21: 0 | U21: 0
A22: =IF(AND(INTRO!$E$37="Non endémique",INTRO!$E$41="Non endémique")," ",IF(COUNTRY_INFO!A22=0," ",COUNTRY_INFO!A22)) -> NIGER | B22: =IF(AND(INTRO!$E$37="Non endémique",INTRO!$E$41="Non endémique")," ",IF(COUNTRY_INFO!B22=0," ",COUNTRY_INFO!B22)) -> Diffa | C22: =IF(AND(INTRO!$E$37="Non endémique",INTRO!$E$41="Non endémique")," ",IF(COUNTRY_INFO!C22=0," ",COUNTRY_INFO!C22)) -> N'Gourti | D22: =IF(AND(INTRO!$E$37="Non endémique",INTRO!$E$41="Non endémique"),0,COUNTRY_INFO!V22) -> 0 | E22: =IF(AND(INTRO!$E$37="Non endémique",INTRO!$E$41="Non endémique"),0,COUNTRY_INFO!X22) -> 0 | F22: =IF(INTRO!$E$39="Non endémique",IF($D22=1,DEC!I22,0),IF($D22=1,IVM!G22,0)) -> 0 | H22: =IF(OR(COUNTRY_INFO!N22="Inconnu",COUNTRY_INFO!N22="Surveillance",COUNTRY_INFO!N22="Non requis",COUNTRY_INFO!N22=0),0,IF(INTRO!$E$39="Non endémique",IF(AND($E22<>0,$G22=""),IF($F22=0,COUNTRY_INFO!N22*$E22,COUNTRY_INFO!N22*($E22-$D22)),IF(AND($E22<>0,$G22<>0),IF($F22=0,COUNTRY_INFO!N22*$G22,COUNTRY_INFO!N22*($G22-$D22)),0)),IF($G22="",COUNTRY_INFO!N22*$E22,COUNTRY_INFO!N22*$G22))) -> 0 | I22: =IF(OR(COUNTRY_INFO!O22="Inconnu",COUNTRY_INFO!O22="Surveillance",COUNTRY_INFO!O22="Non requis",COUNTRY_INFO!O22=0),0,IF($E22<>0, IF($F22=0,COUNTRY_INFO!O22*$E22,COUNTRY_INFO!O22*($E22-$D22)),COUNTRY_INFO!O22*$E22)) -> 0 | K22: =IF(OR(COUNTRY_INFO!P22="Inconnu",COUNTRY_INFO!P22="Surveillance",COUNTRY_INFO!P22="Non requis",COUNTRY_INFO!P22=0),0,IF(AND($E22<>0,$J22=""),IF($F22=0,COUNTRY_INFO!P22*$E22,COUNTRY_INFO!P22*($E22-$D22)), IF(AND($E22<>0,$J22<>0),IF($F22=0,COUNTRY_INFO!P22*$J22,COUNTRY_INFO!P22*($J22-$D22)), COUNTRY_INFO!P22*$J22))) -> 0 | L22: 0 | M22: 0 | O22: 0 | P22: 0 | R22: 0 | S22: 0 | U22: 0
A23: =IF(AND(INTRO!$E$37="Non endémique",INTRO!$E$41="Non endémique")," ",IF(COUNTRY_INFO!A23=0," ",COUNTRY_INFO!A23)) -> NIGER | B23: =IF(AND(INTRO!$E$37="Non endémique",INTRO!$E$41="Non endémique")," ",IF(COUNTRY_INFO!B23=0," ",COUNTRY_INFO!B23)) -> Dosso | C23: =IF(AND(INTRO!$E$37="Non endémique",INTRO!$E$41="Non endémique")," ",IF(COUNTRY_INFO!C23=0," ",COUNTRY_INFO!C23)) -> Boboye | D23: =IF(AND(INTRO!$E$37="Non endémique",INTRO!$E$41="Non endémique"),0,COUNTRY_INFO!V23) -> 0 | E23: =IF(AND(INTRO!$E$37="Non endémique",INTRO!$E$41="Non endémique"),0,COUNTRY_INFO!X23) -> 0 | F23: =IF(INTRO!$E$39="Non endémique",IF($D23=1,DEC!I23,0),IF($D23=1,IVM!G23,0)) -> 0 | H23: =IF(OR(COUNTRY_INFO!N23="Inconnu",COUNTRY_INFO!N23="Surveillance",COUNTRY_INFO!N23="Non requis",COUNTRY_INFO!N23=0),0,IF(INTRO!$E$39="Non endémique",IF(AND($E23<>0,$G23=""),IF($F23=0,COUNTRY_INFO!N23*$E23,COUNTRY_INFO!N23*($E23-$D23)),IF(AND($E23<>0,$G23<>0),IF($F23=0,COUNTRY_INFO!N23*$G23,COUNTRY_INFO!N23*($G23-$D23)),0)),IF($G23="",COUNTRY_INFO!N23*$E23,COUNTRY_INFO!N23*$G23))) -> 0 | I23: =IF(OR(COUNTRY_INFO!O23="Inconnu",COUNTRY_INFO!O23="Surveillance",COUNTRY_INFO!O23="Non requis",COUNTRY_INFO!O23=0),0,IF($E23<>0, IF($F23=0,COUNTRY_INFO!O23*$E23,COUNTRY_INFO!O23*($E23-$D23)),COUNTRY_INFO!O23*$E23)) -> 0 | K23: =IF(OR(COUNTRY_INFO!P23="Inconnu",COUNTRY_INFO!P23="Surveillance",COUNTRY_INFO!P23="Non requis",COUNTRY_INFO!P23=0),0,IF(AND($E23<>0,$J23=""),IF($F23=0,COUNTRY_INFO!P23*$E23,COUNTRY_INFO!P23*($E23-$D23)), IF(AND($E23<>0,$J23<>0),IF($F23=0,COUNTRY_INFO!P23*$J23,COUNTRY_INFO!P23*($J23-$D23)), COUNTRY_INFO!P23*$J23))) -> 0 | L23: 0 | M23: 0 | O23: 0 | P23: 0 | R23: 0 | S23: 0 | U23: 0
A24: =IF(AND(INTRO!$E$37="Non endémique",INTRO!$E$41="Non endémique")," ",IF(COUNTRY_INFO!A24=0," ",COUNTRY_INFO!A24)) -> NIGER | B24: =IF(AND(INTRO!$E$37="Non endémique",INTRO!$E$41="Non endémique")," ",IF(COUNTRY_INFO!B24=0," ",COUNTRY_INFO!B24)) -> Dosso | C24: =IF(AND(INTRO!$E$37="Non endémique",INTRO!$E$41="Non endémique")," ",IF(COUNTRY_INFO!C24=0," ",COUNTRY_INFO!C24)) -> Falmey | D24: =IF(AND(INTRO!$E$37="Non endémique",INTRO!$E$41="Non endémique"),0,COUNTRY_INFO!V24) -> 0 | E24: =IF(AND(INTRO!$E$37="Non endémique",INTRO!$E$41="Non endémique"),0,COUNTRY_INFO!X24) -> 0 | F24: =IF(INTRO!$E$39="Non endémique",IF($D24=1,DEC!I24,0),IF($D24=1,IVM!G24,0)) -> 0 | H24: =IF(OR(COUNTRY_INFO!N24="Inconnu",COUNTRY_INFO!N24="Surveillance",COUNTRY_INFO!N24="Non requis",COUNTRY_INFO!N24=0),0,IF(INTRO!$E$39="Non endémique",IF(AND($E24<>0,$G24=""),IF($F24=0,COUNTRY_INFO!N24*$E24,COUNTRY_INFO!N24*($E24-$D24)),IF(AND($E24<>0,$G24<>0),IF($F24=0,COUNTRY_INFO!N24*$G24,COUNTRY_INFO!N24*($G24-$D24)),0)),IF($G24="",COUNTRY_INFO!N24*$E24,COUNTRY_INFO!N24*$G24))) -> 0 | I24: =IF(OR(COUNTRY_INFO!O24="Inconnu",COUNTRY_INFO!O24="Surveillance",COUNTRY_INFO!O24="Non requis",COUNTRY_INFO!O24=0),0,IF($E24<>0, IF($F24=0,COUNTRY_INFO!O24*$E24,COUNTRY_INFO!O24*($E24-$D24)),COUNTRY_INFO!O24*$E24)) -> 0 | K24: =IF(OR(COUNTRY_INFO!P24="Inconnu",COUNTRY_INFO!P24="Surveillance",COUNTRY_INFO!P24="Non requis",COUNTRY_INFO!P24=0),0,IF(AND($E24<>0,$J24=""),IF($F24=0,COUNTRY_INFO!P24*$E24,COUNTRY_INFO!P24*($E24-$D24)), IF(AND($E24<>0,$J24<>0),IF($F24=0,COUNTRY_INFO!P24*$J24,COUNTRY_INFO!P24*($J24-$D24)), COUNTRY_INFO!P24*$J24))) -> 0 | L24: 0 | M24: 0 | O24: 0 | P24: 0 | R24: 0 | S24: 0 | U24: 0
A25: =IF(AND(INTRO!$E$37="Non endémique",INTRO!$E$41="Non endémique")," ",IF(COUNTRY_INFO!A25=0," ",COUNTRY_INFO!A25)) -> NIGER | B25: =IF(AND(INTRO!$E$37="Non endémique",INTRO!$E$41="Non endémique")," ",IF(COUNTRY_INFO!B25=0," ",COUNTRY_INFO!B25)) -> Dosso | C25: =IF(AND(INTRO!$E$37="Non endémique",INTRO!$E$41="Non endémique")," ",IF(COUNTRY_INFO!C25=0," ",COUNTRY_INFO!C25)) -> Dosso | D25: =IF(AND(INTRO!$E$37="Non endémique",INTRO!$E$41="Non endémique"),0,COUNTRY_INFO!V25) -> 0 | E25: =IF(AND(INTRO!$E$37="Non endémique",INTRO!$E$41="Non endémique"),0,COUNTRY_INFO!X25) -> 0 | F25: =IF(INTRO!$E$39="Non endémique",IF($D25=1,DEC!I25,0),IF($D25=1,IVM!G25,0)) -> 0 | H25: =IF(OR(COUNTRY_INFO!N25="Inconnu",COUNTRY_INFO!N25="Surveillance",COUNTRY_INFO!N25="Non requis",COUNTRY_INFO!N25=0),0,IF(INTRO!$E$39="Non endémique",IF(AND($E25<>0,$G25=""),IF($F25=0,COUNTRY_INFO!N25*$E25,COUNTRY_INFO!N25*($E25-$D25)),IF(AND($E25<>0,$G25<>0),IF($F25=0,COUNTRY_INFO!N25*$G25,COUNTRY_INFO!N25*($G25-$D25)),0)),IF($G25="",COUNTRY_INFO!N25*$E25,COUNTRY_INFO!N25*$G25))) -> 0 | I25: =IF(OR(COUNTRY_INFO!O25="Inconnu",COUNTRY_INFO!O25="Surveillance",COUNTRY_INFO!O25="Non requis",COUNTRY_INFO!O25=0),0,IF($E25<>0, IF($F25=0,COUNTRY_INFO!O25*$E25,COUNTRY_INFO!O25*($E25-$D25)),COUNTRY_INFO!O25*$E25)) -> 0 | K25: =IF(OR(COUNTRY_INFO!P25="Inconnu",COUNTRY_INFO!P25="Surveillance",COUNTRY_INFO!P25="Non requis",COUNTRY_INFO!P25=0),0,IF(AND($E25<>0,$J25=""),IF($F25=0,COUNTRY_INFO!P25*$E25,COUNTRY_INFO!P25*($E25-$D25)), IF(AND($E25<>0,$J25<>0),IF($F25=0,COUNTRY_INFO!P25*$J25,COUNTRY_INFO!P25*($J25-$D25)), COUNTRY_INFO!P25*$J25))) -> 0 | L25: 0 | M25: 0 | O25: 0 | P25: 0 | R25: 0 | S25: 0 | U25: 0
A26: =IF(AND(INTRO!$E$37="Non endémique",INTRO!$E$41="Non endémique")," ",IF(COUNTRY_INFO!A26=0," ",COUNTRY_INFO!A26)) -> NIGER | B26: =IF(AND(INTRO!$E$37="Non endémique",INTRO!$E$41="Non endémique")," ",IF(COUNTRY_INFO!B26=0," ",COUNTRY_INFO!B26)) -> Dosso | C26: =IF(AND(INTRO!$E$37="Non endémique",INTRO!$E$41="Non endémique")," ",IF(COUNTRY_INFO!C26=0," ",COUNTRY_INFO!C26)) -> Doutchi | D26: =IF(AND(INTRO!$E$37="Non endémique",INTRO!$E$41="Non endémique"),0,COUNTRY_INFO!V26) -> 0 | E26: =IF(AND(INTRO!$E$37="Non endémique",INTRO!$E$41="Non endémique"),0,COUNTRY_INFO!X26) -> 0 | F26: =IF(INTRO!$E$39="Non endémique",IF($D26=1,DEC!I26,0),IF($D26=1,IVM!G26,0)) -> 0 | H26: =IF(OR(COUNTRY_INFO!N26="Inconnu",COUNTRY_INFO!N26="Surveillance",COUNTRY_INFO!N26="Non requis",COUNTRY_INFO!N26=0),0,IF(INTRO!$E$39="Non endémique",IF(AND($E26<>0,$G26=""),IF($F26=0,COUNTRY_INFO!N26*$E26,COUNTRY_INFO!N26*($E26-$D26)),IF(AND($E26<>0,$G26<>0),IF($F26=0,COUNTRY_INFO!N26*$G26,COUNTRY_INFO!N26*($G26-$D26)),0)),IF($G26="",COUNTRY_INFO!N26*$E26,COUNTRY_INFO!N26*$G26))) -> 0 | I26: =IF(OR(COUNTRY_INFO!O26="Inconnu",COUNTRY_INFO!O26="Surveillance",COUNTRY_INFO!O26="Non requis",COUNTRY_INFO!O26=0),0,IF($E26<>0, IF($F26=0,COUNTRY_INFO!O26*$E26,COUNTRY_INFO!O26*($E26-$D26)),COUNTRY_INFO!O26*$E26)) -> 0 | K26: =IF(OR(COUNTRY_INFO!P26="Inconnu",COUNTRY_INFO!P26="Surveillance",COUNTRY_INFO!P26="Non requis",COUNTRY_INFO!P26=0),0,IF(AND($E26<>0,$J26=""),IF($F26=0,COUNTRY_INFO!P26*$E26,COUNTRY_INFO!P26*($E26-$D26)), IF(AND($E26<>0,$J26<>0),IF($F26=0,COUNTRY_INFO!P26*$J26,COUNTRY_INFO!P26*($J26-$D26)), COUNTRY_INFO!P26*$J26))) -> 0 | L26: 0 | M26: 0 | O26: 0 | P26: 0 | R26: 0 | S26: 0 | U26: 0
A27: =IF(AND(INTRO!$E$37="Non endémique",INTRO!$E$41="Non endémique")," ",IF(COUNTRY_INFO!A27=0," ",COUNTRY_INFO!A27)) -> NIGER | B27: =IF(AND(INTRO!$E$37="Non endémique",INTRO!$E$41="Non endémique")," ",IF(COUNTRY_INFO!B27=0," ",COUNTRY_INFO!B27)) -> Dosso | C27: =IF(AND(INTRO!$E$37="Non endémique",INTRO!$E$41="Non endémique")," ",IF(COUNTRY_INFO!C27=0," ",COUNTRY_INFO!C27)) -> Tibiri(Doutchi) | D27: =IF(AND(INTRO!$E$37="Non endémique",INTRO!$E$41="Non endémique"),0,COUNTRY_INFO!V27) -> 0 | E27: =IF(AND(INTRO!$E$37="Non endémique",INTRO!$E$41="Non endémique"),0,COUNTRY_INFO!X27) -> 0 | F27: =IF(INTRO!$E$39="Non endémique",IF($D27=1,DEC!I27,0),IF($D27=1,IVM!G27,0)) -> 0 | H27: =IF(OR(COUNTRY_INFO!N27="Inconnu",COUNTRY_INFO!N27="Surveillance",COUNTRY_INFO!N27="Non requis",COUNTRY_INFO!N27=0),0,IF(INTRO!$E$39="Non endémique",IF(AND($E27<>0,$G27=""),IF($F27=0,COUNTRY_INFO!N27*$E27,COUNTRY_INFO!N27*($E27-$D27)),IF(AND($E27<>0,$G27<>0),IF($F27=0,COUNTRY_INFO!N27*$G27,COUNTRY_INFO!N27*($G27-$D27)),0)),IF($G27="",COUNTRY_INFO!N27*$E27,COUNTRY_INFO!N27*$G27))) -> 0 | I27: =IF(OR(COUNTRY_INFO!O27="Inconnu",COUNTRY_INFO!O27="Surveillance",COUNTRY_INFO!O27="Non requis",COUNTRY_INFO!O27=0),0,IF($E27<>0, IF($F27=0,COUNTRY_INFO!O27*$E27,COUNTRY_INFO!O27*($E27-$D27)),COUNTRY_INFO!O27*$E27)) -> 0 | K27: =IF(OR(COUNTRY_INFO!P27="Inconnu",COUNTRY_INFO!P27="Surveillance",COUNTRY_INFO!P27="Non requis",COUNTRY_INFO!P27=0),0,IF(AND($E27<>0,$J27=""),IF($F27=0,COUNTRY_INFO!P27*$E27,COUNTRY_INFO!P27*($E27-$D27)), IF(AND($E27<>0,$J27<>0),IF($F27=0,COUNTRY_INFO!P27*$J27,COUNTRY_INFO!P27*($J27-$D27)), COUNTRY_INFO!P27*$J27))) -> 0 | L27: 0 | M27: 0 | O27: 0 | P27: 0 | R27: 0 | S27: 0 | U27: 0
A28: =IF(AND(INTRO!$E$37="Non endémique",INTRO!$E$41="Non endémique")," ",IF(COUNTRY_INFO!A28=0," ",COUNTRY_INFO!A28)) -> NIGER | B28: =IF(AND(INTRO!$E$37="Non endémique",INTRO!$E$41="Non endémique")," ",IF(COUNTRY_INFO!B28=0," ",COUNTRY_INFO!B28)) -> Dosso | C28: =IF(AND(INTRO!$E$37="Non endémique",INTRO!$E$41="Non endémique")," ",IF(COUNTRY_INFO!C28=0," ",COUNTRY_INFO!C28)) -> Gaya | D28: =IF(AND(INTRO!$E$37="Non endémique",INTRO!$E$41="Non endémique"),0,COUNTRY_INFO!V28) -> 0 | E28: =IF(AND(INTRO!$E$37="Non endémique",INTRO!$E$41="Non endémique"),0,COUNTRY_INFO!X28) -> 0 | F28: =IF(INTRO!$E$39="Non endémique",IF($D28=1,DEC!I28,0),IF($D28=1,IVM!G28,0)) -> 0 | H28: =IF(OR(COUNTRY_INFO!N28="Inconnu",COUNTRY_INFO!N28="Surveillance",COUNTRY_INFO!N28="Non requis",COUNTRY_INFO!N28=0),0,IF(INTRO!$E$39="Non endémique",IF(AND($E28<>0,$G28=""),IF($F28=0,COUNTRY_INFO!N28*$E28,COUNTRY_INFO!N28*($E28-$D28)),IF(AND($E28<>0,$G28<>0),IF($F28=0,COUNTRY_INFO!N28*$G28,COUNTRY_INFO!N28*($G28-$D28)),0)),IF($G28="",COUNTRY_INFO!N28*$E28,COUNTRY_INFO!N28*$G28))) -> 0 | I28: =IF(OR(COUNTRY_INFO!O28="Inconnu",COUNTRY_INFO!O28="Surveillance",COUNTRY_INFO!O28="Non requis",COUNTRY_INFO!O28=0),0,IF($E28<>0, IF($F28=0,COUNTRY_INFO!O28*$E28,COUNTRY_INFO!O28*($E28-$D28)),COUNTRY_INFO!O28*$E28)) -> 0 | K28: =IF(OR(COUNTRY_INFO!P28="Inconnu",COUNTRY_INFO!P28="Surveillance",COUNTRY_INFO!P28="Non requis",COUNTRY_INFO!P28=0),0,IF(AND($E28<>0,$J28=""),IF($F28=0,COUNTRY_INFO!P28*$E28,COUNTRY_INFO!P28*($E28-$D28)), IF(AND($E28<>0,$J28<>0),IF($F28=0,COUNTRY_INFO!P28*$J28,COUNTRY_INFO!P28*($J28-$D28)), COUNTRY_INFO!P28*$J28))) -> 0 | L28: 0 | M28: 0 | O28: 0 | P28: 0 | R28: 0 | S28: 0 | U28: 0
A29: =IF(AND(INTRO!$E$37="Non endémique",INTRO!$E$41="Non endémique")," ",IF(COUNTRY_INFO!A29=0," ",COUNTRY_INFO!A29)) -> NIGER | B29: =IF(AND(INTRO!$E$37="Non endémique",INTRO!$E$41="Non endémique")," ",IF(COUNTRY_INFO!B29=0," ",COUNTRY_INFO!B29)) -> Dosso | C29: =IF(AND(INTRO!$E$37="Non endémique",INTRO!$E$41="Non endémique")," ",IF(COUNTRY_INFO!C29=0," ",COUNTRY_INFO!C29)) -> Dioundiou | D29: =IF(AND(INTRO!$E$37="Non endémique",INTRO!$E$41="Non endémique"),0,COUNTRY_INFO!V29) -> 0 | E29: =IF(AND(INTRO!$E$37="Non endémique",INTRO!$E$41="Non endémique"),0,COUNTRY_INFO!X29) -> 0 | F29: =IF(INTRO!$E$39="Non endémique",IF($D29=1,DEC!I29,0),IF($D29=1,IVM!G29,0)) -> 0 | H29: =IF(OR(COUNTRY_INFO!N29="Inconnu",COUNTRY_INFO!N29="Surveillance",COUNTRY_INFO!N29="Non requis",COUNTRY_INFO!N29=0),0,IF(INTRO!$E$39="Non endémique",IF(AND($E29<>0,$G29=""),IF($F29=0,COUNTRY_INFO!N29*$E29,COUNTRY_INFO!N29*($E29-$D29)),IF(AND($E29<>0,$G29<>0),IF($F29=0,COUNTRY_INFO!N29*$G29,COUNTRY_INFO!N29*($G29-$D29)),0)),IF($G29="",COUNTRY_INFO!N29*$E29,COUNTRY_INFO!N29*$G29))) -> 0 | I29: =IF(OR(COUNTRY_INFO!O29="Inconnu",COUNTRY_INFO!O29="Surveillance",COUNTRY_INFO!O29="Non requis",COUNTRY_INFO!O29=0),0,IF($E29<>0, IF($F29=0,COUNTRY_INFO!O29*$E29,COUNTRY_INFO!O29*($E29-$D29)),COUNTRY_INFO!O29*$E29)) -> 0 | K29: =IF(OR(COUNTRY_INFO!P29="Inconnu",COUNTRY_INFO!P29="Surveillance",COUNTRY_INFO!P29="Non requis",COUNTRY_INFO!P29=0),0,IF(AND($E29<>0,$J29=""),IF($F29=0,COUNTRY_INFO!P29*$E29,COUNTRY_INFO!P29*($E29-$D29)), IF(AND($E29<>0,$J29<>0),IF($F29=0,COUNTRY_INFO!P29*$J29,COUNTRY_INFO!P29*($J29-$D29)), COUNTRY_INFO!P29*$J29))) -> 0 | L29: 0 | M29: 0 | O29: 0 | P29: 0 | R29: 0 | S29: 0 | U29: 0
A30: =IF(AND(INTRO!$E$37="Non endémique",INTRO!$E$41="Non endémique")," ",IF(COUNTRY_INFO!A30=0," ",COUNTRY_INFO!A30)) -> NIGER | B30: =IF(AND(INTRO!$E$37="Non endémique",INTRO!$E$41="Non endémique")," ",IF(COUNTRY_INFO!B30=0," ",COUNTRY_INFO!B30)) -> Dosso | C30: =IF(AND(INTRO!$E$37="Non endémique",INTRO!$E$41="Non endémique")," ",IF(COUNTRY_INFO!C30=0," ",COUNTRY_INFO!C30)) -> Loga | D30: =IF(AND(INTRO!$E$37="Non endémique",INTRO!$E$41="Non endémique"),0,COUNTRY_INFO!V30) -> 0 | E30: =IF(AND(INTRO!$E$37="Non endémique",INTRO!$E$41="Non endémique"),0,COUNTRY_INFO!X30) -> 0 | F30: =IF(INTRO!$E$39="Non endémique",IF($D30=1,DEC!I30,0),IF($D30=1,IVM!G30,0)) -> 0 | H30: =IF(OR(COUNTRY_INFO!N30="Inconnu",COUNTRY_INFO!N30="Surveillance",COUNTRY_INFO!N30="Non requis",COUNTRY_INFO!N30=0),0,IF(INTRO!$E$39="Non endémique",IF(AND($E30<>0,$G30=""),IF($F30=0,COUNTRY_INFO!N30*$E30,COUNTRY_INFO!N30*($E30-$D30)),IF(AND($E30<>0,$G30<>0),IF($F30=0,COUNTRY_INFO!N30*$G30,COUNTRY_INFO!N30*($G30-$D30)),0)),IF($G30="",COUNTRY_INFO!N30*$E30,COUNTRY_INFO!N30*$G30))) -> 0 | I30: =IF(OR(COUNTRY_INFO!O30="Inconnu",COUNTRY_INFO!O30="Surveillance",COUNTRY_INFO!O30="Non requis",COUNTRY_INFO!O30=0),0,IF($E30<>0, IF($F30=0,COUNTRY_INFO!O30*$E30,COUNTRY_INFO!O30*($E30-$D30)),COUNTRY_INFO!O30*$E30)) -> 0 | K30: =IF(OR(COUNTRY_INFO!P30="Inconnu",COUNTRY_INFO!P30="Surveillance",COUNTRY_INFO!P30="Non requis",COUNTRY_INFO!P30=0),0,IF(AND($E30<>0,$J30=""),IF($F30=0,COUNTRY_INFO!P30*$E30,COUNTRY_INFO!P30*($E30-$D30)), IF(AND($E30<>0,$J30<>0),IF($F30=0,COUNTRY_INFO!P30*$J30,COUNTRY_INFO!P30*($J30-$D30)), COUNTRY_INFO!P30*$J30))) -> 0 | L30: 0 | M30: 0 | O30: 0 | P30: 0 | R30: 0 | S30: 0 | U30: 0
A31: =IF(AND(INTRO!$E$37="Non endémique",INTRO!$E$41="Non endémique")," ",IF(COUNTRY_INFO!A31=0," ",COUNTRY_INFO!A31)) -> NIGER | B31: =IF(AND(INTRO!$E$37="Non endémique",INTRO!$E$41="Non endémique")," ",IF(COUNTRY_INFO!B31=0," ",COUNTRY_INFO!B31)) -> Maradi | C31: =IF(AND(INTRO!$E$37="Non endémique",INTRO!$E$41="Non endémique")," ",IF(COUNTRY_INFO!C31=0," ",COUNTRY_INFO!C31)) -> Aguié | D31: =IF(AND(INTRO!$E$37="Non endémique",INTRO!$E$41="Non endémique"),0,COUNTRY_INFO!V31) -> 0 | E31: =IF(AND(INTRO!$E$37="Non endémique",INTRO!$E$41="Non endémique"),0,COUNTRY_INFO!X31) -> 0 | F31: =IF(INTRO!$E$39="Non endémique",IF($D31=1,DEC!I31,0),IF($D31=1,IVM!G31,0)) -> 0 | H31: =IF(OR(COUNTRY_INFO!N31="Inconnu",COUNTRY_INFO!N31="Surveillance",COUNTRY_INFO!N31="Non requis",COUNTRY_INFO!N31=0),0,IF(INTRO!$E$39="Non endémique",IF(AND($E31<>0,$G31=""),IF($F31=0,COUNTRY_INFO!N31*$E31,COUNTRY_INFO!N31*($E31-$D31)),IF(AND($E31<>0,$G31<>0),IF($F31=0,COUNTRY_INFO!N31*$G31,COUNTRY_INFO!N31*($G31-$D31)),0)),IF($G31="",COUNTRY_INFO!N31*$E31,COUNTRY_INFO!N31*$G31))) -> 0 | I31: =IF(OR(COUNTRY_INFO!O31="Inconnu",COUNTRY_INFO!O31="Surveillance",COUNTRY_INFO!O31="Non requis",COUNTRY_INFO!O31=0),0,IF($E31<>0, IF($F31=0,COUNTRY_INFO!O31*$E31,COUNTRY_INFO!O31*($E31-$D31)),COUNTRY_INFO!O31*$E31)) -> 0 | K31: =IF(OR(COUNTRY_INFO!P31="Inconnu",COUNTRY_INFO!P31="Surveillance",COUNTRY_INFO!P31="Non requis",COUNTRY_INFO!P31=0),0,IF(AND($E31<>0,$J31=""),IF($F31=0,COUNTRY_INFO!P31*$E31,COUNTRY_INFO!P31*($E31-$D31)), IF(AND($E31<>0,$J31<>0),IF($F31=0,COUNTRY_INFO!P31*$J31,COUNTRY_INFO!P31*($J31-$D31)), COUNTRY_INFO!P31*$J31))) -> 0 | L31: 0 | M31: 0 | O31: 0 | P31: 0 | R31: 0 | S31: 0 | U31: 0
A32: =IF(AND(INTRO!$E$37="Non endémique",INTRO!$E$41="Non endémique")," ",IF(COUNTRY_INFO!A32=0," ",COUNTRY_INFO!A32)) -> NIGER | B32: =IF(AND(INTRO!$E$37="Non endémique",INTRO!$E$41="Non endémique")," ",IF(COUNTRY_INFO!B32=0," ",COUNTRY_INFO!B32)) -> Maradi | C32: =IF(AND(INTRO!$E$37="Non endémique",INTRO!$E$41="Non endémique")," ",IF(COUNTRY_INFO!C32=0," ",COUNTRY_INFO!C32)) -> Gazaoua | D32: =IF(AND(INTRO!$E$37="Non endémique",INTRO!$E$41="Non endémique"),0,COUNTRY_INFO!V32) -> 0 | E32: =IF(AND(INTRO!$E$37="Non endémique",INTRO!$E$41="Non endémique"),0,COUNTRY_INFO!X32) -> 0 | F32: =IF(INTRO!$E$39="Non endémique",IF($D32=1,DEC!I32,0),IF($D32=1,IVM!G32,0)) -> 0 | H32: =IF(OR(COUNTRY_INFO!N32="Inconnu",COUNTRY_INFO!N32="Surveillance",COUNTRY_INFO!N32="Non requis",COUNTRY_INFO!N32=0),0,IF(INTRO!$E$39="Non endémique",IF(AND($E32<>0,$G32=""),IF($F32=0,COUNTRY_INFO!N32*$E32,COUNTRY_INFO!N32*($E32-$D32)),IF(AND($E32<>0,$G32<>0),IF($F32=0,COUNTRY_INFO!N32*$G32,COUNTRY_INFO!N32*($G32-$D32)),0)),IF($G32="",COUNTRY_INFO!N32*$E32,COUNTRY_INFO!N32*$G32))) -> 0 | I32: =IF(OR(COUNTRY_INFO!O32="Inconnu",COUNTRY_INFO!O32="Surveillance",COUNTRY_INFO!O32="Non requis",COUNTRY_INFO!O32=0),0,IF($E32<>0, IF($F32=0,COUNTRY_INFO!O32*$E32,COUNTRY_INFO!O32*($E32-$D32)),COUNTRY_INFO!O32*$E32)) -> 0 | K32: =IF(OR(COUNTRY_INFO!P32="Inconnu",COUNTRY_INFO!P32="Surveillance",COUNTRY_INFO!P32="Non requis",COUNTRY_INFO!P32=0),0,IF(AND($E32<>0,$J32=""),IF($F32=0,COUNTRY_INFO!P32*$E32,COUNTRY_INFO!P32*($E32-$D32)), IF(AND($E32<>0,$J32<>0),IF($F32=0,COUNTRY_INFO!P32*$J32,COUNTRY_INFO!P32*($J32-$D32)), COUNTRY_INFO!P32*$J32))) -> 0 | L32: 0 | M32: 0 | O32: 0 | P32: 0 | R32: 0 | S32: 0 | U32: 0
A33: =IF(AND(INTRO!$E$37="Non endémique",INTRO!$E$41="Non endémique")," ",IF(COUNTRY_INFO!A33=0," ",COUNTRY_INFO!A33)) -> NIGER | B33: =IF(AND(INTRO!$E$37="Non endémique",INTRO!$E$41="Non endémique")," ",IF(COUNTRY_INFO!B33=0," ",COUNTRY_INFO!B33)) -> Maradi | C33: =IF(AND(INTRO!$E$37="Non endémique",INTRO!$E$41="Non endémique")," ",IF(COUNTRY_INFO!C33=0," ",COUNTRY_INFO!C33)) -> Dakoro | D33: =IF(AND(INTRO!$E$37="Non endémique",INTRO!$E$41="Non endémique"),0,COUNTRY_INFO!V33) -> 0 | E33: =IF(AND(INTRO!$E$37="Non endémique",INTRO!$E$41="Non endémique"),0,COUNTRY_INFO!X33) -> 0 | F33: =IF(INTRO!$E$39="Non endémique",IF($D33=1,DEC!I33,0),IF($D33=1,IVM!G33,0)) -> 0 | H33: =IF(OR(COUNTRY_INFO!N33="Inconnu",COUNTRY_INFO!N33="Surveillance",COUNTRY_INFO!N33="Non requis",COUNTRY_INFO!N33=0),0,IF(INTRO!$E$39="Non endémique",IF(AND($E33<>0,$G33=""),IF($F33=0,COUNTRY_INFO!N33*$E33,COUNTRY_INFO!N33*($E33-$D33)),IF(AND($E33<>0,$G33<>0),IF($F33=0,COUNTRY_INFO!N33*$G33,COUNTRY_INFO!N33*($G33-$D33)),0)),IF($G33="",COUNTRY_INFO!N33*$E33,COUNTRY_INFO!N33*$G33))) -> 0 | I33: =IF(OR(COUNTRY_INFO!O33="Inconnu",COUNTRY_INFO!O33="Surveillance",COUNTRY_INFO!O33="Non requis",COUNTRY_INFO!O33=0),0,IF($E33<>0, IF($F33=0,COUNTRY_INFO!O33*$E33,COUNTRY_INFO!O33*($E33-$D33)),COUNTRY_INFO!O33*$E33)) -> 0 | K33: =IF(OR(COUNTRY_INFO!P33="Inconnu",COUNTRY_INFO!P33="Surveillance",COUNTRY_INFO!P33="Non requis",COUNTRY_INFO!P33=0),0,IF(AND($E33<>0,$J33=""),IF($F33=0,COUNTRY_INFO!P33*$E33,COUNTRY_INFO!P33*($E33-$D33)), IF(AND($E33<>0,$J33<>0),IF($F33=0,COUNTRY_INFO!P33*$J33,COUNTRY_INFO!P33*($J33-$D33)), COUNTRY_INFO!P33*$J33))) -> 0 | L33: 0 | M33: 0 | O33: 0 | P33: 0 | R33: 0 | S33: 0 | U33: 0
A34: =IF(AND(INTRO!$E$37="Non endémique",INTRO!$E$41="Non endémique")," ",IF(COUNTRY_INFO!A34=0," ",COUNTRY_INFO!A34)) -> NIGER | B34: =IF(AND(INTRO!$E$37="Non endémique",INTRO!$E$41="Non endémique")," ",IF(COUNTRY_INFO!B34=0," ",COUNTRY_INFO!B34)) -> Maradi | C34: =IF(AND(INTRO!$E$37="Non endémique",INTRO!$E$41="Non endémique")," ",IF(COUNTRY_INFO!C34=0," ",COUNTRY_INFO!C34)) -> Bermo | D34: =IF(AND(INTRO!$E$37="Non endémique",INTRO!$E$41="Non endémique"),0,COUNTRY_INFO!V34) -> 0 | E34: =IF(AND(INTRO!$E$37="Non endémique",INTRO!$E$41="Non endémique"),0,COUNTRY_INFO!X34) -> 0 | F34: =IF(INTRO!$E$39="Non endémique",IF($D34=1,DEC!I34,0),IF($D34=1,IVM!G34,0)) -> 0 | H34: =IF(OR(COUNTRY_INFO!N34="Inconnu",COUNTRY_INFO!N34="Surveillance",COUNTRY_INFO!N34="Non requis",COUNTRY_INFO!N34=0),0,IF(INTRO!$E$39="Non endémique",IF(AND($E34<>0,$G34=""),IF($F34=0,COUNTRY_INFO!N34*$E34,COUNTRY_INFO!N34*($E34-$D34)),IF(AND($E34<>0,$G34<>0),IF($F34=0,COUNTRY_INFO!N34*$G34,COUNTRY_INFO!N34*($G34-$D34)),0)),IF($G34="",COUNTRY_INFO!N34*$E34,COUNTRY_INFO!N34*$G34))) -> 0 | I34: =IF(OR(COUNTRY_INFO!O34="Inconnu",COUNTRY_INFO!O34="Surveillance",COUNTRY_INFO!O34="Non requis",COUNTRY_INFO!O34=0),0,IF($E34<>0, IF($F34=0,COUNTRY_INFO!O34*$E34,COUNTRY_INFO!O34*($E34-$D34)),COUNTRY_INFO!O34*$E34)) -> 0 | K34: =IF(OR(COUNTRY_INFO!P34="Inconnu",COUNTRY_INFO!P34="Surveillance",COUNTRY_INFO!P34="Non requis",COUNTRY_INFO!P34=0),0,IF(AND($E34<>0,$J34=""),IF($F34=0,COUNTRY_INFO!P34*$E34,COUNTRY_INFO!P34*($E34-$D34)), IF(AND($E34<>0,$J34<>0),IF($F34=0,COUNTRY_INFO!P34*$J34,COUNTRY_INFO!P34*($J34-$D34)), COUNTRY_INFO!P34*$J34))) -> 0 | L34: 0 | M34: 0 | O34: 0 | P34: 0 | R34: 0 | S34: 0 | U34: 0
A35: =IF(AND(INTRO!$E$37="Non endémique",INTRO!$E$41="Non endémique")," ",IF(COUNTRY_INFO!A35=0," ",COUNTRY_INFO!A35)) -> NIGER | B35: =IF(AND(INTRO!$E$37="Non endémique",INTRO!$E$41="Non endémique")," ",IF(COUNTRY_INFO!B35=0," ",COUNTRY_INFO!B35)) -> Maradi | C35: =IF(AND(INTRO!$E$37="Non endémique",INTRO!$E$41="Non endémique")," ",IF(COUNTRY_INFO!C35=0," ",COUNTRY_INFO!C35)) -> Guidan Roumdji | D35: =IF(AND(INTRO!$E$37="Non endémique",INTRO!$E$41="Non endémique"),0,COUNTRY_INFO!V35) -> 0 | E35: =IF(AND(INTRO!$E$37="Non endémique",INTRO!$E$41="Non endémique"),0,COUNTRY_INFO!X35) -> 0 | F35: =IF(INTRO!$E$39="Non endémique",IF($D35=1,DEC!I35,0),IF($D35=1,IVM!G35,0)) -> 0 | H35: =IF(OR(COUNTRY_INFO!N35="Inconnu",COUNTRY_INFO!N35="Surveillance",COUNTRY_INFO!N35="Non requis",COUNTRY_INFO!N35=0),0,IF(INTRO!$E$39="Non endémique",IF(AND($E35<>0,$G35=""),IF($F35=0,COUNTRY_INFO!N35*$E35,COUNTRY_INFO!N35*($E35-$D35)),IF(AND($E35<>0,$G35<>0),IF($F35=0,COUNTRY_INFO!N35*$G35,COUNTRY_INFO!N35*($G35-$D35)),0)),IF($G35="",COUNTRY_INFO!N35*$E35,COUNTRY_INFO!N35*$G35))) -> 0 | I35: =IF(OR(COUNTRY_INFO!O35="Inconnu",COUNTRY_INFO!O35="Surveillance",COUNTRY_INFO!O35="Non requis",COUNTRY_INFO!O35=0),0,IF($E35<>0, IF($F35=0,COUNTRY_INFO!O35*$E35,COUNTRY_INFO!O35*($E35-$D35)),COUNTRY_INFO!O35*$E35)) -> 0 | K35: =IF(OR(COUNTRY_INFO!P35="Inconnu",COUNTRY_INFO!P35="Surveillance",COUNTRY_INFO!P35="Non requis",COUNTRY_INFO!P35=0),0,IF(AND($E35<>0,$J35=""),IF($F35=0,COUNTRY_INFO!P35*$E35,COUNTRY_INFO!P35*($E35-$D35)), IF(AND($E35<>0,$J35<>0),IF($F35=0,COUNTRY_INFO!P35*$J35,COUNTRY_INFO!P35*($J35-$D35)), COUNTRY_INFO!P35*$J35))) -> 0 | L35: 0 | M35: 0 | O35: 0 | P35: 0 | R35: 0 | S35: 0 | U35: 0
A36: =IF(AND(INTRO!$E$37="Non endémique",INTRO!$E$41="Non endémique")," ",IF(COUNTRY_INFO!A36=0," ",COUNTRY_INFO!A36)) -> NIGER | B36: =IF(AND(INTRO!$E$37="Non endémique",INTRO!$E$41="Non endémique")," ",IF(COUNTRY_INFO!B36=0," ",COUNTRY_INFO!B36)) -> Maradi | C36: =IF(AND(INTRO!$E$37="Non endémique",INTRO!$E$41="Non endémique")," ",IF(COUNTRY_INFO!C36=0," ",COUNTRY_INFO!C36)) -> Madarounfa | D36: =IF(AND(INTRO!$E$37="Non endémique",INTRO!$E$41="Non endémique"),0,COUNTRY_INFO!V36) -> 0 | E36: =IF(AND(INTRO!$E$37="Non endémique",INTRO!$E$41="Non endémique"),0,COUNTRY_INFO!X36) -> 0 | F36: =IF(INTRO!$E$39="Non endémique",IF($D36=1,DEC!I36,0),IF($D36=1,IVM!G36,0)) -> 0 | H36: =IF(OR(COUNTRY_INFO!N36="Inconnu",COUNTRY_INFO!N36="Surveillance",COUNTRY_INFO!N36="Non requis",COUNTRY_INFO!N36=0),0,IF(INTRO!$E$39="Non endémique",IF(AND($E36<>0,$G36=""),IF($F36=0,COUNTRY_INFO!N36*$E36,COUNTRY_INFO!N36*($E36-$D36)),IF(AND($E36<>0,$G36<>0),IF($F36=0,COUNTRY_INFO!N36*$G36,COUNTRY_INFO!N36*($G36-$D36)),0)),IF($G36="",COUNTRY_INFO!N36*$E36,COUNTRY_INFO!N36*$G36))) -> 0 | I36: =IF(OR(COUNTRY_INFO!O36="Inconnu",COUNTRY_INFO!O36="Surveillance",COUNTRY_INFO!O36="Non requis",COUNTRY_INFO!O36=0),0,IF($E36<>0, IF($F36=0,COUNTRY_INFO!O36*$E36,COUNTRY_INFO!O36*($E36-$D36)),COUNTRY_INFO!O36*$E36)) -> 0 | K36: =IF(OR(COUNTRY_INFO!P36="Inconnu",COUNTRY_INFO!P36="Surveillance",COUNTRY_INFO!P36="Non requis",COUNTRY_INFO!P36=0),0,IF(AND($E36<>0,$J36=""),IF($F36=0,COUNTRY_INFO!P36*$E36,COUNTRY_INFO!P36*($E36-$D36)), IF(AND($E36<>0,$J36<>0),IF($F36=0,COUNTRY_INFO!P36*$J36,COUNTRY_INFO!P36*($J36-$D36)), COUNTRY_INFO!P36*$J36))) -> 0 | L36: 0 | M36: 0 | O36: 0 | P36: 0 | R36: 0 | S36: 0 | U36: 0
A37: =IF(AND(INTRO!$E$37="Non endémique",INTRO!$E$41="Non endémique")," ",IF(COUNTRY_INFO!A37=0," ",COUNTRY_INFO!A37)) -> NIGER | B37: =IF(AND(INTRO!$E$37="Non endémique",INTRO!$E$41="Non endémique")," ",IF(COUNTRY_INFO!B37=0," ",COUNTRY_INFO!B37)) -> Maradi | C37: =IF(AND(INTRO!$E$37="Non endémique",INTRO!$E$41="Non endémique")," ",IF(COUNTRY_INFO!C37=0," ",COUNTRY_INFO!C37)) -> Maradi | D37: =IF(AND(INTRO!$E$37="Non endémique",INTRO!$E$41="Non endémique"),0,COUNTRY_INFO!V37) -> 0 | E37: =IF(AND(INTRO!$E$37="Non endémique",INTRO!$E$41="Non endémique"),0,COUNTRY_INFO!X37) -> 0 | F37: =IF(INTRO!$E$39="Non endémique",IF($D37=1,DEC!I37,0),IF($D37=1,IVM!G37,0)) -> 0 | H37: =IF(OR(COUNTRY_INFO!N37="Inconnu",COUNTRY_INFO!N37="Surveillance",COUNTRY_INFO!N37="Non requis",COUNTRY_INFO!N37=0),0,IF(INTRO!$E$39="Non endémique",IF(AND($E37<>0,$G37=""),IF($F37=0,COUNTRY_INFO!N37*$E37,COUNTRY_INFO!N37*($E37-$D37)),IF(AND($E37<>0,$G37<>0),IF($F37=0,COUNTRY_INFO!N37*$G37,COUNTRY_INFO!N37*($G37-$D37)),0)),IF($G37="",COUNTRY_INFO!N37*$E37,COUNTRY_INFO!N37*$G37))) -> 0 | I37: =IF(OR(COUNTRY_INFO!O37="Inconnu",COUNTRY_INFO!O37="Surveillance",COUNTRY_INFO!O37="Non requis",COUNTRY_INFO!O37=0),0,IF($E37<>0, IF($F37=0,COUNTRY_INFO!O37*$E37,COUNTRY_INFO!O37*($E37-$D37)),COUNTRY_INFO!O37*$E37)) -> 0 | K37: =IF(OR(COUNTRY_INFO!P37="Inconnu",COUNTRY_INFO!P37="Surveillance",COUNTRY_INFO!P37="Non requis",COUNTRY_INFO!P37=0),0,IF(AND($E37<>0,$J37=""),IF($F37=0,COUNTRY_INFO!P37*$E37,COUNTRY_INFO!P37*($E37-$D37)), IF(AND($E37<>0,$J37<>0),IF($F37=0,COUNTRY_INFO!P37*$J37,COUNTRY_INFO!P37*($J37-$D37)), COUNTRY_INFO!P37*$J37))) -> 0 | L37: 0 | M37: 0 | O37: 0 | P37: 0 | R37: 0 | S37: 0 | U37: 0
A38: =IF(AND(INTRO!$E$37="Non endémique",INTRO!$E$41="Non endémique")," ",IF(COUNTRY_INFO!A38=0," ",COUNTRY_INFO!A38)) -> NIGER | B38: =IF(AND(INTRO!$E$37="Non endémique",INTRO!$E$41="Non endémique")," ",IF(COUNTRY_INFO!B38=0," ",COUNTRY_INFO!B38)) -> Maradi | C38: =IF(AND(INTRO!$E$37="Non endémique",INTRO!$E$41="Non endémique")," ",IF(COUNTRY_INFO!C38=0," ",COUNTRY_INFO!C38)) -> Mayahi | D38: =IF(AND(INTRO!$E$37="Non endémique",INTRO!$E$41="Non endémique"),0,COUNTRY_INFO!V38) -> 0 | E38: =IF(AND(INTRO!$E$37="Non endémique",INTRO!$E$41="Non endémique"),0,COUNTRY_INFO!X38) -> 0 | F38: =IF(INTRO!$E$39="Non endémique",IF($D38=1,DEC!I38,0),IF($D38=1,IVM!G38,0)) -> 0 | H38: =IF(OR(COUNTRY_INFO!N38="Inconnu",COUNTRY_INFO!N38="Surveillance",COUNTRY_INFO!N38="Non requis",COUNTRY_INFO!N38=0),0,IF(INTRO!$E$39="Non endémique",IF(AND($E38<>0,$G38=""),IF($F38=0,COUNTRY_INFO!N38*$E38,COUNTRY_INFO!N38*($E38-$D38)),IF(AND($E38<>0,$G38<>0),IF($F38=0,COUNTRY_INFO!N38*$G38,COUNTRY_INFO!N38*($G38-$D38)),0)),IF($G38="",COUNTRY_INFO!N38*$E38,COUNTRY_INFO!N38*$G38))) -> 0 | I38: =IF(OR(COUNTRY_INFO!O38="Inconnu",COUNTRY_INFO!O38="Surveillance",COUNTRY_INFO!O38="Non requis",COUNTRY_INFO!O38=0),0,IF($E38<>0, IF($F38=0,COUNTRY_INFO!O38*$E38,COUNTRY_INFO!O38*($E38-$D38)),COUNTRY_INFO!O38*$E38)) -> 0 | K38: =IF(OR(COUNTRY_INFO!P38="Inconnu",COUNTRY_INFO!P38="Surveillance",COUNTRY_INFO!P38="Non requis",COUNTRY_INFO!P38=0),0,IF(AND($E38<>0,$J38=""),IF($F38=0,COUNTRY_INFO!P38*$E38,COUNTRY_INFO!P38*($E38-$D38)), IF(AND($E38<>0,$J38<>0),IF($F38=0,COUNTRY_INFO!P38*$J38,COUNTRY_INFO!P38*($J38-$D38)), COUNTRY_INFO!P38*$J38))) -> 0 | L38: 0 | M38: 0 | O38: 0 | P38: 0 | R38: 0 | S38: 0 | U38: 0
A39: =IF(AND(INTRO!$E$37="Non endémique",INTRO!$E$41="Non endémique")," ",IF(COUNTRY_INFO!A39=0," ",COUNTRY_INFO!A39)) -> NIGER | B39: =IF(AND(INTRO!$E$37="Non endémique",INTRO!$E$41="Non endémique")," ",IF(COUNTRY_INFO!B39=0," ",COUNTRY_INFO!B39)) -> Maradi | C39: =IF(AND(INTRO!$E$37="Non endémique",INTRO!$E$41="Non endémique")," ",IF(COUNTRY_INFO!C39=0," ",COUNTRY_INFO!C39)) -> Tessaoua | D39: =IF(AND(INTRO!$E$37="Non endémique",INTRO!$E$41="Non endémique"),0,COUNTRY_INFO!V39) -> 0 | E39: =IF(AND(INTRO!$E$37="Non endémique",INTRO!$E$41="Non endémique"),0,COUNTRY_INFO!X39) -> 0 | F39: =IF(INTRO!$E$39="Non endémique",IF($D39=1,DEC!I39,0),IF($D39=1,IVM!G39,0)) -> 0 | H39: =IF(OR(COUNTRY_INFO!N39="Inconnu",COUNTRY_INFO!N39="Surveillance",COUNTRY_INFO!N39="Non requis",COUNTRY_INFO!N39=0),0,IF(INTRO!$E$39="Non endémique",IF(AND($E39<>0,$G39=""),IF($F39=0,COUNTRY_INFO!N39*$E39,COUNTRY_INFO!N39*($E39-$D39)),IF(AND($E39<>0,$G39<>0),IF($F39=0,COUNTRY_INFO!N39*$G39,COUNTRY_INFO!N39*($G39-$D39)),0)),IF($G39="",COUNTRY_INFO!N39*$E39,COUNTRY_INFO!N39*$G39))) -> 0 | I39: =IF(OR(COUNTRY_INFO!O39="Inconnu",COUNTRY_INFO!O39="Surveillance",COUNTRY_INFO!O39="Non requis",COUNTRY_INFO!O39=0),0,IF($E39<>0, IF($F39=0,COUNTRY_INFO!O39*$E39,COUNTRY_INFO!O39*($E39-$D39)),COUNTRY_INFO!O39*$E39)) -> 0 | K39: =IF(OR(COUNTRY_INFO!P39="Inconnu",COUNTRY_INFO!P39="Surveillance",COUNTRY_INFO!P39="Non requis",COUNTRY_INFO!P39=0),0,IF(AND($E39<>0,$J39=""),IF($F39=0,COUNTRY_INFO!P39*$E39,COUNTRY_INFO!P39*($E39-$D39)), IF(AND($E39<>0,$J39<>0),IF($F39=0,COUNTRY_INFO!P39*$J39,COUNTRY_INFO!P39*($J39-$D39)), COUNTRY_INFO!P39*$J39))) -> 0 | L39: 0 | M39: 0 | O39: 0 | P39: 0 | R39: 0 | S39: 0 | U39: 0
A40: =IF(AND(INTRO!$E$37="Non endémique",INTRO!$E$41="Non endémique")," ",IF(COUNTRY_INFO!A40=0," ",COUNTRY_INFO!A40)) -> NIGER | B40: =IF(AND(INTRO!$E$37="Non endémique",INTRO!$E$41="Non endémique")," ",IF(COUNTRY_INFO!B40=0," ",COUNTRY_INFO!B40)) -> Niamey | C40: =IF(AND(INTRO!$E$37="Non endémique",INTRO!$E$41="Non endémique")," ",IF(COUNTRY_INFO!C40=0," ",COUNTRY_INFO!C40)) -> Niamey 1 | D40: =IF(AND(INTRO!$E$37="Non endémique",INTRO!$E$41="Non endémique"),0,COUNTRY_INFO!V40) -> 0 | E40: =IF(AND(INTRO!$E$37="Non endémique",INTRO!$E$41="Non endémique"),0,COUNTRY_INFO!X40) -> 0 | F40: =IF(INTRO!$E$39="Non endémique",IF($D40=1,DEC!I40,0),IF($D40=1,IVM!G40,0)) -> 0 | H40: =IF(OR(COUNTRY_INFO!N40="Inconnu",COUNTRY_INFO!N40="Surveillance",COUNTRY_INFO!N40="Non requis",COUNTRY_INFO!N40=0),0,IF(INTRO!$E$39="Non endémique",IF(AND($E40<>0,$G40=""),IF($F40=0,COUNTRY_INFO!N40*$E40,COUNTRY_INFO!N40*($E40-$D40)),IF(AND($E40<>0,$G40<>0),IF($F40=0,COUNTRY_INFO!N40*$G40,COUNTRY_INFO!N40*($G40-$D40)),0)),IF($G40="",COUNTRY_INFO!N40*$E40,COUNTRY_INFO!N40*$G40))) -> 0 | I40: =IF(OR(COUNTRY_INFO!O40="Inconnu",COUNTRY_INFO!O40="Surveillance",COUNTRY_INFO!O40="Non requis",COUNTRY_INFO!O40=0),0,IF($E40<>0, IF($F40=0,COUNTRY_INFO!O40*$E40,COUNTRY_INFO!O40*($E40-$D40)),COUNTRY_INFO!O40*$E40)) -> 0 | K40: =IF(OR(COUNTRY_INFO!P40="Inconnu",COUNTRY_INFO!P40="Surveillance",COUNTRY_INFO!P40="Non requis",COUNTRY_INFO!P40=0),0,IF(AND($E40<>0,$J40=""),IF($F40=0,COUNTRY_INFO!P40*$E40,COUNTRY_INFO!P40*($E40-$D40)), IF(AND($E40<>0,$J40<>0),IF($F40=0,COUNTRY_INFO!P40*$J40,COUNTRY_INFO!P40*($J40-$D40)), COUNTRY_INFO!P40*$J40))) -> 0 | L40: 0 | M40: 0 | O40: 0 | P40: 0 | R40: 0 | S40: 0 | U40: 0
A41: =IF(AND(INTRO!$E$37="Non endémique",INTRO!$E$41="Non endémique")," ",IF(COUNTRY_INFO!A41=0," ",COUNTRY_INFO!A41)) -> NIGER | B41: =IF(AND(INTRO!$E$37="Non endémique",INTRO!$E$41="Non endémique")," ",IF(COUNTRY_INFO!B41=0," ",COUNTRY_INFO!B41)) -> Niamey | C41: =IF(AND(INTRO!$E$37="Non endémique",INTRO!$E$41="Non endémique")," ",IF(COUNTRY_INFO!C41=0," ",COUNTRY_INFO!C41)) -> Niamey 2 | D41: =IF(AND(INTRO!$E$37="Non endémique",INTRO!$E$41="Non endémique"),0,COUNTRY_INFO!V41) -> 0 | E41: =IF(AND(INTRO!$E$37="Non endémique",INTRO!$E$41="Non endémique"),0,COUNTRY_INFO!X41) -> 0 | F41: =IF(INTRO!$E$39="Non endémique",IF($D41=1,DEC!I41,0),IF($D41=1,IVM!G41,0)) -> 0 | H41: =IF(OR(COUNTRY_INFO!N41="Inconnu",COUNTRY_INFO!N41="Surveillance",COUNTRY_INFO!N41="Non requis",COUNTRY_INFO!N41=0),0,IF(INTRO!$E$39="Non endémique",IF(AND($E41<>0,$G41=""),IF($F41=0,COUNTRY_INFO!N41*$E41,COUNTRY_INFO!N41*($E41-$D41)),IF(AND($E41<>0,$G41<>0),IF($F41=0,COUNTRY_INFO!N41*$G41,COUNTRY_INFO!N41*($G41-$D41)),0)),IF($G41="",COUNTRY_INFO!N41*$E41,COUNTRY_INFO!N41*$G41))) -> 0 | I41: =IF(OR(COUNTRY_INFO!O41="Inconnu",COUNTRY_INFO!O41="Surveillance",COUNTRY_INFO!O41="Non requis",COUNTRY_INFO!O41=0),0,IF($E41<>0, IF($F41=0,COUNTRY_INFO!O41*$E41,COUNTRY_INFO!O41*($E41-$D41)),COUNTRY_INFO!O41*$E41)) -> 0 | K41: =IF(OR(COUNTRY_INFO!P41="Inconnu",COUNTRY_INFO!P41="Surveillance",COUNTRY_INFO!P41="Non requis",COUNTRY_INFO!P41=0),0,IF(AND($E41<>0,$J41=""),IF($F41=0,COUNTRY_INFO!P41*$E41,COUNTRY_INFO!P41*($E41-$D41)), IF(AND($E41<>0,$J41<>0),IF($F41=0,COUNTRY_INFO!P41*$J41,COUNTRY_INFO!P41*($J41-$D41)), COUNTRY_INFO!P41*$J41))) -> 0 | L41: 0 | M41: 0 | O41: 0 | P41: 0 | R41: 0 | S41: 0 | U41: 0
A42: =IF(AND(INTRO!$E$37="Non endémique",INTRO!$E$41="Non endémique")," ",IF(COUNTRY_INFO!A42=0," ",COUNTRY_INFO!A42)) -> NIGER | B42: =IF(AND(INTRO!$E$37="Non endémique",INTRO!$E$41="Non endémique")," ",IF(COUNTRY_INFO!B42=0," ",COUNTRY_INFO!B42)) -> Niamey | C42: =IF(AND(INTRO!$E$37="Non endémique",INTRO!$E$41="Non endémique")," ",IF(COUNTRY_INFO!C42=0," ",COUNTRY_INFO!C42)) -> Niamey 3 | D42: =IF(AND(INTRO!$E$37="Non endémique",INTRO!$E$41="Non endémique"),0,COUNTRY_INFO!V42) -> 0 | E42: =IF(AND(INTRO!$E$37="Non endémique",INTRO!$E$41="Non endémique"),0,COUNTRY_INFO!X42) -> 0 | F42: =IF(INTRO!$E$39="Non endémique",IF($D42=1,DEC!I42,0),IF($D42=1,IVM!G42,0)) -> 0 | H42: =IF(OR(COUNTRY_INFO!N42="Inconnu",COUNTRY_INFO!N42="Surveillance",COUNTRY_INFO!N42="Non requis",COUNTRY_INFO!N42=0),0,IF(INTRO!$E$39="Non endémique",IF(AND($E42<>0,$G42=""),IF($F42=0,COUNTRY_INFO!N42*$E42,COUNTRY_INFO!N42*($E42-$D42)),IF(AND($E42<>0,$G42<>0),IF($F42=0,COUNTRY_INFO!N42*$G42,COUNTRY_INFO!N42*($G42-$D42)),0)),IF($G42="",COUNTRY_INFO!N42*$E42,COUNTRY_INFO!N42*$G42))) -> 0 | I42: =IF(OR(COUNTRY_INFO!O42="Inconnu",COUNTRY_INFO!O42="Surveillance",COUNTRY_INFO!O42="Non requis",COUNTRY_INFO!O42=0),0,IF($E42<>0, IF($F42=0,COUNTRY_INFO!O42*$E42,COUNTRY_INFO!O42*($E42-$D42)),COUNTRY_INFO!O42*$E42)) -> 0 | K42: =IF(OR(COUNTRY_INFO!P42="Inconnu",COUNTRY_INFO!P42="Surveillance",COUNTRY_INFO!P42="Non requis",COUNTRY_INFO!P42=0),0,IF(AND($E42<>0,$J42=""),IF($F42=0,COUNTRY_INFO!P42*$E42,COUNTRY_INFO!P42*($E42-$D42)), IF(AND($E42<>0,$J42<>0),IF($F42=0,COUNTRY_INFO!P42*$J42,COUNTRY_INFO!P42*($J42-$D42)), COUNTRY_INFO!P42*$J42))) -> 0 | L42: 0 | M42: 0 | O42: 0 | P42: 0 | R42: 0 | S42: 0 | U42: 0
A43: =IF(AND(INTRO!$E$37="Non endémique",INTRO!$E$41="Non endémique")," ",IF(COUNTRY_INFO!A43=0," ",COUNTRY_INFO!A43)) -> NIGER | B43: =IF(AND(INTRO!$E$37="Non endémique",INTRO!$E$41="Non endémique")," ",IF(COUNTRY_INFO!B43=0," ",COUNTRY_INFO!B43)) -> Niamey | C43: =IF(AND(INTRO!$E$37="Non endémique",INTRO!$E$41="Non endémique")," ",IF(COUNTRY_INFO!C43=0," ",COUNTRY_INFO!C43)) -> Niamey 4 | D43: =IF(AND(INTRO!$E$37="Non endémique",INTRO!$E$41="Non endémique"),0,COUNTRY_INFO!V43) -> 0 | E43: =IF(AND(INTRO!$E$37="Non endémique",INTRO!$E$41="Non endémique"),0,COUNTRY_INFO!X43) -> 0 | F43: =IF(INTRO!$E$39="Non endémique",IF($D43=1,DEC!I43,0),IF($D43=1,IVM!G43,0)) -> 0 | H43: =IF(OR(COUNTRY_INFO!N43="Inconnu",COUNTRY_INFO!N43="Surveillance",COUNTRY_INFO!N43="Non requis",COUNTRY_INFO!N43=0),0,IF(INTRO!$E$39="Non endémique",IF(AND($E43<>0,$G43=""),IF($F43=0,COUNTRY_INFO!N43*$E43,COUNTRY_INFO!N43*($E43-$D43)),IF(AND($E43<>0,$G43<>0),IF($F43=0,COUNTRY_INFO!N43*$G43,COUNTRY_INFO!N43*($G43-$D43)),0)),IF($G43="",COUNTRY_INFO!N43*$E43,COUNTRY_INFO!N43*$G43))) -> 0 | I43: =IF(OR(COUNTRY_INFO!O43="Inconnu",COUNTRY_INFO!O43="Surveillance",COUNTRY_INFO!O43="Non requis",COUNTRY_INFO!O43=0),0,IF($E43<>0, IF($F43=0,COUNTRY_INFO!O43*$E43,COUNTRY_INFO!O43*($E43-$D43)),COUNTRY_INFO!O43*$E43)) -> 0 | K43: =IF(OR(COUNTRY_INFO!P43="Inconnu",COUNTRY_INFO!P43="Surveillance",COUNTRY_INFO!P43="Non requis",COUNTRY_INFO!P43=0),0,IF(AND($E43<>0,$J43=""),IF($F43=0,COUNTRY_INFO!P43*$E43,COUNTRY_INFO!P43*($E43-$D43)), IF(AND($E43<>0,$J43<>0),IF($F43=0,COUNTRY_INFO!P43*$J43,COUNTRY_INFO!P43*($J43-$D43)), COUNTRY_INFO!P43*$J43))) -> 0 | L43: 0 | M43: 0 | O43: 0 | P43: 0 | R43: 0 | S43: 0 | U43: 0
A44: =IF(AND(INTRO!$E$37="Non endémique",INTRO!$E$41="Non endémique")," ",IF(COUNTRY_INFO!A44=0," ",COUNTRY_INFO!A44)) -> NIGER | B44: =IF(AND(INTRO!$E$37="Non endémique",INTRO!$E$41="Non endémique")," ",IF(COUNTRY_INFO!B44=0," ",COUNTRY_INFO!B44)) -> Niamey | C44: =IF(AND(INTRO!$E$37="Non endémique",INTRO!$E$41="Non endémique")," ",IF(COUNTRY_INFO!C44=0," ",COUNTRY_INFO!C44)) -> Niamey 5 | D44: =IF(AND(INTRO!$E$37="Non endémique",INTRO!$E$41="Non endémique"),0,COUNTRY_INFO!V44) -> 0 | E44: =IF(AND(INTRO!$E$37="Non endémique",INTRO!$E$41="Non endémique"),0,COUNTRY_INFO!X44) -> 0 | F44: =IF(INTRO!$E$39="Non endémique",IF($D44=1,DEC!I44,0),IF($D44=1,IVM!G44,0)) -> 0 | H44: =IF(OR(COUNTRY_INFO!N44="Inconnu",COUNTRY_INFO!N44="Surveillance",COUNTRY_INFO!N44="Non requis",COUNTRY_INFO!N44=0),0,IF(INTRO!$E$39="Non endémique",IF(AND($E44<>0,$G44=""),IF($F44=0,COUNTRY_INFO!N44*$E44,COUNTRY_INFO!N44*($E44-$D44)),IF(AND($E44<>0,$G44<>0),IF($F44=0,COUNTRY_INFO!N44*$G44,COUNTRY_INFO!N44*($G44-$D44)),0)),IF($G44="",COUNTRY_INFO!N44*$E44,COUNTRY_INFO!N44*$G44))) -> 0 | I44: =IF(OR(COUNTRY_INFO!O44="Inconnu",COUNTRY_INFO!O44="Surveillance",COUNTRY_INFO!O44="Non requis",COUNTRY_INFO!O44=0),0,IF($E44<>0, IF($F44=0,COUNTRY_INFO!O44*$E44,COUNTRY_INFO!O44*($E44-$D44)),COUNTRY_INFO!O44*$E44)) -> 0 | K44: =IF(OR(COUNTRY_INFO!P44="Inconnu",COUNTRY_INFO!P44="Surveillance",COUNTRY_INFO!P44="Non requis",COUNTRY_INFO!P44=0),0,IF(AND($E44<>0,$J44=""),IF($F44=0,COUNTRY_INFO!P44*$E44,COUNTRY_INFO!P44*($E44-$D44)), IF(AND($E44<>0,$J44<>0),IF($F44=0,COUNTRY_INFO!P44*$J44,COUNTRY_INFO!P44*($J44-$D44)), COUNTRY_INFO!P44*$J44))) -> 0 | L44: 0 | M44: 0 | O44: 0 | P44: 0 | R44: 0 | S44: 0 | U44: 0
A45: =IF(AND(INTRO!$E$37="Non endémique",INTRO!$E$41="Non endémique")," ",IF(COUNTRY_INFO!A45=0," ",COUNTRY_INFO!A45)) -> NIGER | B45: =IF(AND(INTRO!$E$37="Non endémique",INTRO!$E$41="Non endémique")," ",IF(COUNTRY_INFO!B45=0," ",COUNTRY_INFO!B45)) -> Tahoua | C45: =IF(AND(INTRO!$E$37="Non endémique",INTRO!$E$41="Non endémique")," ",IF(COUNTRY_INFO!C45=0," ",COUNTRY_INFO!C45)) -> Abalak | D45: =IF(AND(INTRO!$E$37="Non endémique",INTRO!$E$41="Non endémique"),0,COUNTRY_INFO!V45) -> 0 | E45: =IF(AND(INTRO!$E$37="Non endémique",INTRO!$E$41="Non endémique"),0,COUNTRY_INFO!X45) -> 0 | F45: =IF(INTRO!$E$39="Non endémique",IF($D45=1,DEC!I45,0),IF($D45=1,IVM!G45,0)) -> 0 | H45: =IF(OR(COUNTRY_INFO!N45="Inconnu",COUNTRY_INFO!N45="Surveillance",COUNTRY_INFO!N45="Non requis",COUNTRY_INFO!N45=0),0,IF(INTRO!$E$39="Non endémique",IF(AND($E45<>0,$G45=""),IF($F45=0,COUNTRY_INFO!N45*$E45,COUNTRY_INFO!N45*($E45-$D45)),IF(AND($E45<>0,$G45<>0),IF($F45=0,COUNTRY_INFO!N45*$G45,COUNTRY_INFO!N45*($G45-$D45)),0)),IF($G45="",COUNTRY_INFO!N45*$E45,COUNTRY_INFO!N45*$G45))) -> 0 | I45: =IF(OR(COUNTRY_INFO!O45="Inconnu",COUNTRY_INFO!O45="Surveillance",COUNTRY_INFO!O45="Non requis",COUNTRY_INFO!O45=0),0,IF($E45<>0, IF($F45=0,COUNTRY_INFO!O45*$E45,COUNTRY_INFO!O45*($E45-$D45)),COUNTRY_INFO!O45*$E45)) -> 0 | K45: =IF(OR(COUNTRY_INFO!P45="Inconnu",COUNTRY_INFO!P45="Surveillance",COUNTRY_INFO!P45="Non requis",COUNTRY_INFO!P45=0),0,IF(AND($E45<>0,$J45=""),IF($F45=0,COUNTRY_INFO!P45*$E45,COUNTRY_INFO!P45*($E45-$D45)), IF(AND($E45<>0,$J45<>0),IF($F45=0,COUNTRY_INFO!P45*$J45,COUNTRY_INFO!P45*($J45-$D45)), COUNTRY_INFO!P45*$J45))) -> 0 | L45: 0 | M45: 0 | O45: 0 | P45: 0 | R45: 0 | S45: 0 | U45: 0
A46: =IF(AND(INTRO!$E$37="Non endémique",INTRO!$E$41="Non endémique")," ",IF(COUNTRY_INFO!A46=0," ",COUNTRY_INFO!A46)) -> NIGER | B46: =IF(AND(INTRO!$E$37="Non endémique",INTRO!$E$41="Non endémique")," ",IF(COUNTRY_INFO!B46=0," ",COUNTRY_INFO!B46)) -> Tahoua | C46: =IF(AND(INTRO!$E$37="Non endémique",INTRO!$E$41="Non endémique")," ",IF(COUNTRY_INFO!C46=0," ",COUNTRY_INFO!C46)) -> Birnin' Konni | D46: =IF(AND(INTRO!$E$37="Non endémique",INTRO!$E$41="Non endémique"),0,COUNTRY_INFO!V46) -> 0 | E46: =IF(AND(INTRO!$E$37="Non endémique",INTRO!$E$41="Non endémique"),0,COUNTRY_INFO!X46) -> 0 | F46: =IF(INTRO!$E$39="Non endémique",IF($D46=1,DEC!I46,0),IF($D46=1,IVM!G46,0)) -> 0 | H46: =IF(OR(COUNTRY_INFO!N46="Inconnu",COUNTRY_INFO!N46="Surveillance",COUNTRY_INFO!N46="Non requis",COUNTRY_INFO!N46=0),0,IF(INTRO!$E$39="Non endémique",IF(AND($E46<>0,$G46=""),IF($F46=0,COUNTRY_INFO!N46*$E46,COUNTRY_INFO!N46*($E46-$D46)),IF(AND($E46<>0,$G46<>0),IF($F46=0,COUNTRY_INFO!N46*$G46,COUNTRY_INFO!N46*($G46-$D46)),0)),IF($G46="",COUNTRY_INFO!N46*$E46,COUNTRY_INFO!N46*$G46))) -> 0 | I46: =IF(OR(COUNTRY_INFO!O46="Inconnu",COUNTRY_INFO!O46="Surveillance",COUNTRY_INFO!O46="Non requis",COUNTRY_INFO!O46=0),0,IF($E46<>0, IF($F46=0,COUNTRY_INFO!O46*$E46,COUNTRY_INFO!O46*($E46-$D46)),COUNTRY_INFO!O46*$E46)) -> 0 | K46: =IF(OR(COUNTRY_INFO!P46="Inconnu",COUNTRY_INFO!P46="Surveillance",COUNTRY_INFO!P46="Non requis",COUNTRY_INFO!P46=0),0,IF(AND($E46<>0,$J46=""),IF($F46=0,COUNTRY_INFO!P46*$E46,COUNTRY_INFO!P46*($E46-$D46)), IF(AND($E46<>0,$J46<>0),IF($F46=0,COUNTRY_INFO!P46*$J46,COUNTRY_INFO!P46*($J46-$D46)), COUNTRY_INFO!P46*$J46))) -> 0 | L46: 0 | M46: 0 | O46: 0 | P46: 0 | R46: 0 | S46: 0 | U46: 0
A47: =IF(AND(INTRO!$E$37="Non endémique",INTRO!$E$41="Non endémique")," ",IF(COUNTRY_INFO!A47=0," ",COUNTRY_INFO!A47)) -> NIGER | B47: =IF(AND(INTRO!$E$37="Non endémique",INTRO!$E$41="Non endémique")," ",IF(COUNTRY_INFO!B47=0," ",COUNTRY_INFO!B47)) -> Tahoua | C47: =IF(AND(INTRO!$E$37="Non endémique",INTRO!$E$41="Non endémique")," ",IF(COUNTRY_INFO!C47=0," ",COUNTRY_INFO!C47)) -> Malbaza | D47: =IF(AND(INTRO!$E$37="Non endémique",INTRO!$E$41="Non endémique"),0,COUNTRY_INFO!V47) -> 0 | E47: =IF(AND(INTRO!$E$37="Non endémique",INTRO!$E$41="Non endémique"),0,COUNTRY_INFO!X47) -> 0 | F47: =IF(INTRO!$E$39="Non endémique",IF($D47=1,DEC!I47,0),IF($D47=1,IVM!G47,0)) -> 0 | H47: =IF(OR(COUNTRY_INFO!N47="Inconnu",COUNTRY_INFO!N47="Surveillance",COUNTRY_INFO!N47="Non requis",COUNTRY_INFO!N47=0),0,IF(INTRO!$E$39="Non endémique",IF(AND($E47<>0,$G47=""),IF($F47=0,COUNTRY_INFO!N47*$E47,COUNTRY_INFO!N47*($E47-$D47)),IF(AND($E47<>0,$G47<>0),IF($F47=0,COUNTRY_INFO!N47*$G47,COUNTRY_INFO!N47*($G47-$D47)),0)),IF($G47="",COUNTRY_INFO!N47*$E47,COUNTRY_INFO!N47*$G47))) -> 0 | I47: =IF(OR(COUNTRY_INFO!O47="Inconnu",COUNTRY_INFO!O47="Surveillance",COUNTRY_INFO!O47="Non requis",COUNTRY_INFO!O47=0),0,IF($E47<>0, IF($F47=0,COUNTRY_INFO!O47*$E47,COUNTRY_INFO!O47*($E47-$D47)),COUNTRY_INFO!O47*$E47)) -> 0 | K47: =IF(OR(COUNTRY_INFO!P47="Inconnu",COUNTRY_INFO!P47="Surveillance",COUNTRY_INFO!P47="Non requis",COUNTRY_INFO!P47=0),0,IF(AND($E47<>0,$J47=""),IF($F47=0,COUNTRY_INFO!P47*$E47,COUNTRY_INFO!P47*($E47-$D47)), IF(AND($E47<>0,$J47<>0),IF($F47=0,COUNTRY_INFO!P47*$J47,COUNTRY_INFO!P47*($J47-$D47)), COUNTRY_INFO!P47*$J47))) -> 0 | L47: 0 | M47: 0 | O47: 0 | P47: 0 | R47: 0 | S47: 0 | U47: 0
A48: =IF(AND(INTRO!$E$37="Non endémique",INTRO!$E$41="Non endémique")," ",IF(COUNTRY_INFO!A48=0," ",COUNTRY_INFO!A48)) -> NIGER | B48: =IF(AND(INTRO!$E$37="Non endémique",INTRO!$E$41="Non endémique")," ",IF(COUNTRY_INFO!B48=0," ",COUNTRY_INFO!B48)) -> Tahoua | C48: =IF(AND(INTRO!$E$37="Non endémique",INTRO!$E$41="Non endémique")," ",IF(COUNTRY_INFO!C48=0," ",COUNTRY_INFO!C48)) -> Bouza | D48: =IF(AND(INTRO!$E$37="Non endémique",INTRO!$E$41="Non endémique"),0,COUNTRY_INFO!V48) -> 0 | E48: =IF(AND(INTRO!$E$37="Non endémique",INTRO!$E$41="Non endémique"),0,COUNTRY_INFO!X48) -> 0 | F48: =IF(INTRO!$E$39="Non endémique",IF($D48=1,DEC!I48,0),IF($D48=1,IVM!G48,0)) -> 0 | H48: =IF(OR(COUNTRY_INFO!N48="Inconnu",COUNTRY_INFO!N48="Surveillance",COUNTRY_INFO!N48="Non requis",COUNTRY_INFO!N48=0),0,IF(INTRO!$E$39="Non endémique",IF(AND($E48<>0,$G48=""),IF($F48=0,COUNTRY_INFO!N48*$E48,COUNTRY_INFO!N48*($E48-$D48)),IF(AND($E48<>0,$G48<>0),IF($F48=0,COUNTRY_INFO!N48*$G48,COUNTRY_INFO!N48*($G48-$D48)),0)),IF($G48="",COUNTRY_INFO!N48*$E48,COUNTRY_INFO!N48*$G48))) -> 0 | I48: =IF(OR(COUNTRY_INFO!O48="Inconnu",COUNTRY_INFO!O48="Surveillance",COUNTRY_INFO!O48="Non requis",COUNTRY_INFO!O48=0),0,IF($E48<>0, IF($F48=0,COUNTRY_INFO!O48*$E48,COUNTRY_INFO!O48*($E48-$D48)),COUNTRY_INFO!O48*$E48)) -> 0 | K48: =IF(OR(COUNTRY_INFO!P48="Inconnu",COUNTRY_INFO!P48="Surveillance",COUNTRY_INFO!P48="Non requis",COUNTRY_INFO!P48=0),0,IF(AND($E48<>0,$J48=""),IF($F48=0,COUNTRY_INFO!P48*$E48,COUNTRY_INFO!P48*($E48-$D48)), IF(AND($E48<>0,$J48<>0),IF($F48=0,COUNTRY_INFO!P48*$J48,COUNTRY_INFO!P48*($J48-$D48)), COUNTRY_INFO!P48*$J48))) -> 0 | L48: 0 | M48: 0 | O48: 0 | P48: 0 | R48: 0 | S48: 0 | U48: 0
A49: =IF(AND(INTRO!$E$37="Non endémique",INTRO!$E$41="Non endémique")," ",IF(COUNTRY_INFO!A49=0," ",COUNTRY_INFO!A49)) -> NIGER | B49: =IF(AND(INTRO!$E$37="Non endémique",INTRO!$E$41="Non endémique")," ",IF(COUNTRY_INFO!B49=0," ",COUNTRY_INFO!B49)) -> Tahoua | C49: =IF(AND(INTRO!$E$37="Non endémique",INTRO!$E$41="Non endémique")," ",IF(COUNTRY_INFO!C49=0," ",COUNTRY_INFO!C49)) -> Illela | D49: =IF(AND(INTRO!$E$37="Non endémique",INTRO!$E$41="Non endémique"),0,COUNTRY_INFO!V49) -> 0 | E49: =IF(AND(INTRO!$E$37="Non endémique",INTRO!$E$41="Non endémique"),0,COUNTRY_INFO!X49) -> 0 | F49: =IF(INTRO!$E$39="Non endémique",IF($D49=1,DEC!I49,0),IF($D49=1,IVM!G49,0)) -> 0 | H49: =IF(OR(COUNTRY_INFO!N49="Inconnu",COUNTRY_INFO!N49="Surveillance",COUNTRY_INFO!N49="Non requis",COUNTRY_INFO!N49=0),0,IF(INTRO!$E$39="Non endémique",IF(AND($E49<>0,$G49=""),IF($F49=0,COUNTRY_INFO!N49*$E49,COUNTRY_INFO!N49*($E49-$D49)),IF(AND($E49<>0,$G49<>0),IF($F49=0,COUNTRY_INFO!N49*$G49,COUNTRY_INFO!N49*($G49-$D49)),0)),IF($G49="",COUNTRY_INFO!N49*$E49,COUNTRY_INFO!N49*$G49))) -> 0 | I49: =IF(OR(COUNTRY_INFO!O49="Inconnu",COUNTRY_INFO!O49="Surveillance",COUNTRY_INFO!O49="Non requis",COUNTRY_INFO!O49=0),0,IF($E49<>0, IF($F49=0,COUNTRY_INFO!O49*$E49,COUNTRY_INFO!O49*($E49-$D49)),COUNTRY_INFO!O49*$E49)) -> 0 | K49: =IF(OR(COUNTRY_INFO!P49="Inconnu",COUNTRY_INFO!P49="Surveillance",COUNTRY_INFO!P49="Non requis",COUNTRY_INFO!P49=0),0,IF(AND($E49<>0,$J49=""),IF($F49=0,COUNTRY_INFO!P49*$E49,COUNTRY_INFO!P49*($E49-$D49)), IF(AND($E49<>0,$J49<>0),IF($F49=0,COUNTRY_INFO!P49*$J49,COUNTRY_INFO!P49*($J49-$D49)), COUNTRY_INFO!P49*$J49))) -> 0 | L49: 0 | M49: 0 | O49: 0 | P49: 0 | R49: 0 | S49: 0 | U49: 0
A50: =IF(AND(INTRO!$E$37="Non endémique",INTRO!$E$41="Non endémique")," ",IF(COUNTRY_INFO!A50=0," ",COUNTRY_INFO!A50)) -> NIGER | B50: =IF(AND(INTRO!$E$37="Non endémique",INTRO!$E$41="Non endémique")," ",IF(COUNTRY_INFO!B50=0," ",COUNTRY_INFO!B50)) -> Tahoua | C50: =IF(AND(INTRO!$E$37="Non endémique",INTRO!$E$41="Non endémique")," ",IF(COUNTRY_INFO!C50=0," ",COUNTRY_INFO!C50)) -> Bagaroua | D50: =IF(AND(INTRO!$E$37="Non endémique",INTRO!$E$41="Non endémique"),0,COUNTRY_INFO!V50) -> 0 | E50: =IF(AND(INTRO!$E$37="Non endémique",INTRO!$E$41="Non endémique"),0,COUNTRY_INFO!X50) -> 0 | F50: =IF(INTRO!$E$39="Non endémique",IF($D50=1,DEC!I50,0),IF($D50=1,IVM!G50,0)) -> 0 | H50: =IF(OR(COUNTRY_INFO!N50="Inconnu",COUNTRY_INFO!N50="Surveillance",COUNTRY_INFO!N50="Non requis",COUNTRY_INFO!N50=0),0,IF(INTRO!$E$39="Non endémique",IF(AND($E50<>0,$G50=""),IF($F50=0,COUNTRY_INFO!N50*$E50,COUNTRY_INFO!N50*($E50-$D50)),IF(AND($E50<>0,$G50<>0),IF($F50=0,COUNTRY_INFO!N50*$G50,COUNTRY_INFO!N50*($G50-$D50)),0)),IF($G50="",COUNTRY_INFO!N50*$E50,COUNTRY_INFO!N50*$G50))) -> 0 | I50: =IF(OR(COUNTRY_INFO!O50="Inconnu",COUNTRY_INFO!O50="Surveillance",COUNTRY_INFO!O50="Non requis",COUNTRY_INFO!O50=0),0,IF($E50<>0, IF($F50=0,COUNTRY_INFO!O50*$E50,COUNTRY_INFO!O50*($E50-$D50)),COUNTRY_INFO!O50*$E50)) -> 0 | K50: =IF(OR(COUNTRY_INFO!P50="Inconnu",COUNTRY_INFO!P50="Surveillance",COUNTRY_INFO!P50="Non requis",COUNTRY_INFO!P50=0),0,IF(AND($E50<>0,$J50=""),IF($F50=0,COUNTRY_INFO!P50*$E50,COUNTRY_INFO!P50*($E50-$D50)), IF(AND($E50<>0,$J50<>0),IF($F50=0,COUNTRY_INFO!P50*$J50,COUNTRY_INFO!P50*($J50-$D50)), COUNTRY_INFO!P50*$J50))) -> 0 | L50: 0 | M50: 0 | O50: 0 | P50: 0 | R50: 0 | S50: 0 | U50: 0
A51: =IF(AND(INTRO!$E$37="Non endémique",INTRO!$E$41="Non endémique")," ",IF(COUNTRY_INFO!A51=0," ",COUNTRY_INFO!A51)) -> NIGER | B51: =IF(AND(INTRO!$E$37="Non endémique",INTRO!$E$41="Non endémique")," ",IF(COUNTRY_INFO!B51=0," ",COUNTRY_INFO!B51)) -> Tahoua | C51: =IF(AND(INTRO!$E$37="Non endémique",INTRO!$E$41="Non endémique")," ",IF(COUNTRY_INFO!C51=0," ",COUNTRY_INFO!C51)) -> Keita | D51: =IF(AND(INTRO!$E$37="Non endémique",INTRO!$E$41="Non endémique"),0,COUNTRY_INFO!V51) -> 0 | E51: =IF(AND(INTRO!$E$37="Non endémique",INTRO!$E$41="Non endémique"),0,COUNTRY_INFO!X51) -> 0 | F51: =IF(INTRO!$E$39="Non endémique",IF($D51=1,DEC!I51,0),IF($D51=1,IVM!G51,0)) -> 0 | H51: =IF(OR(COUNTRY_INFO!N51="Inconnu",COUNTRY_INFO!N51="Surveillance",COUNTRY_INFO!N51="Non requis",COUNTRY_INFO!N51=0),0,IF(INTRO!$E$39="Non endémique",IF(AND($E51<>0,$G51=""),IF($F51=0,COUNTRY_INFO!N51*$E51,COUNTRY_INFO!N51*($E51-$D51)),IF(AND($E51<>0,$G51<>0),IF($F51=0,COUNTRY_INFO!N51*$G51,COUNTRY_INFO!N51*($G51-$D51)),0)),IF($G51="",COUNTRY_INFO!N51*$E51,COUNTRY_INFO!N51*$G51))) -> 0 | I51: =IF(OR(COUNTRY_INFO!O51="Inconnu",COUNTRY_INFO!O51="Surveillance",COUNTRY_INFO!O51="Non requis",COUNTRY_INFO!O51=0),0,IF($E51<>0, IF($F51=0,COUNTRY_INFO!O51*$E51,COUNTRY_INFO!O51*($E51-$D51)),COUNTRY_INFO!O51*$E51)) -> 0 | K51: =IF(OR(COUNTRY_INFO!P51="Inconnu",COUNTRY_INFO!P51="Surveillance",COUNTRY_INFO!P51="Non requis",COUNTRY_INFO!P51=0),0,IF(AND($E51<>0,$J51=""),IF($F51=0,COUNTRY_INFO!P51*$E51,COUNTRY_INFO!P51*($E51-$D51)), IF(AND($E51<>0,$J51<>0),IF($F51=0,COUNTRY_INFO!P51*$J51,COUNTRY_INFO!P51*($J51-$D51)), COUNTRY_INFO!P51*$J51))) -> 0 | L51: 0 | M51: 0 | O51: 0 | P51: 0 | R51: 0 | S51: 0 | U51: 0
A52: =IF(AND(INTRO!$E$37="Non endémique",INTRO!$E$41="Non endémique")," ",IF(COUNTRY_INFO!A52=0," ",COUNTRY_INFO!A52)) -> NIGER | B52: =IF(AND(INTRO!$E$37="Non endémique",INTRO!$E$41="Non endémique")," ",IF(COUNTRY_INFO!B52=0," ",COUNTRY_INFO!B52)) -> Tahoua | C52: =IF(AND(INTRO!$E$37="Non endémique",INTRO!$E$41="Non endémique")," ",IF(COUNTRY_INFO!C52=0," ",COUNTRY_INFO!C52)) -> Madaoua | D52: =IF(AND(INTRO!$E$37="Non endémique",INTRO!$E$41="Non endémique"),0,COUNTRY_INFO!V52) -> 0 | E52: =IF(AND(INTRO!$E$37="Non endémique",INTRO!$E$41="Non endémique"),0,COUNTRY_INFO!X52) -> 0 | F52: =IF(INTRO!$E$39="Non endémique",IF($D52=1,DEC!I52,0),IF($D52=1,IVM!G52,0)) -> 0 | H52: =IF(OR(COUNTRY_INFO!N52="Inconnu",COUNTRY_INFO!N52="Surveillance",COUNTRY_INFO!N52="Non requis",COUNTRY_INFO!N52=0),0,IF(INTRO!$E$39="Non endémique",IF(AND($E52<>0,$G52=""),IF($F52=0,COUNTRY_INFO!N52*$E52,COUNTRY_INFO!N52*($E52-$D52)),IF(AND($E52<>0,$G52<>0),IF($F52=0,COUNTRY_INFO!N52*$G52,COUNTRY_INFO!N52*($G52-$D52)),0)),IF($G52="",COUNTRY_INFO!N52*$E52,COUNTRY_INFO!N52*$G52))) -> 0 | I52: =IF(OR(COUNTRY_INFO!O52="Inconnu",COUNTRY_INFO!O52="Surveillance",COUNTRY_INFO!O52="Non requis",COUNTRY_INFO!O52=0),0,IF($E52<>0, IF($F52=0,COUNTRY_INFO!O52*$E52,COUNTRY_INFO!O52*($E52-$D52)),COUNTRY_INFO!O52*$E52)) -> 0 | K52: =IF(OR(COUNTRY_INFO!P52="Inconnu",COUNTRY_INFO!P52="Surveillance",COUNTRY_INFO!P52="Non requis",COUNTRY_INFO!P52=0),0,IF(AND($E52<>0,$J52=""),IF($F52=0,COUNTRY_INFO!P52*$E52,COUNTRY_INFO!P52*($E52-$D52)), IF(AND($E52<>0,$J52<>0),IF($F52=0,COUNTRY_INFO!P52*$J52,COUNTRY_INFO!P52*($J52-$D52)), COUNTRY_INFO!P52*$J52))) -> 0 | L52: 0 | M52: 0 | O52: 0 | P52: 0 | R52: 0 | S52: 0 | U52: 0
A53: =IF(AND(INTRO!$E$37="Non endémique",INTRO!$E$41="Non endémique")," ",IF(COUNTRY_INFO!A53=0," ",COUNTRY_INFO!A53)) -> NIGER | B53: =IF(AND(INTRO!$E$37="Non endémique",INTRO!$E$41="Non endémique")," ",IF(COUNTRY_INFO!B53=0," ",COUNTRY_INFO!B53)) -> Tahoua | C53: =IF(AND(INTRO!$E$37="Non endémique",INTRO!$E$41="Non endémique")," ",IF(COUNTRY_INFO!C53=0," ",COUNTRY_INFO!C53)) -> Tahoua département | D53: =IF(AND(INTRO!$E$37="Non endémique",INTRO!$E$41="Non endémique"),0,COUNTRY_INFO!V53) -> 0 | E53: =IF(AND(INTRO!$E$37="Non endémique",INTRO!$E$41="Non endémique"),0,COUNTRY_INFO!X53) -> 0 | F53: =IF(INTRO!$E$39="Non endémique",IF($D53=1,DEC!I53,0),IF($D53=1,IVM!G53,0)) -> 0 | H53: =IF(OR(COUNTRY_INFO!N53="Inconnu",COUNTRY_INFO!N53="Surveillance",COUNTRY_INFO!N53="Non requis",COUNTRY_INFO!N53=0),0,IF(INTRO!$E$39="Non endémique",IF(AND($E53<>0,$G53=""),IF($F53=0,COUNTRY_INFO!N53*$E53,COUNTRY_INFO!N53*($E53-$D53)),IF(AND($E53<>0,$G53<>0),IF($F53=0,COUNTRY_INFO!N53*$G53,COUNTRY_INFO!N53*($G53-$D53)),0)),IF($G53="",COUNTRY_INFO!N53*$E53,COUNTRY_INFO!N53*$G53))) -> 0 | I53: =IF(OR(COUNTRY_INFO!O53="Inconnu",COUNTRY_INFO!O53="Surveillance",COUNTRY_INFO!O53="Non requis",COUNTRY_INFO!O53=0),0,IF($E53<>0, IF($F53=0,COUNTRY_INFO!O53*$E53,COUNTRY_INFO!O53*($E53-$D53)),COUNTRY_INFO!O53*$E53)) -> 0 | K53: =IF(OR(COUNTRY_INFO!P53="Inconnu",COUNTRY_INFO!P53="Surveillance",COUNTRY_INFO!P53="Non requis",COUNTRY_INFO!P53=0),0,IF(AND($E53<>0,$J53=""),IF($F53=0,COUNTRY_INFO!P53*$E53,COUNTRY_INFO!P53*($E53-$D53)), IF(AND($E53<>0,$J53<>0),IF($F53=0,COUNTRY_INFO!P53*$J53,COUNTRY_INFO!P53*($J53-$D53)), COUNTRY_INFO!P53*$J53))) -> 0 | L53: 0 | M53: 0 | O53: 0 | P53: 0 | R53: 0 | S53: 0 | U53: 0
A54: =IF(AND(INTRO!$E$37="Non endémique",INTRO!$E$41="Non endémique")," ",IF(COUNTRY_INFO!A54=0," ",COUNTRY_INFO!A54)) -> NIGER | B54: =IF(AND(INTRO!$E$37="Non endémique",INTRO!$E$41="Non endémique")," ",IF(COUNTRY_INFO!B54=0," ",COUNTRY_INFO!B54)) -> Tahoua | C54: =IF(AND(INTRO!$E$37="Non endémique",INTRO!$E$41="Non endémique")," ",IF(COUNTRY_INFO!C54=0," ",COUNTRY_INFO!C54)) -> Tahoua commune | D54: =IF(AND(INTRO!$E$37="Non endémique",INTRO!$E$41="Non endémique"),0,COUNTRY_INFO!V54) -> 0 | E54: =IF(AND(INTRO!$E$37="Non endémique",INTRO!$E$41="Non endémique"),0,COUNTRY_INFO!X54) -> 0 | F54: =IF(INTRO!$E$39="Non endémique",IF($D54=1,DEC!I54,0),IF($D54=1,IVM!G54,0)) -> 0 | H54: =IF(OR(COUNTRY_INFO!N54="Inconnu",COUNTRY_INFO!N54="Surveillance",COUNTRY_INFO!N54="Non requis",COUNTRY_INFO!N54=0),0,IF(INTRO!$E$39="Non endémique",IF(AND($E54<>0,$G54=""),IF($F54=0,COUNTRY_INFO!N54*$E54,COUNTRY_INFO!N54*($E54-$D54)),IF(AND($E54<>0,$G54<>0),IF($F54=0,COUNTRY_INFO!N54*$G54,COUNTRY_INFO!N54*($G54-$D54)),0)),IF($G54="",COUNTRY_INFO!N54*$E54,COUNTRY_INFO!N54*$G54))) -> 0 | I54: =IF(OR(COUNTRY_INFO!O54="Inconnu",COUNTRY_INFO!O54="Surveillance",COUNTRY_INFO!O54="Non requis",COUNTRY_INFO!O54=0),0,IF($E54<>0, IF($F54=0,COUNTRY_INFO!O54*$E54,COUNTRY_INFO!O54*($E54-$D54)),COUNTRY_INFO!O54*$E54)) -> 0 | K54: =IF(OR(COUNTRY_INFO!P54="Inconnu",COUNTRY_INFO!P54="Surveillance",COUNTRY_INFO!P54="Non requis",COUNTRY_INFO!P54=0),0,IF(AND($E54<>0,$J54=""),IF($F54=0,COUNTRY_INFO!P54*$E54,COUNTRY_INFO!P54*($E54-$D54)), IF(AND($E54<>0,$J54<>0),IF($F54=0,COUNTRY_INFO!P54*$J54,COUNTRY_INFO!P54*($J54-$D54)), COUNTRY_INFO!P54*$J54))) -> 0 | L54: 0 | M54: 0 | O54: 0 | P54: 0 | R54: 0 | S54: 0 | U54: 0
A55: =IF(AND(INTRO!$E$37="Non endémique",INTRO!$E$41="Non endémique")," ",IF(COUNTRY_INFO!A55=0," ",COUNTRY_INFO!A55)) -> NIGER | B55: =IF(AND(INTRO!$E$37="Non endémique",INTRO!$E$41="Non endémique")," ",IF(COUNTRY_INFO!B55=0," ",COUNTRY_INFO!B55)) -> Tahoua | C55: =IF(AND(INTRO!$E$37="Non endémique",INTRO!$E$41="Non endémique")," ",IF(COUNTRY_INFO!C55=0," ",COUNTRY_INFO!C55)) -> TCHINTABARADEN | D55: =IF(AND(INTRO!$E$37="Non endémique",INTRO!$E$41="Non endémique"),0,COUNTRY_INFO!V55) -> 0 | E55: =IF(AND(INTRO!$E$37="Non endémique",INTRO!$E$41="Non endémique"),0,COUNTRY_INFO!X55) -> 0 | F55: =IF(INTRO!$E$39="Non endémique",IF($D55=1,DEC!I55,0),IF($D55=1,IVM!G55,0)) -> 0 | H55: =IF(OR(COUNTRY_INFO!N55="Inconnu",COUNTRY_INFO!N55="Surveillance",COUNTRY_INFO!N55="Non requis",COUNTRY_INFO!N55=0),0,IF(INTRO!$E$39="Non endémique",IF(AND($E55<>0,$G55=""),IF($F55=0,COUNTRY_INFO!N55*$E55,COUNTRY_INFO!N55*($E55-$D55)),IF(AND($E55<>0,$G55<>0),IF($F55=0,COUNTRY_INFO!N55*$G55,COUNTRY_INFO!N55*($G55-$D55)),0)),IF($G55="",COUNTRY_INFO!N55*$E55,COUNTRY_INFO!N55*$G55))) -> 0 | I55: =IF(OR(COUNTRY_INFO!O55="Inconnu",COUNTRY_INFO!O55="Surveillance",COUNTRY_INFO!O55="Non requis",COUNTRY_INFO!O55=0),0,IF($E55<>0, IF($F55=0,COUNTRY_INFO!O55*$E55,COUNTRY_INFO!O55*($E55-$D55)),COUNTRY_INFO!O55*$E55)) -> 0 | K55: =IF(OR(COUNTRY_INFO!P55="Inconnu",COUNTRY_INFO!P55="Surveillance",COUNTRY_INFO!P55="Non requis",COUNTRY_INFO!P55=0),0,IF(AND($E55<>0,$J55=""),IF($F55=0,COUNTRY_INFO!P55*$E55,COUNTRY_INFO!P55*($E55-$D55)), IF(AND($E55<>0,$J55<>0),IF($F55=0,COUNTRY_INFO!P55*$J55,COUNTRY_INFO!P55*($J55-$D55)), COUNTRY_INFO!P55*$J55))) -> 0 | L55: 0 | M55: 0 | O55: 0 | P55: 0 | R55: 0 | S55: 0 | U55: 0
A56: =IF(AND(INTRO!$E$37="Non endémique",INTRO!$E$41="Non endémique")," ",IF(COUNTRY_INFO!A56=0," ",COUNTRY_INFO!A56)) -> NIGER | B56: =IF(AND(INTRO!$E$37="Non endémique",INTRO!$E$41="Non endémique")," ",IF(COUNTRY_INFO!B56=0," ",COUNTRY_INFO!B56)) -> Tahoua | C56: =IF(AND(INTRO!$E$37="Non endémique",INTRO!$E$41="Non endémique")," ",IF(COUNTRY_INFO!C56=0," ",COUNTRY_INFO!C56)) -> Tassara | D56: =IF(AND(INTRO!$E$37="Non endémique",INTRO!$E$41="Non endémique"),0,COUNTRY_INFO!V56) -> 0 | E56: =IF(AND(INTRO!$E$37="Non endémique",INTRO!$E$41="Non endémique"),0,COUNTRY_INFO!X56) -> 0 | F56: =IF(INTRO!$E$39="Non endémique",IF($D56=1,DEC!I56,0),IF($D56=1,IVM!G56,0)) -> 0 | H56: =IF(OR(COUNTRY_INFO!N56="Inconnu",COUNTRY_INFO!N56="Surveillance",COUNTRY_INFO!N56="Non requis",COUNTRY_INFO!N56=0),0,IF(INTRO!$E$39="Non endémique",IF(AND($E56<>0,$G56=""),IF($F56=0,COUNTRY_INFO!N56*$E56,COUNTRY_INFO!N56*($E56-$D56)),IF(AND($E56<>0,$G56<>0),IF($F56=0,COUNTRY_INFO!N56*$G56,COUNTRY_INFO!N56*($G56-$D56)),0)),IF($G56="",COUNTRY_INFO!N56*$E56,COUNTRY_INFO!N56*$G56))) -> 0 | I56: =IF(OR(COUNTRY_INFO!O56="Inconnu",COUNTRY_INFO!O56="Surveillance",COUNTRY_INFO!O56="Non requis",COUNTRY_INFO!O56=0),0,IF($E56<>0, IF($F56=0,COUNTRY_INFO!O56*$E56,COUNTRY_INFO!O56*($E56-$D56)),COUNTRY_INFO!O56*$E56)) -> 0 | K56: =IF(OR(COUNTRY_INFO!P56="Inconnu",COUNTRY_INFO!P56="Surveillance",COUNTRY_INFO!P56="Non requis",COUNTRY_INFO!P56=0),0,IF(AND($E56<>0,$J56=""),IF($F56=0,COUNTRY_INFO!P56*$E56,COUNTRY_INFO!P56*($E56-$D56)), IF(AND($E56<>0,$J56<>0),IF($F56=0,COUNTRY_INFO!P56*$J56,COUNTRY_INFO!P56*($J56-$D56)), COUNTRY_INFO!P56*$J56))) -> 0 | L56: 0 | M56: 0 | O56: 0 | P56: 0 | R56: 0 | S56: 0 | U56: 0
A57: =IF(AND(INTRO!$E$37="Non endémique",INTRO!$E$41="Non endémique")," ",IF(COUNTRY_INFO!A57=0," ",COUNTRY_INFO!A57)) -> NIGER | B57: =IF(AND(INTRO!$E$37="Non endémique",INTRO!$E$41="Non endémique")," ",IF(COUNTRY_INFO!B57=0," ",COUNTRY_INFO!B57)) -> Tahoua | C57: =IF(AND(INTRO!$E$37="Non endémique",INTRO!$E$41="Non endémique")," ",IF(COUNTRY_INFO!C57=0," ",COUNTRY_INFO!C57)) -> Tillia | D57: =IF(AND(INTRO!$E$37="Non endémique",INTRO!$E$41="Non endémique"),0,COUNTRY_INFO!V57) -> 0 | E57: =IF(AND(INTRO!$E$37="Non endémique",INTRO!$E$41="Non endémique"),0,COUNTRY_INFO!X57) -> 0 | F57: =IF(INTRO!$E$39="Non endémique",IF($D57=1,DEC!I57,0),IF($D57=1,IVM!G57,0)) -> 0 | H57: =IF(OR(COUNTRY_INFO!N57="Inconnu",COUNTRY_INFO!N57="Surveillance",COUNTRY_INFO!N57="Non requis",COUNTRY_INFO!N57=0),0,IF(INTRO!$E$39="Non endémique",IF(AND($E57<>0,$G57=""),IF($F57=0,COUNTRY_INFO!N57*$E57,COUNTRY_INFO!N57*($E57-$D57)),IF(AND($E57<>0,$G57<>0),IF($F57=0,COUNTRY_INFO!N57*$G57,COUNTRY_INFO!N57*($G57-$D57)),0)),IF($G57="",COUNTRY_INFO!N57*$E57,COUNTRY_INFO!N57*$G57))) -> 0 | I57: =IF(OR(COUNTRY_INFO!O57="Inconnu",COUNTRY_INFO!O57="Surveillance",COUNTRY_INFO!O57="Non requis",COUNTRY_INFO!O57=0),0,IF($E57<>0, IF($F57=0,COUNTRY_INFO!O57*$E57,COUNTRY_INFO!O57*($E57-$D57)),COUNTRY_INFO!O57*$E57)) -> 0 | K57: =IF(OR(COUNTRY_INFO!P57="Inconnu",COUNTRY_INFO!P57="Surveillance",COUNTRY_INFO!P57="Non requis",COUNTRY_INFO!P57=0),0,IF(AND($E57<>0,$J57=""),IF($F57=0,COUNTRY_INFO!P57*$E57,COUNTRY_INFO!P57*($E57-$D57)), IF(AND($E57<>0,$J57<>0),IF($F57=0,COUNTRY_INFO!P57*$J57,COUNTRY_INFO!P57*($J57-$D57)), COUNTRY_INFO!P57*$J57))) -> 0 | L57: 0 | M57: 0 | O57: 0 | P57: 0 | R57: 0 | S57: 0 | U57: 0
A58: =IF(AND(INTRO!$E$37="Non endémique",INTRO!$E$41="Non endémique")," ",IF(COUNTRY_INFO!A58=0," ",COUNTRY_INFO!A58)) -> NIGER | B58: =IF(AND(INTRO!$E$37="Non endémique",INTRO!$E$41="Non endémique")," ",IF(COUNTRY_INFO!B58=0," ",COUNTRY_INFO!B58)) -> Tillabery | C58: =IF(AND(INTRO!$E$37="Non endémique",INTRO!$E$41="Non endémique")," ",IF(COUNTRY_INFO!C58=0," ",COUNTRY_INFO!C58)) -> Fillingue | D58: =IF(AND(INTRO!$E$37="Non endémique",INTRO!$E$41="Non endémique"),0,COUNTRY_INFO!V58) -> 0 | E58: =IF(AND(INTRO!$E$37="Non endémique",INTRO!$E$41="Non endémique"),0,COUNTRY_INFO!X58) -> 0 | F58: =IF(INTRO!$E$39="Non endémique",IF($D58=1,DEC!I58,0),IF($D58=1,IVM!G58,0)) -> 0 | H58: =IF(OR(COUNTRY_INFO!N58="Inconnu",COUNTRY_INFO!N58="Surveillance",COUNTRY_INFO!N58="Non requis",COUNTRY_INFO!N58=0),0,IF(INTRO!$E$39="Non endémique",IF(AND($E58<>0,$G58=""),IF($F58=0,COUNTRY_INFO!N58*$E58,COUNTRY_INFO!N58*($E58-$D58)),IF(AND($E58<>0,$G58<>0),IF($F58=0,COUNTRY_INFO!N58*$G58,COUNTRY_INFO!N58*($G58-$D58)),0)),IF($G58="",COUNTRY_INFO!N58*$E58,COUNTRY_INFO!N58*$G58))) -> 0 | I58: =IF(OR(COUNTRY_INFO!O58="Inconnu",COUNTRY_INFO!O58="Surveillance",COUNTRY_INFO!O58="Non requis",COUNTRY_INFO!O58=0),0,IF($E58<>0, IF($F58=0,COUNTRY_INFO!O58*$E58,COUNTRY_INFO!O58*($E58-$D58)),COUNTRY_INFO!O58*$E58)) -> 0 | K58: =IF(OR(COUNTRY_INFO!P58="Inconnu",COUNTRY_INFO!P58="Surveillance",COUNTRY_INFO!P58="Non requis",COUNTRY_INFO!P58=0),0,IF(AND($E58<>0,$J58=""),IF($F58=0,COUNTRY_INFO!P58*$E58,COUNTRY_INFO!P58*($E58-$D58)), IF(AND($E58<>0,$J58<>0),IF($F58=0,COUNTRY_INFO!P58*$J58,COUNTRY_INFO!P58*($J58-$D58)), COUNTRY_INFO!P58*$J58))) -> 0 | L58: 0 | M58: 0 | O58: 0 | P58: 0 | R58: 0 | S58: 0 | U58: 0
A59: =IF(AND(INTRO!$E$37="Non endémique",INTRO!$E$41="Non endémique")," ",IF(COUNTRY_INFO!A59=0," ",COUNTRY_INFO!A59)) -> NIGER | B59: =IF(AND(INTRO!$E$37="Non endémique",INTRO!$E$41="Non endémique")," ",IF(COUNTRY_INFO!B59=0," ",COUNTRY_INFO!B59)) -> Tillabery | C59: =IF(AND(INTRO!$E$37="Non endémique",INTRO!$E$41="Non endémique")," ",IF(COUNTRY_INFO!C59=0," ",COUNTRY_INFO!C59)) -> Balleyara | D59: =IF(AND(INTRO!$E$37="Non endémique",INTRO!$E$41="Non endémique"),0,COUNTRY_INFO!V59) -> 0 | E59: =IF(AND(INTRO!$E$37="Non endémique",INTRO!$E$41="Non endémique"),0,COUNTRY_INFO!X59) -> 0 | F59: =IF(INTRO!$E$39="Non endémique",IF($D59=1,DEC!I59,0),IF($D59=1,IVM!G59,0)) -> 0 | H59: =IF(OR(COUNTRY_INFO!N59="Inconnu",COUNTRY_INFO!N59="Surveillance",COUNTRY_INFO!N59="Non requis",COUNTRY_INFO!N59=0),0,IF(INTRO!$E$39="Non endémique",IF(AND($E59<>0,$G59=""),IF($F59=0,COUNTRY_INFO!N59*$E59,COUNTRY_INFO!N59*($E59-$D59)),IF(AND($E59<>0,$G59<>0),IF($F59=0,COUNTRY_INFO!N59*$G59,COUNTRY_INFO!N59*($G59-$D59)),0)),IF($G59="",COUNTRY_INFO!N59*$E59,COUNTRY_INFO!N59*$G59))) -> 0 | I59: =IF(OR(COUNTRY_INFO!O59="Inconnu",COUNTRY_INFO!O59="Surveillance",COUNTRY_INFO!O59="Non requis",COUNTRY_INFO!O59=0),0,IF($E59<>0, IF($F59=0,COUNTRY_INFO!O59*$E59,COUNTRY_INFO!O59*($E59-$D59)),COUNTRY_INFO!O59*$E59)) -> 0 | K59: =IF(OR(COUNTRY_INFO!P59="Inconnu",COUNTRY_INFO!P59="Surveillance",COUNTRY_INFO!P59="Non requis",COUNTRY_INFO!P59=0),0,IF(AND($E59<>0,$J59=""),IF($F59=0,COUNTRY_INFO!P59*$E59,COUNTRY_INFO!P59*($E59-$D59)), IF(AND($E59<>0,$J59<>0),IF($F59=0,COUNTRY_INFO!P59*$J59,COUNTRY_INFO!P59*($J59-$D59)), COUNTRY_INFO!P59*$J59))) -> 0 | L59: 0 | M59: 0 | O59: 0 | P59: 0 | R59: 0 | S59: 0 | U59: 0
A60: =IF(AND(INTRO!$E$37="Non endémique",INTRO!$E$41="Non endémique")," ",IF(COUNTRY_INFO!A60=0," ",COUNTRY_INFO!A60)) -> NIGER | B60: =IF(AND(INTRO!$E$37="Non endémique",INTRO!$E$41="Non endémique")," ",IF(COUNTRY_INFO!B60=0," ",COUNTRY_INFO!B60)) -> Tillabery | C60: =IF(AND(INTRO!$E$37="Non endémique",INTRO!$E$41="Non endémique")," ",IF(COUNTRY_INFO!C60=0," ",COUNTRY_INFO!C60)) -> Abala | D60: =IF(AND(INTRO!$E$37="Non endémique",INTRO!$E$41="Non endémique"),0,COUNTRY_INFO!V60) -> 0 | E60: =IF(AND(INTRO!$E$37="Non endémique",INTRO!$E$41="Non endémique"),0,COUNTRY_INFO!X60) -> 0 | F60: =IF(INTRO!$E$39="Non endémique",IF($D60=1,DEC!I60,0),IF($D60=1,IVM!G60,0)) -> 0 | H60: =IF(OR(COUNTRY_INFO!N60="Inconnu",COUNTRY_INFO!N60="Surveillance",COUNTRY_INFO!N60="Non requis",COUNTRY_INFO!N60=0),0,IF(INTRO!$E$39="Non endémique",IF(AND($E60<>0,$G60=""),IF($F60=0,COUNTRY_INFO!N60*$E60,COUNTRY_INFO!N60*($E60-$D60)),IF(AND($E60<>0,$G60<>0),IF($F60=0,COUNTRY_INFO!N60*$G60,COUNTRY_INFO!N60*($G60-$D60)),0)),IF($G60="",COUNTRY_INFO!N60*$E60,COUNTRY_INFO!N60*$G60))) -> 0 | I60: =IF(OR(COUNTRY_INFO!O60="Inconnu",COUNTRY_INFO!O60="Surveillance",COUNTRY_INFO!O60="Non requis",COUNTRY_INFO!O60=0),0,IF($E60<>0, IF($F60=0,COUNTRY_INFO!O60*$E60,COUNTRY_INFO!O60*($E60-$D60)),COUNTRY_INFO!O60*$E60)) -> 0 | K60: =IF(OR(COUNTRY_INFO!P60="Inconnu",COUNTRY_INFO!P60="Surveillance",COUNTRY_INFO!P60="Non requis",COUNTRY_INFO!P60=0),0,IF(AND($E60<>0,$J60=""),IF($F60=0,COUNTRY_INFO!P60*$E60,COUNTRY_INFO!P60*($E60-$D60)), IF(AND($E60<>0,$J60<>0),IF($F60=0,COUNTRY_INFO!P60*$J60,COUNTRY_INFO!P60*($J60-$D60)), COUNTRY_INFO!P60*$J60))) -> 0 | L60: 0 | M60: 0 | O60: 0 | P60: 0 | R60: 0 | S60: 0 | U60: 0
A61: =IF(AND(INTRO!$E$37="Non endémique",INTRO!$E$41="Non endémique")," ",IF(COUNTRY_INFO!A61=0," ",COUNTRY_INFO!A61)) -> NIGER | B61: =IF(AND(INTRO!$E$37="Non endémique",INTRO!$E$41="Non endémique")," ",IF(COUNTRY_INFO!B61=0," ",COUNTRY_INFO!B61)) -> Tillabery | C61: =IF(AND(INTRO!$E$37="Non endémique",INTRO!$E$41="Non endémique")," ",IF(COUNTRY_INFO!C61=0," ",COUNTRY_INFO!C61)) -> Kollo | D61: =IF(AND(INTRO!$E$37="Non endémique",INTRO!$E$41="Non endémique"),0,COUNTRY_INFO!V61) -> 0 | E61: =IF(AND(INTRO!$E$37="Non endémique",INTRO!$E$41="Non endémique"),0,COUNTRY_INFO!X61) -> 0 | F61: =IF(INTRO!$E$39="Non endémique",IF($D61=1,DEC!I61,0),IF($D61=1,IVM!G61,0)) -> 0 | H61: =IF(OR(COUNTRY_INFO!N61="Inconnu",COUNTRY_INFO!N61="Surveillance",COUNTRY_INFO!N61="Non requis",COUNTRY_INFO!N61=0),0,IF(INTRO!$E$39="Non endémique",IF(AND($E61<>0,$G61=""),IF($F61=0,COUNTRY_INFO!N61*$E61,COUNTRY_INFO!N61*($E61-$D61)),IF(AND($E61<>0,$G61<>0),IF($F61=0,COUNTRY_INFO!N61*$G61,COUNTRY_INFO!N61*($G61-$D61)),0)),IF($G61="",COUNTRY_INFO!N61*$E61,COUNTRY_INFO!N61*$G61))) -> 0 | I61: =IF(OR(COUNTRY_INFO!O61="Inconnu",COUNTRY_INFO!O61="Surveillance",COUNTRY_INFO!O61="Non requis",COUNTRY_INFO!O61=0),0,IF($E61<>0, IF($F61=0,COUNTRY_INFO!O61*$E61,COUNTRY_INFO!O61*($E61-$D61)),COUNTRY_INFO!O61*$E61)) -> 0 | K61: =IF(OR(COUNTRY_INFO!P61="Inconnu",COUNTRY_INFO!P61="Surveillance",COUNTRY_INFO!P61="Non requis",COUNTRY_INFO!P61=0),0,IF(AND($E61<>0,$J61=""),IF($F61=0,COUNTRY_INFO!P61*$E61,COUNTRY_INFO!P61*($E61-$D61)), IF(AND($E61<>0,$J61<>0),IF($F61=0,COUNTRY_INFO!P61*$J61,COUNTRY_INFO!P61*($J61-$D61)), COUNTRY_INFO!P61*$J61))) -> 0 | L61: 0 | M61: 0 | O61: 0 | P61: 0 | R61: 0 | S61: 0 | U61: 0
A62: =IF(AND(INTRO!$E$37="Non endémique",INTRO!$E$41="Non endémique")," ",IF(COUNTRY_INFO!A62=0," ",COUNTRY_INFO!A62)) -> NIGER | B62: =IF(AND(INTRO!$E$37="Non endémique",INTRO!$E$41="Non endémique")," ",IF(COUNTRY_INFO!B62=0," ",COUNTRY_INFO!B62)) -> Tillabery | C62: =IF(AND(INTRO!$E$37="Non endémique",INTRO!$E$41="Non endémique")," ",IF(COUNTRY_INFO!C62=0," ",COUNTRY_INFO!C62)) -> Ouallam | D62: =IF(AND(INTRO!$E$37="Non endémique",INTRO!$E$41="Non endémique"),0,COUNTRY_INFO!V62) -> 0 | E62: =IF(AND(INTRO!$E$37="Non endémique",INTRO!$E$41="Non endémique"),0,COUNTRY_INFO!X62) -> 0 | F62: =IF(INTRO!$E$39="Non endémique",IF($D62=1,DEC!I62,0),IF($D62=1,IVM!G62,0)) -> 0 | H62: =IF(OR(COUNTRY_INFO!N62="Inconnu",COUNTRY_INFO!N62="Surveillance",COUNTRY_INFO!N62="Non requis",COUNTRY_INFO!N62=0),0,IF(INTRO!$E$39="Non endémique",IF(AND($E62<>0,$G62=""),IF($F62=0,COUNTRY_INFO!N62*$E62,COUNTRY_INFO!N62*($E62-$D62)),IF(AND($E62<>0,$G62<>0),IF($F62=0,COUNTRY_INFO!N62*$G62,COUNTRY_INFO!N62*($G62-$D62)),0)),IF($G62="",COUNTRY_INFO!N62*$E62,COUNTRY_INFO!N62*$G62))) -> 0 | I62: =IF(OR(COUNTRY_INFO!O62="Inconnu",COUNTRY_INFO!O62="Surveillance",COUNTRY_INFO!O62="Non requis",COUNTRY_INFO!O62=0),0,IF($E62<>0, IF($F62=0,COUNTRY_INFO!O62*$E62,COUNTRY_INFO!O62*($E62-$D62)),COUNTRY_INFO!O62*$E62)) -> 0 | K62: =IF(OR(COUNTRY_INFO!P62="Inconnu",COUNTRY_INFO!P62="Surveillance",COUNTRY_INFO!P62="Non requis",COUNTRY_INFO!P62=0),0,IF(AND($E62<>0,$J62=""),IF($F62=0,COUNTRY_INFO!P62*$E62,COUNTRY_INFO!P62*($E62-$D62)), IF(AND($E62<>0,$J62<>0),IF($F62=0,COUNTRY_INFO!P62*$J62,COUNTRY_INFO!P62*($J62-$D62)), COUNTRY_INFO!P62*$J62))) -> 0 | L62: 0 | M62: 0 | O62: 0 | P62: 0 | R62: 0 | S62: 0 | U62: 0
A63: =IF(AND(INTRO!$E$37="Non endémique",INTRO!$E$41="Non endémique")," ",IF(COUNTRY_INFO!A63=0," ",COUNTRY_INFO!A63)) -> NIGER | B63: =IF(AND(INTRO!$E$37="Non endémique",INTRO!$E$41="Non endémique")," ",IF(COUNTRY_INFO!B63=0," ",COUNTRY_INFO!B63)) -> Tillabery | C63: =IF(AND(INTRO!$E$37="Non endémique",INTRO!$E$41="Non endémique")," ",IF(COUNTRY_INFO!C63=0," ",COUNTRY_INFO!C63)) -> Banibangou | D63: =IF(AND(INTRO!$E$37="Non endémique",INTRO!$E$41="Non endémique"),0,COUNTRY_INFO!V63) -> 0 | E63: =IF(AND(INTRO!$E$37="Non endémique",INTRO!$E$41="Non endémique"),0,COUNTRY_INFO!X63) -> 0 | F63: =IF(INTRO!$E$39="Non endémique",IF($D63=1,DEC!I63,0),IF($D63=1,IVM!G63,0)) -> 0 | H63: =IF(OR(COUNTRY_INFO!N63="Inconnu",COUNTRY_INFO!N63="Surveillance",COUNTRY_INFO!N63="Non requis",COUNTRY_INFO!N63=0),0,IF(INTRO!$E$39="Non endémique",IF(AND($E63<>0,$G63=""),IF($F63=0,COUNTRY_INFO!N63*$E63,COUNTRY_INFO!N63*($E63-$D63)),IF(AND($E63<>0,$G63<>0),IF($F63=0,COUNTRY_INFO!N63*$G63,COUNTRY_INFO!N63*($G63-$D63)),0)),IF($G63="",COUNTRY_INFO!N63*$E63,COUNTRY_INFO!N63*$G63))) -> 0 | I63: =IF(OR(COUNTRY_INFO!O63="Inconnu",COUNTRY_INFO!O63="Surveillance",COUNTRY_INFO!O63="Non requis",COUNTRY_INFO!O63=0),0,IF($E63<>0, IF($F63=0,COUNTRY_INFO!O63*$E63,COUNTRY_INFO!O63*($E63-$D63)),COUNTRY_INFO!O63*$E63)) -> 0 | K63: =IF(OR(COUNTRY_INFO!P63="Inconnu",COUNTRY_INFO!P63="Surveillance",COUNTRY_INFO!P63="Non requis",COUNTRY_INFO!P63=0),0,IF(AND($E63<>0,$J63=""),IF($F63=0,COUNTRY_INFO!P63*$E63,COUNTRY_INFO!P63*($E63-$D63)), IF(AND($E63<>0,$J63<>0),IF($F63=0,COUNTRY_INFO!P63*$J63,COUNTRY_INFO!P63*($J63-$D63)), COUNTRY_INFO!P63*$J63))) -> 0 | L63: 0 | M63: 0 | O63: 0 | P63: 0 | R63: 0 | S63: 0 | U63: 0
A64: =IF(AND(INTRO!$E$37="Non endémique",INTRO!$E$41="Non endémique")," ",IF(COUNTRY_INFO!A64=0," ",COUNTRY_INFO!A64)) -> NIGER | B64: =IF(AND(INTRO!$E$37="Non endémique",INTRO!$E$41="Non endémique")," ",IF(COUNTRY_INFO!B64=0," ",COUNTRY_INFO!B64)) -> Tillabery | C64: =IF(AND(INTRO!$E$37="Non endémique",INTRO!$E$41="Non endémique")," ",IF(COUNTRY_INFO!C64=0," ",COUNTRY_INFO!C64)) -> Say | D64: =IF(AND(INTRO!$E$37="Non endémique",INTRO!$E$41="Non endémique"),0,COUNTRY_INFO!V64) -> 0 | E64: =IF(AND(INTRO!$E$37="Non endémique",INTRO!$E$41="Non endémique"),0,COUNTRY_INFO!X64) -> 0 | F64: =IF(INTRO!$E$39="Non endémique",IF($D64=1,DEC!I64,0),IF($D64=1,IVM!G64,0)) -> 0 | H64: =IF(OR(COUNTRY_INFO!N64="Inconnu",COUNTRY_INFO!N64="Surveillance",COUNTRY_INFO!N64="Non requis",COUNTRY_INFO!N64=0),0,IF(INTRO!$E$39="Non endémique",IF(AND($E64<>0,$G64=""),IF($F64=0,COUNTRY_INFO!N64*$E64,COUNTRY_INFO!N64*($E64-$D64)),IF(AND($E64<>0,$G64<>0),IF($F64=0,COUNTRY_INFO!N64*$G64,COUNTRY_INFO!N64*($G64-$D64)),0)),IF($G64="",COUNTRY_INFO!N64*$E64,COUNTRY_INFO!N64*$G64))) -> 0 | I64: =IF(OR(COUNTRY_INFO!O64="Inconnu",COUNTRY_INFO!O64="Surveillance",COUNTRY_INFO!O64="Non requis",COUNTRY_INFO!O64=0),0,IF($E64<>0, IF($F64=0,COUNTRY_INFO!O64*$E64,COUNTRY_INFO!O64*($E64-$D64)),COUNTRY_INFO!O64*$E64)) -> 0 | K64: =IF(OR(COUNTRY_INFO!P64="Inconnu",COUNTRY_INFO!P64="Surveillance",COUNTRY_INFO!P64="Non requis",COUNTRY_INFO!P64=0),0,IF(AND($E64<>0,$J64=""),IF($F64=0,COUNTRY_INFO!P64*$E64,COUNTRY_INFO!P64*($E64-$D64)), IF(AND($E64<>0,$J64<>0),IF($F64=0,COUNTRY_INFO!P64*$J64,COUNTRY_INFO!P64*($J64-$D64)), COUNTRY_INFO!P64*$J64))) -> 0 | L64: 0 | M64: 0 | O64: 0 | P64: 0 | R64: 0 | S64: 0 | U64: 0
A65: =IF(AND(INTRO!$E$37="Non endémique",INTRO!$E$41="Non endémique")," ",IF(COUNTRY_INFO!A65=0," ",COUNTRY_INFO!A65)) -> NIGER | B65: =IF(AND(INTRO!$E$37="Non endémique",INTRO!$E$41="Non endémique")," ",IF(COUNTRY_INFO!B65=0," ",COUNTRY_INFO!B65)) -> Tillabery | C65: =IF(AND(INTRO!$E$37="Non endémique",INTRO!$E$41="Non endémique")," ",IF(COUNTRY_INFO!C65=0," ",COUNTRY_INFO!C65)) -> Torodi | D65: =IF(AND(INTRO!$E$37="Non endémique",INTRO!$E$41="Non endémique"),0,COUNTRY_INFO!V65) -> 0 | E65: =IF(AND(INTRO!$E$37="Non endémique",INTRO!$E$41="Non endémique"),0,COUNTRY_INFO!X65) -> 0 | F65: =IF(INTRO!$E$39="Non endémique",IF($D65=1,DEC!I65,0),IF($D65=1,IVM!G65,0)) -> 0 | H65: =IF(OR(COUNTRY_INFO!N65="Inconnu",COUNTRY_INFO!N65="Surveillance",COUNTRY_INFO!N65="Non requis",COUNTRY_INFO!N65=0),0,IF(INTRO!$E$39="Non endémique",IF(AND($E65<>0,$G65=""),IF($F65=0,COUNTRY_INFO!N65*$E65,COUNTRY_INFO!N65*($E65-$D65)),IF(AND($E65<>0,$G65<>0),IF($F65=0,COUNTRY_INFO!N65*$G65,COUNTRY_INFO!N65*($G65-$D65)),0)),IF($G65="",COUNTRY_INFO!N65*$E65,COUNTRY_INFO!N65*$G65))) -> 0 | I65: =IF(OR(COUNTRY_INFO!O65="Inconnu",COUNTRY_INFO!O65="Surveillance",COUNTRY_INFO!O65="Non requis",COUNTRY_INFO!O65=0),0,IF($E65<>0, IF($F65=0,COUNTRY_INFO!O65*$E65,COUNTRY_INFO!O65*($E65-$D65)),COUNTRY_INFO!O65*$E65)) -> 0 | K65: =IF(OR(COUNTRY_INFO!P65="Inconnu",COUNTRY_INFO!P65="Surveillance",COUNTRY_INFO!P65="Non requis",COUNTRY_INFO!P65=0),0,IF(AND($E65<>0,$J65=""),IF($F65=0,COUNTRY_INFO!P65*$E65,COUNTRY_INFO!P65*($E65-$D65)), IF(AND($E65<>0,$J65<>0),IF($F65=0,COUNTRY_INFO!P65*$J65,COUNTRY_INFO!P65*($J65-$D65)), COUNTRY_INFO!P65*$J65))) -> 0 | L65: 0 | M65: 0 | O65: 0 | P65: 0 | R65: 0 | S65: 0 | U65: 0
A66: =IF(AND(INTRO!$E$37="Non endémique",INTRO!$E$41="Non endémique")," ",IF(COUNTRY_INFO!A66=0," ",COUNTRY_INFO!A66)) -> NIGER | B66: =IF(AND(INTRO!$E$37="Non endémique",INTRO!$E$41="Non endémique")," ",IF(COUNTRY_INFO!B66=0," ",COUNTRY_INFO!B66)) -> Tillabery | C66: =IF(AND(INTRO!$E$37="Non endémique",INTRO!$E$41="Non endémique")," ",IF(COUNTRY_INFO!C66=0," ",COUNTRY_INFO!C66)) -> Tera | D66: =IF(AND(INTRO!$E$37="Non endémique",INTRO!$E$41="Non endémique"),0,COUNTRY_INFO!V66) -> 0 | E66: =IF(AND(INTRO!$E$37="Non endémique",INTRO!$E$41="Non endémique"),0,COUNTRY_INFO!X66) -> 0 | F66: =IF(INTRO!$E$39="Non endémique",IF($D66=1,DEC!I66,0),IF($D66=1,IVM!G66,0)) -> 0 | H66: =IF(OR(COUNTRY_INFO!N66="Inconnu",COUNTRY_INFO!N66="Surveillance",COUNTRY_INFO!N66="Non requis",COUNTRY_INFO!N66=0),0,IF(INTRO!$E$39="Non endémique",IF(AND($E66<>0,$G66=""),IF($F66=0,COUNTRY_INFO!N66*$E66,COUNTRY_INFO!N66*($E66-$D66)),IF(AND($E66<>0,$G66<>0),IF($F66=0,COUNTRY_INFO!N66*$G66,COUNTRY_INFO!N66*($G66-$D66)),0)),IF($G66="",COUNTRY_INFO!N66*$E66,COUNTRY_INFO!N66*$G66))) -> 0 | I66: =IF(OR(COUNTRY_INFO!O66="Inconnu",COUNTRY_INFO!O66="Surveillance",COUNTRY_INFO!O66="Non requis",COUNTRY_INFO!O66=0),0,IF($E66<>0, IF($F66=0,COUNTRY_INFO!O66*$E66,COUNTRY_INFO!O66*($E66-$D66)),COUNTRY_INFO!O66*$E66)) -> 0 | K66: =IF(OR(COUNTRY_INFO!P66="Inconnu",COUNTRY_INFO!P66="Surveillance",COUNTRY_INFO!P66="Non requis",COUNTRY_INFO!P66=0),0,IF(AND($E66<>0,$J66=""),IF($F66=0,COUNTRY_INFO!P66*$E66,COUNTRY_INFO!P66*($E66-$D66)), IF(AND($E66<>0,$J66<>0),IF($F66=0,COUNTRY_INFO!P66*$J66,COUNTRY_INFO!P66*($J66-$D66)), COUNTRY_INFO!P66*$J66))) -> 0 | L66: 0 | M66: 0 | O66: 0 | P66: 0 | R66: 0 | S66: 0 | U66: 0
A67: =IF(AND(INTRO!$E$37="Non endémique",INTRO!$E$41="Non endémique")," ",IF(COUNTRY_INFO!A67=0," ",COUNTRY_INFO!A67)) -> NIGER | B67: =IF(AND(INTRO!$E$37="Non endémique",INTRO!$E$41="Non endémique")," ",IF(COUNTRY_INFO!B67=0," ",COUNTRY_INFO!B67)) -> Tillabery | C67: =IF(AND(INTRO!$E$37="Non endémique",INTRO!$E$41="Non endémique")," ",IF(COUNTRY_INFO!C67=0," ",COUNTRY_INFO!C67)) -> Bankilare | D67: =IF(AND(INTRO!$E$37="Non endémique",INTRO!$E$41="Non endémique"),0,COUNTRY_INFO!V67) -> 0 | E67: =IF(AND(INTRO!$E$37="Non endémique",INTRO!$E$41="Non endémique"),0,COUNTRY_INFO!X67) -> 0 | F67: =IF(INTRO!$E$39="Non endémique",IF($D67=1,DEC!I67,0),IF($D67=1,IVM!G67,0)) -> 0 | H67: =IF(OR(COUNTRY_INFO!N67="Inconnu",COUNTRY_INFO!N67="Surveillance",COUNTRY_INFO!N67="Non requis",COUNTRY_INFO!N67=0),0,IF(INTRO!$E$39="Non endémique",IF(AND($E67<>0,$G67=""),IF($F67=0,COUNTRY_INFO!N67*$E67,COUNTRY_INFO!N67*($E67-$D67)),IF(AND($E67<>0,$G67<>0),IF($F67=0,COUNTRY_INFO!N67*$G67,COUNTRY_INFO!N67*($G67-$D67)),0)),IF($G67="",COUNTRY_INFO!N67*$E67,COUNTRY_INFO!N67*$G67))) -> 0 | I67: =IF(OR(COUNTRY_INFO!O67="Inconnu",COUNTRY_INFO!O67="Surveillance",COUNTRY_INFO!O67="Non requis",COUNTRY_INFO!O67=0),0,IF($E67<>0, IF($F67=0,COUNTRY_INFO!O67*$E67,COUNTRY_INFO!O67*($E67-$D67)),COUNTRY_INFO!O67*$E67)) -> 0 | K67: =IF(OR(COUNTRY_INFO!P67="Inconnu",COUNTRY_INFO!P67="Surveillance",COUNTRY_INFO!P67="Non requis",COUNTRY_INFO!P67=0),0,IF(AND($E67<>0,$J67=""),IF($F67=0,COUNTRY_INFO!P67*$E67,COUNTRY_INFO!P67*($E67-$D67)), IF(AND($E67<>0,$J67<>0),IF($F67=0,COUNTRY_INFO!P67*$J67,COUNTRY_INFO!P67*($J67-$D67)), COUNTRY_INFO!P67*$J67))) -> 0 | L67: 0 | M67: 0 | O67: 0 | P67: 0 | R67: 0 | S67: 0 | U67: 0
A68: =IF(AND(INTRO!$E$37="Non endémique",INTRO!$E$41="Non endémique")," ",IF(COUNTRY_INFO!A68=0," ",COUNTRY_INFO!A68)) -> NIGER | B68: =IF(AND(INTRO!$E$37="Non endémique",INTRO!$E$41="Non endémique")," ",IF(COUNTRY_INFO!B68=0," ",COUNTRY_INFO!B68)) -> Tillabery | C68: =IF(AND(INTRO!$E$37="Non endémique",INTRO!$E$41="Non endémique")," ",IF(COUNTRY_INFO!C68=0," ",COUNTRY_INFO!C68)) -> Gothèye | D68: =IF(AND(INTRO!$E$37="Non endémique",INTRO!$E$41="Non endémique"),0,COUNTRY_INFO!V68) -> 0 | E68: =IF(AND(INTRO!$E$37="Non endémique",INTRO!$E$41="Non endémique"),0,COUNTRY_INFO!X68) -> 0 | F68: =IF(INTRO!$E$39="Non endémique",IF($D68=1,DEC!I68,0),IF($D68=1,IVM!G68,0)) -> 0 | H68: =IF(OR(COUNTRY_INFO!N68="Inconnu",COUNTRY_INFO!N68="Surveillance",COUNTRY_INFO!N68="Non requis",COUNTRY_INFO!N68=0),0,IF(INTRO!$E$39="Non endémique",IF(AND($E68<>0,$G68=""),IF($F68=0,COUNTRY_INFO!N68*$E68,COUNTRY_INFO!N68*($E68-$D68)),IF(AND($E68<>0,$G68<>0),IF($F68=0,COUNTRY_INFO!N68*$G68,COUNTRY_INFO!N68*($G68-$D68)),0)),IF($G68="",COUNTRY_INFO!N68*$E68,COUNTRY_INFO!N68*$G68))) -> 0 | I68: =IF(OR(COUNTRY_INFO!O68="Inconnu",COUNTRY_INFO!O68="Surveillance",COUNTRY_INFO!O68="Non requis",COUNTRY_INFO!O68=0),0,IF($E68<>0, IF($F68=0,COUNTRY_INFO!O68*$E68,COUNTRY_INFO!O68*($E68-$D68)),COUNTRY_INFO!O68*$E68)) -> 0 | K68: =IF(OR(COUNTRY_INFO!P68="Inconnu",COUNTRY_INFO!P68="Surveillance",COUNTRY_INFO!P68="Non requis",COUNTRY_INFO!P68=0),0,IF(AND($E68<>0,$J68=""),IF($F68=0,COUNTRY_INFO!P68*$E68,COUNTRY_INFO!P68*($E68-$D68)), IF(AND($E68<>0,$J68<>0),IF($F68=0,COUNTRY_INFO!P68*$J68,COUNTRY_INFO!P68*($J68-$D68)), COUNTRY_INFO!P68*$J68))) -> 0 | L68: 0 | M68: 0 | O68: 0 | P68: 0 | R68: 0 | S68: 0 | U68: 0
A69: =IF(AND(INTRO!$E$37="Non endémique",INTRO!$E$41="Non endémique")," ",IF(COUNTRY_INFO!A69=0," ",COUNTRY_INFO!A69)) -> NIGER | B69: =IF(AND(INTRO!$E$37="Non endémique",INTRO!$E$41="Non endémique")," ",IF(COUNTRY_INFO!B69=0," ",COUNTRY_INFO!B69)) -> Tillabery | C69: =IF(AND(INTRO!$E$37="Non endémique",INTRO!$E$41="Non endémique")," ",IF(COUNTRY_INFO!C69=0," ",COUNTRY_INFO!C69)) -> Tillaberi | D69: =IF(AND(INTRO!$E$37="Non endémique",INTRO!$E$41="Non endémique"),0,COUNTRY_INFO!V69) -> 0 | E69: =IF(AND(INTRO!$E$37="Non endémique",INTRO!$E$41="Non endémique"),0,COUNTRY_INFO!X69) -> 0 | F69: =IF(INTRO!$E$39="Non endémique",IF($D69=1,DEC!I69,0),IF($D69=1,IVM!G69,0)) -> 0 | H69: =IF(OR(COUNTRY_INFO!N69="Inconnu",COUNTRY_INFO!N69="Surveillance",COUNTRY_INFO!N69="Non requis",COUNTRY_INFO!N69=0),0,IF(INTRO!$E$39="Non endémique",IF(AND($E69<>0,$G69=""),IF($F69=0,COUNTRY_INFO!N69*$E69,COUNTRY_INFO!N69*($E69-$D69)),IF(AND($E69<>0,$G69<>0),IF($F69=0,COUNTRY_INFO!N69*$G69,COUNTRY_INFO!N69*($G69-$D69)),0)),IF($G69="",COUNTRY_INFO!N69*$E69,COUNTRY_INFO!N69*$G69))) -> 0 | I69: =IF(OR(COUNTRY_INFO!O69="Inconnu",COUNTRY_INFO!O69="Surveillance",COUNTRY_INFO!O69="Non requis",COUNTRY_INFO!O69=0),0,IF($E69<>0, IF($F69=0,COUNTRY_INFO!O69*$E69,COUNTRY_INFO!O69*($E69-$D69)),COUNTRY_INFO!O69*$E69)) -> 0 | K69: =IF(OR(COUNTRY_INFO!P69="Inconnu",COUNTRY_INFO!P69="Surveillance",COUNTRY_INFO!P69="Non requis",COUNTRY_INFO!P69=0),0,IF(AND($E69<>0,$J69=""),IF($F69=0,COUNTRY_INFO!P69*$E69,COUNTRY_INFO!P69*($E69-$D69)), IF(AND($E69<>0,$J69<>0),IF($F69=0,COUNTRY_INFO!P69*$J69,COUNTRY_INFO!P69*($J69-$D69)), COUNTRY_INFO!P69*$J69))) -> 0 | L69: 0 | M69: 0 | O69: 0 | P69: 0 | R69: 0 | S69: 0 | U69: 0
A70: =IF(AND(INTRO!$E$37="Non endémique",INTRO!$E$41="Non endémique")," ",IF(COUNTRY_INFO!A70=0," ",COUNTRY_INFO!A70)) -> NIGER | B70: =IF(AND(INTRO!$E$37="Non endémique",INTRO!$E$41="Non endémique")," ",IF(COUNTRY_INFO!B70=0," ",COUNTRY_INFO!B70)) -> Tillabery | C70: =IF(AND(INTRO!$E$37="Non endémique",INTRO!$E$41="Non endémique")," ",IF(COUNTRY_INFO!C70=0," ",COUNTRY_INFO!C70)) -> Ayorou | D70: =IF(AND(INTRO!$E$37="Non endémique",INTRO!$E$41="Non endémique"),0,COUNTRY_INFO!V70) -> 0 | E70: =IF(AND(INTRO!$E$37="Non endémique",INTRO!$E$41="Non endémique"),0,COUNTRY_INFO!X70) -> 0 | F70: =IF(INTRO!$E$39="Non endémique",IF($D70=1,DEC!I70,0),IF($D70=1,IVM!G70,0)) -> 0 | H70: =IF(OR(COUNTRY_INFO!N70="Inconnu",COUNTRY_INFO!N70="Surveillance",COUNTRY_INFO!N70="Non requis",COUNTRY_INFO!N70=0),0,IF(INTRO!$E$39="Non endémique",IF(AND($E70<>0,$G70=""),IF($F70=0,COUNTRY_INFO!N70*$E70,COUNTRY_INFO!N70*($E70-$D70)),IF(AND($E70<>0,$G70<>0),IF($F70=0,COUNTRY_INFO!N70*$G70,COUNTRY_INFO!N70*($G70-$D70)),0)),IF($G70="",COUNTRY_INFO!N70*$E70,COUNTRY_INFO!N70*$G70))) -> 0 | I70: =IF(OR(COUNTRY_INFO!O70="Inconnu",COUNTRY_INFO!O70="Surveillance",COUNTRY_INFO!O70="Non requis",COUNTRY_INFO!O70=0),0,IF($E70<>0, IF($F70=0,COUNTRY_INFO!O70*$E70,COUNTRY_INFO!O70*($E70-$D70)),COUNTRY_INFO!O70*$E70)) -> 0 | K70: =IF(OR(COUNTRY_INFO!P70="Inconnu",COUNTRY_INFO!P70="Surveillance",COUNTRY_INFO!P70="Non requis",COUNTRY_INFO!P70=0),0,IF(AND($E70<>0,$J70=""),IF($F70=0,COUNTRY_INFO!P70*$E70,COUNTRY_INFO!P70*($E70-$D70)), IF(AND($E70<>0,$J70<>0),IF($F70=0,COUNTRY_INFO!P70*$J70,COUNTRY_INFO!P70*($J70-$D70)), COUNTRY_INFO!P70*$J70))) -> 0 | L70: 0 | M70: 0 | O70: 0 | P70: 0 | R70: 0 | S70: 0 | U70: 0
A71: =IF(AND(INTRO!$E$37="Non endémique",INTRO!$E$41="Non endémique")," ",IF(COUNTRY_INFO!A71=0," ",COUNTRY_INFO!A71)) -> NIGER | B71: =IF(AND(INTRO!$E$37="Non endémique",INTRO!$E$41="Non endémique")," ",IF(COUNTRY_INFO!B71=0," ",COUNTRY_INFO!B71)) -> Zinder | C71: =IF(AND(INTRO!$E$37="Non endémique",INTRO!$E$41="Non endémique")," ",IF(COUNTRY_INFO!C71=0," ",COUNTRY_INFO!C71)) -> Goure | D71: =IF(AND(INTRO!$E$37="Non endémique",INTRO!$E$41="Non endémique"),0,COUNTRY_INFO!V71) -> 0 | E71: =IF(AND(INTRO!$E$37="Non endémique",INTRO!$E$41="Non endémique"),0,COUNTRY_INFO!X71) -> 0 | F71: =IF(INTRO!$E$39="Non endémique",IF($D71=1,DEC!I71,0),IF($D71=1,IVM!G71,0)) -> 0 | H71: =IF(OR(COUNTRY_INFO!N71="Inconnu",COUNTRY_INFO!N71="Surveillance",COUNTRY_INFO!N71="Non requis",COUNTRY_INFO!N71=0),0,IF(INTRO!$E$39="Non endémique",IF(AND($E71<>0,$G71=""),IF($F71=0,COUNTRY_INFO!N71*$E71,COUNTRY_INFO!N71*($E71-$D71)),IF(AND($E71<>0,$G71<>0),IF($F71=0,COUNTRY_INFO!N71*$G71,COUNTRY_INFO!N71*($G71-$D71)),0)),IF($G71="",COUNTRY_INFO!N71*$E71,COUNTRY_INFO!N71*$G71))) -> 0 | I71: =IF(OR(COUNTRY_INFO!O71="Inconnu",COUNTRY_INFO!O71="Surveillance",COUNTRY_INFO!O71="Non requis",COUNTRY_INFO!O71=0),0,IF($E71<>0, IF($F71=0,COUNTRY_INFO!O71*$E71,COUNTRY_INFO!O71*($E71-$D71)),COUNTRY_INFO!O71*$E71)) -> 0 | K71: =IF(OR(COUNTRY_INFO!P71="Inconnu",COUNTRY_INFO!P71="Surveillance",COUNTRY_INFO!P71="Non requis",COUNTRY_INFO!P71=0),0,IF(AND($E71<>0,$J71=""),IF($F71=0,COUNTRY_INFO!P71*$E71,COUNTRY_INFO!P71*($E71-$D71)), IF(AND($E71<>0,$J71<>0),IF($F71=0,COUNTRY_INFO!P71*$J71,COUNTRY_INFO!P71*($J71-$D71)), COUNTRY_INFO!P71*$J71))) -> 0 | L71: 0 | M71: 0 | O71: 0 | P71: 0 | R71: 0 | S71: 0 | U71: 0
A72: =IF(AND(INTRO!$E$37="Non endémique",INTRO!$E$41="Non endémique")," ",IF(COUNTRY_INFO!A72=0," ",COUNTRY_INFO!A72)) -> NIGER | B72: =IF(AND(INTRO!$E$37="Non endémique",INTRO!$E$41="Non endémique")," ",IF(COUNTRY_INFO!B72=0," ",COUNTRY_INFO!B72)) -> Zinder | C72: =IF(AND(INTRO!$E$37="Non endémique",INTRO!$E$41="Non endémique")," ",IF(COUNTRY_INFO!C72=0," ",COUNTRY_INFO!C72)) -> Tesker | D72: =IF(AND(INTRO!$E$37="Non endémique",INTRO!$E$41="Non endémique"),0,COUNTRY_INFO!V72) -> 0 | E72: =IF(AND(INTRO!$E$37="Non endémique",INTRO!$E$41="Non endémique"),0,COUNTRY_INFO!X72) -> 0 | F72: =IF(INTRO!$E$39="Non endémique",IF($D72=1,DEC!I72,0),IF($D72=1,IVM!G72,0)) -> 0 | H72: =IF(OR(COUNTRY_INFO!N72="Inconnu",COUNTRY_INFO!N72="Surveillance",COUNTRY_INFO!N72="Non requis",COUNTRY_INFO!N72=0),0,IF(INTRO!$E$39="Non endémique",IF(AND($E72<>0,$G72=""),IF($F72=0,COUNTRY_INFO!N72*$E72,COUNTRY_INFO!N72*($E72-$D72)),IF(AND($E72<>0,$G72<>0),IF($F72=0,COUNTRY_INFO!N72*$G72,COUNTRY_INFO!N72*($G72-$D72)),0)),IF($G72="",COUNTRY_INFO!N72*$E72,COUNTRY_INFO!N72*$G72))) -> 0 | I72: =IF(OR(COUNTRY_INFO!O72="Inconnu",COUNTRY_INFO!O72="Surveillance",COUNTRY_INFO!O72="Non requis",COUNTRY_INFO!O72=0),0,IF($E72<>0, IF($F72=0,COUNTRY_INFO!O72*$E72,COUNTRY_INFO!O72*($E72-$D72)),COUNTRY_INFO!O72*$E72)) -> 0 | K72: =IF(OR(COUNTRY_INFO!P72="Inconnu",COUNTRY_INFO!P72="Surveillance",COUNTRY_INFO!P72="Non requis",COUNTRY_INFO!P72=0),0,IF(AND($E72<>0,$J72=""),IF($F72=0,COUNTRY_INFO!P72*$E72,COUNTRY_INFO!P72*($E72-$D72)), IF(AND($E72<>0,$J72<>0),IF($F72=0,COUNTRY_INFO!P72*$J72,COUNTRY_INFO!P72*($J72-$D72)), COUNTRY_INFO!P72*$J72))) -> 0 | L72: 0 | M72: 0 | O72: 0 | P72: 0 | R72: 0 | S72: 0 | U72: 0
A73: =IF(AND(INTRO!$E$37="Non endémique",INTRO!$E$41="Non endémique")," ",IF(COUNTRY_INFO!A73=0," ",COUNTRY_INFO!A73)) -> NIGER | B73: =IF(AND(INTRO!$E$37="Non endémique",INTRO!$E$41="Non endémique")," ",IF(COUNTRY_INFO!B73=0," ",COUNTRY_INFO!B73)) -> Zinder | C73: =IF(AND(INTRO!$E$37="Non endémique",INTRO!$E$41="Non endémique")," ",IF(COUNTRY_INFO!C73=0," ",COUNTRY_INFO!C73)) -> Magaria | D73: =IF(AND(INTRO!$E$37="Non endémique",INTRO!$E$41="Non endémique"),0,COUNTRY_INFO!V73) -> 0 | E73: =IF(AND(INTRO!$E$37="Non endémique",INTRO!$E$41="Non endémique"),0,COUNTRY_INFO!X73) -> 0 | F73: =IF(INTRO!$E$39="Non endémique",IF($D73=1,DEC!I73,0),IF($D73=1,IVM!G73,0)) -> 0 | H73: =IF(OR(COUNTRY_INFO!N73="Inconnu",COUNTRY_INFO!N73="Surveillance",COUNTRY_INFO!N73="Non requis",COUNTRY_INFO!N73=0),0,IF(INTRO!$E$39="Non endémique",IF(AND($E73<>0,$G73=""),IF($F73=0,COUNTRY_INFO!N73*$E73,COUNTRY_INFO!N73*($E73-$D73)),IF(AND($E73<>0,$G73<>0),IF($F73=0,COUNTRY_INFO!N73*$G73,COUNTRY_INFO!N73*($G73-$D73)),0)),IF($G73="",COUNTRY_INFO!N73*$E73,COUNTRY_INFO!N73*$G73))) -> 0 | I73: =IF(OR(COUNTRY_INFO!O73="Inconnu",COUNTRY_INFO!O73="Surveillance",COUNTRY_INFO!O73="Non requis",COUNTRY_INFO!O73=0),0,IF($E73<>0, IF($F73=0,COUNTRY_INFO!O73*$E73,COUNTRY_INFO!O73*($E73-$D73)),COUNTRY_INFO!O73*$E73)) -> 0 | K73: =IF(OR(COUNTRY_INFO!P73="Inconnu",COUNTRY_INFO!P73="Surveillance",COUNTRY_INFO!P73="Non requis",COUNTRY_INFO!P73=0),0,IF(AND($E73<>0,$J73=""),IF($F73=0,COUNTRY_INFO!P73*$E73,COUNTRY_INFO!P73*($E73-$D73)), IF(AND($E73<>0,$J73<>0),IF($F73=0,COUNTRY_INFO!P73*$J73,COUNTRY_INFO!P73*($J73-$D73)), COUNTRY_INFO!P73*$J73))) -> 0 | L73: 0 | M73: 0 | O73: 0 | P73: 0 | R73: 0 | S73: 0 | U73: 0
A74: =IF(AND(INTRO!$E$37="Non endémique",INTRO!$E$41="Non endémique")," ",IF(COUNTRY_INFO!A74=0," ",COUNTRY_INFO!A74)) -> NIGER | B74: =IF(AND(INTRO!$E$37="Non endémique",INTRO!$E$41="Non endémique")," ",IF(COUNTRY_INFO!B74=0," ",COUNTRY_INFO!B74)) -> Zinder | C74: =IF(AND(INTRO!$E$37="Non endémique",INTRO!$E$41="Non endémique")," ",IF(COUNTRY_INFO!C74=0," ",COUNTRY_INFO!C74)) -> Dungass | D74: =IF(AND(INTRO!$E$37="Non endémique",INTRO!$E$41="Non endémique"),0,COUNTRY_INFO!V74) -> 0 | E74: =IF(AND(INTRO!$E$37="Non endémique",INTRO!$E$41="Non endémique"),0,COUNTRY_INFO!X74) -> 0 | F74: =IF(INTRO!$E$39="Non endémique",IF($D74=1,DEC!I74,0),IF($D74=1,IVM!G74,0)) -> 0 | H74: =IF(OR(COUNTRY_INFO!N74="Inconnu",COUNTRY_INFO!N74="Surveillance",COUNTRY_INFO!N74="Non requis",COUNTRY_INFO!N74=0),0,IF(INTRO!$E$39="Non endémique",IF(AND($E74<>0,$G74=""),IF($F74=0,COUNTRY_INFO!N74*$E74,COUNTRY_INFO!N74*($E74-$D74)),IF(AND($E74<>0,$G74<>0),IF($F74=0,COUNTRY_INFO!N74*$G74,COUNTRY_INFO!N74*($G74-$D74)),0)),IF($G74="",COUNTRY_INFO!N74*$E74,COUNTRY_INFO!N74*$G74))) -> 0 | I74: =IF(OR(COUNTRY_INFO!O74="Inconnu",COUNTRY_INFO!O74="Surveillance",COUNTRY_INFO!O74="Non requis",COUNTRY_INFO!O74=0),0,IF($E74<>0, IF($F74=0,COUNTRY_INFO!O74*$E74,COUNTRY_INFO!O74*($E74-$D74)),COUNTRY_INFO!O74*$E74)) -> 0 | K74: =IF(OR(COUNTRY_INFO!P74="Inconnu",COUNTRY_INFO!P74="Surveillance",COUNTRY_INFO!P74="Non requis",COUNTRY_INFO!P74=0),0,IF(AND($E74<>0,$J74=""),IF($F74=0,COUNTRY_INFO!P74*$E74,COUNTRY_INFO!P74*($E74-$D74)), IF(AND($E74<>0,$J74<>0),IF($F74=0,COUNTRY_INFO!P74*$J74,COUNTRY_INFO!P74*($J74-$D74)), COUNTRY_INFO!P74*$J74))) -> 0 | L74: 0 | M74: 0 | O74: 0 | P74: 0 | R74: 0 | S74: 0 | U74: 0
A75: =IF(AND(INTRO!$E$37="Non endémique",INTRO!$E$41="Non endémique")," ",IF(COUNTRY_INFO!A75=0," ",COUNTRY_INFO!A75)) -> NIGER | B75: =IF(AND(INTRO!$E$37="Non endémique",INTRO!$E$41="Non endémique")," ",IF(COUNTRY_INFO!B75=0," ",COUNTRY_INFO!B75)) -> Zinder | C75: =IF(AND(INTRO!$E$37="Non endémique",INTRO!$E$41="Non endémique")," ",IF(COUNTRY_INFO!C75=0," ",COUNTRY_INFO!C75)) -> Matamaye | D75: =IF(AND(INTRO!$E$37="Non endémique",INTRO!$E$41="Non endémique"),0,COUNTRY_INFO!V75) -> 0 | E75: =IF(AND(INTRO!$E$37="Non endémique",INTRO!$E$41="Non endémique"),0,COUNTRY_INFO!X75) -> 0 | F75: =IF(INTRO!$E$39="Non endémique",IF($D75=1,DEC!I75,0),IF($D75=1,IVM!G75,0)) -> 0 | H75: =IF(OR(COUNTRY_INFO!N75="Inconnu",COUNTRY_INFO!N75="Surveillance",COUNTRY_INFO!N75="Non requis",COUNTRY_INFO!N75=0),0,IF(INTRO!$E$39="Non endémique",IF(AND($E75<>0,$G75=""),IF($F75=0,COUNTRY_INFO!N75*$E75,COUNTRY_INFO!N75*($E75-$D75)),IF(AND($E75<>0,$G75<>0),IF($F75=0,COUNTRY_INFO!N75*$G75,COUNTRY_INFO!N75*($G75-$D75)),0)),IF($G75="",COUNTRY_INFO!N75*$E75,COUNTRY_INFO!N75*$G75))) -> 0 | I75: =IF(OR(COUNTRY_INFO!O75="Inconnu",COUNTRY_INFO!O75="Surveillance",COUNTRY_INFO!O75="Non requis",COUNTRY_INFO!O75=0),0,IF($E75<>0, IF($F75=0,COUNTRY_INFO!O75*$E75,COUNTRY_INFO!O75*($E75-$D75)),COUNTRY_INFO!O75*$E75)) -> 0 | K75: =IF(OR(COUNTRY_INFO!P75="Inconnu",COUNTRY_INFO!P75="Surveillance",COUNTRY_INFO!P75="Non requis",COUNTRY_INFO!P75=0),0,IF(AND($E75<>0,$J75=""),IF($F75=0,COUNTRY_INFO!P75*$E75,COUNTRY_INFO!P75*($E75-$D75)), IF(AND($E75<>0,$J75<>0),IF($F75=0,COUNTRY_INFO!P75*$J75,COUNTRY_INFO!P75*($J75-$D75)), COUNTRY_INFO!P75*$J75))) -> 0 | L75: 0 | M75: 0 | O75: 0 | P75: 0 | R75: 0 | S75: 0 | U75: 0
A76: =IF(AND(INTRO!$E$37="Non endémique",INTRO!$E$41="Non endémique")," ",IF(COUNTRY_INFO!A76=0," ",COUNTRY_INFO!A76)) -> NIGER | B76: =IF(AND(INTRO!$E$37="Non endémique",INTRO!$E$41="Non endémique")," ",IF(COUNTRY_INFO!B76=0," ",COUNTRY_INFO!B76)) -> Zinder | C76: =IF(AND(INTRO!$E$37="Non endémique",INTRO!$E$41="Non endémique")," ",IF(COUNTRY_INFO!C76=0," ",COUNTRY_INFO!C76)) -> Miriah | D76: =IF(AND(INTRO!$E$37="Non endémique",INTRO!$E$41="Non endémique"),0,COUNTRY_INFO!V76) -> 0 | E76: =IF(AND(INTRO!$E$37="Non endémique",INTRO!$E$41="Non endémique"),0,COUNTRY_INFO!X76) -> 0 | F76: =IF(INTRO!$E$39="Non endémique",IF($D76=1,DEC!I76,0),IF($D76=1,IVM!G76,0)) -> 0 | H76: =IF(OR(COUNTRY_INFO!N76="Inconnu",COUNTRY_INFO!N76="Surveillance",COUNTRY_INFO!N76="Non requis",COUNTRY_INFO!N76=0),0,IF(INTRO!$E$39="Non endémique",IF(AND($E76<>0,$G76=""),IF($F76=0,COUNTRY_INFO!N76*$E76,COUNTRY_INFO!N76*($E76-$D76)),IF(AND($E76<>0,$G76<>0),IF($F76=0,COUNTRY_INFO!N76*$G76,COUNTRY_INFO!N76*($G76-$D76)),0)),IF($G76="",COUNTRY_INFO!N76*$E76,COUNTRY_INFO!N76*$G76))) -> 0 | I76: =IF(OR(COUNTRY_INFO!O76="Inconnu",COUNTRY_INFO!O76="Surveillance",COUNTRY_INFO!O76="Non requis",COUNTRY_INFO!O76=0),0,IF($E76<>0, IF($F76=0,COUNTRY_INFO!O76*$E76,COUNTRY_INFO!O76*($E76-$D76)),COUNTRY_INFO!O76*$E76)) -> 0 | K76: =IF(OR(COUNTRY_INFO!P76="Inconnu",COUNTRY_INFO!P76="Surveillance",COUNTRY_INFO!P76="Non requis",COUNTRY_INFO!P76=0),0,IF(AND($E76<>0,$J76=""),IF($F76=0,COUNTRY_INFO!P76*$E76,COUNTRY_INFO!P76*($E76-$D76)), IF(AND($E76<>0,$J76<>0),IF($F76=0,COUNTRY_INFO!P76*$J76,COUNTRY_INFO!P76*($J76-$D76)), COUNTRY_INFO!P76*$J76))) -> 0 | L76: 0 | M76: 0 | O76: 0 | P76: 0 | R76: 0 | S76: 0 | U76: 0
A77: =IF(AND(INTRO!$E$37="Non endémique",INTRO!$E$41="Non endémique")," ",IF(COUNTRY_INFO!A77=0," ",COUNTRY_INFO!A77)) -> NIGER | B77: =IF(AND(INTRO!$E$37="Non endémique",INTRO!$E$41="Non endémique")," ",IF(COUNTRY_INFO!B77=0," ",COUNTRY_INFO!B77)) -> Zinder | C77: =IF(AND(INTRO!$E$37="Non endémique",INTRO!$E$41="Non endémique")," ",IF(COUNTRY_INFO!C77=0," ",COUNTRY_INFO!C77)) -> Damagaram Takaya | D77: =IF(AND(INTRO!$E$37="Non endémique",INTRO!$E$41="Non endémique"),0,COUNTRY_INFO!V77) -> 0 | E77: =IF(AND(INTRO!$E$37="Non endémique",INTRO!$E$41="Non endémique"),0,COUNTRY_INFO!X77) -> 0 | F77: =IF(INTRO!$E$39="Non endémique",IF($D77=1,DEC!I77,0),IF($D77=1,IVM!G77,0)) -> 0 | H77: =IF(OR(COUNTRY_INFO!N77="Inconnu",COUNTRY_INFO!N77="Surveillance",COUNTRY_INFO!N77="Non requis",COUNTRY_INFO!N77=0),0,IF(INTRO!$E$39="Non endémique",IF(AND($E77<>0,$G77=""),IF($F77=0,COUNTRY_INFO!N77*$E77,COUNTRY_INFO!N77*($E77-$D77)),IF(AND($E77<>0,$G77<>0),IF($F77=0,COUNTRY_INFO!N77*$G77,COUNTRY_INFO!N77*($G77-$D77)),0)),IF($G77="",COUNTRY_INFO!N77*$E77,COUNTRY_INFO!N77*$G77))) -> 0 | I77: =IF(OR(COUNTRY_INFO!O77="Inconnu",COUNTRY_INFO!O77="Surveillance",COUNTRY_INFO!O77="Non requis",COUNTRY_INFO!O77=0),0,IF($E77<>0, IF($F77=0,COUNTRY_INFO!O77*$E77,COUNTRY_INFO!O77*($E77-$D77)),COUNTRY_INFO!O77*$E77)) -> 0 | K77: =IF(OR(COUNTRY_INFO!P77="Inconnu",COUNTRY_INFO!P77="Surveillance",COUNTRY_INFO!P77="Non requis",COUNTRY_INFO!P77=0),0,IF(AND($E77<>0,$J77=""),IF($F77=0,COUNTRY_INFO!P77*$E77,COUNTRY_INFO!P77*($E77-$D77)), IF(AND($E77<>0,$J77<>0),IF($F77=0,COUNTRY_INFO!P77*$J77,COUNTRY_INFO!P77*($J77-$D77)), COUNTRY_INFO!P77*$J77))) -> 0 | L77: 0 | M77: 0 | O77: 0 | P77: 0 | R77: 0 | S77: 0 | U77: 0
A78: =IF(AND(INTRO!$E$37="Non endémique",INTRO!$E$41="Non endémique")," ",IF(COUNTRY_INFO!A78=0," ",COUNTRY_INFO!A78)) -> NIGER | B78: =IF(AND(INTRO!$E$37="Non endémique",INTRO!$E$41="Non endémique")," ",IF(COUNTRY_INFO!B78=0," ",COUNTRY_INFO!B78)) -> Zinder | C78: =IF(AND(INTRO!$E$37="Non endémique",INTRO!$E$41="Non endémique")," ",IF(COUNTRY_INFO!C78=0," ",COUNTRY_INFO!C78)) -> Takeita | D78: =IF(AND(INTRO!$E$37="Non endémique",INTRO!$E$41="Non endémique"),0,COUNTRY_INFO!V78) -> 0 | E78: =IF(AND(INTRO!$E$37="Non endémique",INTRO!$E$41="Non endémique"),0,COUNTRY_INFO!X78) -> 0 | F78: =IF(INTRO!$E$39="Non endémique",IF($D78=1,DEC!I78,0),IF($D78=1,IVM!G78,0)) -> 0 | H78: =IF(OR(COUNTRY_INFO!N78="Inconnu",COUNTRY_INFO!N78="Surveillance",COUNTRY_INFO!N78="Non requis",COUNTRY_INFO!N78=0),0,IF(INTRO!$E$39="Non endémique",IF(AND($E78<>0,$G78=""),IF($F78=0,COUNTRY_INFO!N78*$E78,COUNTRY_INFO!N78*($E78-$D78)),IF(AND($E78<>0,$G78<>0),IF($F78=0,COUNTRY_INFO!N78*$G78,COUNTRY_INFO!N78*($G78-$D78)),0)),IF($G78="",COUNTRY_INFO!N78*$E78,COUNTRY_INFO!N78*$G78))) -> 0 | I78: =IF(OR(COUNTRY_INFO!O78="Inconnu",COUNTRY_INFO!O78="Surveillance",COUNTRY_INFO!O78="Non requis",COUNTRY_INFO!O78=0),0,IF($E78<>0, IF($F78=0,COUNTRY_INFO!O78*$E78,COUNTRY_INFO!O78*($E78-$D78)),COUNTRY_INFO!O78*$E78)) -> 0 | K78: =IF(OR(COUNTRY_INFO!P78="Inconnu",COUNTRY_INFO!P78="Surveillance",COUNTRY_INFO!P78="Non requis",COUNTRY_INFO!P78=0),0,IF(AND($E78<>0,$J78=""),IF($F78=0,COUNTRY_INFO!P78*$E78,COUNTRY_INFO!P78*($E78-$D78)), IF(AND($E78<>0,$J78<>0),IF($F78=0,COUNTRY_INFO!P78*$J78,COUNTRY_INFO!P78*($J78-$D78)), COUNTRY_INFO!P78*$J78))) -> 0 | L78: 0 | M78: 0 | O78: 0 | P78: 0 | R78: 0 | S78: 0 | U78: 0
A79: =IF(AND(INTRO!$E$37="Non endémique",INTRO!$E$41="Non endémique")," ",IF(COUNTRY_INFO!A79=0," ",COUNTRY_INFO!A79)) -> NIGER | B79: =IF(AND(INTRO!$E$37="Non endémique",INTRO!$E$41="Non endémique")," ",IF(COUNTRY_INFO!B79=0," ",COUNTRY_INFO!B79)) -> Zinder | C79: =IF(AND(INTRO!$E$37="Non endémique",INTRO!$E$41="Non endémique")," ",IF(COUNTRY_INFO!C79=0," ",COUNTRY_INFO!C79)) -> Tanout | D79: =IF(AND(INTRO!$E$37="Non endémique",INTRO!$E$41="Non endémique"),0,COUNTRY_INFO!V79) -> 0 | E79: =IF(AND(INTRO!$E$37="Non endémique",INTRO!$E$41="Non endémique"),0,COUNTRY_INFO!X79) -> 0 | F79: =IF(INTRO!$E$39="Non endémique",IF($D79=1,DEC!I79,0),IF($D79=1,IVM!G79,0)) -> 0 | H79: =IF(OR(COUNTRY_INFO!N79="Inconnu",COUNTRY_INFO!N79="Surveillance",COUNTRY_INFO!N79="Non requis",COUNTRY_INFO!N79=0),0,IF(INTRO!$E$39="Non endémique",IF(AND($E79<>0,$G79=""),IF($F79=0,COUNTRY_INFO!N79*$E79,COUNTRY_INFO!N79*($E79-$D79)),IF(AND($E79<>0,$G79<>0),IF($F79=0,COUNTRY_INFO!N79*$G79,COUNTRY_INFO!N79*($G79-$D79)),0)),IF($G79="",COUNTRY_INFO!N79*$E79,COUNTRY_INFO!N79*$G79))) -> 0 | I79: =IF(OR(COUNTRY_INFO!O79="Inconnu",COUNTRY_INFO!O79="Surveillance",COUNTRY_INFO!O79="Non requis",COUNTRY_INFO!O79=0),0,IF($E79<>0, IF($F79=0,COUNTRY_INFO!O79*$E79,COUNTRY_INFO!O79*($E79-$D79)),COUNTRY_INFO!O79*$E79)) -> 0 | K79: =IF(OR(COUNTRY_INFO!P79="Inconnu",COUNTRY_INFO!P79="Surveillance",COUNTRY_INFO!P79="Non requis",COUNTRY_INFO!P79=0),0,IF(AND($E79<>0,$J79=""),IF($F79=0,COUNTRY_INFO!P79*$E79,COUNTRY_INFO!P79*($E79-$D79)), IF(AND($E79<>0,$J79<>0),IF($F79=0,COUNTRY_INFO!P79*$J79,COUNTRY_INFO!P79*($J79-$D79)), COUNTRY_INFO!P79*$J79))) -> 0 | L79: 0 | M79: 0 | O79: 0 | P79: 0 | R79: 0 | S79: 0 | U79: 0
A80: =IF(AND(INTRO!$E$37="Non endémique",INTRO!$E$41="Non endémique")," ",IF(COUNTRY_INFO!A80=0," ",COUNTRY_INFO!A80)) -> NIGER | B80: =IF(AND(INTRO!$E$37="Non endémique",INTRO!$E$41="Non endémique")," ",IF(COUNTRY_INFO!B80=0," ",COUNTRY_INFO!B80)) -> Zinder | C80: =IF(AND(INTRO!$E$37="Non endémique",INTRO!$E$41="Non endémique")," ",IF(COUNTRY_INFO!C80=0," ",COUNTRY_INFO!C80)) -> Belbéji | D80: =IF(AND(INTRO!$E$37="Non endémique",INTRO!$E$41="Non endémique"),0,COUNTRY_INFO!V80) -> 0 | E80: =IF(AND(INTRO!$E$37="Non endémique",INTRO!$E$41="Non endémique"),0,COUNTRY_INFO!X80) -> 0 | F80: =IF(INTRO!$E$39="Non endémique",IF($D80=1,DEC!I80,0),IF($D80=1,IVM!G80,0)) -> 0 | H80: =IF(OR(COUNTRY_INFO!N80="Inconnu",COUNTRY_INFO!N80="Surveillance",COUNTRY_INFO!N80="Non requis",COUNTRY_INFO!N80=0),0,IF(INTRO!$E$39="Non endémique",IF(AND($E80<>0,$G80=""),IF($F80=0,COUNTRY_INFO!N80*$E80,COUNTRY_INFO!N80*($E80-$D80)),IF(AND($E80<>0,$G80<>0),IF($F80=0,COUNTRY_INFO!N80*$G80,COUNTRY_INFO!N80*($G80-$D80)),0)),IF($G80="",COUNTRY_INFO!N80*$E80,COUNTRY_INFO!N80*$G80))) -> 0 | I80: =IF(OR(COUNTRY_INFO!O80="Inconnu",COUNTRY_INFO!O80="Surveillance",COUNTRY_INFO!O80="Non requis",COUNTRY_INFO!O80=0),0,IF($E80<>0, IF($F80=0,COUNTRY_INFO!O80*$E80,COUNTRY_INFO!O80*($E80-$D80)),COUNTRY_INFO!O80*$E80)) -> 0 | K80: =IF(OR(COUNTRY_INFO!P80="Inconnu",COUNTRY_INFO!P80="Surveillance",COUNTRY_INFO!P80="Non requis",COUNTRY_INFO!P80=0),0,IF(AND($E80<>0,$J80=""),IF($F80=0,COUNTRY_INFO!P80*$E80,COUNTRY_INFO!P80*($E80-$D80)), IF(AND($E80<>0,$J80<>0),IF($F80=0,COUNTRY_INFO!P80*$J80,COUNTRY_INFO!P80*($J80-$D80)), COUNTRY_INFO!P80*$J80))) -> 0 | L80: 0 | M80: 0 | O80: 0 | P80: 0 | R80: 0 | S80: 0 | U80: 0
